Workbook

Sheet Sign Off
B2: Sign Off's
B4: Accounting
C6: Name | D6: Title | E6: Date
B7: Preparer | C7: Belen Villalba | D7: Temp Analyst | E7: 2019-12-20
B8: Reviewer | C8: William Adams | D8: Financial Planner Manager | E8: 2020-01-14
B9: Approver | C9: N/A | D9: N/A | E9: N/A
B11: Audit Services
C13: Name | D13: Title | E13: Date
B14: Preparer
B16: Energy Delivery
C18: Name | D18: Title | E18: Date
B19: Final Reviewer

Sheet A - Contractor Summary
B2: Contractor Summary
B4: Test Plan: (A) Using the drop down list, select the vendor. (B) Ensure address agrees to invoice(s). (C) Enter the distance between vendor address to Plant City, FL. (D) Determine if vendor is part of the SEE (see tab A.1 for listing). (E) Determine if other agreements exist. (F) Using the drop down list, select the Incident Base that the vendor was initially assigned. (G) If the contractor includes multiple crews with different timelines, utilize the '+' symbol at the top of columns 'H' and 'K' (if necessary) to unhide the vendor summary. (H) Click the button to populate the second (and third, if necessary) set of tabs for documentation of those expenses. (I) Complete steps (A) through (F).
F14: G | I14: G | K14: G | M14: G
C15: Vendor #6
G17: H | J17: H
B19: Contractor/Company | C19: DAVEY TREE EXPERT COMPANY, THE | D19: A | G19: A | J19: A
B20: SAP Vendor#
B21: Service Type | C21: Distribution
B23: Address | C23: PO Box 709 | D23: B
B24: City | C24: Kent
B25: State/Providence | C25: OH
B26: Zip | C26: 44240
B27: Country | C27: USA
B29: Distance from FL (in miles) | D29: C
B30: Travel Days (500 m/per day)
B32: Member of the SEE | D32: D
B33: Other Agreement/Contract (Y/N) | D33: E
B34: Incident Base | D34: F
B36: Date Secured | C36: 10/11/2018-11/7/2018
B37: Start Travel | C37: Various
B38: Date Arrived | C38: 2018-10-11
B39: Date Released | C39: 2018-11-07
B40: Time Released
B41: Released To | C41: Marianna, FL
B42: Arrived Home/Utility*
F47: C.1 - Rate Sheets (2) | I47: C.1 - Rate Sheets (3) | K47: C.1 - Rate Sheets (3) | M47: C.1 - Rate Sheets (3)
F48: C.2 - Timesheets - Labor (2) | I48: C.2 - Timesheets - Labor (3) | K48: C.2 - Timesheets - Labor (3) | M48: C.2 - Timesheets - Labor (3)
F49: C.4 - Timesheets - Equipmen (2) | I49: C.4 - Timesheets - Equipmen (3) | K49: C.4 - Timesheets - Equipmen (3) | M49: C.4 - Timesheets - Equipmen (3)
F50: D - Lodging (2) | I50: D - Lodging (3) | K50: D - Lodging (3) | M50: D - Lodging (3)
F51: E - Fuel (2) | I51: E - Fuel (3) | K51: E - Fuel (3) | M51: E - Fuel (3)
F52: F - Meals (2) | I52: F - Meals (3) | K52: F - Meals (3) | M52: F - Meals (3)
F53: G - Per Diem (2) | I53: G - Per Diem (3) | K53: G - Per Diem (3) | M53: G - Per Diem (3)
F54: H - Mileage (2) | I54: H - Mileage (3) | K54: H - Mileage (3) | M54: H - Mileage (3)
F55: I - Other (2) | I55: I - Other (3) | K55: I - Other (3) | M55: I - Other (3)
B59: *Estimates reasonable arrival time
B61: Tickmark Explanation:

Sheet A.1 SEE Members
A1: RMAG | B1: RESPONDING COMPANY | C1: COMPANY NAME
A2: SEE
A3: SEE
A4: SEE
A5: SEE
A6: SEE
A7: SEE
A8: SEE
A9: SEE
A10: SEE
A11: SEE
A12: SEE
A13: SEE
A14: SEE
A15: SEE
A16: SEE
A17: SEE
A18: SEE
A19: SEE
A24: SEE
A25: SEE
A26: SEE
A27: SEE
A28: SEE
A29: SEE
A31: SEE
A32: SEE
A33: SEE
A34: SEE
A35: SEE
A40: SEE
A41: SEE
A42: SEE
A43: SEE
A47: SEE
A55: SEE
A56: SEE
A57: SEE
A61: SEE
A64: SEE
A65: SEE

Sheet B - Summary Expenses
B2: Summary of Expenses
B4: Test Plan: (A) Calculate Total Amount Invoiced for each expense category. (B) Using SAP t-code FBL1N, list Vendor Invoices Paid. (C) Ensure there are no differences between the Total Expense Amount and the Total Paid Amount. (D) Ensure there are no difference between Total Invoiced Amount and Total Expense Amount. (E) If applicable, identify difference due to Foreign currency exchange rates.
C9: A
C10: Total Invoiced | D10: Total Calculated | E10: Allowable | F10: Reviewed - Allowed | G10: Reviewed - Not Allowable | H10: Not Allowable
B11: Labor Expense Total | C11: 1962671.8 | D11: =+'C.2 - Timesheets - Labor'!BB427 -> 1975917.8 | E11: ='C.2 - Timesheets - Labor'!BC427 -> 1975917.8 | F11: ='C.2 - Timesheets - Labor'!BD427 -> 0 | G11: ='C.2 - Timesheets - Labor'!BE427 -> 0 | H11: =D11-(E11+F11+G11) -> 0
B12: Equipment Expense Total | C12: 253388.6875 | D12: =+'C.4 - Timesheets - Equipment'!R264 -> 253388.6875 | E12: =+'C.4 - Timesheets - Equipment'!S264 -> 253388.6875 | F12: ='C.4 - Timesheets - Equipment'!U264 -> 0 | G12: ='C.4 - Timesheets - Equipment'!V264 -> 502 | H12: =D12-(E12+F12+G12) -> -502
B13: Lodging Expense Total | F13: ='D - Lodging'!V93 -> 0 | G13: ='D - Lodging'!W93 -> 0 | H13: =D13-(E13+F13+G13) -> 0
B14: Fuel/Transport Expense Total | F14: ='E - Fuel'!S34 -> 0 | G14: ='E - Fuel'!T34 -> 0 | H14: 0
B15: Meal Expense Total | F15: ='F - Meals'!T141 -> 0 | G15: ='F - Meals'!U141 -> 0 | H15: 0
B16: Per Diem Expense Total | C16: 20691 | D16: =+'G - Per Diem'!I121 -> 20691 | F16: ='G - Per Diem'!P121 -> 20691 | G16: ='G - Per Diem'!Q121 -> 0 | H16: 0
B17: Mileage Expense Total | C17: 36581.504 | D17: =+'H - Mileage'!L123 -> 36581.504 | F17: ='H - Mileage'!R123 -> 36581.504 | G17: ='H - Mileage'!U123 -> 53.8 | H17: -53.8
B18: Other Expense | C18: 275.22 | D18: =+'I - Other'!K19 -> 275.22 | F18: ='I - Other'!T19 -> 0 | G18: ='I - Other'!U19 -> 0 | H18: =D18-(E18+F18+G18) -> 275.22
B20: Total Expense per tabs | C20: =SUM(C11:C18) -> 2273608.212 | D20: =SUM(D11:D18) -> 2286854.212 | E20: =SUM(E11:E18) -> 2229306.488 | F20: =SUM(F11:F18) -> 57272.504 | G20: =SUM(G11:G18) -> 555.8 | H20: -280.58
B21: Difference | C21: =IF(D21=0,"","1") -> 1 | D21: =C20-D20 -> -13246 | E21: D
B23: Total Expense | D23: =+D20 -> 2286854.212 | E23: (from Total SAP Summary)
B24: Total Paid | D24: =+D221 -> 2273608.212 | E24: (from FBL1N in SAP)
B25: Difference | C25: =IF(D25=0,"",SUM(C21,1)) -> 1 | D25: =+D23-D24 -> 13246 | E25: C
B27: Exchange Rate
B28: Fx Adjusted to USD
B29: Difference | C29: =IF(D29=0,"","3") ->  | E29: E
B31: B
B33: Document No | C33: Doc Date | D33: Amount | E33: Reference
B34: 913220721 | C34: 2018-10-31 | D34: 11178.98 | E34: 680998
B35: 913220823 | C35: 2018-10-31 | D35: 10790.48 | E35: 684052
B36: 913220899 | C36: 2018-11-16 | D36: 39571.2 | E36: 684080
B37: 913223258 | C37: 2018-12-26 | D37: 17901 | E37: 680999
B38: 913223259 | C38: 2018-12-26 | D38: 18520.5 | E38: 681000
B39: 913223261 | C39: 2018-11-15 | D39: 15605.6 | E39: 681001
B40: 913223262 | C40: 2018-11-15 | D40: 16151.6 | E40: 681002
B41: 913223316 | C41: 2018-11-15 | D41: 24818.08 | E41: 684064
B42: 913231713 | C42: 2018-11-27 | D42: 20807.2 | E42: 684072
B43: 913231714 | C43: 2018-11-27 | D43: 22535.2 | E43: 684073
B44: 913231715 | C44: 2018-11-27 | D44: 22535.2 | E44: 684074
B45: 913231720 | C45: 2018-11-27 | D45: 22535.2 | E45: 684070
B46: 913231722 | C46: 2018-11-27 | D46: 11568.8 | E46: 684071
B47: 913231723 | C47: 2018-11-27 | D47: 13475.72 | E47: 684069
B48: 913231724 | C48: 2018-11-27 | D48: 13475.72 | E48: 684067
B49: 913231726 | C49: 2018-11-27 | D49: 13475.72 | E49: 684068
B50: 913231727 | C50: 2018-11-27 | D50: 7146.01 | E50: 684053
B51: 913231731 | C51: 2018-11-27 | D51: 23238.17 | E51: 684054
B52: 913231732 | C52: 2018-11-27 | D52: 35940 | E52: 684055
B53: 913231733 | C53: 2018-11-27 | D53: 11568.8 | E53: 684056
B54: 913231734 | C54: 2018-11-27 | D54: 16887.2 | E54: 684057
B55: 913231735 | C55: 2018-11-27 | D55: 11568.8 | E55: 684058
B56: 913231736 | C56: 2018-11-27 | D56: 16887.2 | E56: 684059
B57: 913231737 | C57: 2018-11-27 | D57: 30138.4 | E57: 684060
B58: 913231738 | C58: 2018-11-27 | D58: 16887.2 | E58: 684061
B59: 913231739 | C59: 2018-11-27 | D59: 3332.08 | E59: 684081
B60: 913231740 | C60: 2018-11-27 | D60: 3075.41 | E60: 684082
B61: 913231741 | C61: 2018-11-27 | D61: 6995.41 | E61: 684083
B62: 913231743 | C62: 2018-11-27 | D62: 2892.21 | E62: 684084
B63: 913232495 | C63: 2018-12-14 | D63: 9612.24 | E63: 678305
B64: 913232497 | C64: 2018-11-20 | D64: 9360.24 | E64: 678306
B65: 913232498 | C65: 2018-11-20 | D65: 9360.24 | E65: 678307
B66: 913232500 | C66: 2018-11-20 | D66: 9360.24 | E66: 678308
B67: 913241575 | C67: 2018-11-29 | D67: 33922.4 | E67: 684089
B68: 913241576 | C68: 2018-11-29 | D68: 16887.2 | E68: 684090
B69: 913241581 | C69: 2018-11-29 | D69: 11568.8 | E69: 684062
B70: 913241583 | C70: 2018-11-29 | D70: 16887.2 | E70: 684063
B71: 913242897 | C71: 2018-11-14 | D71: 12370.3 | E71: 698391
B72: 913242903 | C72: 2018-11-14 | D72: 18490.2 | E72: 698384
B73: 913242904 | C73: 2018-11-14 | D73: 18490.2 | E73: 698385
B74: 913242906 | C74: 2018-11-14 | D74: 18490.2 | E74: 698386
B75: 913242907 | C75: 2018-11-14 | D75: 18490.2 | E75: 698387
B76: 913242909 | C76: 2018-11-14 | D76: 17288.6 | E76: 698388
B77: 913242910 | C77: 2018-11-14 | D77: 18490.2 | E77: 698389
B78: 913242911 | C78: 2018-11-14 | D78: 23013.1 | E78: 698390
B79: 913243107 | C79: 2018-11-01 | D79: 4860.73 | E79: 695220
B80: 913243108 | C80: 2018-11-01 | D80: 4860.73 | E80: 695221
B81: 913243110 | C81: 2018-11-01 | D81: 5359.93 | E81: 695222
B82: 913243111 | C82: 2018-11-01 | D82: 4860.73 | E82: 695223
B83: 913243112 | C83: 2018-11-01 | D83: 4516.73 | E83: 695224
B84: 913243113 | C84: 2018-11-01 | D84: 6730.96 | E84: 695225
B85: 913243114 | C85: 2018-11-01 | D85: 5396.73 | E85: 695219
B86: 913243115 | C86: 2018-11-01 | D86: 3328.82 | E86: 695226
B87: 913243149 | C87: 2018-11-14 | D87: 10154.72 | E87: 698392
B88: 913243150 | C88: 2018-11-14 | D88: 10154.72 | E88: 698393
B89: 913243151 | C89: 2018-11-14 | D89: 6797.36 | E89: 698394
B90: 913243152 | C90: 2018-11-14 | D90: 10154.72 | E90: 698395
B91: 913243153 | C91: 2018-11-14 | D91: 10154.72 | E91: 698396
B92: 913243156 | C92: 2018-11-14 | D92: 9503.12 | E92: 698397
B93: 913243158 | C93: 2018-11-14 | D93: 9995.52 | E93: 698398
B94: 913243160 | C94: 2018-11-14 | D94: 10154.72 | E94: 698399
B95: 913243328 | C95: 2018-11-29 | D95: 2751.42 | E95: 684093
B96: 913243330 | C96: 2018-11-29 | D96: 2871.42 | E96: 684094
B97: 913243332 | C97: 2018-11-29 | D97: 2054.22 | E97: 684095
B98: 913243334 | C98: 2018-11-29 | D98: 18160.45 | E98: 684066
B99: 913243336 | C99: 2018-11-29 | D99: 35437.6 | E99: 684065
B100: 913243339 | C100: 2018-11-29 | D100: 4666.42 | E100: 684096
B101: 913243348 | C101: 2018-11-29 | D101: 12728.92 | E101: 684085
B102: 913243350 | C102: 2018-11-29 | D102: 5821.72 | E102: 684086
B103: 913243352 | C103: 2018-11-29 | D103: 5230.52 | E103: 684087
B104: 913243353 | C104: 2018-11-29 | D104: 6303.72 | E104: 684088
B105: 913243354 | C105: 2018-11-29 | D105: 13425.76 | E105: 684075
B106: 913243356 | C106: 2018-11-29 | D106: 7472.38 | E106: 684076
B107: 913243358 | C107: 2018-11-29 | D107: 13425.76 | E107: 684077
B108: 913243359 | C108: 2018-11-29 | D108: 10253.76 | E108: 684078
B109: 913243361 | C109: 2018-11-29 | D109: 13425.76 | E109: 684079
B110: 913259237 | C110: 2018-12-04 | D110: 12909.58 | E110: 695238
B111: 913259242 | C111: 2018-12-04 | D111: 12124.08 | E111: 695239
B112: 913259268 | C112: 2018-11-14 | D112: 22840.8 | E112: 698404
B113: 913259270 | C113: 2018-11-14 | D113: 8865.6 | E113: 698405
B114: 913259274 | C114: 2018-11-14 | D114: 17475.2 | E114: 698406
B115: 913259277 | C115: 2018-11-01 | D115: 18569.6 | E115: 698400
B116: 913259282 | C116: 2018-11-01 | D116: 33929.6 | E116: 698401
B117: 913259291 | C117: 2018-11-01 | D117: 27730.4 | E117: 698402
B118: 913259293 | C118: 2018-11-01 | D118: 16887.2 | E118: 698403
B119: 913259300 | C119: 2018-11-14 | D119: 5842.4 | E119: 695235
B120: 913259306 | C120: 2018-12-04 | D120: 5842.4 | E120: 695234
B121: 913259355 | C121: 2018-12-04 | D121: 53541.6 | E121: 698383
B122: 913259357 | C122: 2018-11-01 | D122: 11568.8 | E122: 698377
B123: 913259364 | C123: 2018-11-14 | D123: 29531.12 | E123: 698382
B124: 913259367 | C124: 2018-12-04 | D124: 28607.82 | E124: 698380
B125: 913259368 | C125: 2018-12-04 | D125: 6408.62 | E125: 698379
B126: 913259373 | C126: 2018-11-01 | D126: 9454.82 | E126: 695218
B127: 913262294 | C127: 2018-11-01 | D127: 5024.6665 | E127: 695243
B128: 913262502 | C128: 2019-11-01 | D128: 4860.604 | E128: 695245
B129: 913262582 | C129: 2019-11-01 | D129: 4860.604 | E129: 695244
B130: 913262679 | C130: 2018-11-01 | D130: 3328.74 | E130: 695242
B131: 913280569 | C131: 2018-11-14 | D131: 8648.3 | E131: 684091
B132: 913280571 | C132: 2018-11-14 | D132: 3217 | E132: 684092
B133: 913281758 | C133: 2018-11-01 | D133: 11730.46 | E133: 685791
B134: 913281761 | C134: 2018-11-01 | D134: 16165.56 | E134: 685792
B135: 913281767 | C135: 2018-11-01 | D135: 4947.06 | E135: 695237
B136: 913281769 | C136: 2018-11-01 | D136: 16291.36 | E136: 685790
B137: 913281772 | C137: 2018-11-01 | D137: 16153.76 | E137: 685789
B138: 913281791 | C138: 2018-11-01 | D138: 3419.17 | E138: 695236
B139: 913293304 | C139: 2019-03-21 | D139: 2050.48 | E139: 685767
B140: 913293305 | C140: 2019-03-21 | D140: 2010.57 | E140: 685768
B141: 913293310 | C141: 2019-03-21 | D141: 2941.42 | E141: 685769
B142: 913293312 | C142: 2019-03-21 | D142: 5060 | E142: 685770
B143: 913293314 | C143: 2019-03-21 | D143: 4200 | E143: 685774
B144: 913293315 | C144: 2019-03-21 | D144: 2750 | E144: 685775
B145: 913293316 | C145: 2019-03-21 | D145: 1050 | E145: 685776
B146: 913293317 | C146: 2019-03-21 | D146: 4240 | E146: 685777
B147: 913293318 | C147: 2019-03-21 | D147: 7350 | E147: 685778
B148: 913293319 | C148: 2019-03-21 | D148: 2950 | E148: 685779
B149: 913293320 | C149: 2019-03-21 | D149: 2100 | E149: 685780
B150: 913293321 | C150: 2019-03-21 | D150: 3150 | E150: 685781
B151: 913293322 | C151: 2019-03-21 | D151: 7192.41 | E151: 685782
B152: 913293323 | C152: 2018-12-19 | D152: 6100 | E152: 685781
B153: 913293325 | C153: 2018-12-19 | D153: 3146.42 | E153: 685782
B154: 913301063 | C154: 2018-12-19 | D154: 6631.58 | E154: 685785
B155: 913301066 | C155: 2018-12-19 | D155: 6505.69 | E155: 685786
B156: 913301068 | C156: 2018-12-19 | D156: 3383.58 | E156: 685787
B157: 913301069 | C157: 2018-12-19 | D157: 3790.78 | E157: 685788
B158: 913301070 | C158: 2018-12-19 | D158: 1189.64 | E158: 685783
B159: 913301071 | C159: 2018-12-19 | D159: 2369.21 | E159: 685784
B160: 913332915 | C160: 2018-11-14 | D160: 10940 | E160: 695229
B161: 913333177 | C161: 2018-11-14 | D161: 11612 | E161: 695230
B162: 913333182 | C162: 2018-11-14 | D162: 7556 | E162: 698375
B163: 913333184 | C163: 2018-11-14 | D163: 11612 | E163: 695231
B164: 913333188 | C164: 2018-11-01 | D164: 17208.76 | E164: 695227
B165: 913333193 | C165: 2018-11-01 | D165: 12516.56 | E165: 695228
B166: 913333205 | C166: 2018-11-14 | D166: 10940 | E166: 695232
B167: 913333211 | C167: 2018-11-14 | D167: 17077.6 | E167: 695233
B168: 913346146 | C168: 2018-11-01 | D168: 13248.16 | E168: 698381
B169: 913346153 | C169: 2018-11-01 | D169: 18085.56 | E169: 695240
B170: 913346156 | C170: 2019-11-01 | D170: 6984.6665 | E170: 695247
B171: 913346172 | C171: 2019-11-01 | D171: 5024.6665 | E171: 695246
B172: 913346195 | C172: 2018-11-01 | D172: 17902.2 | E172: 695241
B173: 913346317 | C173: 2018-11-01 | D173: 4947.06 | E173: 698374
B174: 913346321 | C174: 2018-11-24 | D174: 31574.4 | E174: 695248
B175: 913346329 | C175: 2018-11-14 | D175: 15001.42 | E175: 698378
B176: 913346486 | C176: 2018-11-24 | D176: 21176.874 | E176: 698376
B177: 913176206 | C177: 2018-10-26 | D177: 18392.2 | E177: 716009
B178: 913194965 | C178: 2018-10-18 | D178: 14063.4 | E178: 716004
B179: 913194966 | C179: 2018-10-18 | D179: 14063.4 | E179: 716005
B180: 913194968 | C180: 2018-10-18 | D180: 7865.9 | E180: 716006
B181: 913194969 | C181: 2018-10-18 | D181: 16887.2 | E181: 716007
B182: 913194970 | C182: 2018-10-18 | D182: 14063.4 | E182: 716008
B183: 913194971 | C183: 2018-10-18 | D183: 16887.2 | E183: 716015
B184: 913194972 | C184: 2018-10-18 | D184: 16887.2 | E184: 716016
B185: 913194973 | C185: 2018-10-18 | D185: 11568.8 | E185: 716017
B186: 913194975 | C186: 2018-10-18 | D186: 16887.2 | E186: 716018
B187: 913195018 | C187: 2018-10-26 | D187: 12265.2 | E187: 719829
B188: 913195020 | C188: 2018-10-26 | D188: 16887.2 | E188: 719830
B189: 913195022 | C189: 2018-10-26 | D189: 2563.2 | E189: 716024
B190: 913195027 | C190: 2018-10-26 | D190: 11568.8 | E190: 719832
B191: 913221020 | C191: 2018-10-26 | D191: 16451.6 | E191: 716025
B192: 9132223001 | C192: 2018-10-18 | D192: 4831.2 | E192: 716019
B193: 9132223003 | C193: 2018-10-18 | D193: 4831.2 | E193: 716020
B194: 913222888 | C194: 2018-10-26 | D194: 9616 | E194: 719838
B195: 913222891 | C195: 2018-10-26 | D195: 9328 | E195: 716031
B196: 913222996 | C196: 2018-10-18 | D196: 4999.2 | E196: 716021
B197: 913222998 | C197: 2018-10-18 | D197: 4831.2 | E197: 716022
B198: 913222999 | C198: 2018-10-18 | D198: 3309.6 | E198: 716023
B199: 913225341 | C199: 2018-10-26 | D199: 6554.8 | E199: 719836
B200: 913243903 | C200: 2018-11-20 | D200: 6414.82 | E200: 716033
B201: 913259175 | C201: 2018-12-04 | D201: 16887.2 | E201: 719833
B202: 913259179 | C202: 2018-11-14 | D202: 15033.4 | E202: 719831
B203: 913259181 | C203: 2018-12-04 | D203: 9480.52 | E203: 719837
B204: 913259235 | C204: 2018-12-04 | D204: 15781.2 | E204: 716011
B205: 913259255 | C205: 2018-12-04 | D205: 18918 | E205: 716012
B206: 913259273 | C206: 2018-11-06 | D206: 33289.6 | E206: 716032
B207: 913259361 | C207: 2018-12-04 | D207: 6235.2 | E207: 716013
B208: 913293313 | C208: 2018-12-19 | D208: 6681.73 | E208: 685771
B209: 913317486 | C209: 2018-10-18 | D209: 9147.2 | E209: 716028
B210: 913317487 | C210: 2018-10-18 | D210: 6268.4 | E210: 716035
B211: 913317488 | C211: 2018-10-18 | D211: 9147.2 | E211: 716029
... 120 more rows

Sheet C.1 - Rate Sheets
B2: Labor Charges - Rate Sheet
B4: Test Plan: (A) Using the vendor rate sheet, ensure that a rate was provided for all Positions and Equipment types.
B6: Labor Types:
B7: ST | C7: Straight Time
B8: OT | C8: Over Time
B9: DT | C9: Double Time
B10: MOB/DMOB | C10: Mobilization/Demobilization Time
B13: Labor per Man Hour | H13: Labor per Equipment Hour
B14: A | H14: A
B15: POSITION | C15: ST | D15: OT | E15: DT | F15: MOB/DMOB | H15: Type | I15: $/HOUR
B16: Crew Foreman | C16: 56.8 | D16: 76.7 | E16: 90.9 | H16: Aerial Lift 60'- 4WD | I16: 23.25
B17: Tree Trimmer | C17: 48.5 | D17: 65.5 | E17: 77.6 | H17: Aerial Lift 60'- 2WD | I17: 18
B18: Supervisor | C18: 74 | D18: 99.9 | E18: 118.4 | H18: 4X4 Pick Up | I18: 10
B19: Ground Person | C19: 40 | D19: 54 | E19: 64 | H19: Manual Crew Truck | I19: 14
B20: On-Site Safety Coordinator | C20: 65 | D20: 65 | E20: 65 | H20: Aerial Lift 60'- 4WD (a) | I20: 23.25
H21: Aerial Lift < 60' | I21: 28
H22: Saws | I22: 0
H23: Blower | I23: 0
H24: Computer | I24: 0
H25: none | I25: 0
H26: cell phone | I26: 0
H29: Mileage for Aerial under 60' | I29: 1.24
H30: Mileage to Marianna | I30: 1.29
H31: Mileage Manual Crew Truck | I31: 0.96
H32: Mileage Pick Up Truck | I32: 0.77
H33: Mileage Aerial Lift > 60' | I33: 1.29
H34: Mileage Aerial Lift < 60' | I34: 1.24
B54: Tickmark Explanation:
B55: 1

Sheet C.2 - Timesheets - Labor
B2: Labor Charges - Time Card
B4: Test Plan: | C4: Obtain the time cards. (A) Using the Asset by Company tab (C.3), populate the crew members names and positions (if provided). Find additional information regarding individual crew member from related invoice. (B) Enter hours worked from time card(s). (C) Confirm that the dates per the time cards fall between dates provided per 'A - Contractor Summary' tab. (D) Confirm the labor type charged agrees to the rate sheet. (E) Identify any labor charges to be reviewed (manually enter amounts based on reasonability of time period labor was charged, discrepancies between timecards and invoice, etc. (F) For charges which required further review, document review (include why it was determined to be allowed/disallowed via a tickmark).
B10: Rx | C10: Recalculated.
B11: a | C11: Provided from tab 'C.1 - Rate Sheets'. | D11: =+'C.2 - Timesheets - Labor'!A435 -> 0
B12: b | C12: Check figure should equal $0. Cell will appear yellow if discrepancies are noted.
C14: A | H14: Rx | J14: C | K14: a | AS14: Rx | AX14: Rx | BC14: Rx | BE14: E | BF14: F
B15: # | C15: Name | D15: Position | E15: Company | F15: Crew# | G15: Invoice# | H15: Start Date | I15: End Date | J15: Dates Worked Reasonable? | K15: Rates | O15: 10/7/18-10/13/18 | T15: 10/14/2018-10/20/2018 | Y15: 10/21/2018-10/27/2018 | AD15: 10/28/2018-11/3/2018 | AI15: 11/4/2018-11/10/2018 | AS15: Total Labor Hours | AX15: Total Labor $ | BC15: Allowable Charges | BD15: Labor Type Appropriate? | BE15: To Be Reviewed | BF15: Reviewed - Allowable Charge | BG15: Reviewed - Unallowable Charge | BH15: Tickmarks
AS16: Total ST | AT16: OT | AU16: DT | AV16: MOB/DMOB | AW16: Total Hours | AX16: Total ST $ | AY16: Total OT $ | AZ16: Total DT $ | BA16: Total MOB/DMOB $ | BB16: Total Labor $
K18: ST | L18: OT | M18: DT | N18: MOB/DMOB | O18: ST | P18: OT | Q18: DT | R18: MOB/DMOB | S18: Total | T18: ST | U18: OT | V18: DT | W18: MOB/DMOB | X18: Total | Y18: ST | Z18: OT | AA18: DT | AB18: MOB/DMOB | AC18: Total | AD18: ST | AE18: OT | AF18: DT | AG18: MOB/DMOB | AH18: Total | AI18: ST | AJ18: OT | AK18: DT | AL18: MOB/DMOB | AM18: Total
B19: 1 | C19: Horn, Bryan | D19: Crew Foreman | E19: Vendor No 6 | F19: Horn | G19: 913220721 | H19: 2018-10-09 | I19: 2018-10-13 | J19: =IF(AND(H19>='A - Contractor Summary'!$C$36,I19<='A - Contractor Summary'!$C$42),"Yes","No") -> No | K19: =VLOOKUP($D19,'C.1 - Rate Sheets'!B:I,2,FALSE) -> 56.8 | L19: =VLOOKUP($D19,'C.1 - Rate Sheets'!B:I,3,FALSE) -> 76.7 | M19: =VLOOKUP($D19,'C.1 - Rate Sheets'!B:I,4,FALSE) -> 90.9 | N19: =VLOOKUP($D19,'C.1 - Rate Sheets'!B:I,5,FALSE) -> 0 | O19: 40 | P19: 34 | S19: =SUM(O19:R19) -> 74 | X19: =SUM(T19:W19) -> 0 | AC19: =SUM(Y19:AB19) -> 0 | AH19: =SUM(AD19:AG19) -> 0 | AM19: =SUM(AI19:AL19) -> 0 | AS19: =SUM(O19,T19,Y19,AD19,AI19,AN19) -> 40 | AT19: =SUM(P19,U19,Z19,AE19,AJ19,AO19) -> 34 | AU19: 0 | AV19: 0 | AW19: =SUM(AS19:AV19) -> 74 | AX19: =AS19*K19 -> 2272 | AY19: =AT19*L19 -> 2607.8 | AZ19: =AU19*M19 -> 0 | BA19: =AV19*N19 -> 0 | BB19: =SUM(AX19:BA19) -> 4879.8 | BC19: =BB19-BE19 -> 4879.8 | BD19: Yes | BE19: 0 | BF19: 0 | BG19: 0
B20: 2 | C20: Cook, Ronald | D20: Tree Trimmer | E20: Vendor No 6 | F20: Horn | G20: 913220721 | H20: 2018-10-09 | I20: 2018-10-13 | J20: =IF(AND(H20>='A - Contractor Summary'!$C$36,I20<='A - Contractor Summary'!$C$42),"Yes","No") -> No | K20: =VLOOKUP($D20,'C.1 - Rate Sheets'!B:I,2,FALSE) -> 48.5 | L20: =VLOOKUP($D20,'C.1 - Rate Sheets'!B:I,3,FALSE) -> 65.5 | M20: =VLOOKUP($D20,'C.1 - Rate Sheets'!B:I,4,FALSE) -> 77.6 | N20: =VLOOKUP($D20,'C.1 - Rate Sheets'!B:I,5,FALSE) -> 0 | O20: 40 | P20: 34 | S20: =SUM(O20:R20) -> 74 | X20: =SUM(T20:W20) -> 0 | AC20: =SUM(Y20:AB20) -> 0 | AH20: =SUM(AD20:AG20) -> 0 | AM20: =SUM(AI20:AL20) -> 0 | AS20: =SUM(O20,T20,Y20,AD20,AI20,AN20) -> 40 | AT20: =SUM(P20,U20,Z20,AE20,AJ20,AO20) -> 34 | AU20: =SUM(Q20,V20,AA20,AF20,AK20,AP20) -> 0 | AV20: =SUM(R20,W20,AB20,AG20,AL20,AQ20) -> 0 | AW20: =SUM(AS20:AV20) -> 74 | AX20: =AS20*K20 -> 1940 | AY20: =AT20*L20 -> 2227 | AZ20: =AU20*M20 -> 0 | BA20: =AV20*N20 -> 0 | BB20: =SUM(AX20:BA20) -> 4167 | BC20: 4167 | BD20: Yes | BE20: 0 | BF20: 0 | BG20: 0
B21: 3 | C21: Guilds, Jay | D21: Crew Foreman | E21: Vendor No 6 | F21: Guilds | G21: 913220823 | H21: 2018-10-12 | I21: 2018-10-13 | J21: =IF(AND(H21>='A - Contractor Summary'!$C$36,I21<='A - Contractor Summary'!$C$42),"Yes","No") -> No | K21: =VLOOKUP($D21,'C.1 - Rate Sheets'!B:I,2,FALSE) -> 56.8 | L21: =VLOOKUP($D21,'C.1 - Rate Sheets'!B:I,3,FALSE) -> 76.7 | M21: =VLOOKUP($D21,'C.1 - Rate Sheets'!B:I,4,FALSE) -> 90.9 | N21: =VLOOKUP($D21,'C.1 - Rate Sheets'!B:I,5,FALSE) -> 0 | O21: 40 | P21: 34 | S21: 74 | X21: 0 | AC21: 0 | AH21: 0 | AM21: 0 | AS21: 40 | AT21: 34 | AU21: 0 | AV21: 0 | AW21: 74 | AX21: =AS21*K21 -> 2272 | AY21: =AT21*L21 -> 2607.8 | AZ21: =AU21*M21 -> 0 | BA21: =AV21*N21 -> 0 | BB21: =SUM(AX21:BA21) -> 4879.8 | BC21: 4879.8 | BD21: Yes | BE21: 0 | BF21: 0 | BG21: 0
B22: 4 | C22: Stewart, Erik | D22: Tree Trimmer | E22: Vendor No 6 | F22: Guilds | G22: 913220823 | H22: 2018-10-12 | I22: 2018-10-13 | J22: =IF(AND(H22>='A - Contractor Summary'!$C$36,I22<='A - Contractor Summary'!$C$42),"Yes","No") -> No | K22: =VLOOKUP($D22,'C.1 - Rate Sheets'!B:I,2,FALSE) -> 48.5 | L22: =VLOOKUP($D22,'C.1 - Rate Sheets'!B:I,3,FALSE) -> 65.5 | M22: =VLOOKUP($D22,'C.1 - Rate Sheets'!B:I,4,FALSE) -> 77.6 | N22: =VLOOKUP($D22,'C.1 - Rate Sheets'!B:I,5,FALSE) -> 0 | O22: 40 | P22: 34 | S22: 74 | X22: 0 | AC22: 0 | AH22: 0 | AM22: 0 | AS22: 40 | AT22: 34 | AU22: 0 | AV22: 0 | AW22: 74 | AX22: 1940 | AY22: 2227 | AZ22: 0 | BA22: 0 | BB22: 4167 | BC22: 4167 | BD22: Yes | BE22: 0 | BF22: 0 | BG22: 0
B23: 5 | C23: Michael Bowers | D23: Supervisor | E23: Vendor No 6 | F23: Bowers | G23: 913231731 | H23: 2018-10-12 | I23: 2018-10-13 | J23: =IF(AND(H23>='A - Contractor Summary'!$C$36,I23<='A - Contractor Summary'!$C$42),"Yes","No") -> No | K23: =VLOOKUP($D23,'C.1 - Rate Sheets'!B:I,2,FALSE) -> 74 | L23: =VLOOKUP($D23,'C.1 - Rate Sheets'!B:I,3,FALSE) -> 99.9 | M23: =VLOOKUP($D23,'C.1 - Rate Sheets'!B:I,4,FALSE) -> 118.4 | N23: =VLOOKUP($D23,'C.1 - Rate Sheets'!B:I,5,FALSE) -> 0 | P23: 34 | S23: 34 | X23: 0 | AC23: 0 | AH23: 0 | AM23: 0 | AS23: 0 | AT23: 34 | AU23: 0 | AV23: 0 | AW23: 34 | AX23: 0 | AY23: 3396.6 | AZ23: 0 | BA23: 0 | BB23: 3396.6 | BC23: 3396.6 | BD23: Yes | BE23: 0 | BF23: 0 | BG23: 0
B24: 6 | C24: Dustin Woodward | D24: Crew Foreman | E24: Vendor No 6 | F24: Bowers | G24: 913231731 | H24: 2018-10-12 | I24: 2018-10-13 | J24: =IF(AND(H24>='A - Contractor Summary'!$C$36,I24<='A - Contractor Summary'!$C$42),"Yes","No") -> No | K24: =VLOOKUP($D24,'C.1 - Rate Sheets'!B:I,2,FALSE) -> 56.8 | L24: =VLOOKUP($D24,'C.1 - Rate Sheets'!B:I,3,FALSE) -> 76.7 | M24: =VLOOKUP($D24,'C.1 - Rate Sheets'!B:I,4,FALSE) -> 90.9 | N24: =VLOOKUP($D24,'C.1 - Rate Sheets'!B:I,5,FALSE) -> 0 | O24: 6 | P24: 28 | S24: 34 | X24: 0 | AC24: 0 | AH24: 0 | AM24: 0 | AS24: 6 | AT24: 28 | AU24: 0 | AV24: 0 | AW24: 34 | AX24: 340.8 | AY24: 2147.6 | AZ24: 0 | BA24: 0 | BB24: 2488.4 | BC24: 2488.4 | BD24: Yes | BE24: 0 | BF24: 0 | BG24: 0
B25: 6 | C25: Jose Guitarrez | D25: Crew Foreman | E25: Vendor No 6 | F25: Bowers | G25: 913231731 | H25: 2018-10-12 | I25: 2018-10-13 | J25: =IF(AND(H25>='A - Contractor Summary'!$C$36,I25<='A - Contractor Summary'!$C$42),"Yes","No") -> No | K25: =VLOOKUP($D25,'C.1 - Rate Sheets'!B:I,2,FALSE) -> 56.8 | L25: =VLOOKUP($D25,'C.1 - Rate Sheets'!B:I,3,FALSE) -> 76.7 | M25: =VLOOKUP($D25,'C.1 - Rate Sheets'!B:I,4,FALSE) -> 90.9 | N25: =VLOOKUP($D25,'C.1 - Rate Sheets'!B:I,5,FALSE) -> 0 | O25: 0 | P25: 34 | S25: =SUM(O25:R25) -> 34 | X25: =SUM(T25:W25) -> 0 | AC25: =SUM(Y25:AB25) -> 0 | AH25: =SUM(AD25:AG25) -> 0 | AM25: =SUM(AI25:AL25) -> 0 | AS25: =SUM(O25,T25,Y25,AD25,AI25,AN25) -> 0 | AT25: =SUM(P25,U25,Z25,AE25,AJ25,AO25) -> 34 | AU25: =SUM(Q25,V25,AA25,AF25,AK25,AP25) -> 0 | AV25: =SUM(R25,W25,AB25,AG25,AL25,AQ25) -> 0 | AW25: =SUM(AS25:AV25) -> 34 | AX25: =AS25*K25 -> 0 | AY25: =AT25*L25 -> 2607.8 | AZ25: =AU25*M25 -> 0 | BA25: =AV25*N25 -> 0 | BB25: =SUM(AX25:BA25) -> 2607.8 | BC25: =BB25-BE25 -> 2607.8 | BD25: Yes | BE25: 0 | BF25: 0 | BG25: 0
B26: 6 | C26: Rubelsy Perez | D26: Crew Foreman | E26: Vendor No 6 | F26: Bowers | G26: 913231731 | H26: 2018-10-12 | I26: 2018-10-13 | J26: =IF(AND(H26>='A - Contractor Summary'!$C$36,I26<='A - Contractor Summary'!$C$42),"Yes","No") -> No | K26: =VLOOKUP($D26,'C.1 - Rate Sheets'!B:I,2,FALSE) -> 56.8 | L26: =VLOOKUP($D26,'C.1 - Rate Sheets'!B:I,3,FALSE) -> 76.7 | M26: =VLOOKUP($D26,'C.1 - Rate Sheets'!B:I,4,FALSE) -> 90.9 | N26: =VLOOKUP($D26,'C.1 - Rate Sheets'!B:I,5,FALSE) -> 0 | O26: 16 | P26: 16 | S26: 32 | X26: 0 | AC26: 0 | AH26: 0 | AM26: 0 | AS26: 16 | AT26: 16 | AU26: 0 | AV26: 0 | AW26: 32 | AX26: 908.8 | AY26: 1227.2 | AZ26: 0 | BA26: 0 | BB26: 2136 | BC26: 2136 | BD26: Yes | BE26: 0 | BF26: 0 | BG26: 0
B27: 6 | C27: Phillip Nix | D27: Crew Foreman | E27: Vendor No 6 | F27: Bowers | G27: 913231731 | H27: 2018-10-12 | I27: 2018-10-13 | J27: =IF(AND(H27>='A - Contractor Summary'!$C$36,I27<='A - Contractor Summary'!$C$42),"Yes","No") -> No | K27: =VLOOKUP($D27,'C.1 - Rate Sheets'!B:I,2,FALSE) -> 56.8 | L27: =VLOOKUP($D27,'C.1 - Rate Sheets'!B:I,3,FALSE) -> 76.7 | M27: =VLOOKUP($D27,'C.1 - Rate Sheets'!B:I,4,FALSE) -> 90.9 | N27: =VLOOKUP($D27,'C.1 - Rate Sheets'!B:I,5,FALSE) -> 0 | O27: 0 | P27: 0 | S27: 0 | X27: 0 | AC27: 0 | AH27: 0 | AM27: 0 | AS27: 0 | AT27: 0 | AU27: 0 | AV27: 0 | AW27: 0 | AX27: 0 | AY27: 0 | AZ27: 0 | BA27: 0 | BB27: 0 | BC27: 0 | BD27: Yes | BE27: 0 | BF27: 0 | BG27: 0
B28: 6 | C28: Terry Herley | D28: Crew Foreman | E28: Vendor No 6 | F28: Bowers | G28: 913231731 | H28: 2018-10-12 | I28: 2018-10-13 | J28: =IF(AND(H28>='A - Contractor Summary'!$C$36,I28<='A - Contractor Summary'!$C$42),"Yes","No") -> No | K28: =VLOOKUP($D28,'C.1 - Rate Sheets'!B:I,2,FALSE) -> 56.8 | L28: =VLOOKUP($D28,'C.1 - Rate Sheets'!B:I,3,FALSE) -> 76.7 | M28: =VLOOKUP($D28,'C.1 - Rate Sheets'!B:I,4,FALSE) -> 90.9 | N28: =VLOOKUP($D28,'C.1 - Rate Sheets'!B:I,5,FALSE) -> 0 | O28: 28 | P28: 8 | S28: 36 | X28: 0 | AC28: 0 | AH28: 0 | AM28: 0 | AS28: 28 | AT28: 8 | AU28: 0 | AV28: 0 | AW28: 36 | AX28: 1590.4 | AY28: 613.6 | AZ28: 0 | BA28: 0 | BB28: 2204 | BC28: 2204 | BD28: Yes | BE28: 0 | BF28: 0 | BG28: 0
B29: 7 | C29: Victor Lara | D29: Tree Trimmer | E29: Vendor No 6 | F29: Bowers | G29: 913231731 | H29: 2018-10-12 | I29: 2018-10-13 | J29: =IF(AND(H29>='A - Contractor Summary'!$C$36,I29<='A - Contractor Summary'!$C$42),"Yes","No") -> No | K29: =VLOOKUP($D29,'C.1 - Rate Sheets'!B:I,2,FALSE) -> 48.5 | L29: =VLOOKUP($D29,'C.1 - Rate Sheets'!B:I,3,FALSE) -> 65.5 | M29: =VLOOKUP($D29,'C.1 - Rate Sheets'!B:I,4,FALSE) -> 77.6 | N29: =VLOOKUP($D29,'C.1 - Rate Sheets'!B:I,5,FALSE) -> 0 | O29: 6 | P29: 28 | S29: 34 | X29: 0 | AC29: 0 | AH29: 0 | AM29: 0 | AS29: =SUM(O29,T29,Y29,AD29,AI29,AN29) -> 6 | AT29: =SUM(P29,U29,Z29,AE29,AJ29,AO29) -> 28 | AU29: =SUM(Q29,V29,AA29,AF29,AK29,AP29) -> 0 | AV29: =SUM(R29,W29,AB29,AG29,AL29,AQ29) -> 0 | AW29: =SUM(AS29:AV29) -> 34 | AX29: 291 | AY29: 1834 | AZ29: 0 | BA29: 0 | BB29: 2125 | BC29: 2125 | BD29: Yes | BE29: 0 | BF29: 0 | BG29: 0
B30: 7 | C30: Edgar Flores | D30: Tree Trimmer | E30: Vendor No 6 | F30: Bowers | G30: 913231731 | H30: 2018-10-12 | I30: 2018-10-13 | J30: =IF(AND(H30>='A - Contractor Summary'!$C$36,I30<='A - Contractor Summary'!$C$42),"Yes","No") -> No | K30: =VLOOKUP($D30,'C.1 - Rate Sheets'!B:I,2,FALSE) -> 48.5 | L30: =VLOOKUP($D30,'C.1 - Rate Sheets'!B:I,3,FALSE) -> 65.5 | M30: =VLOOKUP($D30,'C.1 - Rate Sheets'!B:I,4,FALSE) -> 77.6 | N30: =VLOOKUP($D30,'C.1 - Rate Sheets'!B:I,5,FALSE) -> 0 | O30: 6 | P30: 28 | S30: =SUM(O30:R30) -> 34 | X30: =SUM(T30:W30) -> 0 | AC30: =SUM(Y30:AB30) -> 0 | AH30: =SUM(AD30:AG30) -> 0 | AM30: =SUM(AI30:AL30) -> 0 | AS30: =SUM(O30,T30,Y30,AD30,AI30,AN30) -> 6 | AT30: =SUM(P30,U30,Z30,AE30,AJ30,AO30) -> 28 | AU30: =SUM(Q30,V30,AA30,AF30,AK30,AP30) -> 0 | AV30: =SUM(R30,W30,AB30,AG30,AL30,AQ30) -> 0 | AW30: =SUM(AS30:AV30) -> 34 | AX30: =AS30*K30 -> 291 | AY30: =AT30*L30 -> 1834 | AZ30: =AU30*M30 -> 0 | BA30: =AV30*N30 -> 0 | BB30: =SUM(AX30:BA30) -> 2125 | BC30: =BB30-BE30 -> 2125 | BD30: Yes | BE30: 0 | BF30: 0 | BG30: 0
B31: 8 | C31: Andres Tapia | D31: Ground Person | E31: Vendor No 6 | F31: Bowers | G31: 913231731 | H31: 2018-10-12 | I31: 2018-10-13 | J31: =IF(AND(H31>='A - Contractor Summary'!$C$36,I31<='A - Contractor Summary'!$C$42),"Yes","No") -> No | K31: =VLOOKUP($D31,'C.1 - Rate Sheets'!B:I,2,FALSE) -> 40 | L31: =VLOOKUP($D31,'C.1 - Rate Sheets'!B:I,3,FALSE) -> 54 | M31: =VLOOKUP($D31,'C.1 - Rate Sheets'!B:I,4,FALSE) -> 64 | N31: =VLOOKUP($D31,'C.1 - Rate Sheets'!B:I,5,FALSE) -> 0 | O31: 6 | P31: 28 | S31: 34 | X31: 0 | AC31: 0 | AH31: 0 | AM31: 0 | AS31: 6 | AT31: 28 | AU31: 0 | AV31: 0 | AW31: 34 | AX31: 240 | AY31: 1512 | AZ31: 0 | BA31: 0 | BB31: 1752 | BC31: 1752 | BD31: Yes | BE31: 0 | BF31: 0 | BG31: 0
B32: 8 | C32: Jesus Jimenez | D32: Ground Person | E32: Vendor No 6 | F32: Bowers | G32: 913231731 | H32: 2018-10-12 | I32: 2018-10-13 | J32: =IF(AND(H32>='A - Contractor Summary'!$C$36,I32<='A - Contractor Summary'!$C$42),"Yes","No") -> No | K32: =VLOOKUP($D32,'C.1 - Rate Sheets'!B:I,2,FALSE) -> 40 | L32: =VLOOKUP($D32,'C.1 - Rate Sheets'!B:I,3,FALSE) -> 54 | M32: =VLOOKUP($D32,'C.1 - Rate Sheets'!B:I,4,FALSE) -> 64 | N32: =VLOOKUP($D32,'C.1 - Rate Sheets'!B:I,5,FALSE) -> 0 | O32: 6 | P32: 28 | S32: 34 | X32: 0 | AC32: 0 | AH32: 0 | AM32: 0 | AS32: 6 | AT32: 28 | AU32: 0 | AV32: 0 | AW32: 34 | AX32: 240 | AY32: 1512 | AZ32: 0 | BA32: 0 | BB32: 1752 | BC32: 1752 | BD32: Yes | BE32: 0 | BF32: 0 | BG32: 0
B33: 9 | C33: Kapler, Mike | D33: Crew Foreman | E33: Vendor No 6 | F33: Kapler | G33: 913281767 | H33: 2018-10-12 | I33: 2018-10-13 | J33: =IF(AND(H33>='A - Contractor Summary'!$C$36,I33<='A - Contractor Summary'!$C$42),"Yes","No") -> No | K33: =VLOOKUP($D33,'C.1 - Rate Sheets'!B:I,2,FALSE) -> 56.8 | L33: =VLOOKUP($D33,'C.1 - Rate Sheets'!B:I,3,FALSE) -> 76.7 | M33: =VLOOKUP($D33,'C.1 - Rate Sheets'!B:I,4,FALSE) -> 90.9 | N33: =VLOOKUP($D33,'C.1 - Rate Sheets'!B:I,5,FALSE) -> 0 | O33: 8 | P33: 24 | S33: 32 | X33: 0 | AC33: 0 | AH33: 0 | AM33: 0 | AS33: 8 | AT33: 24 | AU33: 0 | AV33: 0 | AW33: 32 | AX33: 454.4 | AY33: 1840.8 | AZ33: 0 | BA33: 0 | BB33: 2295.2 | BC33: 2295.2 | BD33: Yes | BE33: 0 | BF33: 0 | BG33: 0
B34: 10 | C34: Cardo, Rafael | D34: Tree Trimmer | E34: Vendor No 6 | F34: Kapler | G34: 913281767 | H34: 2018-10-12 | I34: 2018-10-13 | J34: =IF(AND(H34>='A - Contractor Summary'!$C$36,I34<='A - Contractor Summary'!$C$42),"Yes","No") -> No | K34: =VLOOKUP($D34,'C.1 - Rate Sheets'!B:I,2,FALSE) -> 48.5 | L34: =VLOOKUP($D34,'C.1 - Rate Sheets'!B:I,3,FALSE) -> 65.5 | M34: =VLOOKUP($D34,'C.1 - Rate Sheets'!B:I,4,FALSE) -> 77.6 | N34: =VLOOKUP($D34,'C.1 - Rate Sheets'!B:I,5,FALSE) -> 0 | O34: 8 | P34: 24 | S34: 32 | X34: 0 | AC34: 0 | AH34: 0 | AM34: 0 | AS34: 8 | AT34: 24 | AU34: 0 | AV34: 0 | AW34: 32 | AX34: 388 | AY34: 1572 | AZ34: 0 | BA34: 0 | BB34: 1960 | BC34: 1960 | BD34: Yes | BE34: 0 | BF34: 0 | BG34: 0
B35: 11 | C35: Pate, Joseph | D35: Supervisor | E35: Vendor No 6 | F35: Pate | G35: 913281791 | H35: 2018-10-12 | I35: 2018-10-13 | J35: =IF(AND(H35>='A - Contractor Summary'!$C$36,I35<='A - Contractor Summary'!$C$42),"Yes","No") -> No | K35: =VLOOKUP($D35,'C.1 - Rate Sheets'!B:I,2,FALSE) -> 74 | L35: =VLOOKUP($D35,'C.1 - Rate Sheets'!B:I,3,FALSE) -> 99.9 | M35: =VLOOKUP($D35,'C.1 - Rate Sheets'!B:I,4,FALSE) -> 118.4 | N35: =VLOOKUP($D35,'C.1 - Rate Sheets'!B:I,5,FALSE) -> 0 | O35: 8 | P35: 24 | S35: 32 | X35: 0 | AC35: 0 | AH35: 0 | AM35: 0 | AS35: 8 | AT35: 24 | AU35: 0 | AV35: 0 | AW35: 32 | AX35: 592 | AY35: 2397.6 | AZ35: 0 | BA35: 0 | BB35: 2989.6 | BC35: 2989.6 | BD35: Yes | BE35: 0 | BF35: 0 | BG35: 0
B36: 12 | C36: Robert Ellis | D36: On-Site Safety Coordinator | E36: Vendor No 6 | F36: Ellis | G36: 913293304 | H36: 2018-10-11 | I36: 2018-10-13 | J36: =IF(AND(H36>='A - Contractor Summary'!$C$36,I36<='A - Contractor Summary'!$C$42),"Yes","No") -> No | K36: =VLOOKUP($D36,'C.1 - Rate Sheets'!B:I,2,FALSE) -> 65 | L36: =VLOOKUP($D36,'C.1 - Rate Sheets'!B:I,3,FALSE) -> 65 | M36: =VLOOKUP($D36,'C.1 - Rate Sheets'!B:I,4,FALSE) -> 65 | N36: =VLOOKUP($D36,'C.1 - Rate Sheets'!B:I,5,FALSE) -> 0 | O36: 16 | P36: 13 | S36: 29 | X36: 0 | AC36: 0 | AH36: 0 | AM36: 0 | AS36: 16 | AT36: 13 | AU36: 0 | AV36: 0 | AW36: 29 | AX36: 1040 | AY36: 845 | AZ36: 0 | BA36: 0 | BB36: 1885 | BC36: 1885 | BD36: Yes | BE36: 0 | BF36: 0 | BG36: 0
B37: 13 | C37: Harold Danielson | D37: On-Site Safety Coordinator | E37: Vendor No 6 | F37: Danielson | G37: 913293305 | H37: 2018-10-11 | I37: 2018-10-13 | J37: =IF(AND(H37>='A - Contractor Summary'!$C$36,I37<='A - Contractor Summary'!$C$42),"Yes","No") -> No | K37: =VLOOKUP($D37,'C.1 - Rate Sheets'!B:I,2,FALSE) -> 65 | L37: =VLOOKUP($D37,'C.1 - Rate Sheets'!B:I,3,FALSE) -> 65 | M37: =VLOOKUP($D37,'C.1 - Rate Sheets'!B:I,4,FALSE) -> 65 | N37: =VLOOKUP($D37,'C.1 - Rate Sheets'!B:I,5,FALSE) -> 0 | O37: 16 | P37: 11 | S37: 27 | X37: 0 | AC37: 0 | AH37: 0 | AM37: 0 | AS37: 16 | AT37: 11 | AU37: 0 | AV37: 0 | AW37: 27 | AX37: 1040 | AY37: 715 | AZ37: 0 | BA37: 0 | BB37: 1755 | BC37: 1755 | BD37: Yes | BE37: 0 | BF37: 0 | BG37: 0
B38: 14 | C38: Kenny Rowe | D38: On-Site Safety Coordinator | E38: Vendor No 6 | F38: Rowe | G38: 913293310 | H38: 2018-10-11 | I38: 2018-10-13 | J38: =IF(AND(H38>='A - Contractor Summary'!$C$36,I38<='A - Contractor Summary'!$C$42),"Yes","No") -> No | K38: =VLOOKUP($D38,'C.1 - Rate Sheets'!B:I,2,FALSE) -> 65 | L38: =VLOOKUP($D38,'C.1 - Rate Sheets'!B:I,3,FALSE) -> 65 | M38: =VLOOKUP($D38,'C.1 - Rate Sheets'!B:I,4,FALSE) -> 65 | N38: =VLOOKUP($D38,'C.1 - Rate Sheets'!B:I,5,FALSE) -> 0 | O38: 16 | P38: 23 | S38: 39 | X38: 0 | AC38: 0 | AH38: 0 | AM38: 0 | AS38: 16 | AT38: 23 | AU38: 0 | AV38: 0 | AW38: 39 | AX38: 1040 | AY38: 1495 | AZ38: 0 | BA38: 0 | BB38: 2535 | BC38: 2535 | BD38: Yes | BE38: 0 | BF38: 0 | BG38: 0
B39: 15 | C39: Kallmayer, David | D39: Crew Foreman | E39: Vendor No 6 | F39: Kallmayer | G39: 913346317 | H39: 2018-10-12 | I39: 2018-10-13 | J39: =IF(AND(H39>='A - Contractor Summary'!$C$36,I39<='A - Contractor Summary'!$C$42),"Yes","No") -> No | K39: =VLOOKUP($D39,'C.1 - Rate Sheets'!B:I,2,FALSE) -> 56.8 | L39: =VLOOKUP($D39,'C.1 - Rate Sheets'!B:I,3,FALSE) -> 76.7 | M39: =VLOOKUP($D39,'C.1 - Rate Sheets'!B:I,4,FALSE) -> 90.9 | N39: =VLOOKUP($D39,'C.1 - Rate Sheets'!B:I,5,FALSE) -> 0 | O39: 8 | P39: 24 | S39: 32 | X39: 0 | AC39: 0 | AH39: 0 | AM39: 0 | AS39: 8 | AT39: 24 | AU39: 0 | AV39: 0 | AW39: 32 | AX39: 454.4 | AY39: 1840.8 | AZ39: 0 | BA39: 0 | BB39: 2295.2 | BC39: 2295.2 | BD39: Yes | BE39: 0 | BF39: 0 | BG39: 0
B40: 16 | C40: Sansom, James | D40: Tree Trimmer | E40: Vendor No 6 | F40: Kallmayer | G40: 913346317 | H40: 2018-10-12 | I40: 2018-10-13 | J40: =IF(AND(H40>='A - Contractor Summary'!$C$36,I40<='A - Contractor Summary'!$C$42),"Yes","No") -> No | K40: =VLOOKUP($D40,'C.1 - Rate Sheets'!B:I,2,FALSE) -> 48.5 | L40: =VLOOKUP($D40,'C.1 - Rate Sheets'!B:I,3,FALSE) -> 65.5 | M40: =VLOOKUP($D40,'C.1 - Rate Sheets'!B:I,4,FALSE) -> 77.6 | N40: =VLOOKUP($D40,'C.1 - Rate Sheets'!B:I,5,FALSE) -> 0 | O40: 8 | P40: 24 | S40: 32 | X40: 0 | AC40: 0 | AH40: 0 | AM40: 0 | AS40: 8 | AT40: 24 | AU40: 0 | AV40: 0 | AW40: 32 | AX40: 388 | AY40: 1572 | AZ40: 0 | BA40: 0 | BB40: 1960 | BC40: 1960 | BD40: Yes | BE40: 0 | BF40: 0 | BG40: 0
B41: 17 | C41: Guilds, Jay | D41: Crew Foreman | E41: Vendor No 6 | F41: Guilds | G41: 913223258 | H41: 2018-10-14 | I41: 2018-10-20 | J41: =IF(AND(H41>='A - Contractor Summary'!$C$36,I41<='A - Contractor Summary'!$C$42),"Yes","No") -> No | K41: =VLOOKUP($D41,'C.1 - Rate Sheets'!B:I,2,FALSE) -> 56.8 | L41: =VLOOKUP($D41,'C.1 - Rate Sheets'!B:I,3,FALSE) -> 76.7 | M41: =VLOOKUP($D41,'C.1 - Rate Sheets'!B:I,4,FALSE) -> 90.9 | N41: =VLOOKUP($D41,'C.1 - Rate Sheets'!B:I,5,FALSE) -> 0 | S41: 0 | T41: 40 | U41: 60 | V41: 18 | X41: 118 | AC41: 0 | AH41: 0 | AM41: 0 | AS41: 40 | AT41: 60 | AU41: 18 | AV41: 0 | AW41: 118 | AX41: 2272 | AY41: 4602 | AZ41: 1636.2 | BA41: 0 | BB41: 8510.2 | BC41: 8510.2 | BD41: Yes | BE41: 0 | BF41: 0 | BG41: 0
B42: 18 | C42: Stewart, Erik | D42: Tree Trimmer | E42: Vendor No 6 | F42: Guilds | G42: 913223258 | H42: 2018-10-14 | I42: 2018-10-20 | J42: =IF(AND(H42>='A - Contractor Summary'!$C$36,I42<='A - Contractor Summary'!$C$42),"Yes","No") -> No | K42: =VLOOKUP($D42,'C.1 - Rate Sheets'!B:I,2,FALSE) -> 48.5 | L42: =VLOOKUP($D42,'C.1 - Rate Sheets'!B:I,3,FALSE) -> 65.5 | M42: =VLOOKUP($D42,'C.1 - Rate Sheets'!B:I,4,FALSE) -> 77.6 | N42: =VLOOKUP($D42,'C.1 - Rate Sheets'!B:I,5,FALSE) -> 0 | S42: 0 | T42: 40 | U42: 60 | V42: 18 | X42: 118 | AC42: 0 | AH42: 0 | AM42: 0 | AS42: 40 | AT42: 60 | AU42: 18 | AV42: 0 | AW42: 118 | AX42: 1940 | AY42: 3930 | AZ42: 1396.8 | BA42: 0 | BB42: 7266.8 | BC42: 7266.8 | BD42: Yes | BE42: 0 | BF42: 0 | BG42: 0
B43: 19 | C43: Horn, Bryan | D43: Crew Foreman | E43: Vendor No 6 | F43: Horn | G43: 913223259 | H43: 2018-10-14 | I43: 2018-10-20 | J43: =IF(AND(H43>='A - Contractor Summary'!$C$36,I43<='A - Contractor Summary'!$C$42),"Yes","No") -> No | K43: =VLOOKUP($D43,'C.1 - Rate Sheets'!B:I,2,FALSE) -> 56.8 | L43: =VLOOKUP($D43,'C.1 - Rate Sheets'!B:I,3,FALSE) -> 76.7 | M43: =VLOOKUP($D43,'C.1 - Rate Sheets'!B:I,4,FALSE) -> 90.9 | N43: =VLOOKUP($D43,'C.1 - Rate Sheets'!B:I,5,FALSE) -> 0 | S43: 0 | T43: 40 | U43: 60 | V43: 18 | X43: 118 | AC43: 0 | AH43: 0 | AM43: 0 | AS43: 40 | AT43: 60 | AU43: 18 | AV43: 0 | AW43: 118 | AX43: 2272 | AY43: 4602 | AZ43: 1636.2 | BA43: 0 | BB43: 8510.2 | BC43: 8510.2 | BD43: Yes | BE43: 0 | BF43: 0 | BG43: 0
B44: 20 | C44: Cook, Ronald | D44: Tree Trimmer | E44: Vendor No 6 | F44: Horn | G44: 913223259 | H44: 2018-10-14 | I44: 2018-10-20 | J44: =IF(AND(H44>='A - Contractor Summary'!$C$36,I44<='A - Contractor Summary'!$C$42),"Yes","No") -> No | K44: =VLOOKUP($D44,'C.1 - Rate Sheets'!B:I,2,FALSE) -> 48.5 | L44: =VLOOKUP($D44,'C.1 - Rate Sheets'!B:I,3,FALSE) -> 65.5 | M44: =VLOOKUP($D44,'C.1 - Rate Sheets'!B:I,4,FALSE) -> 77.6 | N44: =VLOOKUP($D44,'C.1 - Rate Sheets'!B:I,5,FALSE) -> 0 | S44: 0 | T44: 40 | U44: 60 | V44: 18 | X44: 118 | AC44: 0 | AH44: 0 | AM44: 0 | AS44: 40 | AT44: 60 | AU44: 18 | AV44: 0 | AW44: 118 | AX44: 1940 | AY44: 3930 | AZ44: 1396.8 | BA44: 0 | BB44: 7266.8 | BC44: 7266.8 | BD44: Yes | BE44: 0 | BF44: 0 | BG44: 0
B45: 21 | C45: Roy Riddle | D45: Supervisor | E45: Vendor No 6 | F45: Riddle | G45: 913223316 | H45: 2018-10-17 | I45: 2018-10-20 | J45: =IF(AND(H45>='A - Contractor Summary'!$C$36,I45<='A - Contractor Summary'!$C$42),"Yes","No") -> No | K45: =VLOOKUP($D45,'C.1 - Rate Sheets'!B:I,2,FALSE) -> 74 | L45: =VLOOKUP($D45,'C.1 - Rate Sheets'!B:I,3,FALSE) -> 99.9 | M45: =VLOOKUP($D45,'C.1 - Rate Sheets'!B:I,4,FALSE) -> 118.4 | N45: =VLOOKUP($D45,'C.1 - Rate Sheets'!B:I,5,FALSE) -> 0 | S45: 0 | T45: 24 | U45: 40 | X45: 64 | AC45: 0 | AH45: 0 | AM45: 0 | AS45: 24 | AT45: 40 | AU45: 0 | AV45: 0 | AW45: 64 | AX45: 1776 | AY45: 3996 | AZ45: 0 | BA45: 0 | BB45: 5772 | BC45: 5772 | BD45: Yes | BE45: 0 | BF45: 0 | BG45: 0
B46: 22 | C46: John Weaver | D46: Crew Foreman | E46: Vendor No 6 | F46: Riddle | G46: 913223316 | H46: 2018-10-17 | I46: 2018-10-20 | J46: =IF(AND(H46>='A - Contractor Summary'!$C$36,I46<='A - Contractor Summary'!$C$42),"Yes","No") -> No | K46: =VLOOKUP($D46,'C.1 - Rate Sheets'!B:I,2,FALSE) -> 56.8 | L46: =VLOOKUP($D46,'C.1 - Rate Sheets'!B:I,3,FALSE) -> 76.7 | M46: =VLOOKUP($D46,'C.1 - Rate Sheets'!B:I,4,FALSE) -> 90.9 | N46: =VLOOKUP($D46,'C.1 - Rate Sheets'!B:I,5,FALSE) -> 0 | S46: 0 | T46: 24 | U46: 40 | X46: 64 | AC46: 0 | AH46: 0 | AM46: 0 | AS46: 24 | AT46: 40 | AU46: 0 | AV46: 0 | AW46: 64 | AX46: 1363.2 | AY46: 3068 | AZ46: 0 | BA46: 0 | BB46: 4431.2 | BC46: 4431.2 | BD46: Yes | BE46: 0 | BF46: 0 | BG46: 0
B47: 23 | C47: Mason Johnson | D47: Tree Trimmer | E47: Vendor No 6 | F47: Riddle | G47: 913223316 | H47: 2018-10-17 | I47: 2018-10-20 | J47: =IF(AND(H47>='A - Contractor Summary'!$C$36,I47<='A - Contractor Summary'!$C$42),"Yes","No") -> No | K47: =VLOOKUP($D47,'C.1 - Rate Sheets'!B:I,2,FALSE) -> 48.5 | L47: =VLOOKUP($D47,'C.1 - Rate Sheets'!B:I,3,FALSE) -> 65.5 | M47: =VLOOKUP($D47,'C.1 - Rate Sheets'!B:I,4,FALSE) -> 77.6 | N47: =VLOOKUP($D47,'C.1 - Rate Sheets'!B:I,5,FALSE) -> 0 | S47: 0 | T47: 24 | U47: 40 | X47: 64 | AC47: 0 | AH47: 0 | AM47: 0 | AS47: 24 | AT47: 40 | AU47: 0 | AV47: 0 | AW47: 64 | AX47: 1164 | AY47: 2620 | AZ47: 0 | BA47: 0 | BB47: 3784 | BC47: 3784 | BD47: Yes | BE47: 0 | BF47: 0 | BG47: 0
B48: 23 | C48: Austin Story | D48: Tree Trimmer | E48: Vendor No 6 | F48: Riddle | G48: 913223316 | H48: 2018-10-17 | I48: 2018-10-20 | J48: =IF(AND(H48>='A - Contractor Summary'!$C$36,I48<='A - Contractor Summary'!$C$42),"Yes","No") -> No | K48: =VLOOKUP($D48,'C.1 - Rate Sheets'!B:I,2,FALSE) -> 48.5 | L48: =VLOOKUP($D48,'C.1 - Rate Sheets'!B:I,3,FALSE) -> 65.5 | M48: =VLOOKUP($D48,'C.1 - Rate Sheets'!B:I,4,FALSE) -> 77.6 | N48: =VLOOKUP($D48,'C.1 - Rate Sheets'!B:I,5,FALSE) -> 0 | S48: 0 | T48: 24 | U48: 40 | X48: 64 | AC48: 0 | AH48: 0 | AM48: 0 | AS48: 24 | AT48: 40 | AU48: 0 | AV48: 0 | AW48: 64 | AX48: 1164 | AY48: 2620 | AZ48: 0 | BA48: 0 | BB48: 3784 | BC48: 3784 | BD48: Yes | BE48: 0 | BF48: 0 | BG48: 0
B49: 23 | C49: Johnathan Gardner | D49: Tree Trimmer | E49: Vendor No 6 | F49: Riddle | G49: 913223316 | H49: 2018-10-17 | I49: 2018-10-20 | J49: =IF(AND(H49>='A - Contractor Summary'!$C$36,I49<='A - Contractor Summary'!$C$42),"Yes","No") -> No | K49: =VLOOKUP($D49,'C.1 - Rate Sheets'!B:I,2,FALSE) -> 48.5 | L49: =VLOOKUP($D49,'C.1 - Rate Sheets'!B:I,3,FALSE) -> 65.5 | M49: =VLOOKUP($D49,'C.1 - Rate Sheets'!B:I,4,FALSE) -> 77.6 | N49: =VLOOKUP($D49,'C.1 - Rate Sheets'!B:I,5,FALSE) -> 0 | S49: =SUM(O49:R49) -> 0 | T49: 24 | U49: 40 | X49: =SUM(T49:W49) -> 64 | AC49: =SUM(Y49:AB49) -> 0 | AH49: =SUM(AD49:AG49) -> 0 | AM49: =SUM(AI49:AL49) -> 0 | AS49: =SUM(O49,T49,Y49,AD49,AI49,AN49) -> 24 | AT49: =SUM(P49,U49,Z49,AE49,AJ49,AO49) -> 40 | AU49: =SUM(Q49,V49,AA49,AF49,AK49,AP49) -> 0 | AV49: =SUM(R49,W49,AB49,AG49,AL49,AQ49) -> 0 | AW49: =SUM(AS49:AV49) -> 64 | AX49: =AS49*K49 -> 1164 | AY49: =AT49*L49 -> 2620 | AZ49: =AU49*M49 -> 0 | BA49: =AV49*N49 -> 0 | BB49: =SUM(AX49:BA49) -> 3784 | BC49: =BB49-BE49 -> 3784 | BD49: Yes | BE49: 0 | BF49: 0 | BG49: 0
B50: 23 | C50: Ryan Caldwell | D50: Tree Trimmer | E50: Vendor No 6 | F50: Riddle | G50: 913223316 | H50: 2018-10-17 | I50: 2018-10-20 | J50: =IF(AND(H50>='A - Contractor Summary'!$C$36,I50<='A - Contractor Summary'!$C$42),"Yes","No") -> No | K50: =VLOOKUP($D50,'C.1 - Rate Sheets'!B:I,2,FALSE) -> 48.5 | L50: =VLOOKUP($D50,'C.1 - Rate Sheets'!B:I,3,FALSE) -> 65.5 | M50: =VLOOKUP($D50,'C.1 - Rate Sheets'!B:I,4,FALSE) -> 77.6 | N50: =VLOOKUP($D50,'C.1 - Rate Sheets'!B:I,5,FALSE) -> 0 | S50: 0 | T50: 8 | U50: 8 | X50: 16 | AC50: 0 | AH50: 0 | AM50: 0 | AS50: 8 | AT50: 8 | AU50: 0 | AV50: 0 | AW50: 16 | AX50: 388 | AY50: 524 | AZ50: 0 | BA50: 0 | BB50: 912 | BC50: 912 | BD50: Yes | BE50: 0 | BF50: 0 | BG50: 0
B51: 24 | C51: Gary Williams | D51: Crew Foreman | E51: Vendor No 6 | F51: Williams | G51: 913231723 | H51: 2018-10-17 | I51: 2018-10-20 | J51: =IF(AND(H51>='A - Contractor Summary'!$C$36,I51<='A - Contractor Summary'!$C$42),"Yes","No") -> No | K51: =VLOOKUP($D51,'C.1 - Rate Sheets'!B:I,2,FALSE) -> 56.8 | L51: =VLOOKUP($D51,'C.1 - Rate Sheets'!B:I,3,FALSE) -> 76.7 | M51: =VLOOKUP($D51,'C.1 - Rate Sheets'!B:I,4,FALSE) -> 90.9 | N51: =VLOOKUP($D51,'C.1 - Rate Sheets'!B:I,5,FALSE) -> 0 | S51: 0 | T51: 20 | U51: 44 | X51: 64 | AC51: 0 | AH51: 0 | AM51: 0 | AS51: 20 | AT51: 44 | AU51: 0 | AV51: 0 | AW51: 64 | AX51: 1136 | AY51: 3374.8 | AZ51: 0 | BA51: 0 | BB51: 4510.8 | BC51: 4510.8 | BD51: Yes | BE51: 0 | BF51: 0 | BG51: 0
B52: 25 | C52: Jonathan Swinson | D52: Tree Trimmer | E52: Vendor No 6 | F52: Williams | G52: 913231723 | H52: 2018-10-17 | I52: 2018-10-20 | J52: =IF(AND(H52>='A - Contractor Summary'!$C$36,I52<='A - Contractor Summary'!$C$42),"Yes","No") -> No | K52: =VLOOKUP($D52,'C.1 - Rate Sheets'!B:I,2,FALSE) -> 48.5 | L52: =VLOOKUP($D52,'C.1 - Rate Sheets'!B:I,3,FALSE) -> 65.5 | M52: =VLOOKUP($D52,'C.1 - Rate Sheets'!B:I,4,FALSE) -> 77.6 | N52: =VLOOKUP($D52,'C.1 - Rate Sheets'!B:I,5,FALSE) -> 0 | S52: 0 | T52: 20 | U52: 44 | X52: 64 | AC52: 0 | AH52: 0 | AM52: 0 | AS52: 20 | AT52: 44 | AU52: 0 | AV52: 0 | AW52: 64 | AX52: 970 | AY52: 2882 | AZ52: 0 | BA52: 0 | BB52: 3852 | BC52: 3852 | BD52: Yes | BE52: 0 | BF52: 0 | BG52: 0
B53: 26 | C53: Jeremiah Roberts | D53: Ground Person | E53: Vendor No 6 | F53: Williams | G53: 913231723 | H53: 2018-10-17 | I53: 2018-10-20 | J53: =IF(AND(H53>='A - Contractor Summary'!$C$36,I53<='A - Contractor Summary'!$C$42),"Yes","No") -> No | K53: =VLOOKUP($D53,'C.1 - Rate Sheets'!B:I,2,FALSE) -> 40 | L53: =VLOOKUP($D53,'C.1 - Rate Sheets'!B:I,3,FALSE) -> 54 | M53: =VLOOKUP($D53,'C.1 - Rate Sheets'!B:I,4,FALSE) -> 64 | N53: =VLOOKUP($D53,'C.1 - Rate Sheets'!B:I,5,FALSE) -> 0 | S53: 0 | T53: 20 | U53: 44 | X53: 64 | AC53: 0 | AH53: 0 | AM53: 0 | AS53: 20 | AT53: 44 | AU53: 0 | AV53: 0 | AW53: 64 | AX53: 800 | AY53: 2376 | AZ53: 0 | BA53: 0 | BB53: 3176 | BC53: 3176 | BD53: Yes | BE53: 0 | BF53: 0 | BG53: 0
B54: 27 | C54: Llewellyn Wyett | D54: Crew Foreman | E54: Vendor No 6 | F54: Wyett | G54: 913231724 | H54: 2018-10-17 | I54: 2018-10-20 | J54: =IF(AND(H54>='A - Contractor Summary'!$C$36,I54<='A - Contractor Summary'!$C$42),"Yes","No") -> No | K54: =VLOOKUP($D54,'C.1 - Rate Sheets'!B:I,2,FALSE) -> 56.8 | L54: =VLOOKUP($D54,'C.1 - Rate Sheets'!B:I,3,FALSE) -> 76.7 | M54: =VLOOKUP($D54,'C.1 - Rate Sheets'!B:I,4,FALSE) -> 90.9 | N54: =VLOOKUP($D54,'C.1 - Rate Sheets'!B:I,5,FALSE) -> 0 | S54: 0 | T54: 20 | U54: 44 | X54: 64 | AC54: 0 | AH54: 0 | AM54: 0 | AS54: 20 | AT54: 44 | AU54: 0 | AV54: 0 | AW54: 64 | AX54: 1136 | AY54: 3374.8 | AZ54: 0 | BA54: 0 | BB54: 4510.8 | BC54: 4510.8 | BD54: Yes | BE54: 0 | BF54: 0 | BG54: 0
B55: 28 | C55: Christopher Scarborugh | D55: Tree Trimmer | E55: Vendor No 6 | F55: Wyett | G55: 913231724 | H55: 2018-10-17 | I55: 2018-10-20 | J55: =IF(AND(H55>='A - Contractor Summary'!$C$36,I55<='A - Contractor Summary'!$C$42),"Yes","No") -> No | K55: =VLOOKUP($D55,'C.1 - Rate Sheets'!B:I,2,FALSE) -> 48.5 | L55: =VLOOKUP($D55,'C.1 - Rate Sheets'!B:I,3,FALSE) -> 65.5 | M55: =VLOOKUP($D55,'C.1 - Rate Sheets'!B:I,4,FALSE) -> 77.6 | N55: =VLOOKUP($D55,'C.1 - Rate Sheets'!B:I,5,FALSE) -> 0 | S55: 0 | T55: 20 | U55: 44 | X55: 64 | AC55: 0 | AH55: 0 | AM55: 0 | AS55: 20 | AT55: 44 | AU55: 0 | AV55: 0 | AW55: 64 | AX55: 970 | AY55: 2882 | AZ55: 0 | BA55: 0 | BB55: 3852 | BC55: 3852 | BD55: Yes | BE55: 0 | BF55: 0 | BG55: 0
B56: 29 | C56: Colton Johnson | D56: Ground Person | E56: Vendor No 6 | F56: Wyett | G56: 913231724 | H56: 2018-10-17 | I56: 2018-10-20 | J56: =IF(AND(H56>='A - Contractor Summary'!$C$36,I56<='A - Contractor Summary'!$C$42),"Yes","No") -> No | K56: =VLOOKUP($D56,'C.1 - Rate Sheets'!B:I,2,FALSE) -> 40 | L56: =VLOOKUP($D56,'C.1 - Rate Sheets'!B:I,3,FALSE) -> 54 | M56: =VLOOKUP($D56,'C.1 - Rate Sheets'!B:I,4,FALSE) -> 64 | N56: =VLOOKUP($D56,'C.1 - Rate Sheets'!B:I,5,FALSE) -> 0 | S56: 0 | T56: 20 | U56: 44 | X56: 64 | AC56: 0 | AH56: 0 | AM56: 0 | AS56: 20 | AT56: 44 | AU56: 0 | AV56: 0 | AW56: 64 | AX56: 800 | AY56: 2376 | AZ56: 0 | BA56: 0 | BB56: 3176 | BC56: 3176 | BD56: Yes | BE56: 0 | BF56: 0 | BG56: 0
B57: 30 | C57: Scott Duvall | D57: Crew Foreman | E57: Vendor No 6 | F57: Duvall | G57: 913231726 | H57: 2018-10-17 | I57: 2018-10-20 | J57: =IF(AND(H57>='A - Contractor Summary'!$C$36,I57<='A - Contractor Summary'!$C$42),"Yes","No") -> No | K57: =VLOOKUP($D57,'C.1 - Rate Sheets'!B:I,2,FALSE) -> 56.8 | L57: =VLOOKUP($D57,'C.1 - Rate Sheets'!B:I,3,FALSE) -> 76.7 | M57: =VLOOKUP($D57,'C.1 - Rate Sheets'!B:I,4,FALSE) -> 90.9 | N57: =VLOOKUP($D57,'C.1 - Rate Sheets'!B:I,5,FALSE) -> 0 | S57: 0 | T57: 20 | U57: 44 | X57: 64 | AC57: 0 | AH57: 0 | AM57: 0 | AS57: 20 | AT57: 44 | AU57: 0 | AV57: 0 | AW57: 64 | AX57: 1136 | AY57: 3374.8 | AZ57: 0 | BA57: 0 | BB57: 4510.8 | BC57: 4510.8 | BD57: Yes | BE57: 0 | BF57: 0 | BG57: 0
B58: 31 | C58: Jaron Weldon | D58: Tree Trimmer | E58: Vendor No 6 | F58: Duvall | G58: 913231726 | H58: 2018-10-17 | I58: 2018-10-20 | J58: =IF(AND(H58>='A - Contractor Summary'!$C$36,I58<='A - Contractor Summary'!$C$42),"Yes","No") -> No | K58: =VLOOKUP($D58,'C.1 - Rate Sheets'!B:I,2,FALSE) -> 48.5 | L58: =VLOOKUP($D58,'C.1 - Rate Sheets'!B:I,3,FALSE) -> 65.5 | M58: =VLOOKUP($D58,'C.1 - Rate Sheets'!B:I,4,FALSE) -> 77.6 | N58: =VLOOKUP($D58,'C.1 - Rate Sheets'!B:I,5,FALSE) -> 0 | S58: 0 | T58: 20 | U58: 44 | X58: 64 | AC58: 0 | AH58: 0 | AM58: 0 | AS58: 20 | AT58: 44 | AU58: 0 | AV58: 0 | AW58: 64 | AX58: 970 | AY58: 2882 | AZ58: 0 | BA58: 0 | BB58: 3852 | BC58: 3852 | BD58: Yes | BE58: 0 | BF58: 0 | BG58: 0
B59: 32 | C59: Devin Brinson | D59: Ground Person | E59: Vendor No 6 | F59: Duvall | G59: 913231726 | H59: 2018-10-17 | I59: 2018-10-20 | J59: =IF(AND(H59>='A - Contractor Summary'!$C$36,I59<='A - Contractor Summary'!$C$42),"Yes","No") -> No | K59: =VLOOKUP($D59,'C.1 - Rate Sheets'!B:I,2,FALSE) -> 40 | L59: =VLOOKUP($D59,'C.1 - Rate Sheets'!B:I,3,FALSE) -> 54 | M59: =VLOOKUP($D59,'C.1 - Rate Sheets'!B:I,4,FALSE) -> 64 | N59: =VLOOKUP($D59,'C.1 - Rate Sheets'!B:I,5,FALSE) -> 0 | S59: 0 | T59: 20 | U59: 44 | X59: 64 | AC59: 0 | AH59: 0 | AM59: 0 | AS59: 20 | AT59: 44 | AU59: 0 | AV59: 0 | AW59: 64 | AX59: 800 | AY59: 2376 | AZ59: 0 | BA59: 0 | BB59: 3176 | BC59: 3176 | BD59: Yes | BE59: 0 | BF59: 0 | BG59: 0
B60: 33 | C60: William Gray | D60: Supervisor | E60: Vendor No 6 | F60: Gray | G60: 913231727 | H60: 2018-10-17 | I60: 2018-10-20 | J60: =IF(AND(H60>='A - Contractor Summary'!$C$36,I60<='A - Contractor Summary'!$C$42),"Yes","No") -> No | K60: =VLOOKUP($D60,'C.1 - Rate Sheets'!B:I,2,FALSE) -> 74 | L60: =VLOOKUP($D60,'C.1 - Rate Sheets'!B:I,3,FALSE) -> 99.9 | M60: =VLOOKUP($D60,'C.1 - Rate Sheets'!B:I,4,FALSE) -> 118.4 | N60: =VLOOKUP($D60,'C.1 - Rate Sheets'!B:I,5,FALSE) -> 0 | S60: 0 | T60: 20 | U60: 44 | X60: 64 | AC60: 0 | AH60: 0 | AM60: 0 | AS60: 20 | AT60: 44 | AU60: 0 | AV60: 0 | AW60: 64 | AX60: 1480 | AY60: 4395.6 | AZ60: 0 | BA60: 0 | BB60: 5875.6 | BC60: 5875.6 | BD60: Yes | BE60: 0 | BF60: 0 | BG60: 0
B61: 34 | C61: Jose Gutierrez | D61: Crew Foreman | E61: Vendor No 6 | F61: Guitierrez | G61: 913231732 | H61: 2018-10-14 | I61: 2018-10-20 | J61: =IF(AND(H61>='A - Contractor Summary'!$C$36,I61<='A - Contractor Summary'!$C$42),"Yes","No") -> No | K61: =VLOOKUP($D61,'C.1 - Rate Sheets'!B:I,2,FALSE) -> 56.8 | L61: =VLOOKUP($D61,'C.1 - Rate Sheets'!B:I,3,FALSE) -> 76.7 | M61: =VLOOKUP($D61,'C.1 - Rate Sheets'!B:I,4,FALSE) -> 90.9 | N61: =VLOOKUP($D61,'C.1 - Rate Sheets'!B:I,5,FALSE) -> 0 | S61: 0 | T61: 40 | U61: 56 | V61: 16 | X61: 112 | AC61: 0 | AH61: 0 | AM61: 0 | AS61: 40 | AT61: 56 | AU61: 16 | AV61: 0 | AW61: 112 | AX61: 2272 | AY61: 4295.2 | AZ61: 1454.4 | BA61: 0 | BB61: 8021.6 | BC61: 8021.6 | BD61: Yes | BE61: 0 | BF61: 0 | BG61: 0
B62: 35 | C62: Victor Lara | D62: Tree Trimmer | E62: Vendor No 6 | F62: Guitierrez | G62: 913231732 | H62: 2018-10-14 | I62: 2018-10-20 | J62: =IF(AND(H62>='A - Contractor Summary'!$C$36,I62<='A - Contractor Summary'!$C$42),"Yes","No") -> No | K62: =VLOOKUP($D62,'C.1 - Rate Sheets'!B:I,2,FALSE) -> 48.5 | L62: =VLOOKUP($D62,'C.1 - Rate Sheets'!B:I,3,FALSE) -> 65.5 | M62: =VLOOKUP($D62,'C.1 - Rate Sheets'!B:I,4,FALSE) -> 77.6 | N62: =VLOOKUP($D62,'C.1 - Rate Sheets'!B:I,5,FALSE) -> 0 | S62: 0 | T62: 40 | U62: 52 | V62: 16 | X62: 108 | AC62: 0 | AH62: 0 | AM62: 0 | AS62: 40 | AT62: 52 | AU62: 16 | AV62: 0 | AW62: 108 | AX62: 1940 | AY62: 3406 | AZ62: 1241.6 | BA62: 0 | BB62: 6587.6 | BC62: 6587.6 | BD62: Yes | BE62: 0 | BF62: 0 | BG62: 0
B63: 35 | C63: Phillip Nix | D63: Tree Trimmer | E63: Vendor No 6 | F63: Guitierrez | G63: 913231732 | H63: 2018-10-14 | I63: 2018-10-20 | J63: =IF(AND(H63>='A - Contractor Summary'!$C$36,I63<='A - Contractor Summary'!$C$42),"Yes","No") -> No | K63: =VLOOKUP($D63,'C.1 - Rate Sheets'!B:I,2,FALSE) -> 48.5 | L63: =VLOOKUP($D63,'C.1 - Rate Sheets'!B:I,3,FALSE) -> 65.5 | M63: =VLOOKUP($D63,'C.1 - Rate Sheets'!B:I,4,FALSE) -> 77.6 | N63: =VLOOKUP($D63,'C.1 - Rate Sheets'!B:I,5,FALSE) -> 0 | S63: =SUM(O63:R63) -> 0 | T63: 40 | U63: 52 | V63: 16 | X63: =SUM(T63:W63) -> 108 | AC63: =SUM(Y63:AB63) -> 0 | AH63: =SUM(AD63:AG63) -> 0 | AM63: =SUM(AI63:AL63) -> 0 | AS63: =SUM(O63,T63,Y63,AD63,AI63,AN63) -> 40 | AT63: =SUM(P63,U63,Z63,AE63,AJ63,AO63) -> 52 | AU63: =SUM(Q63,V63,AA63,AF63,AK63,AP63) -> 16 | AV63: =SUM(R63,W63,AB63,AG63,AL63,AQ63) -> 0 | AW63: =SUM(AS63:AV63) -> 108 | AX63: =AS63*K63 -> 1940 | AY63: =AT63*L63 -> 3406 | AZ63: =AU63*M63 -> 1241.6 | BA63: =AV63*N63 -> 0 | BB63: =SUM(AX63:BA63) -> 6587.6 | BC63: =BB63-BE63 -> 6587.6 | BD63: Yes | BE63: 0 | BF63: 0 | BG63: 0
B64: 35 | C64: Andrea Tapia | D64: Tree Trimmer | E64: Vendor No 6 | F64: Guitierrez | G64: 913231732 | H64: 2018-10-14 | I64: 2018-10-20 | J64: =IF(AND(H64>='A - Contractor Summary'!$C$36,I64<='A - Contractor Summary'!$C$42),"Yes","No") -> No | K64: =VLOOKUP($D64,'C.1 - Rate Sheets'!B:I,2,FALSE) -> 48.5 | L64: =VLOOKUP($D64,'C.1 - Rate Sheets'!B:I,3,FALSE) -> 65.5 | M64: =VLOOKUP($D64,'C.1 - Rate Sheets'!B:I,4,FALSE) -> 77.6 | N64: =VLOOKUP($D64,'C.1 - Rate Sheets'!B:I,5,FALSE) -> 0 | S64: 0 | T64: 40 | U64: 52 | V64: 16 | X64: 108 | AC64: 0 | AH64: 0 | AM64: 0 | AS64: 40 | AT64: 52 | AU64: 16 | AV64: 0 | AW64: 108 | AX64: 1940 | AY64: 3406 | AZ64: 1241.6 | BA64: 0 | BB64: 6587.6 | BC64: 6587.6 | BD64: Yes | BE64: 0 | BF64: 0 | BG64: 0
B65: 35 | C65: Jesus Jimenez | D65: Tree Trimmer | E65: Vendor No 6 | F65: Guitierrez | G65: 913231732 | H65: 2018-10-14 | I65: 2018-10-20 | J65: =IF(AND(H65>='A - Contractor Summary'!$C$36,I65<='A - Contractor Summary'!$C$42),"Yes","No") -> No | K65: =VLOOKUP($D65,'C.1 - Rate Sheets'!B:I,2,FALSE) -> 48.5 | L65: =VLOOKUP($D65,'C.1 - Rate Sheets'!B:I,3,FALSE) -> 65.5 | M65: =VLOOKUP($D65,'C.1 - Rate Sheets'!B:I,4,FALSE) -> 77.6 | N65: =VLOOKUP($D65,'C.1 - Rate Sheets'!B:I,5,FALSE) -> 0 | S65: 0 | T65: 40 | U65: 52 | V65: 16 | X65: 108 | AC65: 0 | AH65: 0 | AM65: 0 | AS65: 40 | AT65: 52 | AU65: 16 | AV65: 0 | AW65: 108 | AX65: 1940 | AY65: 3406 | AZ65: 1241.6 | BA65: 0 | BB65: 6587.6 | BC65: 6587.6 | BD65: Yes | BE65: 0 | BF65: 0 | BG65: 0
B66: 36 | C66: Bowers, Michael | D66: Supervisor | E66: Vendor No 6 | F66: Bowers | G66: 913231733 | H66: 2018-10-14 | I66: 2018-10-20 | J66: =IF(AND(H66>='A - Contractor Summary'!$C$36,I66<='A - Contractor Summary'!$C$42),"Yes","No") -> No | K66: =VLOOKUP($D66,'C.1 - Rate Sheets'!B:I,2,FALSE) -> 74 | L66: =VLOOKUP($D66,'C.1 - Rate Sheets'!B:I,3,FALSE) -> 99.9 | M66: =VLOOKUP($D66,'C.1 - Rate Sheets'!B:I,4,FALSE) -> 118.4 | N66: =VLOOKUP($D66,'C.1 - Rate Sheets'!B:I,5,FALSE) -> 0 | S66: 0 | T66: 40 | U66: 56 | V66: 16 | X66: 112 | AC66: 0 | AH66: 0 | AM66: 0 | AS66: 40 | AT66: 56 | AU66: 16 | AV66: 0 | AW66: 112 | AX66: 2960 | AY66: 5594.4 | AZ66: 1894.4 | BA66: 0 | BB66: 10448.8 | BC66: 10448.8 | BD66: Yes | BE66: 0 | BF66: 0 | BG66: 0
B67: 37 | C67: Harley, Terry | D67: Crew Foreman | E67: Vendor No 6 | F67: Harley | G67: 913231734 | H67: 2018-10-14 | I67: 2018-10-20 | J67: =IF(AND(H67>='A - Contractor Summary'!$C$36,I67<='A - Contractor Summary'!$C$42),"Yes","No") -> No | K67: =VLOOKUP($D67,'C.1 - Rate Sheets'!B:I,2,FALSE) -> 56.8 | L67: =VLOOKUP($D67,'C.1 - Rate Sheets'!B:I,3,FALSE) -> 76.7 | M67: =VLOOKUP($D67,'C.1 - Rate Sheets'!B:I,4,FALSE) -> 90.9 | N67: =VLOOKUP($D67,'C.1 - Rate Sheets'!B:I,5,FALSE) -> 0 | S67: 0 | T67: 40 | U67: 56 | V67: 16 | X67: 112 | AC67: 0 | AH67: 0 | AM67: 0 | AS67: 40 | AT67: 56 | AU67: 16 | AV67: 0 | AW67: 112 | AX67: 2272 | AY67: 4295.2 | AZ67: 1454.4 | BA67: 0 | BB67: 8021.6 | BC67: 8021.6 | BD67: Yes | BE67: 0 | BF67: 0 | BG67: 0
B68: 38 | C68: Flores, Edgar | D68: Tree Trimmer | E68: Vendor No 6 | F68: Harley | G68: 913231734 | H68: 2018-10-14 | I68: 2018-10-20 | J68: =IF(AND(H68>='A - Contractor Summary'!$C$36,I68<='A - Contractor Summary'!$C$42),"Yes","No") -> No | K68: =VLOOKUP($D68,'C.1 - Rate Sheets'!B:I,2,FALSE) -> 48.5 | L68: =VLOOKUP($D68,'C.1 - Rate Sheets'!B:I,3,FALSE) -> 65.5 | M68: =VLOOKUP($D68,'C.1 - Rate Sheets'!B:I,4,FALSE) -> 77.6 | N68: =VLOOKUP($D68,'C.1 - Rate Sheets'!B:I,5,FALSE) -> 0 | S68: 0 | T68: 40 | U68: 56 | V68: 16 | X68: 112 | AC68: 0 | AH68: 0 | AM68: 0 | AS68: 40 | AT68: 56 | AU68: 16 | AV68: 0 | AW68: 112 | AX68: 1940 | AY68: 3668 | AZ68: 1241.6 | BA68: 0 | BB68: 6849.6 | BC68: 6849.6 | BD68: Yes | BE68: 0 | BF68: 0 | BG68: 0
B69: 39 | C69: Robert Cardel | D69: Crew Foreman | E69: Vendor No 6 | F69: Cardel | G69: 913259237 | H69: 2018-10-17 | I69: 2018-10-20 | J69: =IF(AND(H69>='A - Contractor Summary'!$C$36,I69<='A - Contractor Summary'!$C$42),"Yes","No") -> No | K69: =VLOOKUP($D69,'C.1 - Rate Sheets'!B:I,2,FALSE) -> 56.8 | L69: =VLOOKUP($D69,'C.1 - Rate Sheets'!B:I,3,FALSE) -> 76.7 | M69: =VLOOKUP($D69,'C.1 - Rate Sheets'!B:I,4,FALSE) -> 90.9 | N69: =VLOOKUP($D69,'C.1 - Rate Sheets'!B:I,5,FALSE) -> 0 | S69: 0 | T69: 24 | U69: 36 | X69: 60 | AC69: 0 | AH69: 0 | AM69: 0 | AS69: 24 | AT69: 36 | AU69: 0 | AV69: 0 | AW69: 60 | AX69: 1363.2 | AY69: 2761.2 | AZ69: 0 | BA69: 0 | BB69: 4124.4 | BC69: 4124.4 | BD69: Yes | BE69: 0 | BF69: 0 | BG69: 0
B70: 40 | C70: cant read name | D70: Tree Trimmer | E70: Vendor No 6 | F70: Cardel | G70: 913259237 | H70: 2018-10-17 | I70: 2018-10-20 | J70: =IF(AND(H70>='A - Contractor Summary'!$C$36,I70<='A - Contractor Summary'!$C$42),"Yes","No") -> No | K70: =VLOOKUP($D70,'C.1 - Rate Sheets'!B:I,2,FALSE) -> 48.5 | L70: =VLOOKUP($D70,'C.1 - Rate Sheets'!B:I,3,FALSE) -> 65.5 | M70: =VLOOKUP($D70,'C.1 - Rate Sheets'!B:I,4,FALSE) -> 77.6 | N70: =VLOOKUP($D70,'C.1 - Rate Sheets'!B:I,5,FALSE) -> 0 | S70: =SUM(O70:R70) -> 0 | T70: 24 | U70: 36 | X70: =SUM(T70:W70) -> 60 | AC70: =SUM(Y70:AB70) -> 0 | AH70: =SUM(AD70:AG70) -> 0 | AM70: =SUM(AI70:AL70) -> 0 | AS70: =SUM(O70,T70,Y70,AD70,AI70,AN70) -> 24 | AT70: =SUM(P70,U70,Z70,AE70,AJ70,AO70) -> 36 | AU70: =SUM(Q70,V70,AA70,AF70,AK70,AP70) -> 0 | AV70: =SUM(R70,W70,AB70,AG70,AL70,AQ70) -> 0 | AW70: =SUM(AS70:AV70) -> 60 | AX70: =AS70*K70 -> 1164 | AY70: =AT70*L70 -> 2358 | AZ70: =AU70*M70 -> 0 | BA70: =AV70*N70 -> 0 | BB70: =SUM(AX70:BA70) -> 3522 | BC70: =BB70-BE70 -> 3522 | BD70: Yes | BE70: 0 | BF70: 0 | BG70: 0
B71: 40 | C71: Kevin Wilson | D71: Tree Trimmer | E71: Vendor No 6 | F71: Cardel | G71: 913259237 | H71: 2018-10-17 | I71: 2018-10-20 | J71: =IF(AND(H71>='A - Contractor Summary'!$C$36,I71<='A - Contractor Summary'!$C$42),"Yes","No") -> No | K71: =VLOOKUP($D71,'C.1 - Rate Sheets'!B:I,2,FALSE) -> 48.5 | L71: =VLOOKUP($D71,'C.1 - Rate Sheets'!B:I,3,FALSE) -> 65.5 | M71: =VLOOKUP($D71,'C.1 - Rate Sheets'!B:I,4,FALSE) -> 77.6 | N71: =VLOOKUP($D71,'C.1 - Rate Sheets'!B:I,5,FALSE) -> 0 | S71: 0 | T71: 24 | U71: 36 | X71: 60 | AC71: 0 | AH71: 0 | AM71: 0 | AS71: 24 | AT71: 36 | AU71: 0 | AV71: 0 | AW71: 60 | AX71: 1164 | AY71: 2358 | AZ71: 0 | BA71: 0 | BB71: 3522 | BC71: 3522 | BD71: Yes | BE71: 0 | BF71: 0 | BG71: 0
B72: 41 | C72: James Hardy | D72: Crew Foreman | E72: Vendor No 6 | F72: Hardy | G72: 913259242 | H72: 2018-10-17 | I72: 2018-10-20 | J72: =IF(AND(H72>='A - Contractor Summary'!$C$36,I72<='A - Contractor Summary'!$C$42),"Yes","No") -> No | K72: =VLOOKUP($D72,'C.1 - Rate Sheets'!B:I,2,FALSE) -> 56.8 | L72: =VLOOKUP($D72,'C.1 - Rate Sheets'!B:I,3,FALSE) -> 76.7 | M72: =VLOOKUP($D72,'C.1 - Rate Sheets'!B:I,4,FALSE) -> 90.9 | N72: =VLOOKUP($D72,'C.1 - Rate Sheets'!B:I,5,FALSE) -> 0 | S72: 0 | T72: 24 | U72: 36 | X72: 60 | AC72: 0 | AH72: 0 | AM72: 0 | AS72: 24 | AT72: 36 | AU72: 0 | AV72: 0 | AW72: 60 | AX72: 1363.2 | AY72: 2761.2 | AZ72: 0 | BA72: 0 | BB72: 4124.4 | BC72: 4124.4 | BD72: Yes | BE72: 0 | BF72: 0 | BG72: 0
B73: 42 | C73: cant read name | D73: Tree Trimmer | E73: Vendor No 6 | F73: Hardy | G73: 913259242 | H73: 2018-10-17 | I73: 2018-10-20 | J73: =IF(AND(H73>='A - Contractor Summary'!$C$36,I73<='A - Contractor Summary'!$C$42),"Yes","No") -> No | K73: =VLOOKUP($D73,'C.1 - Rate Sheets'!B:I,2,FALSE) -> 48.5 | L73: =VLOOKUP($D73,'C.1 - Rate Sheets'!B:I,3,FALSE) -> 65.5 | M73: =VLOOKUP($D73,'C.1 - Rate Sheets'!B:I,4,FALSE) -> 77.6 | N73: =VLOOKUP($D73,'C.1 - Rate Sheets'!B:I,5,FALSE) -> 0 | S73: =SUM(O73:R73) -> 0 | T73: 24 | U73: 28 | X73: =SUM(T73:W73) -> 52 | AC73: =SUM(Y73:AB73) -> 0 | AH73: =SUM(AD73:AG73) -> 0 | AM73: =SUM(AI73:AL73) -> 0 | AS73: =SUM(O73,T73,Y73,AD73,AI73,AN73) -> 24 | AT73: =SUM(P73,U73,Z73,AE73,AJ73,AO73) -> 28 | AU73: =SUM(Q73,V73,AA73,AF73,AK73,AP73) -> 0 | AV73: =SUM(R73,W73,AB73,AG73,AL73,AQ73) -> 0 | AW73: =SUM(AS73:AV73) -> 52 | AX73: =AS73*K73 -> 1164 | AY73: =AT73*L73 -> 1834 | AZ73: =AU73*M73 -> 0 | BA73: =AV73*N73 -> 0 | BB73: =SUM(AX73:BA73) -> 2998 | BC73: =BB73-BE73 -> 2998 | BD73: Yes | BE73: 0 | BF73: 0 | BG73: 0
B74: 42 | C74: cant read name | D74: Tree Trimmer | E74: Vendor No 6 | F74: Hardy | G74: 913259242 | H74: 2018-10-17 | I74: 2018-10-20 | J74: =IF(AND(H74>='A - Contractor Summary'!$C$36,I74<='A - Contractor Summary'!$C$42),"Yes","No") -> No | K74: =VLOOKUP($D74,'C.1 - Rate Sheets'!B:I,2,FALSE) -> 48.5 | L74: =VLOOKUP($D74,'C.1 - Rate Sheets'!B:I,3,FALSE) -> 65.5 | M74: =VLOOKUP($D74,'C.1 - Rate Sheets'!B:I,4,FALSE) -> 77.6 | N74: =VLOOKUP($D74,'C.1 - Rate Sheets'!B:I,5,FALSE) -> 0 | S74: 0 | T74: 24 | U74: 28 | X74: 52 | AC74: 0 | AH74: 0 | AM74: 0 | AS74: 24 | AT74: 28 | AU74: 0 | AV74: 0 | AW74: 52 | AX74: 1164 | AY74: 1834 | AZ74: 0 | BA74: 0 | BB74: 2998 | BC74: 2998 | BD74: Yes | BE74: 0 | BF74: 0 | BG74: 0
B75: 43 | C75: Osbany Marejon-Cruz | D75: Supervisor | E75: Vendor No 6 | F75: Morejon-Cruz | G75: 913259373 | H75: 2018-10-18 | I75: 2018-10-20 | J75: =IF(AND(H75>='A - Contractor Summary'!$C$36,I75<='A - Contractor Summary'!$C$42),"Yes","No") -> No | K75: =VLOOKUP($D75,'C.1 - Rate Sheets'!B:I,2,FALSE) -> 74 | L75: =VLOOKUP($D75,'C.1 - Rate Sheets'!B:I,3,FALSE) -> 99.9 | M75: =VLOOKUP($D75,'C.1 - Rate Sheets'!B:I,4,FALSE) -> 118.4 | N75: =VLOOKUP($D75,'C.1 - Rate Sheets'!B:I,5,FALSE) -> 0 | S75: =SUM(O75:R75) -> 0 | T75: 20 | U75: 27 | X75: =SUM(T75:W75) -> 47 | AC75: =SUM(Y75:AB75) -> 0 | AH75: =SUM(AD75:AG75) -> 0 | AM75: =SUM(AI75:AL75) -> 0 | AS75: =SUM(O75,T75,Y75,AD75,AI75,AN75) -> 20 | AT75: =SUM(P75,U75,Z75,AE75,AJ75,AO75) -> 27 | AU75: =SUM(Q75,V75,AA75,AF75,AK75,AP75) -> 0 | AV75: =SUM(R75,W75,AB75,AG75,AL75,AQ75) -> 0 | AW75: =SUM(AS75:AV75) -> 47 | AX75: =AS75*K75 -> 1480 | AY75: =AT75*L75 -> 2697.3 | AZ75: =AU75*M75 -> 0 | BA75: =AV75*N75 -> 0 | BB75: =SUM(AX75:BA75) -> 4177.3 | BC75: =BB75-BE75 -> 4177.3 | BD75: Yes | BE75: 0 | BF75: 0 | BG75: 0 | BH75: 1
B76: 43 | C76: Yohandy Cruiz | D76: Supervisor | E76: Vendor No 6 | F76: Morejon-Cruz | G76: 913259373 | H76: 2018-10-18 | I76: 2018-10-20 | J76: =IF(AND(H76>='A - Contractor Summary'!$C$36,I76<='A - Contractor Summary'!$C$42),"Yes","No") -> No | K76: =VLOOKUP($D76,'C.1 - Rate Sheets'!B:I,2,FALSE) -> 74 | L76: =VLOOKUP($D76,'C.1 - Rate Sheets'!B:I,3,FALSE) -> 99.9 | M76: =VLOOKUP($D76,'C.1 - Rate Sheets'!B:I,4,FALSE) -> 118.4 | N76: =VLOOKUP($D76,'C.1 - Rate Sheets'!B:I,5,FALSE) -> 0 | S76: 0 | T76: 20 | U76: 27 | X76: 47 | AC76: 0 | AH76: 0 | AM76: 0 | AS76: 20 | AT76: 27 | AU76: 0 | AV76: 0 | AW76: 47 | AX76: 1480 | AY76: 2697.3 | AZ76: 0 | BA76: 0 | BB76: 4177.3 | BC76: 4177.3 | BD76: Yes | BE76: 0 | BF76: 0 | BG76: 0 | BH76: 1
B77: 44 | C77: Kallmayer, David | D77: Crew Foreman | E77: Vendor No 6 | F77: Kallmayer | G77: 913281772 | H77: 2018-10-14 | I77: 2018-10-20 | J77: =IF(AND(H77>='A - Contractor Summary'!$C$36,I77<='A - Contractor Summary'!$C$42),"Yes","No") -> No | K77: =VLOOKUP($D77,'C.1 - Rate Sheets'!B:I,2,FALSE) -> 56.8 | L77: =VLOOKUP($D77,'C.1 - Rate Sheets'!B:I,3,FALSE) -> 76.7 | M77: =VLOOKUP($D77,'C.1 - Rate Sheets'!B:I,4,FALSE) -> 90.9 | N77: =VLOOKUP($D77,'C.1 - Rate Sheets'!B:I,5,FALSE) -> 0 | S77: 0 | T77: 40 | U77: 72 | X77: 112 | AC77: 0 | AH77: 0 | AM77: 0 | AS77: 40 | AT77: 72 | AU77: 0 | AV77: 0 | AW77: 112 | AX77: 2272 | AY77: 5522.4 | AZ77: 0 | BA77: 0 | BB77: 7794.4 | BC77: 7794.4 | BD77: Yes | BE77: 0 | BF77: 0 | BG77: 0
B78: 45 | C78: Sansom, James | D78: Ground Person | E78: Vendor No 6 | F78: Kallmayer | G78: 913281772 | H78: 2018-10-14 | I78: 2018-10-20 | J78: =IF(AND(H78>='A - Contractor Summary'!$C$36,I78<='A - Contractor Summary'!$C$42),"Yes","No") -> No | K78: =VLOOKUP($D78,'C.1 - Rate Sheets'!B:I,2,FALSE) -> 40 | L78: =VLOOKUP($D78,'C.1 - Rate Sheets'!B:I,3,FALSE) -> 54 | M78: =VLOOKUP($D78,'C.1 - Rate Sheets'!B:I,4,FALSE) -> 64 | N78: =VLOOKUP($D78,'C.1 - Rate Sheets'!B:I,5,FALSE) -> 0 | S78: 0 | T78: 40 | U78: 72 | X78: 112 | AC78: 0 | AH78: 0 | AM78: 0 | AS78: 40 | AT78: 72 | AU78: 0 | AV78: 0 | AW78: 112 | AX78: 1600 | AY78: 3888 | AZ78: 0 | BA78: 0 | BB78: 5488 | BC78: 5488 | BD78: Yes | BE78: 0 | BF78: 0 | BG78: 0
B79: 46 | C79: Tim Cheever | D79: On-Site Safety Coordinator | E79: Vendor No 6 | F79: Cheever | G79: 913293312 | H79: 2018-10-14 | I79: 2018-10-18 | J79: =IF(AND(H79>='A - Contractor Summary'!$C$36,I79<='A - Contractor Summary'!$C$42),"Yes","No") -> No | K79: =VLOOKUP($D79,'C.1 - Rate Sheets'!B:I,2,FALSE) -> 65 | L79: =VLOOKUP($D79,'C.1 - Rate Sheets'!B:I,3,FALSE) -> 65 | M79: =VLOOKUP($D79,'C.1 - Rate Sheets'!B:I,4,FALSE) -> 65 | N79: =VLOOKUP($D79,'C.1 - Rate Sheets'!B:I,5,FALSE) -> 0 | S79: 0 | T79: 32 | U79: 24 | V79: 12 | X79: 68 | AC79: 0 | AH79: 0 | AM79: 0 | AS79: 32 | AT79: 24 | AU79: 12 | AV79: 0 | AW79: 68 | AX79: 2080 | AY79: 1560 | AZ79: 780 | BA79: 0 | BB79: 4420 | BC79: 4420 | BD79: Yes | BE79: 0 | BF79: 0 | BG79: 0
B80: 47 | C80: Kerry McNamara | D80: On-Site Safety Coordinator | E80: Vendor No 6 | F80: McNamee | G80: 913293313 | H80: 2018-10-14 | I80: 2018-10-20 | J80: =IF(AND(H80>='A - Contractor Summary'!$C$36,I80<='A - Contractor Summary'!$C$42),"Yes","No") -> No | K80: =VLOOKUP($D80,'C.1 - Rate Sheets'!B:I,2,FALSE) -> 65 | L80: =VLOOKUP($D80,'C.1 - Rate Sheets'!B:I,3,FALSE) -> 65 | M80: =VLOOKUP($D80,'C.1 - Rate Sheets'!B:I,4,FALSE) -> 65 | N80: =VLOOKUP($D80,'C.1 - Rate Sheets'!B:I,5,FALSE) -> 0 | S80: 0 | T80: 40 | U80: 42 | V80: 12 | X80: 94 | AC80: 0 | AH80: 0 | AM80: 0 | AS80: 40 | AT80: 42 | AU80: 12 | AV80: 0 | AW80: 94 | AX80: 2600 | AY80: 2730 | AZ80: 780 | BA80: 0 | BB80: 6110 | BC80: 6110 | BD80: Yes | BE80: 0 | BF80: 0 | BG80: 0
B81: 48 | C81: Robert Ellis | D81: On-Site Safety Coordinator | E81: Vendor No 6 | F81: Ellis | G81: 913293314 | H81: 2018-10-17 | I81: 2018-10-20 | J81: =IF(AND(H81>='A - Contractor Summary'!$C$36,I81<='A - Contractor Summary'!$C$42),"Yes","No") -> No | K81: =VLOOKUP($D81,'C.1 - Rate Sheets'!B:I,2,FALSE) -> 65 | L81: =VLOOKUP($D81,'C.1 - Rate Sheets'!B:I,3,FALSE) -> 65 | M81: =VLOOKUP($D81,'C.1 - Rate Sheets'!B:I,4,FALSE) -> 65 | N81: =VLOOKUP($D81,'C.1 - Rate Sheets'!B:I,5,FALSE) -> 0 | S81: 0 | T81: 24 | U81: 32 | X81: 56 | AC81: 0 | AH81: 0 | AM81: 0 | AS81: 24 | AT81: 32 | AU81: 0 | AV81: 0 | AW81: 56 | AX81: 1560 | AY81: 2080 | AZ81: 0 | BA81: 0 | BB81: 3640 | BC81: 3640 | BD81: Yes | BE81: 0 | BF81: 0 | BG81: 0
B82: 49 | C82: Kenny Rowe | D82: On-Site Safety Coordinator | E82: Vendor No 6 | F82: Rowe | G82: 913293315 | H82: 2018-10-14 | I82: 2018-10-20 | J82: =IF(AND(H82>='A - Contractor Summary'!$C$36,I82<='A - Contractor Summary'!$C$42),"Yes","No") -> No | K82: =VLOOKUP($D82,'C.1 - Rate Sheets'!B:I,2,FALSE) -> 65 | L82: =VLOOKUP($D82,'C.1 - Rate Sheets'!B:I,3,FALSE) -> 65 | M82: =VLOOKUP($D82,'C.1 - Rate Sheets'!B:I,4,FALSE) -> 65 | N82: =VLOOKUP($D82,'C.1 - Rate Sheets'!B:I,5,FALSE) -> 0 | S82: 0 | T82: 8 | U82: 16 | V82: 14 | X82: 38 | AC82: 0 | AH82: 0 | AM82: 0 | AS82: 8 | AT82: 16 | AU82: 14 | AV82: 0 | AW82: 38 | AX82: 520 | AY82: 1040 | AZ82: 910 | BA82: 0 | BB82: 2470 | BC82: 2470 | BD82: Yes | BE82: 0 | BF82: 0 | BG82: 0
B83: 50 | C83: Harold Danielson | D83: On-Site Safety Coordinator | E83: Vendor No 6 | F83: Danielson | G83: 913293316 | H83: 2018-10-20 | I83: 2018-10-20 | J83: =IF(AND(H83>='A - Contractor Summary'!$C$36,I83<='A - Contractor Summary'!$C$42),"Yes","No") -> No | K83: =VLOOKUP($D83,'C.1 - Rate Sheets'!B:I,2,FALSE) -> 65 | L83: =VLOOKUP($D83,'C.1 - Rate Sheets'!B:I,3,FALSE) -> 65 | M83: =VLOOKUP($D83,'C.1 - Rate Sheets'!B:I,4,FALSE) -> 65 | N83: =VLOOKUP($D83,'C.1 - Rate Sheets'!B:I,5,FALSE) -> 0 | S83: 0 | T83: 14 | X83: 14 | AC83: 0 | AH83: 0 | AM83: 0 | AS83: 14 | AT83: 0 | AU83: 0 | AV83: 0 | AW83: 14 | AX83: 910 | AY83: 0 | AZ83: 0 | BA83: 0 | BB83: 910 | BC83: 910 | BD83: Yes | BE83: 0 | BF83: 0 | BG83: 0
B84: 51 | C84: Kenny Rowe | D84: On-Site Safety Coordinator | E84: Vendor No 6 | F84: Rowe | G84: 913301063 | H84: 2018-10-28 | I84: 2018-11-02 | J84: =IF(AND(H84>='A - Contractor Summary'!$C$36,I84<='A - Contractor Summary'!$C$42),"Yes","No") -> No | K84: =VLOOKUP($D84,'C.1 - Rate Sheets'!B:I,2,FALSE) -> 65 | L84: =VLOOKUP($D84,'C.1 - Rate Sheets'!B:I,3,FALSE) -> 65 | M84: =VLOOKUP($D84,'C.1 - Rate Sheets'!B:I,4,FALSE) -> 65 | N84: =VLOOKUP($D84,'C.1 - Rate Sheets'!B:I,5,FALSE) -> 0 | S84: 0 | X84: 0 | AC84: 0 | AD84: 40 | AE84: 30 | AF84: 14 | AH84: 84 | AM84: 0 | AS84: 40 | AT84: 30 | AU84: 14 | AV84: 0 | AW84: 84 | AX84: 2600 | AY84: 1950 | AZ84: 910 | BA84: 0 | BB84: 5460 | BC84: 5460 | BD84: Yes | BE84: 0 | BF84: 0 | BG84: 0
B85: 52 | C85: Bradley Gonzalez | D85: On-Site Safety Coordinator | E85: Vendor No 6 | F85: Gonzales | G85: 913301070 | H85: 2018-10-20 | I85: 2018-10-20 | J85: =IF(AND(H85>='A - Contractor Summary'!$C$36,I85<='A - Contractor Summary'!$C$42),"Yes","No") -> No | K85: =VLOOKUP($D85,'C.1 - Rate Sheets'!B:I,2,FALSE) -> 65 | L85: =VLOOKUP($D85,'C.1 - Rate Sheets'!B:I,3,FALSE) -> 65 | M85: =VLOOKUP($D85,'C.1 - Rate Sheets'!B:I,4,FALSE) -> 65 | N85: =VLOOKUP($D85,'C.1 - Rate Sheets'!B:I,5,FALSE) -> 0 | S85: 0 | U85: 12 | X85: 12 | AC85: 0 | AH85: 0 | AM85: 0 | AS85: 0 | AT85: 12 | AU85: 0 | AV85: 0 | AW85: 12 | AX85: 0 | AY85: 780 | AZ85: 0 | BA85: 0 | BB85: 780 | BC85: 780 | BD85: Yes | BE85: 0 | BF85: 0 | BG85: 0
B86: 53 | C86: Random Palmer | D86: On-Site Safety Coordinator | E86: Vendor No 6 | F86: Palmer | G86: 913301071 | H86: 2018-10-19 | I86: 2018-10-20 | J86: =IF(AND(H86>='A - Contractor Summary'!$C$36,I86<='A - Contractor Summary'!$C$42),"Yes","No") -> No | K86: =VLOOKUP($D86,'C.1 - Rate Sheets'!B:I,2,FALSE) -> 65 | L86: =VLOOKUP($D86,'C.1 - Rate Sheets'!B:I,3,FALSE) -> 65 | M86: =VLOOKUP($D86,'C.1 - Rate Sheets'!B:I,4,FALSE) -> 65 | N86: =VLOOKUP($D86,'C.1 - Rate Sheets'!B:I,5,FALSE) -> 0 | S86: 0 | T86: 8 | U86: 16 | X86: 24 | AC86: 0 | AH86: 0 | AM86: 0 | AS86: 8 | AT86: 16 | AU86: 0 | AV86: 0 | AW86: 24 | AX86: 520 | AY86: 1040 | AZ86: 0 | BA86: 0 | BB86: 1560 | BC86: 1560 | BD86: Yes | BE86: 0 | BF86: 0 | BG86: 0
B87: 54 | C87: Joseph Pate | D87: Supervisor | E87: Vendor No 6 | F87: Pate | G87: 913346146 | H87: 2018-10-14 | I87: 2018-10-20 | J87: =IF(AND(H87>='A - Contractor Summary'!$C$36,I87<='A - Contractor Summary'!$C$42),"Yes","No") -> No | K87: =VLOOKUP($D87,'C.1 - Rate Sheets'!B:I,2,FALSE) -> 74 | L87: =VLOOKUP($D87,'C.1 - Rate Sheets'!B:I,3,FALSE) -> 99.9 | M87: =VLOOKUP($D87,'C.1 - Rate Sheets'!B:I,4,FALSE) -> 118.4 | N87: =VLOOKUP($D87,'C.1 - Rate Sheets'!B:I,5,FALSE) -> 0 | S87: 0 | T87: 40 | U87: 56 | V87: 16 | X87: 112 | AC87: 0 | AH87: 0 | AM87: 0 | AS87: 40 | AT87: 56 | AU87: 16 | AV87: 0 | AW87: 112 | AX87: 2960 | AY87: 5594.4 | AZ87: 1894.4 | BA87: 0 | BB87: 10448.8 | BC87: 10448.8 | BD87: Yes | BE87: 0 | BF87: 0 | BG87: 0
B88: 55 | C88: Kallmayer, David | D88: Crew Foreman | E88: Vendor No 6 | F88: Kallmayer | G88: 913346153 | H88: 2018-10-14 | I88: 2018-10-20 | J88: =IF(AND(H88>='A - Contractor Summary'!$C$36,I88<='A - Contractor Summary'!$C$42),"Yes","No") -> No | K88: =VLOOKUP($D88,'C.1 - Rate Sheets'!B:I,2,FALSE) -> 56.8 | L88: =VLOOKUP($D88,'C.1 - Rate Sheets'!B:I,3,FALSE) -> 76.7 | M88: =VLOOKUP($D88,'C.1 - Rate Sheets'!B:I,4,FALSE) -> 90.9 | N88: =VLOOKUP($D88,'C.1 - Rate Sheets'!B:I,5,FALSE) -> 0 | S88: 0 | T88: 40 | U88: 56 | V88: 16 | X88: 112 | AC88: 0 | AH88: 0 | AM88: 0 | AS88: 40 | AT88: 56 | AU88: 16 | AV88: 0 | AW88: 112 | AX88: 2272 | AY88: 4295.2 | AZ88: 1454.4 | BA88: 0 | BB88: 8021.6 | BC88: 8021.6 | BD88: Yes | BE88: 0 | BF88: 0 | BG88: 0
B89: 56 | C89: Sansom, James | D89: Tree Trimmer | E89: Vendor No 6 | F89: Kallmayer | G89: 913346153 | H89: 2018-10-14 | I89: 2018-10-20 | J89: =IF(AND(H89>='A - Contractor Summary'!$C$36,I89<='A - Contractor Summary'!$C$42),"Yes","No") -> No | K89: =VLOOKUP($D89,'C.1 - Rate Sheets'!B:I,2,FALSE) -> 48.5 | L89: =VLOOKUP($D89,'C.1 - Rate Sheets'!B:I,3,FALSE) -> 65.5 | M89: =VLOOKUP($D89,'C.1 - Rate Sheets'!B:I,4,FALSE) -> 77.6 | N89: =VLOOKUP($D89,'C.1 - Rate Sheets'!B:I,5,FALSE) -> 0 | S89: 0 | T89: 40 | U89: 56 | V89: 16 | X89: 112 | AC89: 0 | AH89: 0 | AM89: 0 | AS89: 40 | AT89: 56 | AU89: 16 | AV89: 0 | AW89: 112 | AX89: 1940 | AY89: 3668 | AZ89: 1241.6 | BA89: 0 | BB89: 6849.6 | BC89: 6849.6 | BD89: Yes | BE89: 0 | BF89: 0 | BG89: 0
B90: 57 | C90: Garcia, Alejandro | D90: Crew Foreman | E90: Vendor No 6 | F90: Garcia | G90: 913346195 | H90: 2018-10-14 | I90: 2018-10-20 | J90: =IF(AND(H90>='A - Contractor Summary'!$C$36,I90<='A - Contractor Summary'!$C$42),"Yes","No") -> No | K90: =VLOOKUP($D90,'C.1 - Rate Sheets'!B:I,2,FALSE) -> 56.8 | L90: =VLOOKUP($D90,'C.1 - Rate Sheets'!B:I,3,FALSE) -> 76.7 | M90: =VLOOKUP($D90,'C.1 - Rate Sheets'!B:I,4,FALSE) -> 90.9 | N90: =VLOOKUP($D90,'C.1 - Rate Sheets'!B:I,5,FALSE) -> 0 | S90: 0 | T90: 40 | U90: 56 | V90: 16 | X90: 112 | AC90: 0 | AH90: 0 | AM90: 0 | AS90: 40 | AT90: 56 | AU90: 16 | AV90: 0 | AW90: 112 | AX90: 2272 | AY90: 4295.2 | AZ90: 1454.4 | BA90: 0 | BB90: 8021.6 | BC90: 8021.6 | BD90: Yes | BE90: 0 | BF90: 0 | BG90: 0 | BH90: 3
B91: 58 | C91: Yuhas, Matthew | D91: Tree Trimmer | E91: Vendor No 6 | F91: Garcia | G91: 913346195 | H91: 2018-10-14 | I91: 2018-10-20 | J91: =IF(AND(H91>='A - Contractor Summary'!$C$36,I91<='A - Contractor Summary'!$C$42),"Yes","No") -> No | K91: =VLOOKUP($D91,'C.1 - Rate Sheets'!B:I,2,FALSE) -> 48.5 | L91: =VLOOKUP($D91,'C.1 - Rate Sheets'!B:I,3,FALSE) -> 65.5 | M91: =VLOOKUP($D91,'C.1 - Rate Sheets'!B:I,4,FALSE) -> 77.6 | N91: =VLOOKUP($D91,'C.1 - Rate Sheets'!B:I,5,FALSE) -> 0 | S91: 0 | T91: 40 | U91: 56 | V91: 16 | X91: 112 | AC91: 0 | AH91: 0 | AM91: 0 | AS91: 40 | AT91: 56 | AU91: 16 | AV91: 0 | AW91: 112 | AX91: 1940 | AY91: 3668 | AZ91: 1241.6 | BA91: 0 | BB91: 6849.6 | BC91: 6849.6 | BD91: Yes | BE91: 0 | BF91: 0 | BG91: 0 | BH91: 3
B92: 59 | C92: Tim Jones | D92: Crew Foreman | E92: Vendor No 6 | F92: Jones | G92: 913346486 | H92: 2018-10-17 | I92: 2018-10-20 | J92: =IF(AND(H92>='A - Contractor Summary'!$C$36,I92<='A - Contractor Summary'!$C$42),"Yes","No") -> No | K92: =VLOOKUP($D92,'C.1 - Rate Sheets'!B:I,2,FALSE) -> 56.8 | L92: =VLOOKUP($D92,'C.1 - Rate Sheets'!B:I,3,FALSE) -> 76.7 | M92: =VLOOKUP($D92,'C.1 - Rate Sheets'!B:I,4,FALSE) -> 90.9 | N92: =VLOOKUP($D92,'C.1 - Rate Sheets'!B:I,5,FALSE) -> 0 | S92: =SUM(O92:R92) -> 0 | T92: 24 | U92: 40 | X92: =SUM(T92:W92) -> 64 | AC92: =SUM(Y92:AB92) -> 0 | AH92: =SUM(AD92:AG92) -> 0 | AM92: =SUM(AI92:AL92) -> 0 | AS92: =SUM(O92,T92,Y92,AD92,AI92,AN92) -> 24 | AT92: =SUM(P92,U92,Z92,AE92,AJ92,AO92) -> 40 | AU92: =SUM(Q92,V92,AA92,AF92,AK92,AP92) -> 0 | AV92: =SUM(R92,W92,AB92,AG92,AL92,AQ92) -> 0 | AW92: =SUM(AS92:AV92) -> 64 | AX92: =AS92*K92 -> 1363.2 | AY92: =AT92*L92 -> 3068 | AZ92: =AU92*M92 -> 0 | BA92: =AV92*N92 -> 0 | BB92: =SUM(AX92:BA92) -> 4431.2 | BC92: =BB92-BE92 -> 4431.2 | BD92: Yes | BE92: 0 | BF92: 0 | BG92: 0
B93: 59 | C93: Allan Johnson | D93: Crew Foreman | E93: Vendor No 6 | F93: Jones | G93: 913346486 | H93: 2018-10-17 | I93: 2018-10-20 | J93: =IF(AND(H93>='A - Contractor Summary'!$C$36,I93<='A - Contractor Summary'!$C$42),"Yes","No") -> No | K93: =VLOOKUP($D93,'C.1 - Rate Sheets'!B:I,2,FALSE) -> 56.8 | L93: =VLOOKUP($D93,'C.1 - Rate Sheets'!B:I,3,FALSE) -> 76.7 | M93: =VLOOKUP($D93,'C.1 - Rate Sheets'!B:I,4,FALSE) -> 90.9 | N93: =VLOOKUP($D93,'C.1 - Rate Sheets'!B:I,5,FALSE) -> 0 | S93: 0 | T93: 24 | U93: 40 | X93: 64 | AC93: 0 | AH93: 0 | AM93: 0 | AS93: 24 | AT93: 40 | AU93: 0 | AV93: 0 | AW93: 64 | AX93: 1363.2 | AY93: 3068 | AZ93: 0 | BA93: 0 | BB93: 4431.2 | BC93: 4431.2 | BD93: Yes | BE93: 0 | BF93: 0 | BG93: 0
B94: 60 | C94: Hunter Standfield | D94: Tree Trimmer | E94: Vendor No 6 | F94: Jones | G94: 913346486 | H94: 2018-10-17 | I94: 2018-10-20 | J94: =IF(AND(H94>='A - Contractor Summary'!$C$36,I94<='A - Contractor Summary'!$C$42),"Yes","No") -> No | K94: =VLOOKUP($D94,'C.1 - Rate Sheets'!B:I,2,FALSE) -> 48.5 | L94: =VLOOKUP($D94,'C.1 - Rate Sheets'!B:I,3,FALSE) -> 65.5 | M94: =VLOOKUP($D94,'C.1 - Rate Sheets'!B:I,4,FALSE) -> 77.6 | N94: =VLOOKUP($D94,'C.1 - Rate Sheets'!B:I,5,FALSE) -> 0 | S94: =SUM(O94:R94) -> 0 | T94: 24 | U94: 40 | X94: =SUM(T94:W94) -> 64 | AC94: =SUM(Y94:AB94) -> 0 | AH94: =SUM(AD94:AG94) -> 0 | AM94: =SUM(AI94:AL94) -> 0 | AS94: =SUM(O94,T94,Y94,AD94,AI94,AN94) -> 24 | AT94: =SUM(P94,U94,Z94,AE94,AJ94,AO94) -> 40 | AU94: =SUM(Q94,V94,AA94,AF94,AK94,AP94) -> 0 | AV94: =SUM(R94,W94,AB94,AG94,AL94,AQ94) -> 0 | AW94: =SUM(AS94:AV94) -> 64 | AX94: =AS94*K94 -> 1164 | AY94: =AT94*L94 -> 2620 | AZ94: =AU94*M94 -> 0 | BA94: =AV94*N94 -> 0 | BB94: =SUM(AX94:BA94) -> 3784 | BC94: =BB94-BE94 -> 3784 | BD94: Yes | BE94: 0 | BF94: 0 | BG94: 0
B95: 60 | C95: Jarad Osbourn | D95: Tree Trimmer | E95: Vendor No 6 | F95: Jones | G95: 913346486 | H95: 2018-10-17 | I95: 2018-10-20 | J95: =IF(AND(H95>='A - Contractor Summary'!$C$36,I95<='A - Contractor Summary'!$C$42),"Yes","No") -> No | K95: =VLOOKUP($D95,'C.1 - Rate Sheets'!B:I,2,FALSE) -> 48.5 | L95: =VLOOKUP($D95,'C.1 - Rate Sheets'!B:I,3,FALSE) -> 65.5 | M95: =VLOOKUP($D95,'C.1 - Rate Sheets'!B:I,4,FALSE) -> 77.6 | N95: =VLOOKUP($D95,'C.1 - Rate Sheets'!B:I,5,FALSE) -> 0 | S95: 0 | T95: 24 | U95: 40 | X95: 64 | AC95: 0 | AH95: 0 | AM95: 0 | AS95: 24 | AT95: 40 | AU95: 0 | AV95: 0 | AW95: 64 | AX95: 1164 | AY95: 2620 | AZ95: 0 | BA95: 0 | BB95: 3784 | BC95: 3784 | BD95: Yes | BE95: 0 | BF95: 0 | BG95: 0
B96: 60 | C96: Mike Varden | D96: Tree Trimmer | E96: Vendor No 6 | F96: Jones | G96: 913346486 | H96: 2018-10-17 | I96: 2018-10-19 | J96: =IF(AND(H96>='A - Contractor Summary'!$C$36,I96<='A - Contractor Summary'!$C$42),"Yes","No") -> No | K96: =VLOOKUP($D96,'C.1 - Rate Sheets'!B:I,2,FALSE) -> 48.5 | L96: =VLOOKUP($D96,'C.1 - Rate Sheets'!B:I,3,FALSE) -> 65.5 | M96: =VLOOKUP($D96,'C.1 - Rate Sheets'!B:I,4,FALSE) -> 77.6 | N96: =VLOOKUP($D96,'C.1 - Rate Sheets'!B:I,5,FALSE) -> 0 | S96: 0 | T96: 24 | U96: 20 | X96: 44 | AC96: 0 | AH96: 0 | AM96: 0 | AS96: 24 | AT96: 20 | AU96: 0 | AV96: 0 | AW96: 44 | AX96: 1164 | AY96: 1310 | AZ96: 0 | BA96: 0 | BB96: 2474 | BC96: 2474 | BD96: Yes | BE96: 0 | BF96: 0 | BG96: 0 | BH96: 2
B97: 61 | C97: Gary W. Thomas | D97: Supervisor | E97: Vendor No 6 | F97: Thomas | G97: 913262679 | H97: 2018-10-26 | I97: 2018-10-27 | J97: =IF(AND(H97>='A - Contractor Summary'!$C$36,I97<='A - Contractor Summary'!$C$42),"Yes","No") -> No | K97: =VLOOKUP($D97,'C.1 - Rate Sheets'!B:I,2,FALSE) -> 74 | L97: =VLOOKUP($D97,'C.1 - Rate Sheets'!B:I,3,FALSE) -> 99.9 | M97: =VLOOKUP($D97,'C.1 - Rate Sheets'!B:I,4,FALSE) -> 118.4 | N97: =VLOOKUP($D97,'C.1 - Rate Sheets'!B:I,5,FALSE) -> 0 | S97: 0 | X97: 0 | Y97: 8 | Z97: 24 | AC97: 32 | AH97: 0 | AM97: 0 | AS97: 8 | AT97: 24 | AU97: 0 | AV97: 0 | AW97: 32 | AX97: 592 | AY97: 2397.6 | AZ97: 0 | BA97: 0 | BB97: 2989.6 | BC97: 2989.6 | BD97: Yes | BE97: 0 | BF97: 0 | BG97: 0
B98: 62 | C98: John Weaver | D98: Crew Foreman | E98: Vendor No 6 | F98: Riddle | G98: 913220899 | H98: 2018-10-21 | I98: 2018-10-27 | J98: =IF(AND(H98>='A - Contractor Summary'!$C$36,I98<='A - Contractor Summary'!$C$42),"Yes","No") -> No | K98: =VLOOKUP($D98,'C.1 - Rate Sheets'!B:I,2,FALSE) -> 56.8 | L98: =VLOOKUP($D98,'C.1 - Rate Sheets'!B:I,3,FALSE) -> 76.7 | M98: =VLOOKUP($D98,'C.1 - Rate Sheets'!B:I,4,FALSE) -> 90.9 | N98: =VLOOKUP($D98,'C.1 - Rate Sheets'!B:I,5,FALSE) -> 0 | S98: 0 | X98: 0 | Y98: 40 | Z98: 56 | AA98: 16 | AC98: 112 | AH98: 0 | AM98: 0 | AS98: 40 | AT98: 56 | AU98: 16 | AV98: 0 | AW98: 112 | AX98: 2272 | AY98: 4295.2 | AZ98: 1454.4 | BA98: 0 | BB98: 8021.6 | BC98: 8021.6 | BD98: Yes | BE98: 0 | BF98: 0 | BG98: 0
B99: 63 | C99: Mason Johnson | D99: Tree Trimmer | E99: Vendor No 6 | F99: Riddle | G99: 913220899 | H99: 2018-10-21 | I99: 2018-10-27 | J99: =IF(AND(H99>='A - Contractor Summary'!$C$36,I99<='A - Contractor Summary'!$C$42),"Yes","No") -> No | K99: =VLOOKUP($D99,'C.1 - Rate Sheets'!B:I,2,FALSE) -> 48.5 | L99: =VLOOKUP($D99,'C.1 - Rate Sheets'!B:I,3,FALSE) -> 65.5 | M99: =VLOOKUP($D99,'C.1 - Rate Sheets'!B:I,4,FALSE) -> 77.6 | N99: =VLOOKUP($D99,'C.1 - Rate Sheets'!B:I,5,FALSE) -> 0 | S99: 0 | X99: 0 | Y99: 40 | Z99: 56 | AA99: 16 | AC99: 112 | AH99: 0 | AM99: 0 | AS99: 40 | AT99: 56 | AU99: 16 | AV99: 0 | AW99: 112 | AX99: 1940 | AY99: 3668 | AZ99: 1241.6 | BA99: 0 | BB99: 6849.6 | BC99: 6849.6 | BD99: Yes | BE99: 0 | BF99: 0 | BG99: 0
B100: 63 | C100: Austin Story | D100: Tree Trimmer | E100: Vendor No 6 | F100: Riddle | G100: 913220899 | H100: 2018-10-21 | I100: 2018-10-27 | J100: =IF(AND(H100>='A - Contractor Summary'!$C$36,I100<='A - Contractor Summary'!$C$42),"Yes","No") -> No | K100: =VLOOKUP($D100,'C.1 - Rate Sheets'!B:I,2,FALSE) -> 48.5 | L100: =VLOOKUP($D100,'C.1 - Rate Sheets'!B:I,3,FALSE) -> 65.5 | M100: =VLOOKUP($D100,'C.1 - Rate Sheets'!B:I,4,FALSE) -> 77.6 | N100: =VLOOKUP($D100,'C.1 - Rate Sheets'!B:I,5,FALSE) -> 0 | S100: =SUM(O100:R100) -> 0 | X100: =SUM(T100:W100) -> 0 | Y100: 40 | Z100: 56 | AA100: 16 | AC100: =SUM(Y100:AB100) -> 112 | AH100: =SUM(AD100:AG100) -> 0 | AM100: =SUM(AI100:AL100) -> 0 | AS100: =SUM(O100,T100,Y100,AD100,AI100,AN100) -> 40 | AT100: =SUM(P100,U100,Z100,AE100,AJ100,AO100) -> 56 | AU100: =SUM(Q100,V100,AA100,AF100,AK100,AP100) -> 16 | AV100: =SUM(R100,W100,AB100,AG100,AL100,AQ100) -> 0 | AW100: =SUM(AS100:AV100) -> 112 | AX100: =AS100*K100 -> 1940 | AY100: =AT100*L100 -> 3668 | AZ100: =AU100*M100 -> 1241.6 | BA100: =AV100*N100 -> 0 | BB100: =SUM(AX100:BA100) -> 6849.6 | BC100: =BB100-BE100 -> 6849.6 | BD100: Yes | BE100: 0 | BF100: 0 | BG100: 0
B101: 63 | C101: Johnathan Gardner | D101: Tree Trimmer | E101: Vendor No 6 | F101: Riddle | G101: 913220899 | H101: 2018-10-21 | I101: 2018-10-27 | J101: =IF(AND(H101>='A - Contractor Summary'!$C$36,I101<='A - Contractor Summary'!$C$42),"Yes","No") -> No | K101: =VLOOKUP($D101,'C.1 - Rate Sheets'!B:I,2,FALSE) -> 48.5 | L101: =VLOOKUP($D101,'C.1 - Rate Sheets'!B:I,3,FALSE) -> 65.5 | M101: =VLOOKUP($D101,'C.1 - Rate Sheets'!B:I,4,FALSE) -> 77.6 | N101: =VLOOKUP($D101,'C.1 - Rate Sheets'!B:I,5,FALSE) -> 0 | S101: 0 | X101: 0 | Y101: 24 | Z101: 24 | AA101: 16 | AC101: 64 | AH101: 0 | AM101: 0 | AS101: 24 | AT101: 24 | AU101: 16 | AV101: 0 | AW101: 64 | AX101: 1164 | AY101: 1572 | AZ101: 1241.6 | BA101: 0 | BB101: 3977.6 | BC101: 3977.6 | BD101: Yes | BE101: 0 | BF101: 0 | BG101: 0
B102: 64 | C102: Roy Riddle | D102: Supervisor | E102: Vendor No 6 | F102: Riddle | G102: 913220899 | H102: 2018-10-21 | I102: 2018-10-27 | J102: =IF(AND(H102>='A - Contractor Summary'!$C$36,I102<='A - Contractor Summary'!$C$42),"Yes","No") -> No | K102: =VLOOKUP($D102,'C.1 - Rate Sheets'!B:I,2,FALSE) -> 74 | L102: =VLOOKUP($D102,'C.1 - Rate Sheets'!B:I,3,FALSE) -> 99.9 | M102: =VLOOKUP($D102,'C.1 - Rate Sheets'!B:I,4,FALSE) -> 118.4 | N102: =VLOOKUP($D102,'C.1 - Rate Sheets'!B:I,5,FALSE) -> 0 | S102: 0 | X102: 0 | Y102: 40 | Z102: 56 | AA102: 16 | AC102: 112 | AH102: 0 | AM102: 0 | AS102: 40 | AT102: 56 | AU102: 16 | AV102: 0 | AW102: 112 | AX102: 2960 | AY102: 5594.4 | AZ102: 1894.4 | BA102: 0 | BB102: 10448.8 | BC102: 10448.8 | BD102: Yes | BE102: 0 | BF102: 0 | BG102: 0
B103: 65 | C103: Jay Guilds | D103: Crew Foreman | E103: Vendor No 6 | F103: Guilds | G103: 913223261 | H103: 2018-10-21 | I103: 2018-10-27 | J103: =IF(AND(H103>='A - Contractor Summary'!$C$36,I103<='A - Contractor Summary'!$C$42),"Yes","No") -> No | K103: =VLOOKUP($D103,'C.1 - Rate Sheets'!B:I,2,FALSE) -> 56.8 | L103: =VLOOKUP($D103,'C.1 - Rate Sheets'!B:I,3,FALSE) -> 76.7 | M103: =VLOOKUP($D103,'C.1 - Rate Sheets'!B:I,4,FALSE) -> 90.9 | N103: =VLOOKUP($D103,'C.1 - Rate Sheets'!B:I,5,FALSE) -> 0 | S103: 0 | X103: 0 | Y103: 40 | Z103: 48 | AA103: 16 | AC103: 104 | AH103: 0 | AM103: 0 | AS103: 40 | AT103: 48 | AU103: 16 | AV103: 0 | AW103: 104 | AX103: 2272 | AY103: 3681.6 | AZ103: 1454.4 | BA103: 0 | BB103: 7408 | BC103: 7408 | BD103: Yes | BE103: 0 | BF103: 0 | BG103: 0 | BH103: 3
B104: 66 | C104: Erik Stewart | D104: Tree Trimmer | E104: Vendor No 6 | F104: Guilds | G104: 913223261 | H104: 2018-10-21 | I104: 2018-10-27 | J104: =IF(AND(H104>='A - Contractor Summary'!$C$36,I104<='A - Contractor Summary'!$C$42),"Yes","No") -> No | K104: =VLOOKUP($D104,'C.1 - Rate Sheets'!B:I,2,FALSE) -> 48.5 | L104: =VLOOKUP($D104,'C.1 - Rate Sheets'!B:I,3,FALSE) -> 65.5 | M104: =VLOOKUP($D104,'C.1 - Rate Sheets'!B:I,4,FALSE) -> 77.6 | N104: =VLOOKUP($D104,'C.1 - Rate Sheets'!B:I,5,FALSE) -> 0 | S104: =SUM(O104:R104) -> 0 | X104: =SUM(T104:W104) -> 0 | Y104: 40 | Z104: 48 | AA104: 16 | AC104: =SUM(Y104:AB104) -> 104 | AH104: =SUM(AD104:AG104) -> 0 | AM104: =SUM(AI104:AL104) -> 0 | AS104: 40 | AT104: 48 | AU104: 16 | AV104: 0 | AW104: 104 | AX104: 1940 | AY104: 3144 | AZ104: 1241.6 | BA104: 0 | BB104: 6325.6 | BC104: 6325.6 | BD104: Yes | BE104: 0 | BF104: 0 | BG104: 0 | BH104: 3
B105: 67 | C105: Bryan Horn | D105: Crew Foreman | E105: Vendor No 6 | F105: Horn | G105: 913223262 | H105: 2018-10-21 | I105: 2018-10-27 | J105: =IF(AND(H105>='A - Contractor Summary'!$C$36,I105<='A - Contractor Summary'!$C$42),"Yes","No") -> No | K105: =VLOOKUP($D105,'C.1 - Rate Sheets'!B:I,2,FALSE) -> 56.8 | L105: =VLOOKUP($D105,'C.1 - Rate Sheets'!B:I,3,FALSE) -> 76.7 | M105: =VLOOKUP($D105,'C.1 - Rate Sheets'!B:I,4,FALSE) -> 90.9 | N105: =VLOOKUP($D105,'C.1 - Rate Sheets'!B:I,5,FALSE) -> 0 | S105: 0 | X105: 0 | Y105: 40 | Z105: 48 | AA105: 16 | AC105: 104 | AH105: 0 | AM105: 0 | AS105: 40 | AT105: 48 | AU105: 16 | AV105: 0 | AW105: 104 | AX105: =AS105*K105 -> 2272 | AY105: =AT105*L105 -> 3681.6 | AZ105: =AU105*M105 -> 1454.4 | BA105: =AV105*N105 -> 0 | BB105: =SUM(AX105:BA105) -> 7408 | BC105: 7408 | BD105: Yes | BE105: 0 | BF105: 0 | BG105: 0 | BH105: 3
B106: 68 | C106: Ronald Cook | D106: Tree Trimmer | E106: Vendor No 6 | F106: Horn | G106: 913223262 | H106: 2018-10-21 | I106: 2018-10-27 | J106: =IF(AND(H106>='A - Contractor Summary'!$C$36,I106<='A - Contractor Summary'!$C$42),"Yes","No") -> No | K106: =VLOOKUP($D106,'C.1 - Rate Sheets'!B:I,2,FALSE) -> 48.5 | L106: =VLOOKUP($D106,'C.1 - Rate Sheets'!B:I,3,FALSE) -> 65.5 | M106: =VLOOKUP($D106,'C.1 - Rate Sheets'!B:I,4,FALSE) -> 77.6 | N106: =VLOOKUP($D106,'C.1 - Rate Sheets'!B:I,5,FALSE) -> 0 | S106: 0 | X106: 0 | Y106: 40 | Z106: 48 | AA106: 16 | AC106: 104 | AH106: 0 | AM106: 0 | AS106: 40 | AT106: 48 | AU106: 16 | AV106: 0 | AW106: 104 | AX106: 1940 | AY106: 3144 | AZ106: 1241.6 | BA106: 0 | BB106: 6325.6 | BC106: 6325.6 | BD106: Yes | BE106: 0 | BF106: 0 | BG106: 0 | BH106: 3
B107: 69 | C107: Llewellyn Wyett | D107: Crew Foreman | E107: Vendor No 6 | F107: Wyett | G107: 913231713 | H107: 2018-10-21 | I107: 2018-10-27 | J107: =IF(AND(H107>='A - Contractor Summary'!$C$36,I107<='A - Contractor Summary'!$C$42),"Yes","No") -> No | K107: =VLOOKUP($D107,'C.1 - Rate Sheets'!B:I,2,FALSE) -> 56.8 | L107: =VLOOKUP($D107,'C.1 - Rate Sheets'!B:I,3,FALSE) -> 76.7 | M107: =VLOOKUP($D107,'C.1 - Rate Sheets'!B:I,4,FALSE) -> 90.9 | N107: =VLOOKUP($D107,'C.1 - Rate Sheets'!B:I,5,FALSE) -> 0 | S107: 0 | X107: 0 | Y107: 40 | Z107: 56 | AA107: 16 | AC107: 112 | AH107: 0 | AM107: 0 | AS107: 40 | AT107: 56 | AU107: 16 | AV107: 0 | AW107: 112 | AX107: 2272 | AY107: 4295.2 | AZ107: 1454.4 | BA107: 0 | BB107: 8021.6 | BC107: 8021.6 | BD107: Yes | BE107: 0 | BF107: 0 | BG107: 0 | BH107: 3
B108: 70 | C108: Christopher Scarborugh | D108: Tree Trimmer | E108: Vendor No 6 | F108: Wyett | G108: 913231713 | H108: 2018-10-21 | I108: 2018-10-27 | J108: =IF(AND(H108>='A - Contractor Summary'!$C$36,I108<='A - Contractor Summary'!$C$42),"Yes","No") -> No | K108: =VLOOKUP($D108,'C.1 - Rate Sheets'!B:I,2,FALSE) -> 48.5 | L108: =VLOOKUP($D108,'C.1 - Rate Sheets'!B:I,3,FALSE) -> 65.5 | M108: =VLOOKUP($D108,'C.1 - Rate Sheets'!B:I,4,FALSE) -> 77.6 | N108: =VLOOKUP($D108,'C.1 - Rate Sheets'!B:I,5,FALSE) -> 0 | S108: 0 | X108: 0 | Y108: 40 | Z108: 56 | AA108: 16 | AC108: 112 | AH108: 0 | AM108: 0 | AS108: 40 | AT108: 56 | AU108: 16 | AV108: 0 | AW108: 112 | AX108: 1940 | AY108: 3668 | AZ108: 1241.6 | BA108: 0 | BB108: 6849.6 | BC108: =BB108-BE108 -> 6849.6 | BD108: Yes | BE108: 0 | BF108: 0 | BG108: 0 | BH108: 3
B109: 71 | C109: Colton Johnson | D109: Ground Person | E109: Vendor No 6 | F109: Wyett | G109: 913231713 | H109: 2018-10-21 | I109: 2018-10-25 | J109: =IF(AND(H109>='A - Contractor Summary'!$C$36,I109<='A - Contractor Summary'!$C$42),"Yes","No") -> No | K109: =VLOOKUP($D109,'C.1 - Rate Sheets'!B:I,2,FALSE) -> 40 | L109: =VLOOKUP($D109,'C.1 - Rate Sheets'!B:I,3,FALSE) -> 54 | M109: =VLOOKUP($D109,'C.1 - Rate Sheets'!B:I,4,FALSE) -> 64 | N109: =VLOOKUP($D109,'C.1 - Rate Sheets'!B:I,5,FALSE) -> 0 | S109: 0 | X109: 0 | Y109: 40 | Z109: 24 | AA109: 16 | AC109: 80 | AH109: 0 | AM109: 0 | AS109: =SUM(O109,T109,Y109,AD109,AI109,AN109) -> 40 | AT109: =SUM(P109,U109,Z109,AE109,AJ109,AO109) -> 24 | AU109: =SUM(Q109,V109,AA109,AF109,AK109,AP109) -> 16 | AV109: =SUM(R109,W109,AB109,AG109,AL109,AQ109) -> 0 | AW109: =SUM(AS109:AV109) -> 80 | AX109: 1600 | AY109: 1296 | AZ109: 1024 | BA109: 0 | BB109: 3920 | BC109: 3920 | BD109: Yes | BE109: 0 | BF109: 0 | BG109: 0 | BH109: 3
B110: 72 | C110: Gary Williams | D110: Crew Foreman | E110: Vendor No 6 | F110: Williams | G110: 913231714 | H110: 2018-10-21 | I110: 2018-10-27 | J110: =IF(AND(H110>='A - Contractor Summary'!$C$36,I110<='A - Contractor Summary'!$C$42),"Yes","No") -> No | K110: =VLOOKUP($D110,'C.1 - Rate Sheets'!B:I,2,FALSE) -> 56.8 | L110: =VLOOKUP($D110,'C.1 - Rate Sheets'!B:I,3,FALSE) -> 76.7 | M110: =VLOOKUP($D110,'C.1 - Rate Sheets'!B:I,4,FALSE) -> 90.9 | N110: =VLOOKUP($D110,'C.1 - Rate Sheets'!B:I,5,FALSE) -> 0 | S110: 0 | X110: 0 | Y110: 40 | Z110: 56 | AA110: 16 | AC110: 112 | AH110: 0 | AM110: 0 | AS110: 40 | AT110: 56 | AU110: 16 | AV110: 0 | AW110: 112 | AX110: 2272 | AY110: 4295.2 | AZ110: 1454.4 | BA110: 0 | BB110: 8021.6 | BC110: 8021.6 | BD110: Yes | BE110: 0 | BF110: 0 | BG110: 0 | BH110: 3
B111: 73 | C111: Johnathan Swinson | D111: Tree Trimmer | E111: Vendor No 6 | F111: Williams | G111: 913231714 | H111: 2018-10-21 | I111: 2018-10-27 | J111: =IF(AND(H111>='A - Contractor Summary'!$C$36,I111<='A - Contractor Summary'!$C$42),"Yes","No") -> No | K111: =VLOOKUP($D111,'C.1 - Rate Sheets'!B:I,2,FALSE) -> 48.5 | L111: =VLOOKUP($D111,'C.1 - Rate Sheets'!B:I,3,FALSE) -> 65.5 | M111: =VLOOKUP($D111,'C.1 - Rate Sheets'!B:I,4,FALSE) -> 77.6 | N111: =VLOOKUP($D111,'C.1 - Rate Sheets'!B:I,5,FALSE) -> 0 | S111: 0 | X111: 0 | Y111: 40 | Z111: 56 | AA111: 16 | AC111: 112 | AH111: 0 | AM111: 0 | AS111: 40 | AT111: 56 | AU111: 16 | AV111: 0 | AW111: 112 | AX111: 1940 | AY111: 3668 | AZ111: 1241.6 | BA111: 0 | BB111: 6849.6 | BC111: 6849.6 | BD111: Yes | BE111: 0 | BF111: 0 | BG111: 0 | BH111: 3
B112: 74 | C112: Jeremish Roberts | D112: Ground Person | E112: Vendor No 6 | F112: Williams | G112: 913231714 | H112: 2018-10-21 | I112: 2018-10-27 | J112: =IF(AND(H112>='A - Contractor Summary'!$C$36,I112<='A - Contractor Summary'!$C$42),"Yes","No") -> No | K112: =VLOOKUP($D112,'C.1 - Rate Sheets'!B:I,2,FALSE) -> 40 | L112: =VLOOKUP($D112,'C.1 - Rate Sheets'!B:I,3,FALSE) -> 54 | M112: =VLOOKUP($D112,'C.1 - Rate Sheets'!B:I,4,FALSE) -> 64 | N112: =VLOOKUP($D112,'C.1 - Rate Sheets'!B:I,5,FALSE) -> 0 | S112: 0 | X112: 0 | Y112: 40 | Z112: 56 | AA112: 16 | AC112: 112 | AH112: 0 | AM112: 0 | AS112: 40 | AT112: 56 | AU112: 16 | AV112: 0 | AW112: 112 | AX112: 1600 | AY112: 3024 | AZ112: 1024 | BA112: 0 | BB112: 5648 | BC112: 5648 | BD112: Yes | BE112: 0 | BF112: 0 | BG112: 0 | BH112: 3
B113: 75 | C113: Scott Duvall | D113: Crew Foreman | E113: Vendor No 6 | F113: Duvall | G113: 913231715 | H113: 2018-10-21 | I113: 2018-10-27 | J113: =IF(AND(H113>='A - Contractor Summary'!$C$36,I113<='A - Contractor Summary'!$C$42),"Yes","No") -> No | K113: =VLOOKUP($D113,'C.1 - Rate Sheets'!B:I,2,FALSE) -> 56.8 | L113: =VLOOKUP($D113,'C.1 - Rate Sheets'!B:I,3,FALSE) -> 76.7 | M113: =VLOOKUP($D113,'C.1 - Rate Sheets'!B:I,4,FALSE) -> 90.9 | N113: =VLOOKUP($D113,'C.1 - Rate Sheets'!B:I,5,FALSE) -> 0 | S113: 0 | X113: 0 | Y113: 40 | Z113: 56 | AA113: 16 | AC113: 112 | AH113: 0 | AM113: 0 | AS113: 40 | AT113: 56 | AU113: 16 | AV113: 0 | AW113: 112 | AX113: 2272 | AY113: 4295.2 | AZ113: 1454.4 | BA113: 0 | BB113: 8021.6 | BC113: 8021.6 | BD113: Yes | BE113: 0 | BF113: 0 | BG113: 0 | BH113: 3
B114: 76 | C114: Jaron Weldon | D114: Tree Trimmer | E114: Vendor No 6 | F114: Duvall | G114: 913231715 | H114: 2018-10-21 | I114: 2018-10-27 | J114: =IF(AND(H114>='A - Contractor Summary'!$C$36,I114<='A - Contractor Summary'!$C$42),"Yes","No") -> No | K114: =VLOOKUP($D114,'C.1 - Rate Sheets'!B:I,2,FALSE) -> 48.5 | L114: =VLOOKUP($D114,'C.1 - Rate Sheets'!B:I,3,FALSE) -> 65.5 | M114: =VLOOKUP($D114,'C.1 - Rate Sheets'!B:I,4,FALSE) -> 77.6 | N114: =VLOOKUP($D114,'C.1 - Rate Sheets'!B:I,5,FALSE) -> 0 | S114: 0 | X114: 0 | Y114: 40 | Z114: 56 | AA114: 16 | AC114: 112 | AH114: 0 | AM114: 0 | AS114: 40 | AT114: 56 | AU114: 16 | AV114: 0 | AW114: 112 | AX114: 1940 | AY114: 3668 | AZ114: 1241.6 | BA114: 0 | BB114: 6849.6 | BC114: 6849.6 | BD114: Yes | BE114: 0 | BF114: 0 | BG114: 0 | BH114: 3
B115: 77 | C115: Devin Brinson | D115: Ground Person | E115: Vendor No 6 | F115: Duvall | G115: 913231715 | H115: 2018-10-21 | I115: 2018-10-27 | J115: =IF(AND(H115>='A - Contractor Summary'!$C$36,I115<='A - Contractor Summary'!$C$42),"Yes","No") -> No | K115: =VLOOKUP($D115,'C.1 - Rate Sheets'!B:I,2,FALSE) -> 40 | L115: =VLOOKUP($D115,'C.1 - Rate Sheets'!B:I,3,FALSE) -> 54 | M115: =VLOOKUP($D115,'C.1 - Rate Sheets'!B:I,4,FALSE) -> 64 | N115: =VLOOKUP($D115,'C.1 - Rate Sheets'!B:I,5,FALSE) -> 0 | S115: 0 | X115: 0 | Y115: 40 | Z115: 56 | AA115: 16 | AC115: 112 | AH115: 0 | AM115: 0 | AS115: 40 | AT115: 56 | AU115: 16 | AV115: 0 | AW115: 112 | AX115: 1600 | AY115: 3024 | AZ115: 1024 | BA115: 0 | BB115: 5648 | BC115: 5648 | BD115: Yes | BE115: 0 | BF115: 0 | BG115: 0 | BH115: 3
B116: 78 | C116: William Dodson | D116: Crew Foreman | E116: Vendor No 6 | F116: Dodson | G116: 913231720 | H116: 2018-10-21 | I116: 2018-10-27 | J116: =IF(AND(H116>='A - Contractor Summary'!$C$36,I116<='A - Contractor Summary'!$C$42),"Yes","No") -> No | K116: =VLOOKUP($D116,'C.1 - Rate Sheets'!B:I,2,FALSE) -> 56.8 | L116: =VLOOKUP($D116,'C.1 - Rate Sheets'!B:I,3,FALSE) -> 76.7 | M116: =VLOOKUP($D116,'C.1 - Rate Sheets'!B:I,4,FALSE) -> 90.9 | N116: =VLOOKUP($D116,'C.1 - Rate Sheets'!B:I,5,FALSE) -> 0 | S116: 0 | X116: 0 | Y116: 40 | Z116: 56 | AA116: 16 | AC116: 112 | AH116: 0 | AM116: 0 | AS116: 40 | AT116: 56 | AU116: 16 | AV116: 0 | AW116: 112 | AX116: 2272 | AY116: 4295.2 | AZ116: 1454.4 | BA116: 0 | BB116: 8021.6 | BC116: 8021.6 | BD116: Yes | BE116: 0 | BF116: 0 | BG116: 0 | BH116: 3
B117: 79 | C117: Justin Murphy | D117: Tree Trimmer | E117: Vendor No 6 | F117: Dodson | G117: 913231720 | H117: 2018-10-21 | I117: 2018-10-27 | J117: =IF(AND(H117>='A - Contractor Summary'!$C$36,I117<='A - Contractor Summary'!$C$42),"Yes","No") -> No | K117: =VLOOKUP($D117,'C.1 - Rate Sheets'!B:I,2,FALSE) -> 48.5 | L117: =VLOOKUP($D117,'C.1 - Rate Sheets'!B:I,3,FALSE) -> 65.5 | M117: =VLOOKUP($D117,'C.1 - Rate Sheets'!B:I,4,FALSE) -> 77.6 | N117: =VLOOKUP($D117,'C.1 - Rate Sheets'!B:I,5,FALSE) -> 0 | S117: 0 | X117: 0 | Y117: 40 | Z117: 56 | AA117: 16 | AC117: 112 | AH117: 0 | AM117: 0 | AS117: 40 | AT117: 56 | AU117: 16 | AV117: 0 | AW117: 112 | AX117: 1940 | AY117: 3668 | AZ117: 1241.6 | BA117: 0 | BB117: 6849.6 | BC117: 6849.6 | BD117: Yes | BE117: 0 | BF117: 0 | BG117: 0 | BH117: 3
B118: 80 | C118: Nikos Hurt | D118: Ground Person | E118: Vendor No 6 | F118: Dodson | G118: 913231720 | H118: 2018-10-21 | I118: 2018-10-27 | J118: =IF(AND(H118>='A - Contractor Summary'!$C$36,I118<='A - Contractor Summary'!$C$42),"Yes","No") -> No | K118: =VLOOKUP($D118,'C.1 - Rate Sheets'!B:I,2,FALSE) -> 40 | L118: =VLOOKUP($D118,'C.1 - Rate Sheets'!B:I,3,FALSE) -> 54 | M118: =VLOOKUP($D118,'C.1 - Rate Sheets'!B:I,4,FALSE) -> 64 | N118: =VLOOKUP($D118,'C.1 - Rate Sheets'!B:I,5,FALSE) -> 0 | S118: 0 | X118: 0 | Y118: 40 | Z118: 56 | AA118: 16 | AC118: 112 | AH118: 0 | AM118: 0 | AS118: 40 | AT118: 56 | AU118: 16 | AV118: 0 | AW118: 112 | AX118: 1600 | AY118: 3024 | AZ118: 1024 | BA118: 0 | BB118: 5648 | BC118: 5648 | BD118: Yes | BE118: 0 | BF118: 0 | BG118: 0 | BH118: 3
B119: 81 | C119: William Gray | D119: Supervisor | E119: Vendor No 6 | F119: Gray | G119: 913231722 | H119: 2018-10-21 | I119: 2018-10-27 | J119: =IF(AND(H119>='A - Contractor Summary'!$C$36,I119<='A - Contractor Summary'!$C$42),"Yes","No") -> No | K119: =VLOOKUP($D119,'C.1 - Rate Sheets'!B:I,2,FALSE) -> 74 | L119: =VLOOKUP($D119,'C.1 - Rate Sheets'!B:I,3,FALSE) -> 99.9 | M119: =VLOOKUP($D119,'C.1 - Rate Sheets'!B:I,4,FALSE) -> 118.4 | N119: =VLOOKUP($D119,'C.1 - Rate Sheets'!B:I,5,FALSE) -> 0 | S119: 0 | X119: 0 | Y119: 40 | Z119: 56 | AA119: 16 | AC119: 112 | AH119: 0 | AM119: 0 | AS119: 40 | AT119: 56 | AU119: 16 | AV119: 0 | AW119: 112 | AX119: 2960 | AY119: 5594.4 | AZ119: 1894.4 | BA119: 0 | BB119: 10448.8 | BC119: 10448.8 | BD119: Yes | BE119: 0 | BF119: 0 | BG119: 0 | BH119: 3
B120: 82 | C120: Michael Bowers | D120: Supervisor | E120: Vendor No 6 | F120: Bowers | G120: 913231735 | H120: 2018-10-21 | I120: 2018-10-27 | J120: =IF(AND(H120>='A - Contractor Summary'!$C$36,I120<='A - Contractor Summary'!$C$42),"Yes","No") -> No | K120: =VLOOKUP($D120,'C.1 - Rate Sheets'!B:I,2,FALSE) -> 74 | L120: =VLOOKUP($D120,'C.1 - Rate Sheets'!B:I,3,FALSE) -> 99.9 | M120: =VLOOKUP($D120,'C.1 - Rate Sheets'!B:I,4,FALSE) -> 118.4 | N120: =VLOOKUP($D120,'C.1 - Rate Sheets'!B:I,5,FALSE) -> 0 | S120: 0 | X120: 0 | Y120: 40 | Z120: 56 | AA120: 16 | AC120: 112 | AH120: 0 | AM120: 0 | AS120: 40 | AT120: 56 | AU120: 16 | AV120: 0 | AW120: 112 | AX120: 2960 | AY120: 5594.4 | AZ120: 1894.4 | BA120: 0 | BB120: 10448.8 | BC120: 10448.8 | BD120: Yes | BE120: 0 | BF120: 0 | BG120: 0 | BH120: 3
B121: 83 | C121: Terry Herley | D121: Crew Foreman | E121: Vendor No 6 | F121: Harley | G121: 913231736 | H121: 2018-10-21 | I121: 2018-10-27 | J121: =IF(AND(H121>='A - Contractor Summary'!$C$36,I121<='A - Contractor Summary'!$C$42),"Yes","No") -> No | K121: =VLOOKUP($D121,'C.1 - Rate Sheets'!B:I,2,FALSE) -> 56.8 | L121: =VLOOKUP($D121,'C.1 - Rate Sheets'!B:I,3,FALSE) -> 76.7 | M121: =VLOOKUP($D121,'C.1 - Rate Sheets'!B:I,4,FALSE) -> 90.9 | N121: =VLOOKUP($D121,'C.1 - Rate Sheets'!B:I,5,FALSE) -> 0 | S121: 0 | X121: 0 | Y121: 40 | Z121: 56 | AA121: 16 | AC121: 112 | AH121: 0 | AM121: 0 | AS121: 40 | AT121: 56 | AU121: 16 | AV121: 0 | AW121: 112 | AX121: 2272 | AY121: 4295.2 | AZ121: 1454.4 | BA121: 0 | BB121: 8021.6 | BC121: 8021.6 | BD121: Yes | BE121: 0 | BF121: 0 | BG121: 0 | BH121: 3
B122: 84 | C122: Edgar Flores | D122: Tree Trimmer | E122: Vendor No 6 | F122: Harley | G122: 913231736 | H122: 2018-10-21 | I122: 2018-10-27 | J122: =IF(AND(H122>='A - Contractor Summary'!$C$36,I122<='A - Contractor Summary'!$C$42),"Yes","No") -> No | K122: =VLOOKUP($D122,'C.1 - Rate Sheets'!B:I,2,FALSE) -> 48.5 | L122: =VLOOKUP($D122,'C.1 - Rate Sheets'!B:I,3,FALSE) -> 65.5 | M122: =VLOOKUP($D122,'C.1 - Rate Sheets'!B:I,4,FALSE) -> 77.6 | N122: =VLOOKUP($D122,'C.1 - Rate Sheets'!B:I,5,FALSE) -> 0 | S122: 0 | X122: 0 | Y122: 40 | Z122: 56 | AA122: 16 | AC122: 112 | AH122: 0 | AM122: 0 | AS122: 40 | AT122: 56 | AU122: 16 | AV122: 0 | AW122: 112 | AX122: 1940 | AY122: 3668 | AZ122: 1241.6 | BA122: 0 | BB122: 6849.6 | BC122: 6849.6 | BD122: Yes | BE122: 0 | BF122: 0 | BG122: 0 | BH122: 3
B123: 85 | C123: Gutierrez, Jose | D123: Crew Foreman | E123: Vendor No 6 | F123: Guitierrez | G123: 913231737 | H123: 2018-10-21 | I123: 2018-10-27 | J123: =IF(AND(H123>='A - Contractor Summary'!$C$36,I123<='A - Contractor Summary'!$C$42),"Yes","No") -> No | K123: =VLOOKUP($D123,'C.1 - Rate Sheets'!B:I,2,FALSE) -> 56.8 | L123: =VLOOKUP($D123,'C.1 - Rate Sheets'!B:I,3,FALSE) -> 76.7 | M123: =VLOOKUP($D123,'C.1 - Rate Sheets'!B:I,4,FALSE) -> 90.9 | N123: =VLOOKUP($D123,'C.1 - Rate Sheets'!B:I,5,FALSE) -> 0 | S123: 0 | X123: 0 | Y123: 40 | Z123: 56 | AA123: 16 | AC123: 112 | AH123: 0 | AM123: 0 | AS123: 40 | AT123: 56 | AU123: 16 | AV123: 0 | AW123: 112 | AX123: 2272 | AY123: 4295.2 | AZ123: 1454.4 | BA123: 0 | BB123: 8021.6 | BC123: 8021.6 | BD123: Yes | BE123: 0 | BF123: 0 | BG123: 0
B124: 86 | C124: Lara, Victor | D124: Tree Trimmer | E124: Vendor No 6 | F124: Guitierrez | G124: 913231737 | H124: 2018-10-21 | I124: 2018-10-27 | J124: =IF(AND(H124>='A - Contractor Summary'!$C$36,I124<='A - Contractor Summary'!$C$42),"Yes","No") -> No | K124: =VLOOKUP($D124,'C.1 - Rate Sheets'!B:I,2,FALSE) -> 48.5 | L124: =VLOOKUP($D124,'C.1 - Rate Sheets'!B:I,3,FALSE) -> 65.5 | M124: =VLOOKUP($D124,'C.1 - Rate Sheets'!B:I,4,FALSE) -> 77.6 | N124: =VLOOKUP($D124,'C.1 - Rate Sheets'!B:I,5,FALSE) -> 0 | S124: 0 | X124: 0 | Y124: 40 | Z124: 56 | AA124: 16 | AC124: 112 | AH124: 0 | AM124: 0 | AS124: 40 | AT124: 56 | AU124: 16 | AV124: 0 | AW124: 112 | AX124: 1940 | AY124: 3668 | AZ124: 1241.6 | BA124: 0 | BB124: 6849.6 | BC124: 6849.6 | BD124: Yes | BE124: 0 | BF124: 0 | BG124: 0
B125: 86 | C125: Jesus Jimenez | D125: Tree Trimmer | E125: Vendor No 6 | F125: Guitierrez | G125: 913231737 | H125: 2018-10-21 | I125: 2018-10-27 | J125: =IF(AND(H125>='A - Contractor Summary'!$C$36,I125<='A - Contractor Summary'!$C$42),"Yes","No") -> No | K125: =VLOOKUP($D125,'C.1 - Rate Sheets'!B:I,2,FALSE) -> 48.5 | L125: =VLOOKUP($D125,'C.1 - Rate Sheets'!B:I,3,FALSE) -> 65.5 | M125: =VLOOKUP($D125,'C.1 - Rate Sheets'!B:I,4,FALSE) -> 77.6 | N125: =VLOOKUP($D125,'C.1 - Rate Sheets'!B:I,5,FALSE) -> 0 | S125: =SUM(O125:R125) -> 0 | X125: =SUM(T125:W125) -> 0 | Y125: 40 | Z125: 56 | AA125: 16 | AC125: =SUM(Y125:AB125) -> 112 | AH125: =SUM(AD125:AG125) -> 0 | AM125: =SUM(AI125:AL125) -> 0 | AS125: =SUM(O125,T125,Y125,AD125,AI125,AN125) -> 40 | AT125: =SUM(P125,U125,Z125,AE125,AJ125,AO125) -> 56 | AU125: =SUM(Q125,V125,AA125,AF125,AK125,AP125) -> 16 | AV125: =SUM(R125,W125,AB125,AG125,AL125,AQ125) -> 0 | AW125: =SUM(AS125:AV125) -> 112 | AX125: =AS125*K125 -> 1940 | AY125: =AT125*L125 -> 3668 | AZ125: =AU125*M125 -> 1241.6 | BA125: =AV125*N125 -> 0 | BB125: =SUM(AX125:BA125) -> 6849.6 | BC125: =BB125-BE125 -> 6849.6 | BD125: Yes | BE125: 0 | BF125: 0 | BG125: 0
B126: 86 | C126: Andres Tapia | D126: Tree Trimmer | E126: Vendor No 6 | F126: Guitierrez | G126: 913231737 | H126: 2018-10-21 | I126: 2018-10-27 | J126: =IF(AND(H126>='A - Contractor Summary'!$C$36,I126<='A - Contractor Summary'!$C$42),"Yes","No") -> No | K126: =VLOOKUP($D126,'C.1 - Rate Sheets'!B:I,2,FALSE) -> 48.5 | L126: =VLOOKUP($D126,'C.1 - Rate Sheets'!B:I,3,FALSE) -> 65.5 | M126: =VLOOKUP($D126,'C.1 - Rate Sheets'!B:I,4,FALSE) -> 77.6 | N126: =VLOOKUP($D126,'C.1 - Rate Sheets'!B:I,5,FALSE) -> 0 | S126: 0 | X126: 0 | Y126: 40 | Z126: 56 | AA126: 16 | AC126: 112 | AH126: 0 | AM126: 0 | AS126: 40 | AT126: 56 | AU126: 16 | AV126: 0 | AW126: 112 | AX126: 1940 | AY126: 3668 | AZ126: 1241.6 | BA126: 0 | BB126: 6849.6 | BC126: 6849.6 | BD126: Yes | BE126: 0 | BF126: 0 | BG126: 0
B127: 87 | C127: Dustin Woodward | D127: Crew Foreman | E127: Vendor No 6 | F127: Woodward | G127: 913231738 | H127: 2018-10-21 | I127: 2018-10-27 | J127: =IF(AND(H127>='A - Contractor Summary'!$C$36,I127<='A - Contractor Summary'!$C$42),"Yes","No") -> No | K127: =VLOOKUP($D127,'C.1 - Rate Sheets'!B:I,2,FALSE) -> 56.8 | L127: =VLOOKUP($D127,'C.1 - Rate Sheets'!B:I,3,FALSE) -> 76.7 | M127: =VLOOKUP($D127,'C.1 - Rate Sheets'!B:I,4,FALSE) -> 90.9 | N127: =VLOOKUP($D127,'C.1 - Rate Sheets'!B:I,5,FALSE) -> 0 | S127: 0 | X127: 0 | Y127: 40 | Z127: 56 | AA127: 16 | AC127: 112 | AH127: 0 | AM127: 0 | AS127: 40 | AT127: 56 | AU127: 16 | AV127: 0 | AW127: 112 | AX127: 2272 | AY127: 4295.2 | AZ127: 1454.4 | BA127: 0 | BB127: 8021.6 | BC127: 8021.6 | BD127: Yes | BE127: 0 | BF127: 0 | BG127: 0
B128: 88 | C128: Rubelsy Perez | D128: Tree Trimmer | E128: Vendor No 6 | F128: Woodward | G128: 913231738 | H128: 2018-10-21 | I128: 2018-10-27 | J128: =IF(AND(H128>='A - Contractor Summary'!$C$36,I128<='A - Contractor Summary'!$C$42),"Yes","No") -> No | K128: =VLOOKUP($D128,'C.1 - Rate Sheets'!B:I,2,FALSE) -> 48.5 | L128: =VLOOKUP($D128,'C.1 - Rate Sheets'!B:I,3,FALSE) -> 65.5 | M128: =VLOOKUP($D128,'C.1 - Rate Sheets'!B:I,4,FALSE) -> 77.6 | N128: =VLOOKUP($D128,'C.1 - Rate Sheets'!B:I,5,FALSE) -> 0 | S128: 0 | X128: 0 | Y128: 40 | Z128: 56 | AA128: 16 | AC128: 112 | AH128: 0 | AM128: 0 | AS128: 40 | AT128: 56 | AU128: 16 | AV128: 0 | AW128: 112 | AX128: 1940 | AY128: 3668 | AZ128: 1241.6 | BA128: 0 | BB128: 6849.6 | BC128: 6849.6 | BD128: Yes | BE128: 0 | BF128: 0 | BG128: 0
B129: 89 | C129: Chris Scott | D129: Supervisor | E129: Vendor No 6 | F129: Scott | G129: 913231739 | H129: 2018-10-26 | I129: 2018-10-27 | J129: =IF(AND(H129>='A - Contractor Summary'!$C$36,I129<='A - Contractor Summary'!$C$42),"Yes","No") -> No | K129: =VLOOKUP($D129,'C.1 - Rate Sheets'!B:I,2,FALSE) -> 74 | L129: =VLOOKUP($D129,'C.1 - Rate Sheets'!B:I,3,FALSE) -> 99.9 | M129: =VLOOKUP($D129,'C.1 - Rate Sheets'!B:I,4,FALSE) -> 118.4 | N129: =VLOOKUP($D129,'C.1 - Rate Sheets'!B:I,5,FALSE) -> 0 | S129: 0 | X129: 0 | Y129: 8 | Z129: 24 | AC129: 32 | AH129: 0 | AM129: 0 | AS129: 8 | AT129: 24 | AU129: 0 | AV129: 0 | AW129: 32 | AX129: 592 | AY129: 2397.6 | AZ129: 0 | BA129: 0 | BB129: 2989.6 | BC129: 2989.6 | BD129: Yes | BE129: 0 | BF129: 0 | BG129: 0
B130: 90 | C130: Bobby Wright | D130: Crew Foreman | E130: Vendor No 6 | F130: Wright | G130: 913231740 | H130: 2018-10-26 | I130: 2018-10-27 | J130: =IF(AND(H130>='A - Contractor Summary'!$C$36,I130<='A - Contractor Summary'!$C$42),"Yes","No") -> No | K130: =VLOOKUP($D130,'C.1 - Rate Sheets'!B:I,2,FALSE) -> 56.8 | L130: =VLOOKUP($D130,'C.1 - Rate Sheets'!B:I,3,FALSE) -> 76.7 | M130: =VLOOKUP($D130,'C.1 - Rate Sheets'!B:I,4,FALSE) -> 90.9 | N130: =VLOOKUP($D130,'C.1 - Rate Sheets'!B:I,5,FALSE) -> 0 | S130: 0 | X130: 0 | Y130: 8 | Z130: 24 | AC130: 32 | AH130: 0 | AM130: 0 | AS130: 8 | AT130: 24 | AU130: 0 | AV130: 0 | AW130: 32 | AX130: 454.4 | AY130: 1840.8 | AZ130: 0 | BA130: 0 | BB130: 2295.2 | BC130: 2295.2 | BD130: Yes | BE130: 0 | BF130: 0 | BG130: 0
B131: 91 | C131: Dean Cannady | D131: Crew Foreman | E131: Vendor No 6 | F131: Cannady | G131: 913231741 | H131: 2018-10-26 | I131: 2018-10-27 | J131: =IF(AND(H131>='A - Contractor Summary'!$C$36,I131<='A - Contractor Summary'!$C$42),"Yes","No") -> No | K131: =VLOOKUP($D131,'C.1 - Rate Sheets'!B:I,2,FALSE) -> 56.8 | L131: =VLOOKUP($D131,'C.1 - Rate Sheets'!B:I,3,FALSE) -> 76.7 | M131: =VLOOKUP($D131,'C.1 - Rate Sheets'!B:I,4,FALSE) -> 90.9 | N131: =VLOOKUP($D131,'C.1 - Rate Sheets'!B:I,5,FALSE) -> 0 | S131: 0 | X131: 0 | Y131: 8 | Z131: 24 | AC131: 32 | AH131: 0 | AM131: 0 | AS131: 8 | AT131: 24 | AU131: 0 | AV131: 0 | AW131: 32 | AX131: 454.4 | AY131: 1840.8 | AZ131: 0 | BA131: 0 | BB131: 2295.2 | BC131: 2295.2 | BD131: Yes | BE131: 0 | BF131: 0 | BG131: 0
B132: 92 | C132: Phillip Russ | D132: Tree Trimmer | E132: Vendor No 6 | F132: Cannady | G132: 913231741 | H132: 2018-10-26 | I132: 2018-10-27 | J132: =IF(AND(H132>='A - Contractor Summary'!$C$36,I132<='A - Contractor Summary'!$C$42),"Yes","No") -> No | K132: =VLOOKUP($D132,'C.1 - Rate Sheets'!B:I,2,FALSE) -> 48.5 | L132: =VLOOKUP($D132,'C.1 - Rate Sheets'!B:I,3,FALSE) -> 65.5 | M132: =VLOOKUP($D132,'C.1 - Rate Sheets'!B:I,4,FALSE) -> 77.6 | N132: =VLOOKUP($D132,'C.1 - Rate Sheets'!B:I,5,FALSE) -> 0 | S132: =SUM(O132:R132) -> 0 | X132: =SUM(T132:W132) -> 0 | Y132: 8 | Z132: 24 | AC132: =SUM(Y132:AB132) -> 32 | AH132: =SUM(AD132:AG132) -> 0 | AM132: =SUM(AI132:AL132) -> 0 | AS132: =SUM(O132,T132,Y132,AD132,AI132,AN132) -> 8 | AT132: =SUM(P132,U132,Z132,AE132,AJ132,AO132) -> 24 | AU132: =SUM(Q132,V132,AA132,AF132,AK132,AP132) -> 0 | AV132: =SUM(R132,W132,AB132,AG132,AL132,AQ132) -> 0 | AW132: =SUM(AS132:AV132) -> 32 | AX132: =AS132*K132 -> 388 | AY132: =AT132*L132 -> 1572 | AZ132: =AU132*M132 -> 0 | BA132: =AV132*N132 -> 0 | BB132: =SUM(AX132:BA132) -> 1960 | BC132: =BB132-BE132 -> 1960 | BD132: Yes | BE132: 0 | BF132: 0 | BG132: 0
B133: 92 | C133: Lewis Sims | D133: Tree Trimmer | E133: Vendor No 6 | F133: Cannady | G133: 913231741 | H133: 2018-10-26 | I133: 2018-10-27 | J133: =IF(AND(H133>='A - Contractor Summary'!$C$36,I133<='A - Contractor Summary'!$C$42),"Yes","No") -> No | K133: =VLOOKUP($D133,'C.1 - Rate Sheets'!B:I,2,FALSE) -> 48.5 | L133: =VLOOKUP($D133,'C.1 - Rate Sheets'!B:I,3,FALSE) -> 65.5 | M133: =VLOOKUP($D133,'C.1 - Rate Sheets'!B:I,4,FALSE) -> 77.6 | N133: =VLOOKUP($D133,'C.1 - Rate Sheets'!B:I,5,FALSE) -> 0 | S133: 0 | X133: 0 | Y133: 8 | Z133: 24 | AC133: 32 | AH133: 0 | AM133: 0 | AS133: 8 | AT133: 24 | AU133: 0 | AV133: 0 | AW133: 32 | AX133: 388 | AY133: 1572 | AZ133: 0 | BA133: 0 | BB133: 1960 | BC133: 1960 | BD133: Yes | BE133: 0 | BF133: 0 | BG133: 0
B134: 93 | C134: Justin Massey | D134: Tree Trimmer | E134: Vendor No 6 | F134: Massey | G134: 913231743 | H134: 2018-10-26 | I134: 2018-10-27 | J134: =IF(AND(H134>='A - Contractor Summary'!$C$36,I134<='A - Contractor Summary'!$C$42),"Yes","No") -> No | K134: =VLOOKUP($D134,'C.1 - Rate Sheets'!B:I,2,FALSE) -> 48.5 | L134: =VLOOKUP($D134,'C.1 - Rate Sheets'!B:I,3,FALSE) -> 65.5 | M134: =VLOOKUP($D134,'C.1 - Rate Sheets'!B:I,4,FALSE) -> 77.6 | N134: =VLOOKUP($D134,'C.1 - Rate Sheets'!B:I,5,FALSE) -> 0 | S134: 0 | X134: 0 | Y134: 8 | Z134: 24 | AC134: 32 | AH134: 0 | AM134: 0 | AS134: 8 | AT134: 24 | AU134: 0 | AV134: 0 | AW134: 32 | AX134: 388 | AY134: 1572 | AZ134: 0 | BA134: 0 | BB134: 1960 | BC134: 1960 | BD134: Yes | BE134: 0 | BF134: 0 | BG134: 0
B135: 94 | C135: Chase Cain | D135: Crew Foreman | E135: Vendor No 6 | F135: Cain | G135: 913243107 | H135: 2018-10-26 | I135: 2018-10-27 | J135: =IF(AND(H135>='A - Contractor Summary'!$C$36,I135<='A - Contractor Summary'!$C$42),"Yes","No") -> No | K135: =VLOOKUP($D135,'C.1 - Rate Sheets'!B:I,2,FALSE) -> 56.8 | L135: =VLOOKUP($D135,'C.1 - Rate Sheets'!B:I,3,FALSE) -> 76.7 | M135: =VLOOKUP($D135,'C.1 - Rate Sheets'!B:I,4,FALSE) -> 90.9 | N135: =VLOOKUP($D135,'C.1 - Rate Sheets'!B:I,5,FALSE) -> 0 | S135: 0 | X135: 0 | Y135: 8 | Z135: 24 | AC135: 32 | AH135: 0 | AM135: 0 | AS135: 8 | AT135: 24 | AU135: 0 | AV135: 0 | AW135: 32 | AX135: 454.4 | AY135: 1840.8 | AZ135: 0 | BA135: 0 | BB135: 2295.2 | BC135: 2295.2 | BD135: Yes | BE135: 0 | BF135: 0 | BG135: 0
B136: 95 | C136: Michael Kohler | D136: Tree Trimmer | E136: Vendor No 6 | F136: Cain | G136: 913243107 | H136: 2018-10-26 | I136: 2018-10-27 | J136: =IF(AND(H136>='A - Contractor Summary'!$C$36,I136<='A - Contractor Summary'!$C$42),"Yes","No") -> No | K136: =VLOOKUP($D136,'C.1 - Rate Sheets'!B:I,2,FALSE) -> 48.5 | L136: =VLOOKUP($D136,'C.1 - Rate Sheets'!B:I,3,FALSE) -> 65.5 | M136: =VLOOKUP($D136,'C.1 - Rate Sheets'!B:I,4,FALSE) -> 77.6 | N136: =VLOOKUP($D136,'C.1 - Rate Sheets'!B:I,5,FALSE) -> 0 | S136: 0 | X136: 0 | Y136: 8 | Z136: 24 | AC136: 32 | AH136: 0 | AM136: 0 | AS136: 8 | AT136: 24 | AU136: 0 | AV136: 0 | AW136: 32 | AX136: 388 | AY136: 1572 | AZ136: 0 | BA136: 0 | BB136: 1960 | BC136: 1960 | BD136: Yes | BE136: 0 | BF136: 0 | BG136: 0
B137: 96 | C137: Martin Kepler | D137: Crew Foreman | E137: Vendor No 6 | F137: Kepler | G137: 913243108 | H137: 2018-10-26 | I137: 2018-10-27 | J137: =IF(AND(H137>='A - Contractor Summary'!$C$36,I137<='A - Contractor Summary'!$C$42),"Yes","No") -> No | K137: =VLOOKUP($D137,'C.1 - Rate Sheets'!B:I,2,FALSE) -> 56.8 | L137: =VLOOKUP($D137,'C.1 - Rate Sheets'!B:I,3,FALSE) -> 76.7 | M137: =VLOOKUP($D137,'C.1 - Rate Sheets'!B:I,4,FALSE) -> 90.9 | N137: =VLOOKUP($D137,'C.1 - Rate Sheets'!B:I,5,FALSE) -> 0 | S137: 0 | X137: 0 | Y137: 8 | Z137: 24 | AC137: 32 | AH137: 0 | AM137: 0 | AS137: 8 | AT137: 24 | AU137: 0 | AV137: 0 | AW137: 32 | AX137: 454.4 | AY137: 1840.8 | AZ137: 0 | BA137: 0 | BB137: 2295.2 | BC137: 2295.2 | BD137: Yes | BE137: 0 | BF137: 0 | BG137: 0
B138: 97 | C138: Omello Manzo | D138: Tree Trimmer | E138: Vendor No 6 | F138: Kepler | G138: 913243108 | H138: 2018-10-26 | I138: 2018-10-27 | J138: =IF(AND(H138>='A - Contractor Summary'!$C$36,I138<='A - Contractor Summary'!$C$42),"Yes","No") -> No | K138: =VLOOKUP($D138,'C.1 - Rate Sheets'!B:I,2,FALSE) -> 48.5 | L138: =VLOOKUP($D138,'C.1 - Rate Sheets'!B:I,3,FALSE) -> 65.5 | M138: =VLOOKUP($D138,'C.1 - Rate Sheets'!B:I,4,FALSE) -> 77.6 | N138: =VLOOKUP($D138,'C.1 - Rate Sheets'!B:I,5,FALSE) -> 0 | S138: 0 | X138: 0 | Y138: 8 | Z138: 24 | AC138: 32 | AH138: 0 | AM138: 0 | AS138: 8 | AT138: 24 | AU138: 0 | AV138: 0 | AW138: 32 | AX138: 388 | AY138: 1572 | AZ138: 0 | BA138: 0 | BB138: 1960 | BC138: 1960 | BD138: Yes | BE138: 0 | BF138: 0 | BG138: 0
B139: 98 | C139: Richard Couret | D139: Crew Foreman | E139: Vendor No 6 | F139: Couret | G139: 913243110 | H139: 2018-10-26 | I139: 2018-10-27 | J139: =IF(AND(H139>='A - Contractor Summary'!$C$36,I139<='A - Contractor Summary'!$C$42),"Yes","No") -> No | K139: =VLOOKUP($D139,'C.1 - Rate Sheets'!B:I,2,FALSE) -> 56.8 | L139: =VLOOKUP($D139,'C.1 - Rate Sheets'!B:I,3,FALSE) -> 76.7 | M139: =VLOOKUP($D139,'C.1 - Rate Sheets'!B:I,4,FALSE) -> 90.9 | N139: =VLOOKUP($D139,'C.1 - Rate Sheets'!B:I,5,FALSE) -> 0 | S139: 0 | X139: 0 | Y139: 8 | Z139: 14 | AC139: 22 | AH139: 0 | AM139: 0 | AS139: 8 | AT139: 14 | AU139: 0 | AV139: 0 | AW139: 22 | AX139: 454.4 | AY139: 1073.8 | AZ139: 0 | BA139: 0 | BB139: 1528.2 | BC139: 1528.2 | BD139: Yes | BE139: 0 | BF139: 0 | BG139: 0 | BH139: 3
B140: 99 | C140: Douglas Brown | D140: Tree Trimmer | E140: Vendor No 6 | F140: Couret | G140: 913243110 | H140: 2018-10-26 | I140: 2018-10-27 | J140: =IF(AND(H140>='A - Contractor Summary'!$C$36,I140<='A - Contractor Summary'!$C$42),"Yes","No") -> No | K140: =VLOOKUP($D140,'C.1 - Rate Sheets'!B:I,2,FALSE) -> 48.5 | L140: =VLOOKUP($D140,'C.1 - Rate Sheets'!B:I,3,FALSE) -> 65.5 | M140: =VLOOKUP($D140,'C.1 - Rate Sheets'!B:I,4,FALSE) -> 77.6 | N140: =VLOOKUP($D140,'C.1 - Rate Sheets'!B:I,5,FALSE) -> 0 | S140: =SUM(O140:R140) -> 0 | X140: =SUM(T140:W140) -> 0 | Y140: 8 | Z140: 20 | AC140: =SUM(Y140:AB140) -> 28 | AH140: =SUM(AD140:AG140) -> 0 | AM140: =SUM(AI140:AL140) -> 0 | AS140: =SUM(O140,T140,Y140,AD140,AI140,AN140) -> 8 | AT140: =SUM(P140,U140,Z140,AE140,AJ140,AO140) -> 20 | AU140: =SUM(Q140,V140,AA140,AF140,AK140,AP140) -> 0 | AV140: =SUM(R140,W140,AB140,AG140,AL140,AQ140) -> 0 | AW140: =SUM(AS140:AV140) -> 28 | AX140: =AS140*K140 -> 388 | AY140: =AT140*L140 -> 1310 | AZ140: =AU140*M140 -> 0 | BA140: =AV140*N140 -> 0 | BB140: =SUM(AX140:BA140) -> 1698 | BC140: =BB140-BE140 -> 1698 | BD140: Yes | BE140: 0 | BF140: 0 | BG140: 0 | BH140: 3
B141: 99 | C141: Scott Wells | D141: Crew Foreman | E141: Vendor No 6 | F141: Couret | G141: 913243110 | H141: 2018-10-26 | I141: 2018-10-27 | J141: =IF(AND(H141>='A - Contractor Summary'!$C$36,I141<='A - Contractor Summary'!$C$42),"Yes","No") -> No | K141: =VLOOKUP($D141,'C.1 - Rate Sheets'!B:I,2,FALSE) -> 56.8 | L141: =VLOOKUP($D141,'C.1 - Rate Sheets'!B:I,3,FALSE) -> 76.7 | M141: =VLOOKUP($D141,'C.1 - Rate Sheets'!B:I,4,FALSE) -> 90.9 | N141: =VLOOKUP($D141,'C.1 - Rate Sheets'!B:I,5,FALSE) -> 0 | S141: 0 | X141: 0 | Y141: 8 | Z141: 14 | AC141: 22 | AH141: 0 | AM141: 0 | AS141: 8 | AT141: 14 | AU141: 0 | AV141: 0 | AW141: 22 | AX141: 454.4 | AY141: 1073.8 | AZ141: 0 | BA141: 0 | BB141: 1528.2 | BC141: 1528.2 | BD141: Yes | BE141: 0 | BF141: 0 | BG141: 0 | BH141: 3
B142: 100 | C142: Korpl, Ryan | D142: Crew Foreman | E142: Vendor No 6 | F142: Korpl | G142: 913243111 | H142: 2018-10-26 | I142: 2018-10-27 | J142: =IF(AND(H142>='A - Contractor Summary'!$C$36,I142<='A - Contractor Summary'!$C$42),"Yes","No") -> No | K142: =VLOOKUP($D142,'C.1 - Rate Sheets'!B:I,2,FALSE) -> 56.8 | L142: =VLOOKUP($D142,'C.1 - Rate Sheets'!B:I,3,FALSE) -> 76.7 | M142: =VLOOKUP($D142,'C.1 - Rate Sheets'!B:I,4,FALSE) -> 90.9 | N142: =VLOOKUP($D142,'C.1 - Rate Sheets'!B:I,5,FALSE) -> 0 | S142: 0 | X142: 0 | Y142: 8 | Z142: 24 | AC142: 32 | AH142: 0 | AM142: 0 | AS142: 8 | AT142: 24 | AU142: 0 | AV142: 0 | AW142: 32 | AX142: 454.4 | AY142: 1840.8 | AZ142: 0 | BA142: 0 | BB142: 2295.2 | BC142: 2295.2 | BD142: Yes | BE142: 0 | BF142: 0 | BG142: 0
B143: 101 | C143: Manullow, Morgan | D143: Tree Trimmer | E143: Vendor No 6 | F143: Korpl | G143: 913243111 | H143: 2018-10-26 | I143: 2018-10-27 | J143: =IF(AND(H143>='A - Contractor Summary'!$C$36,I143<='A - Contractor Summary'!$C$42),"Yes","No") -> No | K143: =VLOOKUP($D143,'C.1 - Rate Sheets'!B:I,2,FALSE) -> 48.5 | L143: =VLOOKUP($D143,'C.1 - Rate Sheets'!B:I,3,FALSE) -> 65.5 | M143: =VLOOKUP($D143,'C.1 - Rate Sheets'!B:I,4,FALSE) -> 77.6 | N143: =VLOOKUP($D143,'C.1 - Rate Sheets'!B:I,5,FALSE) -> 0 | S143: 0 | X143: 0 | Y143: 8 | Z143: 24 | AC143: 32 | AH143: 0 | AM143: 0 | AS143: 8 | AT143: 24 | AU143: 0 | AV143: 0 | AW143: 32 | AX143: 388 | AY143: 1572 | AZ143: 0 | BA143: 0 | BB143: 1960 | BC143: 1960 | BD143: Yes | BE143: 0 | BF143: 0 | BG143: 0
B144: 102 | C144: Mike Zopf | D144: Crew Foreman | E144: Vendor No 6 | F144: Zopf | G144: 913243112 | H144: 2018-10-26 | I144: 2018-10-27 | J144: =IF(AND(H144>='A - Contractor Summary'!$C$36,I144<='A - Contractor Summary'!$C$42),"Yes","No") -> No | K144: =VLOOKUP($D144,'C.1 - Rate Sheets'!B:I,2,FALSE) -> 56.8 | L144: =VLOOKUP($D144,'C.1 - Rate Sheets'!B:I,3,FALSE) -> 76.7 | M144: =VLOOKUP($D144,'C.1 - Rate Sheets'!B:I,4,FALSE) -> 90.9 | N144: =VLOOKUP($D144,'C.1 - Rate Sheets'!B:I,5,FALSE) -> 0 | S144: 0 | X144: 0 | Y144: 8 | Z144: 24 | AC144: 32 | AH144: 0 | AM144: 0 | AS144: 8 | AT144: 24 | AU144: 0 | AV144: 0 | AW144: 32 | AX144: 454.4 | AY144: 1840.8 | AZ144: 0 | BA144: 0 | BB144: 2295.2 | BC144: 2295.2 | BD144: Yes | BE144: 0 | BF144: 0 | BG144: 0
B145: 103 | C145: Patrick Cambell | D145: Ground Person | E145: Vendor No 6 | F145: Zopf | G145: 913243112 | H145: 2018-10-26 | I145: 2018-10-27 | J145: =IF(AND(H145>='A - Contractor Summary'!$C$36,I145<='A - Contractor Summary'!$C$42),"Yes","No") -> No | K145: =VLOOKUP($D145,'C.1 - Rate Sheets'!B:I,2,FALSE) -> 40 | L145: =VLOOKUP($D145,'C.1 - Rate Sheets'!B:I,3,FALSE) -> 54 | M145: =VLOOKUP($D145,'C.1 - Rate Sheets'!B:I,4,FALSE) -> 64 | N145: =VLOOKUP($D145,'C.1 - Rate Sheets'!B:I,5,FALSE) -> 0 | S145: 0 | X145: 0 | Y145: 8 | Z145: 24 | AC145: 32 | AH145: 0 | AM145: 0 | AS145: 8 | AT145: 24 | AU145: 0 | AV145: 0 | AW145: 32 | AX145: 320 | AY145: 1296 | AZ145: 0 | BA145: 0 | BB145: 1616 | BC145: 1616 | BD145: Yes | BE145: 0 | BF145: 0 | BG145: 0
B146: 104 | C146: Chris Schwletterman | D146: Crew Foreman | E146: Vendor No 6 | F146: Schwletterman | G146: 913243113 | H146: 2018-10-26 | I146: 2018-10-27 | J146: =IF(AND(H146>='A - Contractor Summary'!$C$36,I146<='A - Contractor Summary'!$C$42),"Yes","No") -> No | K146: =VLOOKUP($D146,'C.1 - Rate Sheets'!B:I,2,FALSE) -> 56.8 | L146: =VLOOKUP($D146,'C.1 - Rate Sheets'!B:I,3,FALSE) -> 76.7 | M146: =VLOOKUP($D146,'C.1 - Rate Sheets'!B:I,4,FALSE) -> 90.9 | N146: =VLOOKUP($D146,'C.1 - Rate Sheets'!B:I,5,FALSE) -> 0 | S146: 0 | X146: 0 | Z146: 8 | AA146: 24 | AC146: 32 | AH146: 0 | AM146: 0 | AS146: 0 | AT146: 8 | AU146: 24 | AV146: 0 | AW146: 32 | AX146: 0 | AY146: 613.6 | AZ146: 2181.6 | BA146: 0 | BB146: 2795.2 | BC146: 2795.2 | BD146: Yes | BE146: 0 | BF146: 0 | BG146: 0 | BH146: 3
B147: 105 | C147: Asthan Kennedy | D147: Ground Person | E147: Vendor No 6 | F147: Schwletterman | G147: 913243113 | H147: 2018-10-26 | I147: 2018-10-27 | J147: =IF(AND(H147>='A - Contractor Summary'!$C$36,I147<='A - Contractor Summary'!$C$42),"Yes","No") -> No | K147: =VLOOKUP($D147,'C.1 - Rate Sheets'!B:I,2,FALSE) -> 40 | L147: =VLOOKUP($D147,'C.1 - Rate Sheets'!B:I,3,FALSE) -> 54 | M147: =VLOOKUP($D147,'C.1 - Rate Sheets'!B:I,4,FALSE) -> 64 | N147: =VLOOKUP($D147,'C.1 - Rate Sheets'!B:I,5,FALSE) -> 0 | S147: =SUM(O147:R147) -> 0 | X147: =SUM(T147:W147) -> 0 | Y147: 8 | Z147: 22 | AC147: =SUM(Y147:AB147) -> 30 | AH147: =SUM(AD147:AG147) -> 0 | AM147: =SUM(AI147:AL147) -> 0 | AS147: =SUM(O147,T147,Y147,AD147,AI147,AN147) -> 8 | AT147: =SUM(P147,U147,Z147,AE147,AJ147,AO147) -> 22 | AU147: =SUM(Q147,V147,AA147,AF147,AK147,AP147) -> 0 | AV147: =SUM(R147,W147,AB147,AG147,AL147,AQ147) -> 0 | AW147: =SUM(AS147:AV147) -> 30 | AX147: =AS147*K147 -> 320 | AY147: =AT147*L147 -> 1188 | AZ147: =AU147*M147 -> 0 | BA147: =AV147*N147 -> 0 | BB147: =SUM(AX147:BA147) -> 1508 | BC147: =BB147-BE147 -> 1508 | BD147: Yes | BE147: 0 | BF147: 0 | BG147: 0 | BH147: 3
B148: 105 | C148: John Mayer | D148: Ground Person | E148: Vendor No 6 | F148: Schwletterman | G148: 913243113 | H148: 2018-10-26 | I148: 2018-10-27 | J148: =IF(AND(H148>='A - Contractor Summary'!$C$36,I148<='A - Contractor Summary'!$C$42),"Yes","No") -> No | K148: =VLOOKUP($D148,'C.1 - Rate Sheets'!B:I,2,FALSE) -> 40 | L148: =VLOOKUP($D148,'C.1 - Rate Sheets'!B:I,3,FALSE) -> 54 | M148: =VLOOKUP($D148,'C.1 - Rate Sheets'!B:I,4,FALSE) -> 64 | N148: =VLOOKUP($D148,'C.1 - Rate Sheets'!B:I,5,FALSE) -> 0 | S148: 0 | X148: 0 | Y148: 8 | Z148: 22 | AC148: 30 | AH148: 0 | AM148: 0 | AS148: 8 | AT148: 22 | AU148: 0 | AV148: 0 | AW148: 30 | AX148: 320 | AY148: 1188 | AZ148: 0 | BA148: 0 | BB148: 1508 | BC148: 1508 | BD148: Yes | BE148: 0 | BF148: 0 | BG148: 0 | BH148: 3
B149: 106 | C149: William Bryan | D149: Crew Foreman | E149: Vendor No 6 | F149: Bryan | G149: 913243114 | H149: 2018-10-26 | I149: 2018-10-27 | J149: =IF(AND(H149>='A - Contractor Summary'!$C$36,I149<='A - Contractor Summary'!$C$42),"Yes","No") -> No | K149: =VLOOKUP($D149,'C.1 - Rate Sheets'!B:I,2,FALSE) -> 56.8 | L149: =VLOOKUP($D149,'C.1 - Rate Sheets'!B:I,3,FALSE) -> 76.7 | M149: =VLOOKUP($D149,'C.1 - Rate Sheets'!B:I,4,FALSE) -> 90.9 | N149: =VLOOKUP($D149,'C.1 - Rate Sheets'!B:I,5,FALSE) -> 0 | S149: 0 | X149: 0 | Y149: 8 | Z149: 24 | AC149: 32 | AH149: 0 | AM149: 0 | AS149: 8 | AT149: 24 | AU149: 0 | AV149: 0 | AW149: 32 | AX149: 454.4 | AY149: 1840.8 | AZ149: 0 | BA149: 0 | BB149: 2295.2 | BC149: 2295.2 | BD149: Yes | BE149: 0 | BF149: 0 | BG149: 0
B150: 107 | C150: Andrew Vanco | D150: Tree Trimmer | E150: Vendor No 6 | F150: Bryan | G150: 913243114 | H150: 2018-10-26 | I150: 2018-10-27 | J150: =IF(AND(H150>='A - Contractor Summary'!$C$36,I150<='A - Contractor Summary'!$C$42),"Yes","No") -> No | K150: =VLOOKUP($D150,'C.1 - Rate Sheets'!B:I,2,FALSE) -> 48.5 | L150: =VLOOKUP($D150,'C.1 - Rate Sheets'!B:I,3,FALSE) -> 65.5 | M150: =VLOOKUP($D150,'C.1 - Rate Sheets'!B:I,4,FALSE) -> 77.6 | N150: =VLOOKUP($D150,'C.1 - Rate Sheets'!B:I,5,FALSE) -> 0 | S150: 0 | X150: 0 | Y150: 8 | Z150: 24 | AC150: 32 | AH150: 0 | AM150: 0 | AS150: 8 | AT150: 24 | AU150: 0 | AV150: 0 | AW150: 32 | AX150: 388 | AY150: 1572 | AZ150: 0 | BA150: 0 | BB150: 1960 | BC150: 1960 | BD150: Yes | BE150: 0 | BF150: 0 | BG150: 0
B151: 108 | C151: Sean Zak | D151: Ground Person | E151: Vendor No 6 | F151: Bryan | G151: 913243114 | H151: 2018-10-26 | I151: 2018-10-27 | J151: =IF(AND(H151>='A - Contractor Summary'!$C$36,I151<='A - Contractor Summary'!$C$42),"Yes","No") -> No | K151: =VLOOKUP($D151,'C.1 - Rate Sheets'!B:I,2,FALSE) -> 40 | L151: =VLOOKUP($D151,'C.1 - Rate Sheets'!B:I,3,FALSE) -> 54 | M151: =VLOOKUP($D151,'C.1 - Rate Sheets'!B:I,4,FALSE) -> 64 | N151: =VLOOKUP($D151,'C.1 - Rate Sheets'!B:I,5,FALSE) -> 0 | S151: 0 | X151: 0 | Y151: 8 | Z151: 4 | AC151: 12 | AH151: 0 | AM151: 0 | AS151: 8 | AT151: 4 | AU151: 0 | AV151: 0 | AW151: 12 | AX151: 320 | AY151: 216 | AZ151: 0 | BA151: 0 | BB151: 536 | BC151: 536 | BD151: Yes | BE151: 0 | BF151: 0 | BG151: 0
B152: 109 | C152: Keith Bell | D152: Supervisor | E152: Vendor No 6 | F152: Bell | G152: 913243115 | H152: 2018-10-26 | I152: 2018-10-27 | J152: =IF(AND(H152>='A - Contractor Summary'!$C$36,I152<='A - Contractor Summary'!$C$42),"Yes","No") -> No | K152: =VLOOKUP($D152,'C.1 - Rate Sheets'!B:I,2,FALSE) -> 74 | L152: =VLOOKUP($D152,'C.1 - Rate Sheets'!B:I,3,FALSE) -> 99.9 | M152: =VLOOKUP($D152,'C.1 - Rate Sheets'!B:I,4,FALSE) -> 118.4 | N152: =VLOOKUP($D152,'C.1 - Rate Sheets'!B:I,5,FALSE) -> 0 | S152: 0 | X152: 0 | Y152: 8 | Z152: 24 | AC152: 32 | AH152: 0 | AM152: 0 | AS152: 8 | AT152: 24 | AU152: 0 | AV152: 0 | AW152: 32 | AX152: 592 | AY152: 2397.6 | AZ152: 0 | BA152: 0 | BB152: 2989.6 | BC152: 2989.6 | BD152: Yes | BE152: 0 | BF152: 0 | BG152: 0
B153: 110 | C153: Robert Cambell | D153: Crew Foreman | E153: Vendor No 6 | F153: Cambell | G153: 913259277 | H153: 2018-10-21 | I153: 2018-10-27 | J153: =IF(AND(H153>='A - Contractor Summary'!$C$36,I153<='A - Contractor Summary'!$C$42),"Yes","No") -> No | K153: =VLOOKUP($D153,'C.1 - Rate Sheets'!B:I,2,FALSE) -> 56.8 | L153: =VLOOKUP($D153,'C.1 - Rate Sheets'!B:I,3,FALSE) -> 76.7 | M153: =VLOOKUP($D153,'C.1 - Rate Sheets'!B:I,4,FALSE) -> 90.9 | N153: =VLOOKUP($D153,'C.1 - Rate Sheets'!B:I,5,FALSE) -> 0 | S153: 0 | X153: 0 | Y153: 32 | Z153: 32 | AA153: 16 | AC153: 80 | AH153: 0 | AM153: 0 | AS153: 32 | AT153: 32 | AU153: 16 | AV153: 0 | AW153: 80 | AX153: 1817.6 | AY153: 2454.4 | AZ153: 1454.4 | BA153: 0 | BB153: 5726.4 | BC153: 5726.4 | BD153: Yes | BE153: 0 | BF153: 0 | BG153: 0
B154: 111 | C154: Kevin Wilson | D154: Tree Trimmer | E154: Vendor No 6 | F154: Cambell | G154: 913259277 | H154: 2018-10-21 | I154: 2018-10-27 | J154: =IF(AND(H154>='A - Contractor Summary'!$C$36,I154<='A - Contractor Summary'!$C$42),"Yes","No") -> No | K154: =VLOOKUP($D154,'C.1 - Rate Sheets'!B:I,2,FALSE) -> 48.5 | L154: =VLOOKUP($D154,'C.1 - Rate Sheets'!B:I,3,FALSE) -> 65.5 | M154: =VLOOKUP($D154,'C.1 - Rate Sheets'!B:I,4,FALSE) -> 77.6 | N154: =VLOOKUP($D154,'C.1 - Rate Sheets'!B:I,5,FALSE) -> 0 | S154: =SUM(O154:R154) -> 0 | X154: =SUM(T154:W154) -> 0 | Y154: 24 | Z154: 24 | AA154: 16 | AC154: =SUM(Y154:AB154) -> 64 | AH154: =SUM(AD154:AG154) -> 0 | AM154: =SUM(AI154:AL154) -> 0 | AS154: =SUM(O154,T154,Y154,AD154,AI154,AN154) -> 24 | AT154: =SUM(P154,U154,Z154,AE154,AJ154,AO154) -> 24 | AU154: =SUM(Q154,V154,AA154,AF154,AK154,AP154) -> 16 | AV154: =SUM(R154,W154,AB154,AG154,AL154,AQ154) -> 0 | AW154: =SUM(AS154:AV154) -> 64 | AX154: =AS154*K154 -> 1164 | AY154: =AT154*L154 -> 1572 | AZ154: =AU154*M154 -> 1241.6 | BA154: =AV154*N154 -> 0 | BB154: =SUM(AX154:BA154) -> 3977.6 | BC154: =BB154-BE154 -> 3977.6 | BD154: Yes | BE154: 0 | BF154: 0 | BG154: 0
B155: 111 | C155: Bryan Caldwell | D155: Tree Trimmer | E155: Vendor No 6 | F155: Cambell | G155: 913259277 | H155: 2018-10-21 | I155: 2018-10-27 | J155: =IF(AND(H155>='A - Contractor Summary'!$C$36,I155<='A - Contractor Summary'!$C$42),"Yes","No") -> No | K155: =VLOOKUP($D155,'C.1 - Rate Sheets'!B:I,2,FALSE) -> 48.5 | L155: =VLOOKUP($D155,'C.1 - Rate Sheets'!B:I,3,FALSE) -> 65.5 | M155: =VLOOKUP($D155,'C.1 - Rate Sheets'!B:I,4,FALSE) -> 77.6 | N155: =VLOOKUP($D155,'C.1 - Rate Sheets'!B:I,5,FALSE) -> 0 | S155: 0 | X155: 0 | Y155: 40 | Z155: 56 | AA155: 16 | AC155: 112 | AH155: 0 | AM155: 0 | AS155: 40 | AT155: 56 | AU155: 16 | AV155: 0 | AW155: 112 | AX155: 1940 | AY155: 3668 | AZ155: 1241.6 | BA155: 0 | BB155: 6849.6 | BC155: 6849.6 | BD155: Yes | BE155: 0 | BF155: 0 | BG155: 0
B156: 112 | C156: Pascual Pablo | D156: Crew Foreman | E156: Vendor No 6 | F156: Jackson | G156: 913259282 | H156: 2018-10-21 | I156: 2018-10-27 | J156: =IF(AND(H156>='A - Contractor Summary'!$C$36,I156<='A - Contractor Summary'!$C$42),"Yes","No") -> No | K156: =VLOOKUP($D156,'C.1 - Rate Sheets'!B:I,2,FALSE) -> 56.8 | L156: =VLOOKUP($D156,'C.1 - Rate Sheets'!B:I,3,FALSE) -> 76.7 | M156: =VLOOKUP($D156,'C.1 - Rate Sheets'!B:I,4,FALSE) -> 90.9 | N156: =VLOOKUP($D156,'C.1 - Rate Sheets'!B:I,5,FALSE) -> 0 | S156: 0 | X156: 0 | Y156: 40 | Z156: 56 | AA156: 16 | AC156: 112 | AH156: 0 | AM156: 0 | AS156: 40 | AT156: 56 | AU156: 16 | AV156: 0 | AW156: 112 | AX156: 2272 | AY156: 4295.2 | AZ156: 1454.4 | BA156: 0 | BB156: 8021.6 | BC156: 8021.6 | BD156: Yes | BE156: 0 | BF156: 0 | BG156: 0
B157: 113 | C157: Jeremy McNamee | D157: Tree Trimmer | E157: Vendor No 6 | F157: Jackson | G157: 913259282 | H157: 2018-10-21 | I157: 2018-10-27 | J157: =IF(AND(H157>='A - Contractor Summary'!$C$36,I157<='A - Contractor Summary'!$C$42),"Yes","No") -> No | K157: =VLOOKUP($D157,'C.1 - Rate Sheets'!B:I,2,FALSE) -> 48.5 | L157: =VLOOKUP($D157,'C.1 - Rate Sheets'!B:I,3,FALSE) -> 65.5 | M157: =VLOOKUP($D157,'C.1 - Rate Sheets'!B:I,4,FALSE) -> 77.6 | N157: =VLOOKUP($D157,'C.1 - Rate Sheets'!B:I,5,FALSE) -> 0 | S157: 0 | X157: 0 | Y157: 40 | Z157: 56 | AA157: 16 | AC157: 112 | AH157: 0 | AM157: 0 | AS157: 40 | AT157: 56 | AU157: 16 | AV157: 0 | AW157: 112 | AX157: 1940 | AY157: 3668 | AZ157: 1241.6 | BA157: 0 | BB157: 6849.6 | BC157: 6849.6 | BD157: Yes | BE157: 0 | BF157: 0 | BG157: 0
B158: 113 | C158: Jeremy McNamee | D158: Tree Trimmer | E158: Vendor No 6 | F158: Jackson | G158: 913259282 | H158: 2018-10-21 | I158: 2018-10-27 | J158: =IF(AND(H158>='A - Contractor Summary'!$C$36,I158<='A - Contractor Summary'!$C$42),"Yes","No") -> No | K158: =VLOOKUP($D158,'C.1 - Rate Sheets'!B:I,2,FALSE) -> 48.5 | L158: =VLOOKUP($D158,'C.1 - Rate Sheets'!B:I,3,FALSE) -> 65.5 | M158: =VLOOKUP($D158,'C.1 - Rate Sheets'!B:I,4,FALSE) -> 77.6 | N158: =VLOOKUP($D158,'C.1 - Rate Sheets'!B:I,5,FALSE) -> 0 | S158: =SUM(O158:R158) -> 0 | X158: =SUM(T158:W158) -> 0 | Y158: 40 | Z158: 56 | AA158: 16 | AC158: =SUM(Y158:AB158) -> 112 | AH158: =SUM(AD158:AG158) -> 0 | AM158: =SUM(AI158:AL158) -> 0 | AS158: =SUM(O158,T158,Y158,AD158,AI158,AN158) -> 40 | AT158: =SUM(P158,U158,Z158,AE158,AJ158,AO158) -> 56 | AU158: =SUM(Q158,V158,AA158,AF158,AK158,AP158) -> 16 | AV158: =SUM(R158,W158,AB158,AG158,AL158,AQ158) -> 0 | AW158: =SUM(AS158:AV158) -> 112 | AX158: =AS158*K158 -> 1940 | AY158: =AT158*L158 -> 3668 | AZ158: =AU158*M158 -> 1241.6 | BA158: =AV158*N158 -> 0 | BB158: =SUM(AX158:BA158) -> 6849.6 | BC158: =BB158-BE158 -> 6849.6 | BD158: Yes | BE158: 0 | BF158: 0 | BG158: 0
B159: 114 | C159: Samuel Jackson | D159: Supervisor | E159: Vendor No 6 | F159: Jackson | G159: 913259282 | H159: 2018-10-21 | I159: 2018-10-27 | J159: =IF(AND(H159>='A - Contractor Summary'!$C$36,I159<='A - Contractor Summary'!$C$42),"Yes","No") -> No | K159: =VLOOKUP($D159,'C.1 - Rate Sheets'!B:I,2,FALSE) -> 74 | L159: =VLOOKUP($D159,'C.1 - Rate Sheets'!B:I,3,FALSE) -> 99.9 | M159: =VLOOKUP($D159,'C.1 - Rate Sheets'!B:I,4,FALSE) -> 118.4 | N159: =VLOOKUP($D159,'C.1 - Rate Sheets'!B:I,5,FALSE) -> 0 | S159: 0 | X159: 0 | Y159: 40 | Z159: 56 | AA159: 16 | AC159: 112 | AH159: 0 | AM159: 0 | AS159: 40 | AT159: 56 | AU159: 16 | AV159: 0 | AW159: 112 | AX159: 2960 | AY159: 5594.4 | AZ159: 1894.4 | BA159: 0 | BB159: 10448.8 | BC159: 10448.8 | BD159: Yes | BE159: 0 | BF159: 0 | BG159: 0
B160: 115 | C160: Joel Long | D160: Crew Foreman | E160: Vendor No 6 | F160: Long | G160: 913259291 | H160: 2018-10-21 | I160: 2018-10-27 | J160: =IF(AND(H160>='A - Contractor Summary'!$C$36,I160<='A - Contractor Summary'!$C$42),"Yes","No") -> No | K160: =VLOOKUP($D160,'C.1 - Rate Sheets'!B:I,2,FALSE) -> 56.8 | L160: =VLOOKUP($D160,'C.1 - Rate Sheets'!B:I,3,FALSE) -> 76.7 | M160: =VLOOKUP($D160,'C.1 - Rate Sheets'!B:I,4,FALSE) -> 90.9 | N160: =VLOOKUP($D160,'C.1 - Rate Sheets'!B:I,5,FALSE) -> 0 | S160: 0 | X160: 0 | Y160: 40 | Z160: 56 | AA160: 16 | AC160: 112 | AH160: 0 | AM160: 0 | AS160: 40 | AT160: 56 | AU160: 16 | AV160: 0 | AW160: 112 | AX160: 2272 | AY160: 4295.2 | AZ160: 1454.4 | BA160: 0 | BB160: 8021.6 | BC160: 8021.6 | BD160: Yes | BE160: 0 | BF160: 0 | BG160: 0
B161: 116 | C161: Michael Davis | D161: Tree Trimmer | E161: Vendor No 6 | F161: Long | G161: 913259291 | H161: 2018-10-21 | I161: 2018-10-27 | J161: =IF(AND(H161>='A - Contractor Summary'!$C$36,I161<='A - Contractor Summary'!$C$42),"Yes","No") -> No | K161: =VLOOKUP($D161,'C.1 - Rate Sheets'!B:I,2,FALSE) -> 48.5 | L161: =VLOOKUP($D161,'C.1 - Rate Sheets'!B:I,3,FALSE) -> 65.5 | M161: =VLOOKUP($D161,'C.1 - Rate Sheets'!B:I,4,FALSE) -> 77.6 | N161: =VLOOKUP($D161,'C.1 - Rate Sheets'!B:I,5,FALSE) -> 0 | S161: 0 | X161: 0 | Y161: 40 | Z161: 56 | AA161: 16 | AC161: 112 | AH161: 0 | AM161: 0 | AS161: 40 | AT161: 56 | AU161: 16 | AV161: 0 | AW161: 112 | AX161: 1940 | AY161: 3668 | AZ161: 1241.6 | BA161: 0 | BB161: 6849.6 | BC161: 6849.6 | BD161: Yes | BE161: 0 | BF161: 0 | BG161: 0
B162: 116 | C162: Rammel Suarez | D162: Tree Trimmer | E162: Vendor No 6 | F162: Long | G162: 913259291 | H162: 2018-10-21 | I162: 2018-10-27 | J162: =IF(AND(H162>='A - Contractor Summary'!$C$36,I162<='A - Contractor Summary'!$C$42),"Yes","No") -> No | K162: =VLOOKUP($D162,'C.1 - Rate Sheets'!B:I,2,FALSE) -> 48.5 | L162: =VLOOKUP($D162,'C.1 - Rate Sheets'!B:I,3,FALSE) -> 65.5 | M162: =VLOOKUP($D162,'C.1 - Rate Sheets'!B:I,4,FALSE) -> 77.6 | N162: =VLOOKUP($D162,'C.1 - Rate Sheets'!B:I,5,FALSE) -> 0 | S162: =SUM(O162:R162) -> 0 | X162: =SUM(T162:W162) -> 0 | Y162: 40 | Z162: 56 | AA162: 16 | AC162: =SUM(Y162:AB162) -> 112 | AH162: =SUM(AD162:AG162) -> 0 | AM162: =SUM(AI162:AL162) -> 0 | AS162: =SUM(O162,T162,Y162,AD162,AI162,AN162) -> 40 | AT162: =SUM(P162,U162,Z162,AE162,AJ162,AO162) -> 56 | AU162: =SUM(Q162,V162,AA162,AF162,AK162,AP162) -> 16 | AV162: =SUM(R162,W162,AB162,AG162,AL162,AQ162) -> 0 | AW162: =SUM(AS162:AV162) -> 112 | AX162: =AS162*K162 -> 1940 | AY162: =AT162*L162 -> 3668 | AZ162: =AU162*M162 -> 1241.6 | BA162: =AV162*N162 -> 0 | BB162: =SUM(AX162:BA162) -> 6849.6 | BC162: =BB162-BE162 -> 6849.6 | BD162: Yes | BE162: 0 | BF162: 0 | BG162: 0
B163: 116 | C163: Kisha Kahnike | D163: Tree Trimmer | E163: Vendor No 6 | F163: Long | G163: 913259291 | H163: 2018-10-21 | I163: 2018-10-25 | J163: =IF(AND(H163>='A - Contractor Summary'!$C$36,I163<='A - Contractor Summary'!$C$42),"Yes","No") -> No | K163: =VLOOKUP($D163,'C.1 - Rate Sheets'!B:I,2,FALSE) -> 48.5 | L163: =VLOOKUP($D163,'C.1 - Rate Sheets'!B:I,3,FALSE) -> 65.5 | M163: =VLOOKUP($D163,'C.1 - Rate Sheets'!B:I,4,FALSE) -> 77.6 | N163: =VLOOKUP($D163,'C.1 - Rate Sheets'!B:I,5,FALSE) -> 0 | S163: 0 | X163: 0 | Y163: 32 | Z163: 32 | AA163: 16 | AC163: 80 | AH163: 0 | AM163: 0 | AS163: 32 | AT163: 32 | AU163: 16 | AV163: 0 | AW163: 80 | AX163: 1552 | AY163: 2096 | AZ163: 1241.6 | BA163: 0 | BB163: 4889.6 | BC163: 4889.6 | BD163: Yes | BE163: 0 | BF163: 0 | BG163: 0
B164: 117 | C164: James Hardy | D164: Crew Foreman | E164: Vendor No 6 | F164: Hardy | G164: 913259293 | H164: 2018-10-21 | I164: 2018-10-27 | J164: =IF(AND(H164>='A - Contractor Summary'!$C$36,I164<='A - Contractor Summary'!$C$42),"Yes","No") -> No | K164: =VLOOKUP($D164,'C.1 - Rate Sheets'!B:I,2,FALSE) -> 56.8 | L164: =VLOOKUP($D164,'C.1 - Rate Sheets'!B:I,3,FALSE) -> 76.7 | M164: =VLOOKUP($D164,'C.1 - Rate Sheets'!B:I,4,FALSE) -> 90.9 | N164: =VLOOKUP($D164,'C.1 - Rate Sheets'!B:I,5,FALSE) -> 0 | S164: 0 | X164: 0 | Y164: 40 | Z164: 56 | AA164: 16 | AC164: 112 | AH164: 0 | AM164: 0 | AS164: 40 | AT164: 56 | AU164: 16 | AV164: 0 | AW164: 112 | AX164: 2272 | AY164: 4295.2 | AZ164: 1454.4 | BA164: 0 | BB164: 8021.6 | BC164: 8021.6 | BD164: Yes | BE164: 0 | BF164: 0 | BG164: 0
B165: 118 | C165: John Erti | D165: Tree Trimmer | E165: Vendor No 6 | F165: Hardy | G165: 913259293 | H165: 2018-10-21 | I165: 2018-10-27 | J165: =IF(AND(H165>='A - Contractor Summary'!$C$36,I165<='A - Contractor Summary'!$C$42),"Yes","No") -> No | K165: =VLOOKUP($D165,'C.1 - Rate Sheets'!B:I,2,FALSE) -> 48.5 | L165: =VLOOKUP($D165,'C.1 - Rate Sheets'!B:I,3,FALSE) -> 65.5 | M165: =VLOOKUP($D165,'C.1 - Rate Sheets'!B:I,4,FALSE) -> 77.6 | N165: =VLOOKUP($D165,'C.1 - Rate Sheets'!B:I,5,FALSE) -> 0 | S165: 0 | X165: 0 | Y165: 40 | Z165: 56 | AA165: 16 | AC165: 112 | AH165: 0 | AM165: 0 | AS165: 40 | AT165: 56 | AU165: 16 | AV165: 0 | AW165: 112 | AX165: 1940 | AY165: 3668 | AZ165: 1241.6 | BA165: 0 | BB165: 6849.6 | BC165: 6849.6 | BD165: Yes | BE165: 0 | BF165: 0 | BG165: 0
B166: 119 | C166: Romulo Melgar | D166: Crew Foreman | E166: Vendor No 6 | F166: Melgar | G166: 913259355 | H166: 2018-10-21 | I166: 2018-10-27 | J166: =IF(AND(H166>='A - Contractor Summary'!$C$36,I166<='A - Contractor Summary'!$C$42),"Yes","No") -> No | K166: =VLOOKUP($D166,'C.1 - Rate Sheets'!B:I,2,FALSE) -> 56.8 | L166: =VLOOKUP($D166,'C.1 - Rate Sheets'!B:I,3,FALSE) -> 76.7 | M166: =VLOOKUP($D166,'C.1 - Rate Sheets'!B:I,4,FALSE) -> 90.9 | N166: =VLOOKUP($D166,'C.1 - Rate Sheets'!B:I,5,FALSE) -> 0 | S166: 0 | X166: 0 | Y166: 40 | Z166: 56 | AA166: 16 | AC166: 112 | AH166: 0 | AM166: 0 | AS166: 40 | AT166: 56 | AU166: 16 | AV166: 0 | AW166: 112 | AX166: 2272 | AY166: 4295.2 | AZ166: 1454.4 | BA166: 0 | BB166: 8021.6 | BC166: 8021.6 | BD166: Yes | BE166: 0 | BF166: 0 | BG166: 0
B167: 119 | C167: Gamaller Ramirez | D167: Crew Foreman | E167: Vendor No 6 | F167: Melgar | G167: 913259355 | H167: 2018-10-21 | I167: 2018-10-27 | J167: =IF(AND(H167>='A - Contractor Summary'!$C$36,I167<='A - Contractor Summary'!$C$42),"Yes","No") -> No | K167: =VLOOKUP($D167,'C.1 - Rate Sheets'!B:I,2,FALSE) -> 56.8 | L167: =VLOOKUP($D167,'C.1 - Rate Sheets'!B:I,3,FALSE) -> 76.7 | M167: =VLOOKUP($D167,'C.1 - Rate Sheets'!B:I,4,FALSE) -> 90.9 | N167: =VLOOKUP($D167,'C.1 - Rate Sheets'!B:I,5,FALSE) -> 0 | S167: =SUM(O167:R167) -> 0 | X167: =SUM(T167:W167) -> 0 | Y167: 40 | Z167: 56 | AA167: 16 | AC167: =SUM(Y167:AB167) -> 112 | AH167: =SUM(AD167:AG167) -> 0 | AM167: =SUM(AI167:AL167) -> 0 | AS167: =SUM(O167,T167,Y167,AD167,AI167,AN167) -> 40 | AT167: =SUM(P167,U167,Z167,AE167,AJ167,AO167) -> 56 | AU167: =SUM(Q167,V167,AA167,AF167,AK167,AP167) -> 16 | AV167: =SUM(R167,W167,AB167,AG167,AL167,AQ167) -> 0 | AW167: =SUM(AS167:AV167) -> 112 | AX167: =AS167*K167 -> 2272 | AY167: =AT167*L167 -> 4295.2 | AZ167: =AU167*M167 -> 1454.4 | BA167: =AV167*N167 -> 0 | BB167: =SUM(AX167:BA167) -> 8021.6 | BC167: =BB167-BE167 -> 8021.6 | BD167: Yes | BE167: 0 | BF167: 0 | BG167: 0
B168: 119 | C168: Ormand Mendoza-Rivero | D168: Crew Foreman | E168: Vendor No 6 | F168: Melgar | G168: 913259355 | H168: 2018-10-21 | I168: 2018-10-27 | J168: =IF(AND(H168>='A - Contractor Summary'!$C$36,I168<='A - Contractor Summary'!$C$42),"Yes","No") -> No | K168: =VLOOKUP($D168,'C.1 - Rate Sheets'!B:I,2,FALSE) -> 56.8 | L168: =VLOOKUP($D168,'C.1 - Rate Sheets'!B:I,3,FALSE) -> 76.7 | M168: =VLOOKUP($D168,'C.1 - Rate Sheets'!B:I,4,FALSE) -> 90.9 | N168: =VLOOKUP($D168,'C.1 - Rate Sheets'!B:I,5,FALSE) -> 0 | S168: 0 | X168: 0 | Y168: 40 | Z168: 56 | AA168: 16 | AC168: 112 | AH168: 0 | AM168: 0 | AS168: 40 | AT168: 56 | AU168: 16 | AV168: 0 | AW168: 112 | AX168: 2272 | AY168: 4295.2 | AZ168: 1454.4 | BA168: 0 | BB168: 8021.6 | BC168: 8021.6 | BD168: Yes | BE168: 0 | BF168: 0 | BG168: 0
B169: 119 | C169: Pedro Caspedes | D169: Crew Foreman | E169: Vendor No 6 | F169: Melgar | G169: 913259355 | H169: 2018-10-21 | I169: 2018-10-27 | J169: =IF(AND(H169>='A - Contractor Summary'!$C$36,I169<='A - Contractor Summary'!$C$42),"Yes","No") -> No | K169: =VLOOKUP($D169,'C.1 - Rate Sheets'!B:I,2,FALSE) -> 56.8 | L169: =VLOOKUP($D169,'C.1 - Rate Sheets'!B:I,3,FALSE) -> 76.7 | M169: =VLOOKUP($D169,'C.1 - Rate Sheets'!B:I,4,FALSE) -> 90.9 | N169: =VLOOKUP($D169,'C.1 - Rate Sheets'!B:I,5,FALSE) -> 0 | S169: 0 | X169: 0 | Y169: 40 | Z169: 56 | AA169: 16 | AC169: 112 | AH169: 0 | AM169: 0 | AS169: 40 | AT169: 56 | AU169: 16 | AV169: 0 | AW169: 112 | AX169: 2272 | AY169: 4295.2 | AZ169: 1454.4 | BA169: 0 | BB169: 8021.6 | BC169: 8021.6 | BD169: Yes | BE169: 0 | BF169: 0 | BG169: 0
B170: 120 | C170: Eddy Mendoza-Rhero | D170: Tree Trimmer | E170: Vendor No 6 | F170: Melgar | G170: 913259355 | H170: 2018-10-21 | I170: 2018-10-27 | J170: =IF(AND(H170>='A - Contractor Summary'!$C$36,I170<='A - Contractor Summary'!$C$42),"Yes","No") -> No | K170: =VLOOKUP($D170,'C.1 - Rate Sheets'!B:I,2,FALSE) -> 48.5 | L170: =VLOOKUP($D170,'C.1 - Rate Sheets'!B:I,3,FALSE) -> 65.5 | M170: =VLOOKUP($D170,'C.1 - Rate Sheets'!B:I,4,FALSE) -> 77.6 | N170: =VLOOKUP($D170,'C.1 - Rate Sheets'!B:I,5,FALSE) -> 0 | S170: 0 | X170: 0 | Y170: 40 | Z170: 56 | AA170: 16 | AC170: 112 | AH170: 0 | AM170: 0 | AS170: 40 | AT170: 56 | AU170: 16 | AV170: 0 | AW170: 112 | AX170: 1940 | AY170: 3668 | AZ170: 1241.6 | BA170: 0 | BB170: 6849.6 | BC170: 6849.6 | BD170: Yes | BE170: 0 | BF170: 0 | BG170: 0
B171: 120 | C171: Julio Rayes | D171: Tree Trimmer | E171: Vendor No 6 | F171: Melgar | G171: 913259355 | H171: 2018-10-21 | I171: 2018-10-27 | J171: =IF(AND(H171>='A - Contractor Summary'!$C$36,I171<='A - Contractor Summary'!$C$42),"Yes","No") -> No | K171: =VLOOKUP($D171,'C.1 - Rate Sheets'!B:I,2,FALSE) -> 48.5 | L171: =VLOOKUP($D171,'C.1 - Rate Sheets'!B:I,3,FALSE) -> 65.5 | M171: =VLOOKUP($D171,'C.1 - Rate Sheets'!B:I,4,FALSE) -> 77.6 | N171: =VLOOKUP($D171,'C.1 - Rate Sheets'!B:I,5,FALSE) -> 0 | S171: 0 | X171: 0 | Y171: 40 | Z171: 56 | AA171: 16 | AC171: 112 | AH171: 0 | AM171: 0 | AS171: 40 | AT171: 56 | AU171: 16 | AV171: 0 | AW171: 112 | AX171: 1940 | AY171: 3668 | AZ171: 1241.6 | BA171: 0 | BB171: 6849.6 | BC171: 6849.6 | BD171: Yes | BE171: 0 | BF171: 0 | BG171: 0
B172: 121 | C172: Ramon Velasquez | D172: Supervisor | E172: Vendor No 6 | F172: Velasquez | G172: 913259357 | H172: 2018-10-21 | I172: 2018-10-27 | J172: =IF(AND(H172>='A - Contractor Summary'!$C$36,I172<='A - Contractor Summary'!$C$42),"Yes","No") -> No | K172: =VLOOKUP($D172,'C.1 - Rate Sheets'!B:I,2,FALSE) -> 74 | L172: =VLOOKUP($D172,'C.1 - Rate Sheets'!B:I,3,FALSE) -> 99.9 | M172: =VLOOKUP($D172,'C.1 - Rate Sheets'!B:I,4,FALSE) -> 118.4 | N172: =VLOOKUP($D172,'C.1 - Rate Sheets'!B:I,5,FALSE) -> 0 | S172: 0 | X172: 0 | Y172: 40 | Z172: 56 | AA172: 16 | AC172: 112 | AH172: 0 | AM172: 0 | AS172: 40 | AT172: 56 | AU172: 16 | AV172: 0 | AW172: 112 | AX172: 2960 | AY172: 5594.4 | AZ172: 1894.4 | BA172: 0 | BB172: 10448.8 | BC172: 10448.8 | BD172: Yes | BE172: 0 | BF172: 0 | BG172: 0
B173: 122 | C173: No support | D173: Crew Foreman | E173: Vendor No 6 | F173: no support | G173: 913262294 | H173: 2018-10-21 | I173: 2018-10-27 | J173: =IF(AND(H173>='A - Contractor Summary'!$C$36,I173<='A - Contractor Summary'!$C$42),"Yes","No") -> No | K173: =VLOOKUP($D173,'C.1 - Rate Sheets'!B:I,2,FALSE) -> 56.8 | L173: =VLOOKUP($D173,'C.1 - Rate Sheets'!B:I,3,FALSE) -> 76.7 | M173: =VLOOKUP($D173,'C.1 - Rate Sheets'!B:I,4,FALSE) -> 90.9 | N173: =VLOOKUP($D173,'C.1 - Rate Sheets'!B:I,5,FALSE) -> 0 | S173: 0 | X173: 0 | Y173: 8 | Z173: 24 | AC173: 32 | AH173: 0 | AM173: 0 | AS173: 8 | AT173: 24 | AU173: 0 | AV173: 0 | AW173: 32 | AX173: 454.4 | AY173: 1840.8 | AZ173: 0 | BA173: 0 | BB173: 2295.2 | BC173: 2295.2 | BD173: Yes | BE173: 0 | BF173: 0 | BG173: 0 | BH173: 4
B174: 123 | C174: No support | D174: Tree Trimmer | E174: Vendor No 6 | F174: no support | G174: 913262294 | H174: 2018-10-21 | I174: 2018-10-27 | J174: =IF(AND(H174>='A - Contractor Summary'!$C$36,I174<='A - Contractor Summary'!$C$42),"Yes","No") -> No | K174: =VLOOKUP($D174,'C.1 - Rate Sheets'!B:I,2,FALSE) -> 48.5 | L174: =VLOOKUP($D174,'C.1 - Rate Sheets'!B:I,3,FALSE) -> 65.5 | M174: =VLOOKUP($D174,'C.1 - Rate Sheets'!B:I,4,FALSE) -> 77.6 | N174: =VLOOKUP($D174,'C.1 - Rate Sheets'!B:I,5,FALSE) -> 0 | S174: 0 | X174: 0 | Y174: 8 | Z174: 24 | AC174: 32 | AH174: 0 | AM174: 0 | AS174: 8 | AT174: 24 | AU174: 0 | AV174: 0 | AW174: 32 | AX174: 388 | AY174: 1572 | AZ174: 0 | BA174: 0 | BB174: 1960 | BC174: 1960 | BD174: Yes | BE174: 0 | BF174: 0 | BG174: 0 | BH174: 4
B175: 124 | C175: Manuel Acosta | D175: Crew Foreman | E175: Vendor No 6 | F175: Acosta | G175: 913262502 | H175: 2018-10-26 | I175: 2018-10-27 | J175: =IF(AND(H175>='A - Contractor Summary'!$C$36,I175<='A - Contractor Summary'!$C$42),"Yes","No") -> No | K175: =VLOOKUP($D175,'C.1 - Rate Sheets'!B:I,2,FALSE) -> 56.8 | L175: =VLOOKUP($D175,'C.1 - Rate Sheets'!B:I,3,FALSE) -> 76.7 | M175: =VLOOKUP($D175,'C.1 - Rate Sheets'!B:I,4,FALSE) -> 90.9 | N175: =VLOOKUP($D175,'C.1 - Rate Sheets'!B:I,5,FALSE) -> 0 | S175: 0 | X175: 0 | Y175: 8 | Z175: 24 | AC175: 32 | AH175: 0 | AM175: 0 | AS175: 8 | AT175: 24 | AU175: 0 | AV175: 0 | AW175: 32 | AX175: 454.4 | AY175: 1840.8 | AZ175: 0 | BA175: 0 | BB175: 2295.2 | BC175: 2295.2 | BD175: Yes | BE175: 0 | BF175: 0 | BG175: 0
B176: 125 | C176: Jose Hernandez | D176: Tree Trimmer | E176: Vendor No 6 | F176: Acosta | G176: 913262502 | H176: 2018-10-26 | I176: 2018-10-27 | J176: =IF(AND(H176>='A - Contractor Summary'!$C$36,I176<='A - Contractor Summary'!$C$42),"Yes","No") -> No | K176: =VLOOKUP($D176,'C.1 - Rate Sheets'!B:I,2,FALSE) -> 48.5 | L176: =VLOOKUP($D176,'C.1 - Rate Sheets'!B:I,3,FALSE) -> 65.5 | M176: =VLOOKUP($D176,'C.1 - Rate Sheets'!B:I,4,FALSE) -> 77.6 | N176: =VLOOKUP($D176,'C.1 - Rate Sheets'!B:I,5,FALSE) -> 0 | S176: 0 | X176: 0 | Y176: 8 | Z176: 24 | AC176: 32 | AH176: 0 | AM176: 0 | AS176: 8 | AT176: 24 | AU176: 0 | AV176: 0 | AW176: 32 | AX176: 388 | AY176: 1572 | AZ176: 0 | BA176: 0 | BB176: 1960 | BC176: 1960 | BD176: Yes | BE176: 0 | BF176: 0 | BG176: 0
B177: 126 | C177: Conley, Christopher | D177: Crew Foreman | E177: Vendor No 6 | F177: Conley | G177: 913262582 | H177: 2018-10-26 | I177: 2018-10-27 | J177: =IF(AND(H177>='A - Contractor Summary'!$C$36,I177<='A - Contractor Summary'!$C$42),"Yes","No") -> No | K177: =VLOOKUP($D177,'C.1 - Rate Sheets'!B:I,2,FALSE) -> 56.8 | L177: =VLOOKUP($D177,'C.1 - Rate Sheets'!B:I,3,FALSE) -> 76.7 | M177: =VLOOKUP($D177,'C.1 - Rate Sheets'!B:I,4,FALSE) -> 90.9 | N177: =VLOOKUP($D177,'C.1 - Rate Sheets'!B:I,5,FALSE) -> 0 | S177: 0 | X177: 0 | Y177: 8 | Z177: 24 | AC177: 32 | AH177: 0 | AM177: 0 | AS177: 8 | AT177: 24 | AU177: 0 | AV177: 0 | AW177: 32 | AX177: 454.4 | AY177: 1840.8 | AZ177: 0 | BA177: 0 | BB177: 2295.2 | BC177: 2295.2 | BD177: Yes | BE177: 0 | BF177: 0 | BG177: 0
B178: 127 | C178: Garcia, Francisco | D178: Tree Trimmer | E178: Vendor No 6 | F178: Conley | G178: 913262582 | H178: 2018-10-26 | I178: 2018-10-27 | J178: =IF(AND(H178>='A - Contractor Summary'!$C$36,I178<='A - Contractor Summary'!$C$42),"Yes","No") -> No | K178: =VLOOKUP($D178,'C.1 - Rate Sheets'!B:I,2,FALSE) -> 48.5 | L178: =VLOOKUP($D178,'C.1 - Rate Sheets'!B:I,3,FALSE) -> 65.5 | M178: =VLOOKUP($D178,'C.1 - Rate Sheets'!B:I,4,FALSE) -> 77.6 | N178: =VLOOKUP($D178,'C.1 - Rate Sheets'!B:I,5,FALSE) -> 0 | S178: 0 | X178: 0 | Y178: 8 | Z178: 24 | AC178: 32 | AH178: 0 | AM178: 0 | AS178: 8 | AT178: 24 | AU178: 0 | AV178: 0 | AW178: 32 | AX178: 388 | AY178: 1572 | AZ178: 0 | BA178: 0 | BB178: 1960 | BC178: 1960 | BD178: Yes | BE178: 0 | BF178: 0 | BG178: 0
B179: 128 | C179: Joseph Pate | D179: Supervisor | E179: Vendor No 6 | F179: Pate | G179: 913281758 | H179: 2018-10-21 | I179: 2018-10-27 | J179: =IF(AND(H179>='A - Contractor Summary'!$C$36,I179<='A - Contractor Summary'!$C$42),"Yes","No") -> No | K179: =VLOOKUP($D179,'C.1 - Rate Sheets'!B:I,2,FALSE) -> 74 | L179: =VLOOKUP($D179,'C.1 - Rate Sheets'!B:I,3,FALSE) -> 99.9 | M179: =VLOOKUP($D179,'C.1 - Rate Sheets'!B:I,4,FALSE) -> 118.4 | N179: =VLOOKUP($D179,'C.1 - Rate Sheets'!B:I,5,FALSE) -> 0 | S179: 0 | X179: 0 | Y179: 32 | Z179: 53 | AA179: 16 | AC179: 101 | AH179: 0 | AM179: 0 | AS179: 32 | AT179: 53 | AU179: 16 | AV179: 0 | AW179: 101 | AX179: 2368 | AY179: 5294.7 | AZ179: 1894.4 | BA179: 0 | BB179: 9557.1 | BC179: 9557.1 | BD179: Yes | BE179: 0 | BF179: 0 | BG179: 0
B180: 129 | C180: Kallmayer, David | D180: Crew Foreman | E180: Vendor No 6 | F180: Kallmayer | G180: 913281761 | H180: 2018-10-21 | I180: 2018-10-27 | J180: =IF(AND(H180>='A - Contractor Summary'!$C$36,I180<='A - Contractor Summary'!$C$42),"Yes","No") -> No | K180: =VLOOKUP($D180,'C.1 - Rate Sheets'!B:I,2,FALSE) -> 56.8 | L180: =VLOOKUP($D180,'C.1 - Rate Sheets'!B:I,3,FALSE) -> 76.7 | M180: =VLOOKUP($D180,'C.1 - Rate Sheets'!B:I,4,FALSE) -> 90.9 | N180: =VLOOKUP($D180,'C.1 - Rate Sheets'!B:I,5,FALSE) -> 0 | S180: 0 | X180: 0 | Y180: 32 | Z180: 53 | AA180: 16 | AC180: 101 | AH180: 0 | AM180: 0 | AS180: 32 | AT180: 53 | AU180: 16 | AV180: 0 | AW180: 101 | AX180: 1817.6 | AY180: 4065.1 | AZ180: 1454.4 | BA180: 0 | BB180: 7337.1 | BC180: 7337.1 | BD180: Yes | BE180: 0 | BF180: 0 | BG180: 0
B181: 130 | C181: Sansom, James | D181: Tree Trimmer | E181: Vendor No 6 | F181: Kallmayer | G181: 913281761 | H181: 2018-10-21 | I181: 2018-10-27 | J181: =IF(AND(H181>='A - Contractor Summary'!$C$36,I181<='A - Contractor Summary'!$C$42),"Yes","No") -> No | K181: =VLOOKUP($D181,'C.1 - Rate Sheets'!B:I,2,FALSE) -> 48.5 | L181: =VLOOKUP($D181,'C.1 - Rate Sheets'!B:I,3,FALSE) -> 65.5 | M181: =VLOOKUP($D181,'C.1 - Rate Sheets'!B:I,4,FALSE) -> 77.6 | N181: =VLOOKUP($D181,'C.1 - Rate Sheets'!B:I,5,FALSE) -> 0 | S181: =SUM(O181:R181) -> 0 | X181: =SUM(T181:W181) -> 0 | Y181: 32 | Z181: 53 | AA181: 16 | AC181: =SUM(Y181:AB181) -> 101 | AH181: =SUM(AD181:AG181) -> 0 | AM181: =SUM(AI181:AL181) -> 0 | AS181: 32 | AT181: 53 | AU181: 16 | AV181: 0 | AW181: 101 | AX181: 1552 | AY181: 3471.5 | AZ181: 1241.6 | BA181: 0 | BB181: 6265.1 | BC181: 6265.1 | BD181: Yes | BE181: 0 | BF181: 0 | BG181: 0
B182: 131 | C182: Kepler, Mike | D182: Crew Foreman | E182: Vendor No 6 | F182: Kepler | G182: 913281769 | H182: 2018-10-21 | I182: 2018-10-27 | J182: =IF(AND(H182>='A - Contractor Summary'!$C$36,I182<='A - Contractor Summary'!$C$42),"Yes","No") -> No | K182: =VLOOKUP($D182,'C.1 - Rate Sheets'!B:I,2,FALSE) -> 56.8 | L182: =VLOOKUP($D182,'C.1 - Rate Sheets'!B:I,3,FALSE) -> 76.7 | M182: =VLOOKUP($D182,'C.1 - Rate Sheets'!B:I,4,FALSE) -> 90.9 | N182: =VLOOKUP($D182,'C.1 - Rate Sheets'!B:I,5,FALSE) -> 0 | S182: 0 | X182: 0 | Y182: 32 | Z182: 56 | AA182: 16 | AC182: 104 | AH182: 0 | AM182: 0 | AS182: 32 | AT182: 56 | AU182: 16 | AV182: 0 | AW182: 104 | AX182: =AS182*K182 -> 1817.6 | AY182: =AT182*L182 -> 4295.2 | AZ182: =AU182*M182 -> 1454.4 | BA182: =AV182*N182 -> 0 | BB182: =SUM(AX182:BA182) -> 7567.2 | BC182: 7567.2 | BD182: Yes | BE182: 0 | BF182: 0 | BG182: 0
B183: 132 | C183: Cardo, Rafael | D183: Tree Trimmer | E183: Vendor No 6 | F183: Kepler | G183: 913281769 | H183: 2018-10-21 | I183: 2018-10-23 | J183: =IF(AND(H183>='A - Contractor Summary'!$C$36,I183<='A - Contractor Summary'!$C$42),"Yes","No") -> No | K183: =VLOOKUP($D183,'C.1 - Rate Sheets'!B:I,2,FALSE) -> 48.5 | L183: =VLOOKUP($D183,'C.1 - Rate Sheets'!B:I,3,FALSE) -> 65.5 | M183: =VLOOKUP($D183,'C.1 - Rate Sheets'!B:I,4,FALSE) -> 77.6 | N183: =VLOOKUP($D183,'C.1 - Rate Sheets'!B:I,5,FALSE) -> 0 | S183: =SUM(O183:R183) -> 0 | X183: =SUM(T183:W183) -> 0 | Y183: 20 | Z183: 12 | AA183: 8 | AC183: =SUM(Y183:AB183) -> 40 | AH183: =SUM(AD183:AG183) -> 0 | AM183: =SUM(AI183:AL183) -> 0 | AS183: =SUM(O183,T183,Y183,AD183,AI183,AN183) -> 20 | AT183: =SUM(P183,U183,Z183,AE183,AJ183,AO183) -> 12 | AU183: =SUM(Q183,V183,AA183,AF183,AK183,AP183) -> 8 | AV183: =SUM(R183,W183,AB183,AG183,AL183,AQ183) -> 0 | AW183: =SUM(AS183:AV183) -> 40 | AX183: =AS183*K183 -> 970 | AY183: =AT183*L183 -> 786 | AZ183: =AU183*M183 -> 620.8 | BA183: =AV183*N183 -> 0 | BB183: =SUM(AX183:BA183) -> 2376.8 | BC183: =BB183-BE183 -> 2376.8 | BD183: Yes | BE183: 0 | BF183: 0 | BG183: 0
B184: 132 | C184: Vincent Santoyo | D184: Tree Trimmer | E184: Vendor No 6 | F184: Kepler | G184: 913281769 | H184: 2018-10-23 | I184: 2018-10-27 | J184: =IF(AND(H184>='A - Contractor Summary'!$C$36,I184<='A - Contractor Summary'!$C$42),"Yes","No") -> No | K184: =VLOOKUP($D184,'C.1 - Rate Sheets'!B:I,2,FALSE) -> 48.5 | L184: =VLOOKUP($D184,'C.1 - Rate Sheets'!B:I,3,FALSE) -> 65.5 | M184: =VLOOKUP($D184,'C.1 - Rate Sheets'!B:I,4,FALSE) -> 77.6 | N184: =VLOOKUP($D184,'C.1 - Rate Sheets'!B:I,5,FALSE) -> 0 | S184: 0 | X184: 0 | Y184: 24 | Z184: 40 | AA184: 0 | AC184: 64 | AH184: 0 | AM184: 0 | AS184: 24 | AT184: 40 | AU184: 0 | AV184: 0 | AW184: 64 | AX184: 1164 | AY184: 2620 | AZ184: 0 | BA184: 0 | BB184: 3784 | BC184: 3784 | BD184: Yes | BE184: 0 | BF184: 0 | BG184: 0
B185: 133 | C185: Robert Ellis | D185: On-Site Safety Coordinator | E185: Vendor No 6 | F185: Ellis | G185: 913293317 | H185: 2018-10-21 | I185: 2018-10-25 | J185: =IF(AND(H185>='A - Contractor Summary'!$C$36,I185<='A - Contractor Summary'!$C$42),"Yes","No") -> No | K185: =VLOOKUP($D185,'C.1 - Rate Sheets'!B:I,2,FALSE) -> 65 | L185: =VLOOKUP($D185,'C.1 - Rate Sheets'!B:I,3,FALSE) -> 65 | M185: =VLOOKUP($D185,'C.1 - Rate Sheets'!B:I,4,FALSE) -> 65 | N185: =VLOOKUP($D185,'C.1 - Rate Sheets'!B:I,5,FALSE) -> 0 | S185: 0 | X185: 0 | Y185: 24 | Z185: 20 | AA185: 14 | AC185: 58 | AH185: 0 | AM185: 0 | AS185: 24 | AT185: 20 | AU185: 14 | AV185: 0 | AW185: 58 | AX185: 1560 | AY185: 1300 | AZ185: 910 | BA185: 0 | BB185: 3770 | BC185: 3770 | BD185: Yes | BE185: 0 | BF185: 0 | BG185: 0
B186: 134 | C186: Random Palmer | D186: On-Site Safety Coordinator | E186: Vendor No 6 | F186: Palmer | G186: 913293318 | H186: 2018-10-21 | I186: 2018-10-27 | J186: =IF(AND(H186>='A - Contractor Summary'!$C$36,I186<='A - Contractor Summary'!$C$42),"Yes","No") -> No | K186: =VLOOKUP($D186,'C.1 - Rate Sheets'!B:I,2,FALSE) -> 65 | L186: =VLOOKUP($D186,'C.1 - Rate Sheets'!B:I,3,FALSE) -> 65 | M186: =VLOOKUP($D186,'C.1 - Rate Sheets'!B:I,4,FALSE) -> 65 | N186: =VLOOKUP($D186,'C.1 - Rate Sheets'!B:I,5,FALSE) -> 0 | S186: 0 | X186: 0 | Y186: 40 | Z186: 44 | AA186: 14 | AC186: 98 | AH186: 0 | AM186: 0 | AS186: 40 | AT186: 44 | AU186: 14 | AV186: 0 | AW186: 98 | AX186: 2600 | AY186: 2860 | AZ186: 910 | BA186: 0 | BB186: 6370 | BC186: =BB186-BE186 -> 6370 | BD186: Yes | BE186: 0 | BF186: 0 | BG186: 0
B187: 135 | C187: Kenny Rowe | D187: On-Site Safety Coordinator | E187: Vendor No 6 | F187: Rowe | G187: 913293319 | H187: 2018-10-21 | I187: 2018-10-27 | J187: =IF(AND(H187>='A - Contractor Summary'!$C$36,I187<='A - Contractor Summary'!$C$42),"Yes","No") -> No | K187: =VLOOKUP($D187,'C.1 - Rate Sheets'!B:I,2,FALSE) -> 65 | L187: =VLOOKUP($D187,'C.1 - Rate Sheets'!B:I,3,FALSE) -> 65 | M187: =VLOOKUP($D187,'C.1 - Rate Sheets'!B:I,4,FALSE) -> 65 | N187: =VLOOKUP($D187,'C.1 - Rate Sheets'!B:I,5,FALSE) -> 0 | S187: 0 | X187: 0 | Y187: 8 | Z187: 20 | AA187: 12 | AC187: 40 | AH187: 0 | AM187: 0 | AS187: =SUM(O187,T187,Y187,AD187,AI187,AN187) -> 8 | AT187: =SUM(P187,U187,Z187,AE187,AJ187,AO187) -> 20 | AU187: =SUM(Q187,V187,AA187,AF187,AK187,AP187) -> 12 | AV187: =SUM(R187,W187,AB187,AG187,AL187,AQ187) -> 0 | AW187: =SUM(AS187:AV187) -> 40 | AX187: 520 | AY187: 1300 | AZ187: 780 | BA187: 0 | BB187: 2600 | BC187: 2600 | BD187: Yes | BE187: 0 | BF187: 0 | BG187: 0
B188: 136 | C188: Harold Danielson | D188: On-Site Safety Coordinator | E188: Vendor No 6 | F188: Danielson | G188: 913293320 | H188: 2018-10-26 | I188: 2018-10-27 | J188: =IF(AND(H188>='A - Contractor Summary'!$C$36,I188<='A - Contractor Summary'!$C$42),"Yes","No") -> No | K188: =VLOOKUP($D188,'C.1 - Rate Sheets'!B:I,2,FALSE) -> 65 | L188: =VLOOKUP($D188,'C.1 - Rate Sheets'!B:I,3,FALSE) -> 65 | M188: =VLOOKUP($D188,'C.1 - Rate Sheets'!B:I,4,FALSE) -> 65 | N188: =VLOOKUP($D188,'C.1 - Rate Sheets'!B:I,5,FALSE) -> 0 | S188: 0 | X188: 0 | Y188: 8 | Z188: 20 | AC188: 28 | AH188: 0 | AM188: 0 | AS188: 8 | AT188: 20 | AU188: 0 | AV188: 0 | AW188: 28 | AX188: 520 | AY188: 1300 | AZ188: 0 | BA188: 0 | BB188: 1820 | BC188: 1820 | BD188: Yes | BE188: 0 | BF188: 0 | BG188: 0
B189: 137 | C189: Brian Parris | D189: On-Site Safety Coordinator | E189: Vendor No 6 | F189: Parris | G189: 913293321 | H189: 2018-10-24 | I189: 2018-10-27 | J189: =IF(AND(H189>='A - Contractor Summary'!$C$36,I189<='A - Contractor Summary'!$C$42),"Yes","No") -> No | K189: =VLOOKUP($D189,'C.1 - Rate Sheets'!B:I,2,FALSE) -> 65 | L189: =VLOOKUP($D189,'C.1 - Rate Sheets'!B:I,3,FALSE) -> 65 | M189: =VLOOKUP($D189,'C.1 - Rate Sheets'!B:I,4,FALSE) -> 65 | N189: =VLOOKUP($D189,'C.1 - Rate Sheets'!B:I,5,FALSE) -> 0 | S189: 0 | X189: 0 | Y189: 16 | Z189: 26 | AC189: 42 | AH189: 0 | AM189: 0 | AS189: 16 | AT189: 26 | AU189: 0 | AV189: 0 | AW189: 42 | AX189: 1040 | AY189: 1690 | AZ189: 0 | BA189: 0 | BB189: 2730 | BC189: 2730 | BD189: Yes | BE189: 0 | BF189: 0 | BG189: 0
B190: 138 | C190: Bradley Gonzalez | D190: On-Site Safety Coordinator | E190: Vendor No 6 | F190: Gonzalez | G190: 913293322 | H190: 2018-10-21 | I190: 2018-10-27 | J190: =IF(AND(H190>='A - Contractor Summary'!$C$36,I190<='A - Contractor Summary'!$C$42),"Yes","No") -> No | K190: =VLOOKUP($D190,'C.1 - Rate Sheets'!B:I,2,FALSE) -> 65 | L190: =VLOOKUP($D190,'C.1 - Rate Sheets'!B:I,3,FALSE) -> 65 | M190: =VLOOKUP($D190,'C.1 - Rate Sheets'!B:I,4,FALSE) -> 65 | N190: =VLOOKUP($D190,'C.1 - Rate Sheets'!B:I,5,FALSE) -> 0 | S190: 0 | X190: 0 | Y190: 40 | Z190: 42 | AA190: 14 | AC190: 96 | AH190: 0 | AM190: 0 | AS190: 40 | AT190: 42 | AU190: 14 | AV190: 0 | AW190: 96 | AX190: 2600 | AY190: 2730 | AZ190: 910 | BA190: 0 | BB190: 6240 | BC190: 6240 | BD190: Yes | BE190: 0 | BF190: 0 | BG190: 0 | BH190: 5
B191: 139 | C191: Garcia, Alejandro | D191: Crew Foreman | E191: Vendor No 6 | F191: Garcia | G191: 913333188 | H191: 2018-10-21 | I191: 2018-10-27 | J191: =IF(AND(H191>='A - Contractor Summary'!$C$36,I191<='A - Contractor Summary'!$C$42),"Yes","No") -> No | K191: =VLOOKUP($D191,'C.1 - Rate Sheets'!B:I,2,FALSE) -> 56.8 | L191: =VLOOKUP($D191,'C.1 - Rate Sheets'!B:I,3,FALSE) -> 76.7 | M191: =VLOOKUP($D191,'C.1 - Rate Sheets'!B:I,4,FALSE) -> 90.9 | N191: =VLOOKUP($D191,'C.1 - Rate Sheets'!B:I,5,FALSE) -> 0 | S191: 0 | X191: 0 | Y191: 40 | Z191: 52 | AA191: 16 | AC191: 108 | AH191: 0 | AM191: 0 | AS191: 40 | AT191: 52 | AU191: 16 | AV191: 0 | AW191: 108 | AX191: 2272 | AY191: 3988.4 | AZ191: 1454.4 | BA191: 0 | BB191: 7714.8 | BC191: 7714.8 | BD191: Yes | BE191: 0 | BF191: 0 | BG191: 0 | BH191: 5
B192: 140 | C192: Yuhas, Matthew | D192: Tree Trimmer | E192: Vendor No 6 | F192: Garcia | G192: 913333188 | H192: 2018-10-21 | I192: 2018-10-27 | J192: =IF(AND(H192>='A - Contractor Summary'!$C$36,I192<='A - Contractor Summary'!$C$42),"Yes","No") -> No | K192: =VLOOKUP($D192,'C.1 - Rate Sheets'!B:I,2,FALSE) -> 48.5 | L192: =VLOOKUP($D192,'C.1 - Rate Sheets'!B:I,3,FALSE) -> 65.5 | M192: =VLOOKUP($D192,'C.1 - Rate Sheets'!B:I,4,FALSE) -> 77.6 | N192: =VLOOKUP($D192,'C.1 - Rate Sheets'!B:I,5,FALSE) -> 0 | S192: 0 | X192: 0 | Y192: 40 | Z192: 52 | AA192: 16 | AC192: 108 | AH192: 0 | AM192: 0 | AS192: 40 | AT192: 52 | AU192: 16 | AV192: 0 | AW192: 108 | AX192: 1940 | AY192: 3406 | AZ192: 1241.6 | BA192: 0 | BB192: 6587.6 | BC192: 6587.6 | BD192: Yes | BE192: 0 | BF192: 0 | BG192: 0 | BH192: 5
B193: 141 | C193: Pate, Joseph | D193: Supervisor | E193: Vendor No 6 | F193: Pate | G193: 913333193 | H193: 2018-10-21 | I193: 2018-10-27 | J193: =IF(AND(H193>='A - Contractor Summary'!$C$36,I193<='A - Contractor Summary'!$C$42),"Yes","No") -> No | K193: =VLOOKUP($D193,'C.1 - Rate Sheets'!B:I,2,FALSE) -> 74 | L193: =VLOOKUP($D193,'C.1 - Rate Sheets'!B:I,3,FALSE) -> 99.9 | M193: =VLOOKUP($D193,'C.1 - Rate Sheets'!B:I,4,FALSE) -> 118.4 | N193: =VLOOKUP($D193,'C.1 - Rate Sheets'!B:I,5,FALSE) -> 0 | S193: 0 | X193: 0 | Y193: 40 | Z193: 52 | AA193: 16 | AC193: 108 | AH193: 0 | AM193: 0 | AS193: 40 | AT193: 52 | AU193: 16 | AV193: 0 | AW193: 108 | AX193: 2960 | AY193: 5194.8 | AZ193: 1894.4 | BA193: 0 | BB193: 10049.2 | BC193: 10049.2 | BD193: Yes | BE193: 0 | BF193: 0 | BG193: 0 | BH193: 5
B194: 142 | C194: Kelly Alvarez | D194: Crew Foreman | E194: Vendor No 6 | F194: Alverez | G194: 913346156 | H194: 2018-10-26 | I194: 2018-10-27 | J194: =IF(AND(H194>='A - Contractor Summary'!$C$36,I194<='A - Contractor Summary'!$C$42),"Yes","No") -> No | K194: =VLOOKUP($D194,'C.1 - Rate Sheets'!B:I,2,FALSE) -> 56.8 | L194: =VLOOKUP($D194,'C.1 - Rate Sheets'!B:I,3,FALSE) -> 76.7 | M194: =VLOOKUP($D194,'C.1 - Rate Sheets'!B:I,4,FALSE) -> 90.9 | N194: =VLOOKUP($D194,'C.1 - Rate Sheets'!B:I,5,FALSE) -> 0 | S194: 0 | X194: 0 | Y194: 8 | Z194: 24 | AC194: 32 | AH194: 0 | AM194: 0 | AS194: 8 | AT194: 24 | AU194: 0 | AV194: 0 | AW194: 32 | AX194: 454.4 | AY194: 1840.8 | AZ194: 0 | BA194: 0 | BB194: 2295.2 | BC194: 2295.2 | BD194: Yes | BE194: 0 | BF194: 0 | BG194: 0
B195: 143 | C195: Caleb Mannon | D195: Tree Trimmer | E195: Vendor No 6 | F195: Alverez | G195: 913346156 | H195: 2018-10-26 | I195: 2018-10-27 | J195: =IF(AND(H195>='A - Contractor Summary'!$C$36,I195<='A - Contractor Summary'!$C$42),"Yes","No") -> No | K195: =VLOOKUP($D195,'C.1 - Rate Sheets'!B:I,2,FALSE) -> 48.5 | L195: =VLOOKUP($D195,'C.1 - Rate Sheets'!B:I,3,FALSE) -> 65.5 | M195: =VLOOKUP($D195,'C.1 - Rate Sheets'!B:I,4,FALSE) -> 77.6 | N195: =VLOOKUP($D195,'C.1 - Rate Sheets'!B:I,5,FALSE) -> 0 | S195: =SUM(O195:R195) -> 0 | X195: =SUM(T195:W195) -> 0 | Y195: 8 | Z195: 24 | AC195: =SUM(Y195:AB195) -> 32 | AH195: =SUM(AD195:AG195) -> 0 | AM195: =SUM(AI195:AL195) -> 0 | AS195: =SUM(O195,T195,Y195,AD195,AI195,AN195) -> 8 | AT195: =SUM(P195,U195,Z195,AE195,AJ195,AO195) -> 24 | AU195: =SUM(Q195,V195,AA195,AF195,AK195,AP195) -> 0 | AV195: =SUM(R195,W195,AB195,AG195,AL195,AQ195) -> 0 | AW195: =SUM(AS195:AV195) -> 32 | AX195: =AS195*K195 -> 388 | AY195: =AT195*L195 -> 1572 | AZ195: =AU195*M195 -> 0 | BA195: =AV195*N195 -> 0 | BB195: =SUM(AX195:BA195) -> 1960 | BC195: =BB195-BE195 -> 1960 | BD195: Yes | BE195: 0 | BF195: 0 | BG195: 0
B196: 143 | C196: Howard Neal | D196: Tree Trimmer | E196: Vendor No 6 | F196: Alverez | G196: 913346156 | H196: 2018-10-26 | I196: 2018-10-27 | J196: =IF(AND(H196>='A - Contractor Summary'!$C$36,I196<='A - Contractor Summary'!$C$42),"Yes","No") -> No | K196: =VLOOKUP($D196,'C.1 - Rate Sheets'!B:I,2,FALSE) -> 48.5 | L196: =VLOOKUP($D196,'C.1 - Rate Sheets'!B:I,3,FALSE) -> 65.5 | M196: =VLOOKUP($D196,'C.1 - Rate Sheets'!B:I,4,FALSE) -> 77.6 | N196: =VLOOKUP($D196,'C.1 - Rate Sheets'!B:I,5,FALSE) -> 0 | S196: 0 | X196: 0 | Y196: 8 | Z196: 24 | AC196: 32 | AH196: 0 | AM196: 0 | AS196: 8 | AT196: 24 | AU196: 0 | AV196: 0 | AW196: 32 | AX196: 388 | AY196: 1572 | AZ196: 0 | BA196: 0 | BB196: 1960 | BC196: 1960 | BD196: Yes | BE196: 0 | BF196: 0 | BG196: 0
B197: 144 | C197: Marcus Carter | D197: Crew Foreman | E197: Vendor No 6 | F197: Carter | G197: 913346172 | H197: 2018-10-26 | I197: 2018-10-27 | J197: =IF(AND(H197>='A - Contractor Summary'!$C$36,I197<='A - Contractor Summary'!$C$42),"Yes","No") -> No | K197: =VLOOKUP($D197,'C.1 - Rate Sheets'!B:I,2,FALSE) -> 56.8 | L197: =VLOOKUP($D197,'C.1 - Rate Sheets'!B:I,3,FALSE) -> 76.7 | M197: =VLOOKUP($D197,'C.1 - Rate Sheets'!B:I,4,FALSE) -> 90.9 | N197: =VLOOKUP($D197,'C.1 - Rate Sheets'!B:I,5,FALSE) -> 0 | S197: 0 | X197: 0 | Y197: 8 | Z197: 24 | AC197: 32 | AH197: 0 | AM197: 0 | AS197: 8 | AT197: 24 | AU197: 0 | AV197: 0 | AW197: 32 | AX197: 454.4 | AY197: 1840.8 | AZ197: 0 | BA197: 0 | BB197: 2295.2 | BC197: 2295.2 | BD197: Yes | BE197: 0 | BF197: 0 | BG197: 0
B198: 145 | C198: Mark Cody | D198: Tree Trimmer | E198: Vendor No 6 | F198: Carter | G198: 913346172 | H198: 2018-10-26 | I198: 2018-10-27 | J198: =IF(AND(H198>='A - Contractor Summary'!$C$36,I198<='A - Contractor Summary'!$C$42),"Yes","No") -> No | K198: =VLOOKUP($D198,'C.1 - Rate Sheets'!B:I,2,FALSE) -> 48.5 | L198: =VLOOKUP($D198,'C.1 - Rate Sheets'!B:I,3,FALSE) -> 65.5 | M198: =VLOOKUP($D198,'C.1 - Rate Sheets'!B:I,4,FALSE) -> 77.6 | N198: =VLOOKUP($D198,'C.1 - Rate Sheets'!B:I,5,FALSE) -> 0 | S198: 0 | X198: 0 | Y198: 8 | Z198: 24 | AC198: 32 | AH198: 0 | AM198: 0 | AS198: 8 | AT198: 24 | AU198: 0 | AV198: 0 | AW198: 32 | AX198: 388 | AY198: 1572 | AZ198: 0 | BA198: 0 | BB198: 1960 | BC198: 1960 | BD198: Yes | BE198: 0 | BF198: 0 | BG198: 0
B199: 146 | C199: Tim Jones | D199: Crew Foreman | E199: Vendor No 6 | F199: Jones | G199: 913346321 | H199: 2018-10-21 | I199: 2018-10-27 | J199: =IF(AND(H199>='A - Contractor Summary'!$C$36,I199<='A - Contractor Summary'!$C$42),"Yes","No") -> No | K199: =VLOOKUP($D199,'C.1 - Rate Sheets'!B:I,2,FALSE) -> 56.8 | L199: =VLOOKUP($D199,'C.1 - Rate Sheets'!B:I,3,FALSE) -> 76.7 | M199: =VLOOKUP($D199,'C.1 - Rate Sheets'!B:I,4,FALSE) -> 90.9 | N199: =VLOOKUP($D199,'C.1 - Rate Sheets'!B:I,5,FALSE) -> 0 | S199: 0 | X199: 0 | Y199: 40 | Z199: 56 | AA199: 16 | AC199: 112 | AH199: 0 | AM199: 0 | AS199: 40 | AT199: 56 | AU199: 16 | AV199: 0 | AW199: 112 | AX199: 2272 | AY199: 4295.2 | AZ199: 1454.4 | BA199: 0 | BB199: 8021.6 | BC199: 8021.6 | BD199: Yes | BE199: 0 | BF199: 0 | BG199: 0
B200: 146 | C200: Allan Johnson | D200: Crew Foreman | E200: Vendor No 6 | F200: Jones | G200: 913346321 | H200: 2018-10-21 | I200: 2018-10-27 | J200: =IF(AND(H200>='A - Contractor Summary'!$C$36,I200<='A - Contractor Summary'!$C$42),"Yes","No") -> No | K200: =VLOOKUP($D200,'C.1 - Rate Sheets'!B:I,2,FALSE) -> 56.8 | L200: =VLOOKUP($D200,'C.1 - Rate Sheets'!B:I,3,FALSE) -> 76.7 | M200: =VLOOKUP($D200,'C.1 - Rate Sheets'!B:I,4,FALSE) -> 90.9 | N200: =VLOOKUP($D200,'C.1 - Rate Sheets'!B:I,5,FALSE) -> 0 | S200: =SUM(O200:R200) -> 0 | X200: =SUM(T200:W200) -> 0 | Y200: 40 | Z200: 56 | AA200: 16 | AC200: =SUM(Y200:AB200) -> 112 | AH200: =SUM(AD200:AG200) -> 0 | AM200: =SUM(AI200:AL200) -> 0 | AS200: =SUM(O200,T200,Y200,AD200,AI200,AN200) -> 40 | AT200: =SUM(P200,U200,Z200,AE200,AJ200,AO200) -> 56 | AU200: =SUM(Q200,V200,AA200,AF200,AK200,AP200) -> 16 | AV200: =SUM(R200,W200,AB200,AG200,AL200,AQ200) -> 0 | AW200: =SUM(AS200:AV200) -> 112 | AX200: =AS200*K200 -> 2272 | AY200: =AT200*L200 -> 4295.2 | AZ200: =AU200*M200 -> 1454.4 | BA200: =AV200*N200 -> 0 | BB200: =SUM(AX200:BA200) -> 8021.6 | BC200: =BB200-BE200 -> 8021.6 | BD200: Yes | BE200: 0 | BF200: 0 | BG200: 0
B201: 147 | C201: Hunter Standfield | D201: Tree Trimmer | E201: Vendor No 6 | F201: Jones | G201: 913346321 | H201: 2018-10-21 | I201: 2018-10-27 | J201: =IF(AND(H201>='A - Contractor Summary'!$C$36,I201<='A - Contractor Summary'!$C$42),"Yes","No") -> No | K201: =VLOOKUP($D201,'C.1 - Rate Sheets'!B:I,2,FALSE) -> 48.5 | L201: =VLOOKUP($D201,'C.1 - Rate Sheets'!B:I,3,FALSE) -> 65.5 | M201: =VLOOKUP($D201,'C.1 - Rate Sheets'!B:I,4,FALSE) -> 77.6 | N201: =VLOOKUP($D201,'C.1 - Rate Sheets'!B:I,5,FALSE) -> 0 | S201: 0 | X201: 0 | Y201: 24 | Z201: 24 | AA201: 16 | AC201: 64 | AH201: 0 | AM201: 0 | AS201: 24 | AT201: 24 | AU201: 16 | AV201: 0 | AW201: 64 | AX201: 1164 | AY201: 1572 | AZ201: 1241.6 | BA201: 0 | BB201: 3977.6 | BC201: 3977.6 | BD201: Yes | BE201: 0 | BF201: 0 | BG201: 0
B202: 147 | C202: Jarad Osbourn | D202: Tree Trimmer | E202: Vendor No 6 | F202: Jones | G202: 913346321 | H202: 2018-10-21 | I202: 2018-10-27 | J202: =IF(AND(H202>='A - Contractor Summary'!$C$36,I202<='A - Contractor Summary'!$C$42),"Yes","No") -> No | K202: =VLOOKUP($D202,'C.1 - Rate Sheets'!B:I,2,FALSE) -> 48.5 | L202: =VLOOKUP($D202,'C.1 - Rate Sheets'!B:I,3,FALSE) -> 65.5 | M202: =VLOOKUP($D202,'C.1 - Rate Sheets'!B:I,4,FALSE) -> 77.6 | N202: =VLOOKUP($D202,'C.1 - Rate Sheets'!B:I,5,FALSE) -> 0 | S202: 0 | X202: 0 | Y202: 40 | Z202: 56 | AA202: 16 | AC202: 112 | AH202: 0 | AM202: 0 | AS202: 40 | AT202: 56 | AU202: 16 | AV202: 0 | AW202: 112 | AX202: 1940 | AY202: 3668 | AZ202: 1241.6 | BA202: 0 | BB202: 6849.6 | BC202: 6849.6 | BD202: Yes | BE202: 0 | BF202: 0 | BG202: 0
B203: 148 | C203: Jeremy McNamee | D203: Crew Foreman | E203: Vendor No 6 | F203: McNamee | G203: 913232495 | H203: 2018-10-28 | I203: 2018-10-31 | J203: =IF(AND(H203>='A - Contractor Summary'!$C$36,I203<='A - Contractor Summary'!$C$42),"Yes","No") -> No | K203: =VLOOKUP($D203,'C.1 - Rate Sheets'!B:I,2,FALSE) -> 56.8 | L203: =VLOOKUP($D203,'C.1 - Rate Sheets'!B:I,3,FALSE) -> 76.7 | M203: =VLOOKUP($D203,'C.1 - Rate Sheets'!B:I,4,FALSE) -> 90.9 | N203: =VLOOKUP($D203,'C.1 - Rate Sheets'!B:I,5,FALSE) -> 0 | S203: 0 | X203: 0 | AC203: 0 | AD203: 24 | AE203: 20 | AF203: 16 | AH203: 60 | AM203: 0 | AS203: 24 | AT203: 20 | AU203: 16 | AV203: 0 | AW203: 60 | AX203: 1363.2 | AY203: 1534 | AZ203: 1454.4 | BA203: 0 | BB203: 4351.6 | BC203: 4351.6 | BD203: Yes | BE203: 0 | BF203: 0 | BG203: 0
B204: 149 | C204: Gonzalez, Lazaro | D204: Tree Trimmer | E204: Vendor No 6 | F204: McNamee | G204: 913232495 | H204: 2018-10-28 | I204: 2018-10-31 | J204: =IF(AND(H204>='A - Contractor Summary'!$C$36,I204<='A - Contractor Summary'!$C$42),"Yes","No") -> No | K204: =VLOOKUP($D204,'C.1 - Rate Sheets'!B:I,2,FALSE) -> 48.5 | L204: =VLOOKUP($D204,'C.1 - Rate Sheets'!B:I,3,FALSE) -> 65.5 | M204: =VLOOKUP($D204,'C.1 - Rate Sheets'!B:I,4,FALSE) -> 77.6 | N204: =VLOOKUP($D204,'C.1 - Rate Sheets'!B:I,5,FALSE) -> 0 | S204: 0 | X204: 0 | AC204: 0 | AD204: 24 | AE204: 20 | AF204: 16 | AH204: 60 | AM204: 0 | AS204: 24 | AT204: 20 | AU204: 16 | AV204: 0 | AW204: 60 | AX204: 1164 | AY204: 1310 | AZ204: 1241.6 | BA204: 0 | BB204: 3715.6 | BC204: 3715.6 | BD204: Yes | BE204: 0 | BF204: 0 | BG204: 0
B205: 150 | C205: Ernesto Napoles | D205: Crew Foreman | E205: Vendor No 6 | F205: Napoles | G205: 913232497 | H205: 2018-10-28 | I205: 2018-10-31 | J205: =IF(AND(H205>='A - Contractor Summary'!$C$36,I205<='A - Contractor Summary'!$C$42),"Yes","No") -> No | K205: =VLOOKUP($D205,'C.1 - Rate Sheets'!B:I,2,FALSE) -> 56.8 | L205: =VLOOKUP($D205,'C.1 - Rate Sheets'!B:I,3,FALSE) -> 76.7 | M205: =VLOOKUP($D205,'C.1 - Rate Sheets'!B:I,4,FALSE) -> 90.9 | N205: =VLOOKUP($D205,'C.1 - Rate Sheets'!B:I,5,FALSE) -> 0 | S205: 0 | X205: 0 | AC205: 0 | AD205: 24 | AE205: 20 | AF205: 16 | AH205: 60 | AM205: 0 | AS205: 24 | AT205: 20 | AU205: 16 | AV205: 0 | AW205: 60 | AX205: 1363.2 | AY205: 1534 | AZ205: 1454.4 | BA205: 0 | BB205: 4351.6 | BC205: 4351.6 | BD205: Yes | BE205: 0 | BF205: 0 | BG205: 0
B206: 151 | C206: Galano Wilson | D206: Tree Trimmer | E206: Vendor No 6 | F206: Napoles | G206: 913232497 | H206: 2018-10-28 | I206: 2018-10-31 | J206: =IF(AND(H206>='A - Contractor Summary'!$C$36,I206<='A - Contractor Summary'!$C$42),"Yes","No") -> No | K206: =VLOOKUP($D206,'C.1 - Rate Sheets'!B:I,2,FALSE) -> 48.5 | L206: =VLOOKUP($D206,'C.1 - Rate Sheets'!B:I,3,FALSE) -> 65.5 | M206: =VLOOKUP($D206,'C.1 - Rate Sheets'!B:I,4,FALSE) -> 77.6 | N206: =VLOOKUP($D206,'C.1 - Rate Sheets'!B:I,5,FALSE) -> 0 | S206: 0 | X206: 0 | AC206: 0 | AD206: 24 | AE206: 20 | AF206: 16 | AH206: 60 | AM206: 0 | AS206: 24 | AT206: 20 | AU206: 16 | AV206: 0 | AW206: 60 | AX206: 1164 | AY206: 1310 | AZ206: 1241.6 | BA206: 0 | BB206: 3715.6 | BC206: 3715.6 | BD206: Yes | BE206: 0 | BF206: 0 | BG206: 0
B207: 152 | C207: Vidal, Jasmani | D207: Crew Foreman | E207: Vendor No 6 | F207: Yasmani | G207: 913232498 | H207: 2018-10-28 | I207: 2018-10-31 | J207: =IF(AND(H207>='A - Contractor Summary'!$C$36,I207<='A - Contractor Summary'!$C$42),"Yes","No") -> No | K207: =VLOOKUP($D207,'C.1 - Rate Sheets'!B:I,2,FALSE) -> 56.8 | L207: =VLOOKUP($D207,'C.1 - Rate Sheets'!B:I,3,FALSE) -> 76.7 | M207: =VLOOKUP($D207,'C.1 - Rate Sheets'!B:I,4,FALSE) -> 90.9 | N207: =VLOOKUP($D207,'C.1 - Rate Sheets'!B:I,5,FALSE) -> 0 | S207: 0 | X207: 0 | AC207: 0 | AD207: 24 | AE207: 20 | AF207: 16 | AH207: 60 | AM207: 0 | AS207: 24 | AT207: 20 | AU207: 16 | AV207: 0 | AW207: 60 | AX207: 1363.2 | AY207: 1534 | AZ207: 1454.4 | BA207: 0 | BB207: 4351.6 | BC207: 4351.6 | BD207: Yes | BE207: 0 | BF207: 0 | BG207: 0
B208: 153 | C208: La Rosa, Alexander | D208: Tree Trimmer | E208: Vendor No 6 | F208: Yasmani | G208: 913232498 | H208: 2018-10-28 | I208: 2018-10-31 | J208: =IF(AND(H208>='A - Contractor Summary'!$C$36,I208<='A - Contractor Summary'!$C$42),"Yes","No") -> No | K208: =VLOOKUP($D208,'C.1 - Rate Sheets'!B:I,2,FALSE) -> 48.5 | L208: =VLOOKUP($D208,'C.1 - Rate Sheets'!B:I,3,FALSE) -> 65.5 | M208: =VLOOKUP($D208,'C.1 - Rate Sheets'!B:I,4,FALSE) -> 77.6 | N208: =VLOOKUP($D208,'C.1 - Rate Sheets'!B:I,5,FALSE) -> 0 | S208: 0 | X208: 0 | AC208: 0 | AD208: 24 | AE208: 20 | AF208: 16 | AH208: 60 | AM208: 0 | AS208: 24 | AT208: 20 | AU208: 16 | AV208: 0 | AW208: 60 | AX208: 1164 | AY208: 1310 | AZ208: 1241.6 | BA208: 0 | BB208: 3715.6 | BC208: 3715.6 | BD208: Yes | BE208: 0 | BF208: 0 | BG208: 0
B209: 154 | C209: Rodriguez, Jusmani | D209: Crew Foreman | E209: Vendor No 6 | F209: Rodriguez | G209: 913232500 | H209: 2018-10-28 | I209: 2018-10-31 | J209: =IF(AND(H209>='A - Contractor Summary'!$C$36,I209<='A - Contractor Summary'!$C$42),"Yes","No") -> No | K209: =VLOOKUP($D209,'C.1 - Rate Sheets'!B:I,2,FALSE) -> 56.8 | L209: =VLOOKUP($D209,'C.1 - Rate Sheets'!B:I,3,FALSE) -> 76.7 | M209: =VLOOKUP($D209,'C.1 - Rate Sheets'!B:I,4,FALSE) -> 90.9 | N209: =VLOOKUP($D209,'C.1 - Rate Sheets'!B:I,5,FALSE) -> 0 | S209: 0 | X209: 0 | AC209: 0 | AD209: 24 | AE209: 20 | AF209: 16 | AH209: 60 | AM209: 0 | AS209: 24 | AT209: 20 | AU209: 16 | AV209: 0 | AW209: 60 | AX209: 1363.2 | AY209: 1534 | AZ209: 1454.4 | BA209: 0 | BB209: 4351.6 | BC209: 4351.6 | BD209: Yes | BE209: 0 | BF209: 0 | BG209: 0
... 238 more rows

Sheet C.3 - Asset by Company
A1: Asset Tag | B1: Position | C1: Name

Sheet C.4 - Timesheets - Equipment
B2: Equipment Charges - Time Card
B4: Test Plan: | C4: Obtain the time cards. (A) Populate the equipment names and types (if provided). Find additional information regarding individual equipment charge from related invoice. (B) Enter hours worked from time card(s). (C) Confirm that the dates per the time cards fall between dates provided per 'A - Contractor Summary' tab. (D) Identify any equipment charges to be reviewed. (E) For charges which required further review, document review (include why it was determined to be allowed/disallowed via a tickmark).
B10: Rx | C10: Recalculated.
B11: a | C11: Provided from tab 'C.1 - Rate Sheets'.
B12: b | C12: Check figure should equal $0. Cell will appear yellow if discrepancies are noted.
C14: A | H14: Rx | J14: C | K14: a | L14: B | Q14: Rx | T14: D | U14: E
B15: # | C15: Equipment Name | D15: Equipment ID | E15: Company | F15: Crew# | G15: Invoice | H15: Start Date | I15: End Date | J15: Dates Worked Reasonable? | K15: Rates | L15: Week Ending | M15: Week Ending | N15: Week Ending | O15: Week Ending | P15: Week Ending | Q15: Total Hours | R15: Total Equipment $ | S15: Allowable Charges | T15: To Be Reviewed | U15: Reviewed - Allowable Charge | V15: Reviewed - Unallowable Charge | W15: Tickmarks
L16: 2018-10-13 | M16: 2018-10-20 | N16: 2018-10-27 | O16: 2018-11-03 | P16: 2018-11-10
L17: Hours | M17: Hours | N17: Hours | O17: Hours | P17: Hours
B18: 1 | C18: Aerial Lift 60'- 4WD | D18: 3200839 | E18: Vendor No. 6 | G18: 913220721 | H18: 2018-10-07 | I18: 2018-10-13 | J18: =IF(AND(H18>='A - Contractor Summary'!$C$36,I18<='A - Contractor Summary'!$C$42),"Yes","No") -> No | K18: =VLOOKUP($C18,'C.1 - Rate Sheets'!H:I,2,FALSE) -> 23.25 | L18: 74 | Q18: =SUM(L18:P18) -> 74 | R18: =Q18*K18 -> 1720.5 | S18: =R18-T18 -> 1720.5 | T18: 0 | U18: 0 | V18: 0
B19: 2 | C19: Aerial Lift 60'- 2WD | D19: 3001907 | E19: Vendor No. 6 | G19: 913220823 | H19: 2018-10-07 | I19: 2018-10-13 | J19: =IF(AND(H19>='A - Contractor Summary'!$C$36,I19<='A - Contractor Summary'!$C$42),"Yes","No") -> No | K19: =VLOOKUP($C19,'C.1 - Rate Sheets'!H:I,2,FALSE) -> 18 | L19: 74 | Q19: =SUM(L19:P19) -> 74 | R19: 1332 | S19: 1332 | T19: 0 | U19: 0 | V19: 0
B20: 3 | C20: 4X4 Pick Up | D20: 2201206 | E20: Vendor No. 6 | G20: 913231731 | H20: 2018-10-07 | I20: 2018-10-13 | J20: =IF(AND(H20>='A - Contractor Summary'!$C$36,I20<='A - Contractor Summary'!$C$42),"Yes","No") -> No | K20: =VLOOKUP($C20,'C.1 - Rate Sheets'!H:I,2,FALSE) -> 10 | L20: 34 | Q20: 34 | R20: =Q20*K20 -> 340 | S20: =R20-T20 -> 340 | T20: 0 | U20: 0 | V20: 0
B21: 4 | C21: Aerial Lift 60'- 2WD | D21: 3100402 | E21: Vendor No. 6 | G21: 913231731 | H21: 2018-10-07 | I21: 2018-10-13 | J21: =IF(AND(H21>='A - Contractor Summary'!$C$36,I21<='A - Contractor Summary'!$C$42),"Yes","No") -> No | K21: =VLOOKUP($C21,'C.1 - Rate Sheets'!H:I,2,FALSE) -> 18 | L21: 64 | Q21: 64 | R21: 1152 | S21: 1152 | T21: 0 | U21: 0 | V21: 0
B22: 5 | C22: Manual Crew Truck | D22: 3002420 | E22: Vendor No. 6 | G22: 913231731 | H22: 2018-10-07 | I22: 2018-10-13 | J22: =IF(AND(H22>='A - Contractor Summary'!$C$36,I22<='A - Contractor Summary'!$C$42),"Yes","No") -> No | K22: =VLOOKUP($C22,'C.1 - Rate Sheets'!H:I,2,FALSE) -> 14 | L22: 34 | Q22: 34 | R22: 476 | S22: 476 | T22: 0 | U22: 0 | V22: 0
B23: 6 | C23: Aerial Lift 60'- 2WD | D23: 3001958 | E23: Vendor No. 6 | G23: 913281767 | H23: 2018-10-07 | I23: 2018-10-13 | J23: =IF(AND(H23>='A - Contractor Summary'!$C$36,I23<='A - Contractor Summary'!$C$42),"Yes","No") -> No | K23: =VLOOKUP($C23,'C.1 - Rate Sheets'!H:I,2,FALSE) -> 18 | L23: 28.25 | Q23: 28.25 | R23: 508.5 | S23: 508.5 | T23: 0 | U23: 0 | V23: 0
B24: 7 | C24: 4X4 Pick Up | D24: 2900295 | E24: Vendor No. 6 | G24: 913281791 | H24: 2018-10-07 | I24: 2018-10-13 | J24: =IF(AND(H24>='A - Contractor Summary'!$C$36,I24<='A - Contractor Summary'!$C$42),"Yes","No") -> No | K24: =VLOOKUP($C24,'C.1 - Rate Sheets'!H:I,2,FALSE) -> 10 | L24: 28.25 | Q24: 28.25 | R24: 282.5 | S24: 282.5 | T24: 0 | U24: 0 | V24: 0
B25: 8 | C25: 4X4 Pick Up | D25: 2203051 | E25: Vendor No. 6 | G25: 913293304 | H25: 2018-10-07 | I25: 2018-10-13 | J25: =IF(AND(H25>='A - Contractor Summary'!$C$36,I25<='A - Contractor Summary'!$C$42),"Yes","No") -> No | K25: =VLOOKUP($C25,'C.1 - Rate Sheets'!H:I,2,FALSE) -> 10 | L25: 7 | Q25: 7 | R25: 70 | S25: 70 | T25: 0 | U25: 0 | V25: 0
B26: 9 | C26: 4X4 Pick Up | D26: 2202033 | E26: Vendor No. 6 | G26: 913293305 | H26: 2018-10-07 | I26: 2018-10-13 | J26: =IF(AND(H26>='A - Contractor Summary'!$C$36,I26<='A - Contractor Summary'!$C$42),"Yes","No") -> No | K26: =VLOOKUP($C26,'C.1 - Rate Sheets'!H:I,2,FALSE) -> 10 | L26: 7 | Q26: 7 | R26: 70 | S26: 70 | T26: 0 | U26: 0 | V26: 0
B27: 10 | C27: 4X4 Pick Up | D27: 9818409 | E27: Vendor No. 6 | G27: 913293310 | H27: 2018-10-07 | I27: 2018-10-13 | J27: =IF(AND(H27>='A - Contractor Summary'!$C$36,I27<='A - Contractor Summary'!$C$42),"Yes","No") -> No | K27: =VLOOKUP($C27,'C.1 - Rate Sheets'!H:I,2,FALSE) -> 10 | L27: 14 | Q27: 14 | R27: 140 | S27: 140 | T27: 0 | U27: 0 | V27: 0
B28: 11 | C28: Aerial Lift 60'- 2WD | D28: 3002782 | E28: Vendor No. 6 | G28: 913346317 | H28: 2018-10-07 | I28: 2018-10-13 | J28: =IF(AND(H28>='A - Contractor Summary'!$C$36,I28<='A - Contractor Summary'!$C$42),"Yes","No") -> No | K28: =VLOOKUP($C28,'C.1 - Rate Sheets'!H:I,2,FALSE) -> 18 | L28: 28.25 | Q28: 28.25 | R28: 508.5 | S28: 508.5 | T28: 0 | U28: 0 | V28: 0
B29: 12 | C29: Aerial Lift 60'- 2WD | D29: 3001907 | E29: Vendor No. 6 | G29: 913223258 | H29: 2018-10-14 | I29: 2018-10-20 | J29: =IF(AND(H29>='A - Contractor Summary'!$C$36,I29<='A - Contractor Summary'!$C$42),"Yes","No") -> No | K29: =VLOOKUP($C29,'C.1 - Rate Sheets'!H:I,2,FALSE) -> 18 | M29: 118 | Q29: 118 | R29: 2124 | S29: 2124 | T29: 0 | U29: 0 | V29: 0
B30: 13 | C30: Aerial Lift 60'- 4WD | D30: 3200839 | E30: Vendor No. 6 | G30: 913223259 | H30: 2018-10-14 | I30: 2018-10-20 | J30: =IF(AND(H30>='A - Contractor Summary'!$C$36,I30<='A - Contractor Summary'!$C$42),"Yes","No") -> No | K30: =VLOOKUP($C30,'C.1 - Rate Sheets'!H:I,2,FALSE) -> 23.25 | M30: 118 | Q30: 118 | R30: 2743.5 | S30: 2743.5 | T30: 0 | U30: 0 | V30: 0
B31: 14 | C31: 4X4 Pick Up | D31: 2900454 | E31: Vendor No. 6 | G31: 913223316 | H31: 2018-10-14 | I31: 2018-10-20 | J31: =IF(AND(H31>='A - Contractor Summary'!$C$36,I31<='A - Contractor Summary'!$C$42),"Yes","No") -> No | K31: =VLOOKUP($C31,'C.1 - Rate Sheets'!H:I,2,FALSE) -> 10 | M31: 59 | Q31: 59 | R31: 590 | S31: 590 | T31: 0 | U31: 0 | V31: 0
B32: 15 | C32: Aerial Lift 60'- 2WD | D32: 3100448 | E32: Vendor No. 6 | G32: 913223316 | H32: 2018-10-14 | I32: 2018-10-20 | J32: =IF(AND(H32>='A - Contractor Summary'!$C$36,I32<='A - Contractor Summary'!$C$42),"Yes","No") -> No | K32: =VLOOKUP($C32,'C.1 - Rate Sheets'!H:I,2,FALSE) -> 18 | M32: 86 | Q32: 86 | R32: 1548 | S32: 1548 | T32: 0 | U32: 0 | V32: 0
B33: 16 | C33: Aerial Lift 60'- 2WD | D33: 3002513 | E33: Vendor No. 6 | G33: 913231723 | H33: 2018-10-14 | I33: 2018-10-20 | J33: =IF(AND(H33>='A - Contractor Summary'!$C$36,I33<='A - Contractor Summary'!$C$42),"Yes","No") -> No | K33: =VLOOKUP($C33,'C.1 - Rate Sheets'!H:I,2,FALSE) -> 18 | M33: 64 | Q33: 64 | R33: 1152 | S33: 1152 | T33: 0 | U33: 0 | V33: 0
B34: 17 | C34: Aerial Lift 60'- 2WD | D34: 3002093 | E34: Vendor No. 6 | G34: 913231724 | H34: 2018-10-14 | I34: 2018-10-20 | J34: =IF(AND(H34>='A - Contractor Summary'!$C$36,I34<='A - Contractor Summary'!$C$42),"Yes","No") -> No | K34: =VLOOKUP($C34,'C.1 - Rate Sheets'!H:I,2,FALSE) -> 18 | M34: 64 | Q34: 64 | R34: 1152 | S34: 1152 | T34: 0 | U34: 0 | V34: 0
B35: 18 | C35: Aerial Lift 60'- 2WD | D35: 3002094 | E35: Vendor No. 6 | G35: 913231726 | H35: 2018-10-14 | I35: 2018-10-20 | J35: =IF(AND(H35>='A - Contractor Summary'!$C$36,I35<='A - Contractor Summary'!$C$42),"Yes","No") -> No | K35: =VLOOKUP($C35,'C.1 - Rate Sheets'!H:I,2,FALSE) -> 18 | M35: 64 | Q35: 64 | R35: 1152 | S35: 1152 | T35: 0 | U35: 0 | V35: 0
B36: 19 | C36: 4X4 Pick Up | D36: 2900418 | E36: Vendor No. 6 | G36: 913231727 | H36: 2018-10-14 | I36: 2018-10-20 | J36: =IF(AND(H36>='A - Contractor Summary'!$C$36,I36<='A - Contractor Summary'!$C$42),"Yes","No") -> No | K36: =VLOOKUP($C36,'C.1 - Rate Sheets'!H:I,2,FALSE) -> 10 | M36: 64 | Q36: 64 | R36: 640 | S36: 640 | T36: 0 | U36: 0 | V36: 0
B37: 20 | C37: Manual Crew Truck | D37: 1501373 | E37: Vendor No. 6 | G37: 913231732 | H37: 2018-10-14 | I37: 2018-10-20 | J37: =IF(AND(H37>='A - Contractor Summary'!$C$36,I37<='A - Contractor Summary'!$C$42),"Yes","No") -> No | K37: =VLOOKUP($C37,'C.1 - Rate Sheets'!H:I,2,FALSE) -> 14 | M37: 112 | Q37: 112 | R37: 1568 | S37: 1568 | T37: 0 | U37: 0 | V37: 0
B38: 21 | C38: 4X4 Pick Up | D38: 2201206 | E38: Vendor No. 6 | G38: 913231733 | H38: 2018-10-14 | I38: 2018-10-20 | J38: =IF(AND(H38>='A - Contractor Summary'!$C$36,I38<='A - Contractor Summary'!$C$42),"Yes","No") -> No | K38: =VLOOKUP($C38,'C.1 - Rate Sheets'!H:I,2,FALSE) -> 10 | M38: 112 | Q38: 112 | R38: 1120 | S38: 1120 | T38: 0 | U38: 0 | V38: 0
B39: 22 | C39: Aerial Lift 60'- 2WD | D39: 3002420 | E39: Vendor No. 6 | G39: 913231734 | H39: 2018-10-14 | I39: 2018-10-20 | J39: =IF(AND(H39>='A - Contractor Summary'!$C$36,I39<='A - Contractor Summary'!$C$42),"Yes","No") -> No | K39: =VLOOKUP($C39,'C.1 - Rate Sheets'!H:I,2,FALSE) -> 18 | M39: 112 | Q39: 112 | R39: 2016 | S39: 2016 | T39: 0 | U39: 0 | V39: 0
B40: 23 | C40: Aerial Lift 60'- 2WD | E40: Vendor No. 6 | G40: 913259237 | H40: 2018-10-14 | I40: 2018-10-20 | J40: =IF(AND(H40>='A - Contractor Summary'!$C$36,I40<='A - Contractor Summary'!$C$42),"Yes","No") -> No | K40: =VLOOKUP($C40,'C.1 - Rate Sheets'!H:I,2,FALSE) -> 18 | M40: 50 | Q40: 50 | R40: 900 | S40: 900 | T40: 0 | U40: 0 | V40: 0
B41: 24 | C41: Aerial Lift 60'- 4WD | E41: Vendor No. 6 | G41: 913259242 | H41: 2018-10-14 | I41: 2018-10-20 | J41: =IF(AND(H41>='A - Contractor Summary'!$C$36,I41<='A - Contractor Summary'!$C$42),"Yes","No") -> No | K41: =VLOOKUP($C41,'C.1 - Rate Sheets'!H:I,2,FALSE) -> 23.25 | M41: 50 | Q41: 50 | R41: 1162.5 | S41: 1162.5 | T41: 0 | U41: 0 | V41: 0
B42: 25 | C42: 4X4 Pick Up | D42: 2900429 | E42: Vendor No. 6 | G42: 913259373 | H42: 2018-10-14 | I42: 2018-10-20 | J42: =IF(AND(H42>='A - Contractor Summary'!$C$36,I42<='A - Contractor Summary'!$C$42),"Yes","No") -> No | K42: =VLOOKUP($C42,'C.1 - Rate Sheets'!H:I,2,FALSE) -> 10 | M42: 88 | Q42: 88 | R42: 880 | S42: 880 | T42: 0 | U42: 0 | V42: 0
B43: 26 | C43: Aerial Lift < 60' | D43: 3002782 | E43: Vendor No. 6 | G43: 913281772 | H43: 2018-10-14 | I43: 2018-10-20 | J43: =IF(AND(H43>='A - Contractor Summary'!$C$36,I43<='A - Contractor Summary'!$C$42),"Yes","No") -> No | K43: =VLOOKUP($C43,'C.1 - Rate Sheets'!H:I,2,FALSE) -> 28 | M43: 96 | Q43: 96 | R43: 2688 | S43: 2688 | T43: 0 | U43: 0 | V43: 0
B44: 27 | C44: 4X4 Pick Up | D44: 9818436 | E44: Vendor No. 6 | G44: 913293312 | H44: 2018-10-14 | I44: 2018-10-20 | J44: =IF(AND(H44>='A - Contractor Summary'!$C$36,I44<='A - Contractor Summary'!$C$42),"Yes","No") -> No | K44: =VLOOKUP($C44,'C.1 - Rate Sheets'!H:I,2,FALSE) -> 10 | M44: 64 | Q44: 64 | R44: 640 | S44: 640 | T44: 0 | U44: 0 | V44: 0
B45: 28 | C45: 4X4 Pick Up | D45: 9818506 | E45: Vendor No. 6 | G45: 913293313 | H45: 2018-10-14 | I45: 2018-10-20 | J45: =IF(AND(H45>='A - Contractor Summary'!$C$36,I45<='A - Contractor Summary'!$C$42),"Yes","No") -> No | K45: =VLOOKUP($C45,'C.1 - Rate Sheets'!H:I,2,FALSE) -> 10 | M45: 38 | Q45: 38 | R45: 380 | S45: 380 | T45: 0 | U45: 0 | V45: 0
B46: 29 | C46: 4X4 Pick Up | D46: 2203051 | E46: Vendor No. 6 | G46: 913293314 | H46: 2018-10-14 | I46: 2018-10-20 | J46: =IF(AND(H46>='A - Contractor Summary'!$C$36,I46<='A - Contractor Summary'!$C$42),"Yes","No") -> No | K46: =VLOOKUP($C46,'C.1 - Rate Sheets'!H:I,2,FALSE) -> 10 | M46: 56 | Q46: 56 | R46: 560 | S46: 560 | T46: 0 | U46: 0 | V46: 0
B47: 30 | C47: 4X4 Pick Up | D47: 9818409 | E47: Vendor No. 6 | G47: 913293315 | H47: 2018-10-14 | I47: 2018-10-20 | J47: =IF(AND(H47>='A - Contractor Summary'!$C$36,I47<='A - Contractor Summary'!$C$42),"Yes","No") -> No | K47: =VLOOKUP($C47,'C.1 - Rate Sheets'!H:I,2,FALSE) -> 10 | M47: 28 | Q47: 28 | R47: 280 | S47: 280 | T47: 0 | U47: 0 | V47: 0
B48: 31 | C48: 4X4 Pick Up | D48: 2202233 | E48: Vendor No. 6 | G48: 913293316 | H48: 2018-10-14 | I48: 2018-10-20 | J48: =IF(AND(H48>='A - Contractor Summary'!$C$36,I48<='A - Contractor Summary'!$C$42),"Yes","No") -> No | K48: =VLOOKUP($C48,'C.1 - Rate Sheets'!H:I,2,FALSE) -> 10 | M48: 14 | Q48: 14 | R48: 140 | S48: 140 | T48: 0 | U48: 0 | V48: 0
B49: 32 | C49: 4X4 Pick Up | D49: 9818409 | E49: Vendor No. 6 | G49: 913301063 | H49: 2018-10-28 | I49: 2018-11-03 | J49: =IF(AND(H49>='A - Contractor Summary'!$C$36,I49<='A - Contractor Summary'!$C$42),"Yes","No") -> No | K49: =VLOOKUP($C49,'C.1 - Rate Sheets'!H:I,2,FALSE) -> 10 | O49: 75 | Q49: 75 | R49: 750 | S49: 750 | T49: 0 | U49: 0 | V49: 0
B50: 33 | C50: 4X4 Pick Up | D50: 9818464 | E50: Vendor No. 6 | G50: 913301071 | H50: 2018-10-14 | I50: 2018-10-20 | J50: =IF(AND(H50>='A - Contractor Summary'!$C$36,I50<='A - Contractor Summary'!$C$42),"Yes","No") -> No | K50: =VLOOKUP($C50,'C.1 - Rate Sheets'!H:I,2,FALSE) -> 10 | M50: 6 | Q50: 6 | R50: 60 | S50: 60 | T50: 0 | U50: 0 | V50: 0
B51: 34 | C51: Manual Crew Truck | D51: 5801062 | E51: Vendor No. 6 | G51: 913346146 | H51: 2018-10-14 | I51: 2018-10-20 | J51: =IF(AND(H51>='A - Contractor Summary'!$C$36,I51<='A - Contractor Summary'!$C$42),"Yes","No") -> No | K51: =VLOOKUP($C51,'C.1 - Rate Sheets'!H:I,2,FALSE) -> 14 | M51: 109 | Q51: 109 | R51: 1526 | S51: 1526 | T51: 0 | U51: 0 | V51: 0
B52: 35 | C52: 4X4 Pick Up | D52: 2900296 | E52: Vendor No. 6 | G52: 913346146 | H52: 2018-10-14 | I52: 2018-10-20 | J52: =IF(AND(H52>='A - Contractor Summary'!$C$36,I52<='A - Contractor Summary'!$C$42),"Yes","No") -> No | K52: =VLOOKUP($C52,'C.1 - Rate Sheets'!H:I,2,FALSE) -> 10 | M52: 109 | Q52: 109 | R52: 1090 | S52: 1090 | T52: 0 | U52: 0 | V52: 0
B53: 36 | C53: Aerial Lift < 60' | D53: 3002782 | E53: Vendor No. 6 | G53: 913346153 | H53: 2018-10-14 | I53: 2018-10-20 | J53: =IF(AND(H53>='A - Contractor Summary'!$C$36,I53<='A - Contractor Summary'!$C$42),"Yes","No") -> No | K53: =VLOOKUP($C53,'C.1 - Rate Sheets'!H:I,2,FALSE) -> 28 | M53: 108.25 | Q53: 108.25 | R53: 3031 | S53: 3031 | T53: 0 | U53: 0 | V53: 0
B54: 37 | C54: Aerial Lift < 60' | D54: 3200876 | E54: Vendor No. 6 | G54: 913346195 | H54: 2018-10-14 | I54: 2018-10-20 | J54: =IF(AND(H54>='A - Contractor Summary'!$C$36,I54<='A - Contractor Summary'!$C$42),"Yes","No") -> No | K54: =VLOOKUP($C54,'C.1 - Rate Sheets'!H:I,2,FALSE) -> 28 | M54: 108.25 | Q54: 108.25 | R54: 3031 | S54: 3031 | T54: 0 | U54: 0 | V54: 0
B55: 38 | C55: Aerial Lift 60'- 2WD | D55: 3100403 | E55: Vendor No. 6 | G55: 913346486 | H55: 2018-10-14 | I55: 2018-10-20 | J55: =IF(AND(H55>='A - Contractor Summary'!$C$36,I55<='A - Contractor Summary'!$C$42),"Yes","No") -> No | K55: =VLOOKUP($C55,'C.1 - Rate Sheets'!H:I,2,FALSE) -> 18 | M55: 117 | Q55: 117 | R55: 2106 | S55: 2106 | T55: 0 | U55: 0 | V55: 0
B56: 39 | C56: 4X4 Pick Up | D56: 2900256 | E56: Vendor No. 6 | G56: 913262679 | H56: 2018-10-21 | I56: 2018-10-27 | J56: =IF(AND(H56>='A - Contractor Summary'!$C$36,I56<='A - Contractor Summary'!$C$42),"Yes","No") -> No | K56: =VLOOKUP($C56,'C.1 - Rate Sheets'!H:I,2,FALSE) -> 10 | N56: 31.25 | Q56: 31.25 | R56: 312.5 | S56: 312.5 | T56: 0 | U56: 0 | V56: 0
B57: 40 | C57: Aerial Lift 60'- 2WD | D57: 3100448 | E57: Vendor No. 6 | G57: 913220899 | H57: 2018-10-21 | I57: 2018-10-27 | J57: =IF(AND(H57>='A - Contractor Summary'!$C$36,I57<='A - Contractor Summary'!$C$42),"Yes","No") -> No | K57: =VLOOKUP($C57,'C.1 - Rate Sheets'!H:I,2,FALSE) -> 18 | N57: 128 | Q57: 128 | R57: 2304 | S57: 2304 | T57: 0 | U57: 0 | V57: 0
B58: 41 | C58: 4X4 Pick Up | D58: 2900454 | E58: Vendor No. 6 | G58: 913220899 | H58: 2018-10-21 | I58: 2018-10-27 | J58: =IF(AND(H58>='A - Contractor Summary'!$C$36,I58<='A - Contractor Summary'!$C$42),"Yes","No") -> No | K58: =VLOOKUP($C58,'C.1 - Rate Sheets'!H:I,2,FALSE) -> 10 | N58: 112 | Q58: 112 | R58: 1120 | S58: 1120 | T58: 0 | U58: 0 | V58: 0
B59: 42 | C59: Aerial Lift 60'- 2WD | E59: Vendor No. 6 | G59: 913223261 | H59: 2018-10-21 | I59: 2018-10-27 | J59: =IF(AND(H59>='A - Contractor Summary'!$C$36,I59<='A - Contractor Summary'!$C$42),"Yes","No") -> No | K59: =VLOOKUP($C59,'C.1 - Rate Sheets'!H:I,2,FALSE) -> 18 | N59: 104 | Q59: 104 | R59: 1872 | S59: 1872 | T59: 0 | U59: 0 | V59: 0
B60: 43 | C60: Aerial Lift 60'- 4WD | E60: Vendor No. 6 | G60: 913223262 | H60: 2018-10-21 | I60: 2018-10-27 | J60: =IF(AND(H60>='A - Contractor Summary'!$C$36,I60<='A - Contractor Summary'!$C$42),"Yes","No") -> No | K60: =VLOOKUP($C60,'C.1 - Rate Sheets'!H:I,2,FALSE) -> 23.25 | N60: 104 | Q60: 104 | R60: 2418 | S60: 2418 | T60: 0 | U60: 0 | V60: 0
B61: 44 | C61: Aerial Lift 60'- 2WD | E61: Vendor No. 6 | G61: 913231713 | H61: 2018-10-21 | I61: 2018-10-27 | J61: =IF(AND(H61>='A - Contractor Summary'!$C$36,I61<='A - Contractor Summary'!$C$42),"Yes","No") -> No | K61: =VLOOKUP($C61,'C.1 - Rate Sheets'!H:I,2,FALSE) -> 18 | N61: 112 | Q61: 112 | R61: 2016 | S61: 2016 | T61: 0 | U61: 0 | V61: 0
B62: 45 | C62: Aerial Lift 60'- 2WD | E62: Vendor No. 6 | G62: 913231714 | H62: 2018-10-21 | I62: 2018-10-27 | J62: =IF(AND(H62>='A - Contractor Summary'!$C$36,I62<='A - Contractor Summary'!$C$42),"Yes","No") -> No | K62: =VLOOKUP($C62,'C.1 - Rate Sheets'!H:I,2,FALSE) -> 18 | N62: 112 | Q62: 112 | R62: 2016 | S62: 2016 | T62: 0 | U62: 0 | V62: 0
B63: 46 | C63: Aerial Lift 60'- 2WD | E63: Vendor No. 6 | G63: 913231715 | H63: 2018-10-21 | I63: 2018-10-27 | J63: =IF(AND(H63>='A - Contractor Summary'!$C$36,I63<='A - Contractor Summary'!$C$42),"Yes","No") -> No | K63: =VLOOKUP($C63,'C.1 - Rate Sheets'!H:I,2,FALSE) -> 18 | N63: 112 | Q63: 112 | R63: 2016 | S63: 2016 | T63: 0 | U63: 0 | V63: 0
B64: 47 | C64: Aerial Lift 60'- 2WD | E64: Vendor No. 6 | G64: 913231720 | H64: 2018-10-21 | I64: 2018-10-27 | J64: =IF(AND(H64>='A - Contractor Summary'!$C$36,I64<='A - Contractor Summary'!$C$42),"Yes","No") -> No | K64: =VLOOKUP($C64,'C.1 - Rate Sheets'!H:I,2,FALSE) -> 18 | N64: 112 | Q64: 112 | R64: 2016 | S64: 2016 | T64: 0 | U64: 0 | V64: 0
B65: 48 | C65: 4X4 Pick Up | E65: Vendor No. 6 | G65: 913231722 | H65: 2018-10-21 | I65: 2018-10-27 | J65: =IF(AND(H65>='A - Contractor Summary'!$C$36,I65<='A - Contractor Summary'!$C$42),"Yes","No") -> No | K65: =VLOOKUP($C65,'C.1 - Rate Sheets'!H:I,2,FALSE) -> 10 | N65: 112 | Q65: 112 | R65: 1120 | S65: 1120 | T65: 0 | U65: 0 | V65: 0
B66: 49 | C66: 4X4 Pick Up | E66: Vendor No. 6 | G66: 913231735 | H66: 2018-10-21 | I66: 2018-10-27 | J66: =IF(AND(H66>='A - Contractor Summary'!$C$36,I66<='A - Contractor Summary'!$C$42),"Yes","No") -> No | K66: =VLOOKUP($C66,'C.1 - Rate Sheets'!H:I,2,FALSE) -> 10 | N66: 112 | Q66: 112 | R66: 1120 | S66: 1120 | T66: 0 | U66: 0 | V66: 0
B67: 50 | C67: Aerial Lift 60'- 2WD | E67: Vendor No. 6 | G67: 913231736 | H67: 2018-10-21 | I67: 2018-10-27 | J67: =IF(AND(H67>='A - Contractor Summary'!$C$36,I67<='A - Contractor Summary'!$C$42),"Yes","No") -> No | K67: =VLOOKUP($C67,'C.1 - Rate Sheets'!H:I,2,FALSE) -> 18 | N67: 112 | Q67: 112 | R67: 2016 | S67: 2016 | T67: 0 | U67: 0 | V67: 0
B68: 51 | C68: Manual Crew Truck | D68: 1501373 | E68: Vendor No. 6 | G68: 913231737 | H68: 2018-10-21 | I68: 2018-10-27 | J68: =IF(AND(H68>='A - Contractor Summary'!$C$36,I68<='A - Contractor Summary'!$C$42),"Yes","No") -> No | K68: =VLOOKUP($C68,'C.1 - Rate Sheets'!H:I,2,FALSE) -> 14 | N68: 112 | Q68: 112 | R68: 1568 | S68: 1568 | T68: 0 | U68: 0 | V68: 0
B69: 52 | C69: Aerial Lift 60'- 2WD | E69: Vendor No. 6 | G69: 913231738 | H69: 2018-10-21 | I69: 2018-10-27 | J69: =IF(AND(H69>='A - Contractor Summary'!$C$36,I69<='A - Contractor Summary'!$C$42),"Yes","No") -> No | K69: =VLOOKUP($C69,'C.1 - Rate Sheets'!H:I,2,FALSE) -> 18 | N69: 112 | Q69: 112 | R69: 2016 | S69: 2016 | T69: 0 | U69: 0 | V69: 0
B70: 53 | C70: 4X4 Pick Up | D70: 2900253 | E70: Vendor No. 6 | G70: 913231739 | H70: 2018-10-21 | I70: 2018-10-27 | J70: =IF(AND(H70>='A - Contractor Summary'!$C$36,I70<='A - Contractor Summary'!$C$42),"Yes","No") -> No | K70: =VLOOKUP($C70,'C.1 - Rate Sheets'!H:I,2,FALSE) -> 10 | N70: 32 | Q70: 32 | R70: 320 | S70: 320 | T70: 0 | U70: 0 | V70: 0
B71: 54 | C71: Aerial Lift 60'- 4WD | D71: 3200878 | E71: Vendor No. 6 | G71: 913231740 | H71: 2018-10-21 | I71: 2018-10-27 | J71: =IF(AND(H71>='A - Contractor Summary'!$C$36,I71<='A - Contractor Summary'!$C$42),"Yes","No") -> No | K71: =VLOOKUP($C71,'C.1 - Rate Sheets'!H:I,2,FALSE) -> 23.25 | N71: 32 | Q71: 32 | R71: 744 | S71: 744 | T71: 0 | U71: 0 | V71: 0
B72: 55 | C72: Aerial Lift 60'- 4WD | D72: 3200830 | E72: Vendor No. 6 | G72: 913231741 | H72: 2018-10-21 | I72: 2018-10-27 | J72: =IF(AND(H72>='A - Contractor Summary'!$C$36,I72<='A - Contractor Summary'!$C$42),"Yes","No") -> No | K72: =VLOOKUP($C72,'C.1 - Rate Sheets'!H:I,2,FALSE) -> 23.25 | N72: 32 | Q72: 32 | R72: 744 | S72: 744 | T72: 0 | U72: 0 | V72: 0
B73: 56 | C73: Aerial Lift < 60' | D73: 3001225 | E73: Vendor No. 6 | G73: 913231743 | H73: 2018-10-21 | I73: 2018-10-27 | J73: =IF(AND(H73>='A - Contractor Summary'!$C$36,I73<='A - Contractor Summary'!$C$42),"Yes","No") -> No | K73: =VLOOKUP($C73,'C.1 - Rate Sheets'!H:I,2,FALSE) -> 28 | N73: 32 | Q73: 32 | R73: 896 | S73: 896 | T73: 0 | U73: 0 | V73: 0
B74: 57 | C74: Aerial Lift 60'- 2WD | D74: 3001037 | E74: Vendor No. 6 | G74: 913243107 | H74: 2018-10-21 | I74: 2018-10-27 | J74: =IF(AND(H74>='A - Contractor Summary'!$C$36,I74<='A - Contractor Summary'!$C$42),"Yes","No") -> No | K74: =VLOOKUP($C74,'C.1 - Rate Sheets'!H:I,2,FALSE) -> 18 | N74: 31.25 | Q74: 31.25 | R74: 562.5 | S74: 562.5 | T74: 0 | U74: 0 | V74: 0
B75: 58 | C75: Aerial Lift 60'- 2WD | D75: 3002786 | E75: Vendor No. 6 | G75: 913243108 | H75: 2018-10-21 | I75: 2018-10-27 | J75: =IF(AND(H75>='A - Contractor Summary'!$C$36,I75<='A - Contractor Summary'!$C$42),"Yes","No") -> No | K75: =VLOOKUP($C75,'C.1 - Rate Sheets'!H:I,2,FALSE) -> 18 | N75: 31.25 | Q75: 31.25 | R75: 562.5 | S75: 562.5 | T75: 0 | U75: 0 | V75: 0
B76: 59 | C76: Aerial Lift 60'- 2WD | D76: 3000759 | E76: Vendor No. 6 | G76: 913243110 | H76: 2018-10-21 | I76: 2018-10-27 | J76: =IF(AND(H76>='A - Contractor Summary'!$C$36,I76<='A - Contractor Summary'!$C$42),"Yes","No") -> No | K76: =VLOOKUP($C76,'C.1 - Rate Sheets'!H:I,2,FALSE) -> 18 | N76: 31.25 | Q76: 31.25 | R76: 562.5 | S76: 562.5 | T76: 0 | U76: 0 | V76: 0
B77: 60 | C77: Aerial Lift 60'- 2WD | D77: 3002826 | E77: Vendor No. 6 | G77: 913243111 | H77: 2018-10-21 | I77: 2018-10-27 | J77: =IF(AND(H77>='A - Contractor Summary'!$C$36,I77<='A - Contractor Summary'!$C$42),"Yes","No") -> No | K77: =VLOOKUP($C77,'C.1 - Rate Sheets'!H:I,2,FALSE) -> 18 | N77: 31.25 | Q77: 31.25 | R77: 562.5 | S77: 562.5 | T77: 0 | U77: 0 | V77: 0
B78: 61 | C78: Aerial Lift 60'- 2WD | D78: 3300091 | E78: Vendor No. 6 | G78: 913243112 | H78: 2018-10-21 | I78: 2018-10-27 | J78: =IF(AND(H78>='A - Contractor Summary'!$C$36,I78<='A - Contractor Summary'!$C$42),"Yes","No") -> No | K78: =VLOOKUP($C78,'C.1 - Rate Sheets'!H:I,2,FALSE) -> 18 | N78: 31.25 | Q78: 31.25 | R78: 562.5 | S78: 562.5 | T78: 0 | U78: 0 | V78: 0
B79: 62 | C79: Aerial Lift < 60' | D79: 3200799 | E79: Vendor No. 6 | G79: 913243113 | H79: 2018-10-21 | I79: 2018-10-27 | J79: =IF(AND(H79>='A - Contractor Summary'!$C$36,I79<='A - Contractor Summary'!$C$42),"Yes","No") -> No | K79: =VLOOKUP($C79,'C.1 - Rate Sheets'!H:I,2,FALSE) -> 28 | N79: 31.25 | Q79: 31.25 | R79: 875 | S79: 875 | T79: 0 | U79: 0 | V79: 0
B80: 63 | C80: Aerial Lift 60'- 2WD | D80: 3002784 | E80: Vendor No. 6 | G80: 913243114 | H80: 2018-10-21 | I80: 2018-10-27 | J80: =IF(AND(H80>='A - Contractor Summary'!$C$36,I80<='A - Contractor Summary'!$C$42),"Yes","No") -> No | K80: =VLOOKUP($C80,'C.1 - Rate Sheets'!H:I,2,FALSE) -> 18 | N80: 31.25 | Q80: 31.25 | R80: 562.5 | S80: 562.5 | T80: 0 | U80: 0 | V80: 0
B81: 64 | C81: 4X4 Pick Up | D81: 2900271 | E81: Vendor No. 6 | G81: 913243115 | H81: 2018-10-21 | I81: 2018-10-27 | J81: =IF(AND(H81>='A - Contractor Summary'!$C$36,I81<='A - Contractor Summary'!$C$42),"Yes","No") -> No | K81: =VLOOKUP($C81,'C.1 - Rate Sheets'!H:I,2,FALSE) -> 10 | N81: 31.25 | Q81: 31.25 | R81: 312.5 | S81: 312.5 | T81: 0 | U81: 0 | V81: 0
B82: 65 | C82: Aerial Lift 60'- 2WD | E82: Vendor No. 6 | G82: 913259277 | H82: 2018-10-21 | I82: 2018-10-27 | J82: =IF(AND(H82>='A - Contractor Summary'!$C$36,I82<='A - Contractor Summary'!$C$42),"Yes","No") -> No | K82: =VLOOKUP($C82,'C.1 - Rate Sheets'!H:I,2,FALSE) -> 18 | N82: 112 | Q82: 112 | R82: 2016 | S82: 2016 | T82: 0 | U82: 0 | V82: 0
B83: 66 | C83: 4X4 Pick Up | D83: 2900382 | E83: Vendor No. 6 | G83: 913259282 | H83: 2018-10-21 | I83: 2018-10-27 | J83: =IF(AND(H83>='A - Contractor Summary'!$C$36,I83<='A - Contractor Summary'!$C$42),"Yes","No") -> No | K83: =VLOOKUP($C83,'C.1 - Rate Sheets'!H:I,2,FALSE) -> 10 | N83: 176 | Q83: =SUM(L83:P83) -> 176 | R83: 1760 | S83: 1760 | T83: 0 | U83: 0 | V83: 0
B84: 67 | C84: 4X4 Pick Up | D84: 2900540 | E84: Vendor No. 6 | G84: 913259291 | H84: 2018-10-21 | I84: 2018-10-27 | J84: =IF(AND(H84>='A - Contractor Summary'!$C$36,I84<='A - Contractor Summary'!$C$42),"Yes","No") -> No | K84: =VLOOKUP($C84,'C.1 - Rate Sheets'!H:I,2,FALSE) -> 10 | N84: 112 | Q84: 112 | R84: =Q84*K84 -> 1120 | S84: =R84-T84 -> 1120 | T84: 0 | U84: 0 | V84: 0
B85: 68 | C85: Aerial Lift 60'- 2WD | E85: Vendor No. 6 | G85: 913259293 | H85: 2018-10-21 | I85: 2018-10-27 | J85: =IF(AND(H85>='A - Contractor Summary'!$C$36,I85<='A - Contractor Summary'!$C$42),"Yes","No") -> No | K85: =VLOOKUP($C85,'C.1 - Rate Sheets'!H:I,2,FALSE) -> 18 | N85: 112 | Q85: 112 | R85: 2016 | S85: 2016 | T85: 0 | U85: 0 | V85: 0
B86: 69 | C86: Aerial Lift 60'- 2WD | D86: 3002797 | E86: Vendor No. 6 | G86: 913259355 | H86: 2018-10-21 | I86: 2018-10-27 | J86: =IF(AND(H86>='A - Contractor Summary'!$C$36,I86<='A - Contractor Summary'!$C$42),"Yes","No") -> No | K86: =VLOOKUP($C86,'C.1 - Rate Sheets'!H:I,2,FALSE) -> 18 | N86: 112 | Q86: 112 | R86: =Q86*K86 -> 2016 | S86: =R86-T86 -> 2016 | T86: 0 | U86: 0 | V86: 0
B87: 70 | C87: Aerial Lift 60'- 4WD | D87: 3300138 | E87: Vendor No. 6 | G87: 913259355 | H87: 2018-10-21 | I87: 2018-10-27 | J87: =IF(AND(H87>='A - Contractor Summary'!$C$36,I87<='A - Contractor Summary'!$C$42),"Yes","No") -> No | K87: =VLOOKUP($C87,'C.1 - Rate Sheets'!H:I,2,FALSE) -> 23.25 | N87: 112 | Q87: 112 | R87: 2604 | S87: 2604 | T87: 0 | U87: 0 | V87: 0
B88: 71 | C88: Aerial Lift < 60' | D88: 3300132 | E88: Vendor No. 6 | G88: 913259355 | H88: 2018-10-21 | I88: 2018-10-27 | J88: =IF(AND(H88>='A - Contractor Summary'!$C$36,I88<='A - Contractor Summary'!$C$42),"Yes","No") -> No | K88: =VLOOKUP($C88,'C.1 - Rate Sheets'!H:I,2,FALSE) -> 28 | N88: 112 | Q88: 112 | R88: 3136 | S88: 3136 | T88: 0 | U88: 0 | V88: 0
B89: 72 | C89: 4X4 Pick Up | E89: Vendor No. 6 | G89: 913259357 | H89: 2018-10-21 | I89: 2018-10-27 | J89: =IF(AND(H89>='A - Contractor Summary'!$C$36,I89<='A - Contractor Summary'!$C$42),"Yes","No") -> No | K89: =VLOOKUP($C89,'C.1 - Rate Sheets'!H:I,2,FALSE) -> 10 | N89: 112 | Q89: 112 | R89: 1120 | S89: 1120 | T89: 0 | U89: 0 | V89: 0
B90: 73 | C90: Aerial Lift 60'- 4WD | E90: Vendor No. 6 | G90: 913262294 | H90: 2018-10-21 | I90: 2018-10-27 | J90: =IF(AND(H90>='A - Contractor Summary'!$C$36,I90<='A - Contractor Summary'!$C$42),"Yes","No") -> No | K90: =VLOOKUP($C90,'C.1 - Rate Sheets'!H:I,2,FALSE) -> 23.25 | N90: 31.25 | Q90: 31.25 | R90: 726.5625 | S90: 726.5625 | T90: 0 | U90: 0 | V90: 0
B91: 74 | C91: Aerial Lift 60'- 2WD | D91: 3002396 | E91: Vendor No. 6 | G91: 913262502 | H91: 2018-10-21 | I91: 2018-10-27 | J91: =IF(AND(H91>='A - Contractor Summary'!$C$36,I91<='A - Contractor Summary'!$C$42),"Yes","No") -> No | K91: =VLOOKUP($C91,'C.1 - Rate Sheets'!H:I,2,FALSE) -> 18 | N91: 31.25 | Q91: 31.25 | R91: 562.5 | S91: 562.5 | T91: 0 | U91: 0 | V91: 0
B92: 75 | C92: Aerial Lift 60'- 2WD | D92: 3002225 | E92: Vendor No. 6 | G92: 913262582 | H92: 2018-10-21 | I92: 2018-10-27 | J92: =IF(AND(H92>='A - Contractor Summary'!$C$36,I92<='A - Contractor Summary'!$C$42),"Yes","No") -> No | K92: =VLOOKUP($C92,'C.1 - Rate Sheets'!H:I,2,FALSE) -> 18 | N92: 31.25 | Q92: 31.25 | R92: 562.5 | S92: 562.5 | T92: 0 | U92: 0 | V92: 0
B93: 76 | C93: Manual Crew Truck | D93: 5801062 | E93: Vendor No. 6 | G93: 913281758 | H93: 2018-10-21 | I93: 2018-10-27 | J93: =IF(AND(H93>='A - Contractor Summary'!$C$36,I93<='A - Contractor Summary'!$C$42),"Yes","No") -> No | K93: =VLOOKUP($C93,'C.1 - Rate Sheets'!H:I,2,FALSE) -> 14 | N93: 85 | Q93: 85 | R93: 1190 | S93: 1190 | T93: 0 | U93: 0 | V93: 0
B94: 77 | C94: 4X4 Pick Up | D94: 2900296 | E94: Vendor No. 6 | G94: 913281758 | H94: 2018-10-21 | I94: 2018-10-27 | J94: =IF(AND(H94>='A - Contractor Summary'!$C$36,I94<='A - Contractor Summary'!$C$42),"Yes","No") -> No | K94: =VLOOKUP($C94,'C.1 - Rate Sheets'!H:I,2,FALSE) -> 10 | N94: 80 | Q94: 80 | R94: 800 | S94: 800 | T94: 0 | U94: 0 | V94: 0
B95: 78 | C95: Aerial Lift < 60' | D95: 3002782 | E95: Vendor No. 6 | G95: 913281761 | H95: 2018-10-21 | I95: 2018-10-27 | J95: =IF(AND(H95>='A - Contractor Summary'!$C$36,I95<='A - Contractor Summary'!$C$42),"Yes","No") -> No | K95: =VLOOKUP($C95,'C.1 - Rate Sheets'!H:I,2,FALSE) -> 28 | N95: 85 | Q95: 85 | R95: 2380 | S95: 2380 | T95: 0 | U95: 0 | V95: 0
B96: 79 | C96: Aerial Lift < 60' | D96: 3001956 | E96: Vendor No. 6 | G96: 913281769 | H96: 2018-10-21 | I96: 2018-10-27 | J96: =IF(AND(H96>='A - Contractor Summary'!$C$36,I96<='A - Contractor Summary'!$C$42),"Yes","No") -> No | K96: =VLOOKUP($C96,'C.1 - Rate Sheets'!H:I,2,FALSE) -> 28 | N96: 85 | Q96: 85 | R96: 2380 | S96: 2380 | T96: 0 | U96: 0 | V96: 0
B97: 80 | C97: 4X4 Pick Up | D97: 2203051 | E97: Vendor No. 6 | G97: 913293317 | H97: 2018-10-21 | I97: 2018-10-27 | J97: =IF(AND(H97>='A - Contractor Summary'!$C$36,I97<='A - Contractor Summary'!$C$42),"Yes","No") -> No | K97: =VLOOKUP($C97,'C.1 - Rate Sheets'!H:I,2,FALSE) -> 10 | N97: 47 | Q97: 47 | R97: 470 | S97: 470 | T97: 0 | U97: 0 | V97: 0
B98: 81 | C98: 4X4 Pick Up | D98: 9618464 | E98: Vendor No. 6 | G98: 913293318 | H98: 2018-10-21 | I98: 2018-10-27 | J98: =IF(AND(H98>='A - Contractor Summary'!$C$36,I98<='A - Contractor Summary'!$C$42),"Yes","No") -> No | K98: =VLOOKUP($C98,'C.1 - Rate Sheets'!H:I,2,FALSE) -> 10 | N98: 98 | Q98: 98 | R98: 980 | S98: 980 | T98: 0 | U98: 0 | V98: 0
B99: 82 | C99: 4X4 Pick Up | D99: 9818409 | E99: Vendor No. 6 | G99: 913293319 | H99: 2018-10-21 | I99: 2018-10-27 | J99: =IF(AND(H99>='A - Contractor Summary'!$C$36,I99<='A - Contractor Summary'!$C$42),"Yes","No") -> No | K99: =VLOOKUP($C99,'C.1 - Rate Sheets'!H:I,2,FALSE) -> 10 | N99: 35 | Q99: 35 | R99: 350 | S99: 350 | T99: 0 | U99: 0 | V99: 0
B100: 83 | C100: 4X4 Pick Up | D100: 2202033 | E100: Vendor No. 6 | G100: 913293320 | H100: 2018-10-21 | I100: 2018-10-27 | J100: =IF(AND(H100>='A - Contractor Summary'!$C$36,I100<='A - Contractor Summary'!$C$42),"Yes","No") -> No | K100: =VLOOKUP($C100,'C.1 - Rate Sheets'!H:I,2,FALSE) -> 10 | N100: 28 | Q100: 28 | R100: 280 | S100: 280 | T100: 0 | U100: 0 | V100: 0
B101: 84 | C101: 4X4 Pick Up | D101: 9818468 | E101: Vendor No. 6 | G101: 913293321 | H101: 2018-10-21 | I101: 2018-10-27 | J101: =IF(AND(H101>='A - Contractor Summary'!$C$36,I101<='A - Contractor Summary'!$C$42),"Yes","No") -> No | K101: =VLOOKUP($C101,'C.1 - Rate Sheets'!H:I,2,FALSE) -> 10 | N101: 42 | Q101: 42 | R101: 420 | S101: 420 | T101: 0 | U101: 0 | V101: 0
B102: 85 | C102: 4X4 Pick Up | D102: 9818245 | E102: Vendor No. 6 | G102: 913293322 | H102: 2018-10-21 | I102: 2018-10-27 | J102: =IF(AND(H102>='A - Contractor Summary'!$C$36,I102<='A - Contractor Summary'!$C$42),"Yes","No") -> No | K102: =VLOOKUP($C102,'C.1 - Rate Sheets'!H:I,2,FALSE) -> 10 | N102: 85 | Q102: 85 | R102: 850 | S102: 850 | T102: 0 | U102: 0 | V102: 0
B103: 86 | C103: Aerial Lift < 60' | D103: 3200876 | E103: Vendor No. 6 | G103: 913333188 | H103: 2018-10-21 | I103: 2018-10-27 | J103: =IF(AND(H103>='A - Contractor Summary'!$C$36,I103<='A - Contractor Summary'!$C$42),"Yes","No") -> No | K103: =VLOOKUP($C103,'C.1 - Rate Sheets'!H:I,2,FALSE) -> 28 | N103: 97.25 | Q103: 97.25 | R103: 2723 | S103: 2723 | T103: 0 | U103: 0 | V103: 0
B104: 87 | C104: Manual Crew Truck | D104: 5801062 | E104: Vendor No. 6 | G104: 913333193 | H104: 2018-10-21 | I104: 2018-10-27 | J104: =IF(AND(H104>='A - Contractor Summary'!$C$36,I104<='A - Contractor Summary'!$C$42),"Yes","No") -> No | K104: =VLOOKUP($C104,'C.1 - Rate Sheets'!H:I,2,FALSE) -> 14 | N104: 97.25 | Q104: 97.25 | R104: 1361.5 | S104: 1361.5 | T104: 0 | U104: 0 | V104: 0
B105: 88 | C105: 4X4 Pick Up | D105: 2900286 | E105: Vendor No. 6 | G105: 913333193 | H105: 2018-10-21 | I105: 2018-10-27 | J105: =IF(AND(H105>='A - Contractor Summary'!$C$36,I105<='A - Contractor Summary'!$C$42),"Yes","No") -> No | K105: =VLOOKUP($C105,'C.1 - Rate Sheets'!H:I,2,FALSE) -> 10 | N105: 92.25 | Q105: 92.25 | R105: 922.5 | S105: 922.5 | T105: 0 | U105: 0 | V105: 0
B106: 89 | C106: Aerial Lift 60'- 4WD | D106: 3200806 | E106: Vendor No. 6 | G106: 913346156 | H106: 2018-10-21 | I106: 2018-10-27 | J106: =IF(AND(H106>='A - Contractor Summary'!$C$36,I106<='A - Contractor Summary'!$C$42),"Yes","No") -> No | K106: =VLOOKUP($C106,'C.1 - Rate Sheets'!H:I,2,FALSE) -> 23.25 | N106: 31.25 | Q106: 31.25 | R106: 726.5625 | S106: 726.5625 | T106: 0 | U106: 0 | V106: 0
B107: 90 | C107: Aerial Lift 60'- 4WD | D107: 3200892 | E107: Vendor No. 6 | G107: 913346172 | H107: 2018-10-21 | I107: 2018-10-27 | J107: =IF(AND(H107>='A - Contractor Summary'!$C$36,I107<='A - Contractor Summary'!$C$42),"Yes","No") -> No | K107: =VLOOKUP($C107,'C.1 - Rate Sheets'!H:I,2,FALSE) -> 23.25 | N107: 31.25 | Q107: 31.25 | R107: 726.5625 | S107: 726.5625 | T107: 0 | U107: 0 | V107: 0
B108: 91 | C108: Aerial Lift 60'- 2WD | D108: 3100421 | E108: Vendor No. 6 | G108: 913346321 | H108: 2018-10-21 | I108: 2018-10-27 | J108: =IF(AND(H108>='A - Contractor Summary'!$C$36,I108<='A - Contractor Summary'!$C$42),"Yes","No") -> No | K108: =VLOOKUP($C108,'C.1 - Rate Sheets'!H:I,2,FALSE) -> 18 | N108: 112 | Q108: 112 | R108: 2016 | S108: 2016 | T108: 0 | U108: 0 | V108: 0
B109: 92 | C109: Aerial Lift < 60' | D109: 3100403 | E109: Vendor No. 6 | G109: 913346321 | H109: 2018-10-21 | I109: 2018-10-27 | J109: =IF(AND(H109>='A - Contractor Summary'!$C$36,I109<='A - Contractor Summary'!$C$42),"Yes","No") -> No | K109: =VLOOKUP($C109,'C.1 - Rate Sheets'!H:I,2,FALSE) -> 28 | N109: 96 | Q109: 96 | R109: 2688 | S109: 2688 | T109: 0 | U109: 0 | V109: 0
B110: 93 | C110: Aerial Lift 60'- 4WD | D110: 3200840 | E110: Vendor No. 6 | G110: 913232495 | H110: 2018-10-28 | I110: 2018-11-03 | J110: =IF(AND(H110>='A - Contractor Summary'!$C$36,I110<='A - Contractor Summary'!$C$42),"Yes","No") -> No | K110: =VLOOKUP($C110,'C.1 - Rate Sheets'!H:I,2,FALSE) -> 23.25 | O110: 48 | Q110: 48 | R110: 1116 | S110: 1116 | T110: 0 | U110: 0 | V110: 0
B111: 94 | C111: Aerial Lift 60'- 2WD | D111: 3002227 | E111: Vendor No. 6 | G111: 913232497 | H111: 2018-10-28 | I111: 2018-11-03 | J111: =IF(AND(H111>='A - Contractor Summary'!$C$36,I111<='A - Contractor Summary'!$C$42),"Yes","No") -> No | K111: =VLOOKUP($C111,'C.1 - Rate Sheets'!H:I,2,FALSE) -> 18 | O111: 48 | Q111: 48 | R111: 864 | S111: 864 | T111: 0 | U111: 0 | V111: 0
B112: 95 | C112: Aerial Lift 60'- 2WD | D112: 3001980 | E112: Vendor No. 6 | G112: 913232498 | H112: 2018-10-28 | I112: 2018-11-03 | J112: =IF(AND(H112>='A - Contractor Summary'!$C$36,I112<='A - Contractor Summary'!$C$42),"Yes","No") -> No | K112: =VLOOKUP($C112,'C.1 - Rate Sheets'!H:I,2,FALSE) -> 18 | O112: 48 | Q112: 48 | R112: 864 | S112: 864 | T112: 0 | U112: 0 | V112: 0
B113: 96 | C113: Aerial Lift 60'- 2WD | D113: 3001832 | E113: Vendor No. 6 | G113: 913232500 | H113: 2018-10-28 | I113: 2018-11-03 | J113: =IF(AND(H113>='A - Contractor Summary'!$C$36,I113<='A - Contractor Summary'!$C$42),"Yes","No") -> No | K113: =VLOOKUP($C113,'C.1 - Rate Sheets'!H:I,2,FALSE) -> 18 | O113: 48 | Q113: 48 | R113: 864 | S113: 864 | T113: 0 | U113: 0 | V113: 0
B114: 97 | C114: Manual Crew Truck | D114: 1501373 | E114: Vendor No. 6 | G114: 913241575 | H114: 2018-10-28 | I114: 2018-11-03 | J114: =IF(AND(H114>='A - Contractor Summary'!$C$36,I114<='A - Contractor Summary'!$C$42),"Yes","No") -> No | K114: =VLOOKUP($C114,'C.1 - Rate Sheets'!H:I,2,FALSE) -> 14 | O114: 112 | Q114: 112 | R114: 1568 | S114: 1568 | T114: 0 | U114: 0 | V114: 0
B115: 98 | C115: Aerial Lift 60'- 2WD | E115: Vendor No. 6 | G115: 913241576 | H115: 2018-10-28 | I115: 2018-11-03 | J115: =IF(AND(H115>='A - Contractor Summary'!$C$36,I115<='A - Contractor Summary'!$C$42),"Yes","No") -> No | K115: =VLOOKUP($C115,'C.1 - Rate Sheets'!H:I,2,FALSE) -> 18 | O115: 112 | Q115: 112 | R115: 2016 | S115: 2016 | T115: 0 | U115: 0 | V115: 0
B116: 99 | C116: 4X4 Pick Up | E116: Vendor No. 6 | G116: 913241581 | H116: 2018-10-28 | I116: 2018-11-03 | J116: =IF(AND(H116>='A - Contractor Summary'!$C$36,I116<='A - Contractor Summary'!$C$42),"Yes","No") -> No | K116: =VLOOKUP($C116,'C.1 - Rate Sheets'!H:I,2,FALSE) -> 10 | O116: 112 | Q116: 112 | R116: 1120 | S116: 1120 | T116: 0 | U116: 0 | V116: 0
B117: 100 | C117: Aerial Lift 60'- 2WD | E117: Vendor No. 6 | G117: 913241583 | H117: 2018-10-28 | I117: 2018-11-03 | J117: =IF(AND(H117>='A - Contractor Summary'!$C$36,I117<='A - Contractor Summary'!$C$42),"Yes","No") -> No | K117: =VLOOKUP($C117,'C.1 - Rate Sheets'!H:I,2,FALSE) -> 18 | O117: 112 | Q117: 112 | R117: 2016 | S117: 2016 | T117: 0 | U117: 0 | V117: 0
B118: 101 | C118: 4X4 Pick Up | D118: 2900454 | E118: Vendor No. 6 | G118: 913243336 | H118: 2018-10-28 | I118: 2018-11-03 | J118: =IF(AND(H118>='A - Contractor Summary'!$C$36,I118<='A - Contractor Summary'!$C$42),"Yes","No") -> No | K118: =VLOOKUP($C118,'C.1 - Rate Sheets'!H:I,2,FALSE) -> 10 | O118: 112 | Q118: 112 | R118: 1120 | S118: 1120 | T118: 0 | U118: 0 | V118: 0
B119: 102 | C119: Aerial Lift 60'- 2WD | D119: 3100448 | E119: Vendor No. 6 | G119: 913243336 | H119: 2018-10-28 | I119: 2018-11-03 | J119: =IF(AND(H119>='A - Contractor Summary'!$C$36,I119<='A - Contractor Summary'!$C$42),"Yes","No") -> No | K119: =VLOOKUP($C119,'C.1 - Rate Sheets'!H:I,2,FALSE) -> 18 | O119: 112 | Q119: 112 | R119: 2016 | S119: 2016 | T119: 0 | U119: 0 | V119: 0
B120: 103 | C120: Aerial Lift 60'- 4WD | D120: 3200830 | E120: Vendor No. 6 | G120: 913243348 | H120: 2018-10-28 | I120: 2018-11-03 | J120: =IF(AND(H120>='A - Contractor Summary'!$C$36,I120<='A - Contractor Summary'!$C$42),"Yes","No") -> No | K120: =VLOOKUP($C120,'C.1 - Rate Sheets'!H:I,2,FALSE) -> 23.25 | O120: 56 | Q120: 56 | R120: 1302 | S120: 1302 | T120: 0 | U120: 0 | V120: 0
B121: 104 | C121: Aerial Lift 60'- 4WD | D121: 3200878 | E121: Vendor No. 6 | G121: 913243350 | H121: 2018-10-28 | I121: 2018-11-03 | J121: =IF(AND(H121>='A - Contractor Summary'!$C$36,I121<='A - Contractor Summary'!$C$42),"Yes","No") -> No | K121: =VLOOKUP($C121,'C.1 - Rate Sheets'!H:I,2,FALSE) -> 23.25 | O121: 56 | Q121: 56 | R121: 1302 | S121: 1302 | T121: 0 | U121: 0 | V121: 0
B122: 105 | C122: Aerial Lift 60'- 4WD | D122: 3001225 | E122: Vendor No. 6 | G122: 913243352 | H122: 2018-10-28 | I122: 2018-11-03 | J122: =IF(AND(H122>='A - Contractor Summary'!$C$36,I122<='A - Contractor Summary'!$C$42),"Yes","No") -> No | K122: =VLOOKUP($C122,'C.1 - Rate Sheets'!H:I,2,FALSE) -> 23.25 | O122: 56 | Q122: 56 | R122: 1302 | S122: 1302 | T122: 0 | U122: 0 | V122: 0
B123: 106 | C123: 4X4 Pick Up | D123: 2900253 | E123: Vendor No. 6 | G123: 913243353 | H123: 2018-10-28 | I123: 2018-11-03 | J123: =IF(AND(H123>='A - Contractor Summary'!$C$36,I123<='A - Contractor Summary'!$C$42),"Yes","No") -> No | K123: =VLOOKUP($C123,'C.1 - Rate Sheets'!H:I,2,FALSE) -> 10 | O123: 56 | Q123: 56 | R123: 560 | S123: 560 | T123: 0 | U123: 0 | V123: 0
B124: 107 | C124: Aerial Lift 60'- 2WD | D124: 3002288 | E124: Vendor No. 6 | G124: 913243354 | H124: 2018-10-28 | I124: 2018-11-03 | J124: =IF(AND(H124>='A - Contractor Summary'!$C$36,I124<='A - Contractor Summary'!$C$42),"Yes","No") -> No | K124: =VLOOKUP($C124,'C.1 - Rate Sheets'!H:I,2,FALSE) -> 18 | O124: 62 | Q124: 62 | R124: 1116 | S124: 1116 | T124: 0 | U124: 0 | V124: 0
B125: 108 | C125: Aerial Lift 60'- 2WD | D125: 2900418 | E125: Vendor No. 6 | G125: 913243356 | H125: 2018-10-28 | I125: 2018-11-03 | J125: =IF(AND(H125>='A - Contractor Summary'!$C$36,I125<='A - Contractor Summary'!$C$42),"Yes","No") -> No | K125: =VLOOKUP($C125,'C.1 - Rate Sheets'!H:I,2,FALSE) -> 18 | O125: 62 | Q125: 62 | R125: 1116 | S125: 1116 | T125: 0 | U125: 0 | V125: 0
B126: 109 | C126: Aerial Lift 60'- 2WD | D126: 3002513 | E126: Vendor No. 6 | G126: 913243358 | H126: 2018-10-28 | I126: 2018-11-03 | J126: =IF(AND(H126>='A - Contractor Summary'!$C$36,I126<='A - Contractor Summary'!$C$42),"Yes","No") -> No | K126: =VLOOKUP($C126,'C.1 - Rate Sheets'!H:I,2,FALSE) -> 18 | O126: 62 | Q126: 62 | R126: 1116 | S126: 1116 | T126: 0 | U126: 0 | V126: 0
B127: 110 | C127: Aerial Lift 60'- 2WD | D127: 3002093 | E127: Vendor No. 6 | G127: 913243359 | H127: 2018-10-28 | I127: 2018-11-03 | J127: =IF(AND(H127>='A - Contractor Summary'!$C$36,I127<='A - Contractor Summary'!$C$42),"Yes","No") -> No | K127: =VLOOKUP($C127,'C.1 - Rate Sheets'!H:I,2,FALSE) -> 18 | O127: 62 | Q127: 62 | R127: 1116 | S127: 1116 | T127: 0 | U127: 0 | V127: 0
B128: 111 | C128: Aerial Lift 60'- 2WD | D128: 3002094 | E128: Vendor No. 6 | G128: 913243361 | H128: 2018-10-28 | I128: 2018-11-03 | J128: =IF(AND(H128>='A - Contractor Summary'!$C$36,I128<='A - Contractor Summary'!$C$42),"Yes","No") -> No | K128: =VLOOKUP($C128,'C.1 - Rate Sheets'!H:I,2,FALSE) -> 18 | O128: 62 | Q128: 62 | R128: 1116 | S128: 1116 | T128: 0 | U128: 0 | V128: 0
B129: 112 | C129: Aerial Lift 60'- 2WD | E129: Vendor No. 6 | G129: 913242904 | H129: 2018-10-28 | I129: 2018-11-03 | J129: =IF(AND(H129>='A - Contractor Summary'!$C$36,I129<='A - Contractor Summary'!$C$42),"Yes","No") -> No | K129: =VLOOKUP($C129,'C.1 - Rate Sheets'!H:I,2,FALSE) -> 18 | O129: 112 | Q129: 112 | R129: 2016 | S129: 2016 | T129: 0 | U129: 0 | V129: 0
B130: 113 | C130: Aerial Lift 60'- 2WD | E130: Vendor No. 6 | G130: 913242906 | H130: 2018-10-28 | I130: 2018-11-03 | J130: =IF(AND(H130>='A - Contractor Summary'!$C$36,I130<='A - Contractor Summary'!$C$42),"Yes","No") -> No | K130: =VLOOKUP($C130,'C.1 - Rate Sheets'!H:I,2,FALSE) -> 18 | O130: 112 | Q130: 112 | R130: 2016 | S130: 2016 | T130: 0 | U130: 0 | V130: 0
B131: 114 | C131: Aerial Lift 60'- 2WD | E131: Vendor No. 6 | G131: 913242907 | H131: 2018-10-28 | I131: 2018-11-03 | J131: =IF(AND(H131>='A - Contractor Summary'!$C$36,I131<='A - Contractor Summary'!$C$42),"Yes","No") -> No | K131: =VLOOKUP($C131,'C.1 - Rate Sheets'!H:I,2,FALSE) -> 18 | O131: 112 | Q131: 112 | R131: 2016 | S131: 2016 | T131: 0 | U131: 0 | V131: 0
B132: 115 | C132: Aerial Lift 60'- 2WD | E132: Vendor No. 6 | G132: 913242909 | H132: 2018-10-28 | I132: 2018-11-03 | J132: =IF(AND(H132>='A - Contractor Summary'!$C$36,I132<='A - Contractor Summary'!$C$42),"Yes","No") -> No | K132: =VLOOKUP($C132,'C.1 - Rate Sheets'!H:I,2,FALSE) -> 18 | O132: 112 | Q132: 112 | R132: 2016 | S132: 2016 | T132: 0 | U132: 0 | V132: 0
B133: 116 | C133: Aerial Lift 60'- 2WD | E133: Vendor No. 6 | G133: 913242910 | H133: 2018-10-28 | I133: 2018-11-03 | J133: =IF(AND(H133>='A - Contractor Summary'!$C$36,I133<='A - Contractor Summary'!$C$42),"Yes","No") -> No | K133: =VLOOKUP($C133,'C.1 - Rate Sheets'!H:I,2,FALSE) -> 18 | O133: 112 | Q133: 112 | R133: 2016 | S133: 2016 | T133: 0 | U133: 0 | V133: 0
B134: 117 | C134: Aerial Lift < 60' | E134: Vendor No. 6 | G134: 913242911 | H134: 2018-10-28 | I134: 2018-11-03 | J134: =IF(AND(H134>='A - Contractor Summary'!$C$36,I134<='A - Contractor Summary'!$C$42),"Yes","No") -> No | K134: =VLOOKUP($C134,'C.1 - Rate Sheets'!H:I,2,FALSE) -> 28 | O134: 112 | Q134: 112 | R134: 3136 | S134: 3136 | T134: 0 | U134: 0 | V134: 0
B135: 118 | C135: 4X4 Pick Up | E135: Vendor No. 6 | G135: 913259268 | H135: 2018-10-28 | I135: 2018-11-03 | J135: =IF(AND(H135>='A - Contractor Summary'!$C$36,I135<='A - Contractor Summary'!$C$42),"Yes","No") -> No | K135: =VLOOKUP($C135,'C.1 - Rate Sheets'!H:I,2,FALSE) -> 10 | O135: 112 | Q135: 112 | R135: 1120 | S135: 1120 | T135: 0 | U135: 0 | V135: 0
B136: 119 | C136: Aerial Lift 60'- 2WD | E136: Vendor No. 6 | G136: 913259270 | H136: 2018-10-28 | I136: 2018-11-03 | J136: =IF(AND(H136>='A - Contractor Summary'!$C$36,I136<='A - Contractor Summary'!$C$42),"Yes","No") -> No | K136: =VLOOKUP($C136,'C.1 - Rate Sheets'!H:I,2,FALSE) -> 18 | O136: 112 | Q136: 112 | R136: 2016 | S136: 2016 | T136: 0 | U136: 0 | V136: 0
B137: 120 | C137: Aerial Lift 60'- 4WD | E137: Vendor No. 6 | G137: 913259274 | H137: 2018-10-28 | I137: 2018-11-03 | J137: =IF(AND(H137>='A - Contractor Summary'!$C$36,I137<='A - Contractor Summary'!$C$42),"Yes","No") -> No | K137: =VLOOKUP($C137,'C.1 - Rate Sheets'!H:I,2,FALSE) -> 23.25 | O137: 112 | Q137: 112 | R137: 2604 | S137: 2604 | T137: 0 | U137: 0 | V137: 0
B138: 121 | C138: Aerial Lift 60'- 2WD | D138: 2002797 | E138: Vendor No. 6 | G138: 913259364 | H138: 2018-10-28 | I138: 2018-11-03 | J138: =IF(AND(H138>='A - Contractor Summary'!$C$36,I138<='A - Contractor Summary'!$C$42),"Yes","No") -> No | K138: =VLOOKUP($C138,'C.1 - Rate Sheets'!H:I,2,FALSE) -> 18 | O138: 52 | Q138: 52 | R138: 936 | S138: 936 | T138: 0 | U138: 0 | V138: 0
B139: 122 | C139: Aerial Lift 60'- 4WD | D139: 3300188 | E139: Vendor No. 6 | G139: 913259364 | H139: 2018-10-28 | I139: 2018-11-03 | J139: =IF(AND(H139>='A - Contractor Summary'!$C$36,I139<='A - Contractor Summary'!$C$42),"Yes","No") -> No | K139: =VLOOKUP($C139,'C.1 - Rate Sheets'!H:I,2,FALSE) -> 23.25 | O139: 52 | Q139: 52 | R139: 1209 | S139: 1209 | T139: 0 | U139: 0 | V139: 0
B140: 123 | C140: Aerial Lift < 60' | D140: 3300132 | E140: Vendor No. 6 | G140: 913259364 | H140: 2018-10-28 | I140: 2018-11-03 | J140: =IF(AND(H140>='A - Contractor Summary'!$C$36,I140<='A - Contractor Summary'!$C$42),"Yes","No") -> No | K140: =VLOOKUP($C140,'C.1 - Rate Sheets'!H:I,2,FALSE) -> 28 | O140: 52 | Q140: 52 | R140: 1456 | S140: 1456 | T140: 0 | U140: 0 | V140: 0
B141: 124 | C141: Aerial Lift 60'- 2WD | D141: 3002807 | E141: Vendor No. 6 | G141: 913259367 | H141: 2018-10-28 | I141: 2018-11-03 | J141: =IF(AND(H141>='A - Contractor Summary'!$C$36,I141<='A - Contractor Summary'!$C$42),"Yes","No") -> No | K141: =VLOOKUP($C141,'C.1 - Rate Sheets'!H:I,2,FALSE) -> 18 | O141: 104 | Q141: 104 | R141: 1872 | S141: 1872 | T141: 0 | U141: 0 | V141: 0
B142: 125 | C142: Aerial Lift < 60' | D142: 3002799 | E142: Vendor No. 6 | G142: 913259367 | H142: 2018-10-28 | I142: 2018-11-03 | J142: =IF(AND(H142>='A - Contractor Summary'!$C$36,I142<='A - Contractor Summary'!$C$42),"Yes","No") -> No | K142: =VLOOKUP($C142,'C.1 - Rate Sheets'!H:I,2,FALSE) -> 28 | O142: 52 | Q142: 52 | R142: 1456 | S142: 1456 | T142: 0 | U142: 0 | V142: 0
B143: 126 | C143: 4X4 Pick Up | D143: 2900429 | E143: Vendor No. 6 | G143: 913259368 | H143: 2018-10-28 | I143: 2018-11-03 | J143: =IF(AND(H143>='A - Contractor Summary'!$C$36,I143<='A - Contractor Summary'!$C$42),"Yes","No") -> No | K143: =VLOOKUP($C143,'C.1 - Rate Sheets'!H:I,2,FALSE) -> 10 | O143: 52 | Q143: 52 | R143: 520 | S143: 520 | T143: 0 | U143: 0 | V143: 0
B144: 127 | C144: 4X4 Pick Up | D144: 2203051 | E144: Vendor No. 6 | G144: 913293323 | H144: 2018-10-28 | I144: 2018-11-03 | J144: =IF(AND(H144>='A - Contractor Summary'!$C$36,I144<='A - Contractor Summary'!$C$42),"Yes","No") -> No | K144: =VLOOKUP($C144,'C.1 - Rate Sheets'!H:I,2,FALSE) -> 10 | O144: 77 | Q144: 77 | R144: 770 | S144: 770 | T144: 0 | U144: 0 | V144: 0
B145: 128 | C145: 4X4 Pick Up | D145: 2202033 | E145: Vendor No. 6 | G145: 913293325 | H145: 2018-10-28 | I145: 2018-11-03 | J145: =IF(AND(H145>='A - Contractor Summary'!$C$36,I145<='A - Contractor Summary'!$C$42),"Yes","No") -> No | K145: =VLOOKUP($C145,'C.1 - Rate Sheets'!H:I,2,FALSE) -> 10 | O145: 28 | Q145: 28 | R145: 280 | S145: 280 | T145: 0 | U145: 0 | V145: 0
B146: 129 | C146: 4X4 Pick Up | D146: 9818468 | E146: Vendor No. 6 | G146: 913301066 | H146: 2018-10-28 | I146: 2018-11-03 | J146: =IF(AND(H146>='A - Contractor Summary'!$C$36,I146<='A - Contractor Summary'!$C$42),"Yes","No") -> No | K146: =VLOOKUP($C146,'C.1 - Rate Sheets'!H:I,2,FALSE) -> 10 | O146: 74 | Q146: 74 | R146: 740 | S146: 740 | T146: 0 | U146: 0 | V146: 0
B147: 130 | C147: 4X4 Pick Up | D147: 9818245 | E147: Vendor No. 6 | G147: 913301068 | H147: 2018-10-28 | I147: 2018-11-03 | J147: =IF(AND(H147>='A - Contractor Summary'!$C$36,I147<='A - Contractor Summary'!$C$42),"Yes","No") -> No | K147: =VLOOKUP($C147,'C.1 - Rate Sheets'!H:I,2,FALSE) -> 10 | O147: 28 | Q147: 28 | R147: 280 | S147: 280 | T147: 0 | U147: 0 | V147: 0
B148: 131 | C148: 4X4 Pick Up | D148: 9818464 | E148: Vendor No. 6 | G148: 913301069 | H148: 2018-10-28 | I148: 2018-11-03 | J148: =IF(AND(H148>='A - Contractor Summary'!$C$36,I148<='A - Contractor Summary'!$C$42),"Yes","No") -> No | K148: =VLOOKUP($C148,'C.1 - Rate Sheets'!H:I,2,FALSE) -> 10 | O148: 28 | Q148: =SUM(L148:P148) -> 28 | R148: 280 | S148: 280 | T148: 0 | U148: 0 | V148: 0
B149: 132 | C149: Aerial Lift 60'- 2WD | E149: Vendor No. 6 | G149: 913332915 | H149: 2018-10-28 | I149: 2018-11-03 | J149: =IF(AND(H149>='A - Contractor Summary'!$C$36,I149<='A - Contractor Summary'!$C$42),"Yes","No") -> No | K149: =VLOOKUP($C149,'C.1 - Rate Sheets'!H:I,2,FALSE) -> 18 | O149: 128 | Q149: 128 | R149: 2304 | S149: 2304 | T149: 0 | U149: 0 | V149: 0
B150: 133 | C150: Aerial Lift 60'- 4WD | E150: Vendor No. 6 | G150: 913333177 | H150: 2018-10-28 | I150: 2018-11-03 | J150: =IF(AND(H150>='A - Contractor Summary'!$C$36,I150<='A - Contractor Summary'!$C$42),"Yes","No") -> No | K150: =VLOOKUP($C150,'C.1 - Rate Sheets'!H:I,2,FALSE) -> 23.25 | O150: 128 | Q150: 128 | R150: 2976 | S150: 2976 | T150: 0 | U150: 0 | V150: 0
B151: 134 | C151: Aerial Lift 60'- 4WD | E151: Vendor No. 6 | G151: 913333182 | H151: 2018-10-28 | I151: 2018-11-03 | J151: =IF(AND(H151>='A - Contractor Summary'!$C$36,I151<='A - Contractor Summary'!$C$42),"Yes","No") -> No | K151: =VLOOKUP($C151,'C.1 - Rate Sheets'!H:I,2,FALSE) -> 23.25 | O151: 64 | Q151: 64 | R151: 1488 | S151: 1488 | T151: 0 | U151: 0 | V151: 0
B152: 135 | C152: Aerial Lift 60'- 4WD | E152: Vendor No. 6 | G152: 913333184 | H152: 2018-10-28 | I152: 2018-11-03 | J152: =IF(AND(H152>='A - Contractor Summary'!$C$36,I152<='A - Contractor Summary'!$C$42),"Yes","No") -> No | K152: =VLOOKUP($C152,'C.1 - Rate Sheets'!H:I,2,FALSE) -> 23.25 | O152: 128 | Q152: 128 | R152: 2976 | S152: 2976 | T152: 0 | U152: 0 | V152: 0
B153: 136 | C153: Aerial Lift 60'- 2WD | E153: Vendor No. 6 | G153: 913333205 | H153: 2018-10-28 | I153: 2018-11-03 | J153: =IF(AND(H153>='A - Contractor Summary'!$C$36,I153<='A - Contractor Summary'!$C$42),"Yes","No") -> No | K153: =VLOOKUP($C153,'C.1 - Rate Sheets'!H:I,2,FALSE) -> 18 | O153: 128 | Q153: 128 | R153: 2304 | S153: 2304 | T153: 0 | U153: 0 | V153: 0
B154: 137 | C154: Aerial Lift 60'- 4WD | E154: Vendor No. 6 | G154: 913333211 | H154: 2018-10-28 | I154: 2018-11-03 | J154: =IF(AND(H154>='A - Contractor Summary'!$C$36,I154<='A - Contractor Summary'!$C$42),"Yes","No") -> No | K154: =VLOOKUP($C154,'C.1 - Rate Sheets'!H:I,2,FALSE) -> 23.25 | O154: 192 | Q154: 192 | R154: 4464 | S154: 4464 | T154: 0 | U154: 0 | V154: 0
B155: 138 | C155: 4X4 Pick Up | E155: Vendor No. 6 | G155: 913242897 | H155: 2018-10-28 | I155: 2018-11-03 | J155: =IF(AND(H155>='A - Contractor Summary'!$C$36,I155<='A - Contractor Summary'!$C$42),"Yes","No") -> No | K155: =VLOOKUP($C155,'C.1 - Rate Sheets'!H:I,2,FALSE) -> 10 | O155: 112 | Q155: 112 | R155: 1120 | S155: 1120 | T155: 0 | U155: 0 | V155: 0
B156: 139 | C156: Aerial Lift 60'- 2WD | E156: Vendor No. 6 | G156: 913242903 | H156: 2018-10-28 | I156: 2018-11-03 | J156: =IF(AND(H156>='A - Contractor Summary'!$C$36,I156<='A - Contractor Summary'!$C$42),"Yes","No") -> No | K156: =VLOOKUP($C156,'C.1 - Rate Sheets'!H:I,2,FALSE) -> 18 | O156: 112 | Q156: 112 | R156: 2016 | S156: 2016 | T156: 0 | U156: 0 | V156: 0
B157: 140 | C157: Aerial Lift 60'- 2WD | D157: 3000759 | E157: Vendor No. 6 | G157: 913243149 | H157: 2018-11-04 | I157: 2018-11-10 | J157: =IF(AND(H157>='A - Contractor Summary'!$C$36,I157<='A - Contractor Summary'!$C$42),"Yes","No") -> No | K157: =VLOOKUP($C157,'C.1 - Rate Sheets'!H:I,2,FALSE) -> 18 | P157: 48 | Q157: 48 | R157: 864 | S157: 864 | T157: 0 | U157: 0 | V157: 0
B158: 141 | C158: Aerial Lift 60'- 2WD | D158: 3002784 | E158: Vendor No. 6 | G158: 913243150 | H158: 2018-11-04 | I158: 2018-11-10 | J158: =IF(AND(H158>='A - Contractor Summary'!$C$36,I158<='A - Contractor Summary'!$C$42),"Yes","No") -> No | K158: =VLOOKUP($C158,'C.1 - Rate Sheets'!H:I,2,FALSE) -> 18 | P158: 48 | Q158: 48 | R158: 864 | S158: 864 | T158: 0 | U158: 0 | V158: 0
B159: 142 | C159: 4X4 Pick Up | D159: 2900271 | E159: Vendor No. 6 | G159: 913243151 | H159: 2018-11-04 | I159: 2018-11-10 | J159: =IF(AND(H159>='A - Contractor Summary'!$C$36,I159<='A - Contractor Summary'!$C$42),"Yes","No") -> No | K159: =VLOOKUP($C159,'C.1 - Rate Sheets'!H:I,2,FALSE) -> 10 | P159: 48 | Q159: 48 | R159: 480 | S159: 480 | T159: 0 | U159: 0 | V159: 0
B160: 143 | C160: Aerial Lift 60'- 2WD | E160: Vendor No. 6 | G160: 913243152 | H160: 2018-11-04 | I160: 2018-11-10 | J160: =IF(AND(H160>='A - Contractor Summary'!$C$36,I160<='A - Contractor Summary'!$C$42),"Yes","No") -> No | K160: =VLOOKUP($C160,'C.1 - Rate Sheets'!H:I,2,FALSE) -> 18 | P160: 48 | Q160: 48 | R160: 864 | S160: 864 | T160: 0 | U160: 0 | V160: 0
B161: 144 | C161: Aerial Lift 60'- 2WD | D161: 3002786 | E161: Vendor No. 6 | G161: 913243153 | H161: 2018-11-04 | I161: 2018-11-10 | J161: =IF(AND(H161>='A - Contractor Summary'!$C$36,I161<='A - Contractor Summary'!$C$42),"Yes","No") -> No | K161: =VLOOKUP($C161,'C.1 - Rate Sheets'!H:I,2,FALSE) -> 18 | P161: 48 | Q161: 48 | R161: 864 | S161: 864 | T161: 0 | U161: 0 | V161: 0
B162: 145 | C162: Aerial Lift 60'- 2WD | D162: 3300091 | E162: Vendor No. 6 | G162: 913243156 | H162: 2018-11-04 | I162: 2018-11-10 | J162: =IF(AND(H162>='A - Contractor Summary'!$C$36,I162<='A - Contractor Summary'!$C$42),"Yes","No") -> No | K162: =VLOOKUP($C162,'C.1 - Rate Sheets'!H:I,2,FALSE) -> 18 | P162: 48 | Q162: 48 | R162: 864 | S162: 864 | T162: 0 | U162: 0 | V162: 0
B163: 146 | C163: Aerial Lift < 60' | D163: 3200798 | E163: Vendor No. 6 | G163: 913243158 | H163: 2018-11-04 | I163: 2018-11-10 | J163: =IF(AND(H163>='A - Contractor Summary'!$C$36,I163<='A - Contractor Summary'!$C$42),"Yes","No") -> No | K163: =VLOOKUP($C163,'C.1 - Rate Sheets'!H:I,2,FALSE) -> 28 | P163: 48 | Q163: 48 | R163: 1344 | S163: 1344 | T163: 0 | U163: 0 | V163: 0
B164: 147 | C164: Aerial Lift 60'- 2WD | D164: 3001037 | E164: Vendor No. 6 | G164: 913243160 | H164: 2018-11-04 | I164: 2018-11-10 | J164: =IF(AND(H164>='A - Contractor Summary'!$C$36,I164<='A - Contractor Summary'!$C$42),"Yes","No") -> No | K164: =VLOOKUP($C164,'C.1 - Rate Sheets'!H:I,2,FALSE) -> 18 | P164: 48 | Q164: 48 | R164: 864 | S164: 864 | T164: 0 | U164: 0 | V164: 0
B165: 148 | C165: Aerial Lift 60'- 2WD | D165: 3002420 | E165: Vendor No. 6 | G165: 913243328 | H165: 2018-11-04 | I165: 2018-11-10 | J165: =IF(AND(H165>='A - Contractor Summary'!$C$36,I165<='A - Contractor Summary'!$C$42),"Yes","No") -> No | K165: =VLOOKUP($C165,'C.1 - Rate Sheets'!H:I,2,FALSE) -> 18 | P165: 12 | Q165: 12 | R165: 216 | S165: 216 | T165: 0 | U165: 0 | V165: 0
B166: 149 | C166: Aerial Lift < 60' | D166: ------- | E166: Vendor No. 6 | G166: 913243330 | H166: 2018-11-04 | I166: 2018-11-10 | J166: =IF(AND(H166>='A - Contractor Summary'!$C$36,I166<='A - Contractor Summary'!$C$42),"Yes","No") -> No | K166: =VLOOKUP($C166,'C.1 - Rate Sheets'!H:I,2,FALSE) -> 28 | P166: 12 | Q166: 12 | R166: 336 | S166: 336 | T166: 0 | U166: 0 | V166: 0
B167: 150 | C167: 4X4 Pick Up | D167: ------- | E167: Vendor No. 6 | G167: 913243332 | H167: 2018-11-04 | I167: 2018-11-10 | J167: =IF(AND(H167>='A - Contractor Summary'!$C$36,I167<='A - Contractor Summary'!$C$42),"Yes","No") -> No | K167: =VLOOKUP($C167,'C.1 - Rate Sheets'!H:I,2,FALSE) -> 10 | P167: 12 | Q167: 12 | R167: 120 | S167: 120 | T167: 0 | U167: 0 | V167: 0
B168: 151 | C168: 4X4 Pick Up | D168: 2900454 | E168: Vendor No. 6 | G168: 913243334 | H168: 2018-11-04 | I168: 2018-11-10 | J168: =IF(AND(H168>='A - Contractor Summary'!$C$36,I168<='A - Contractor Summary'!$C$42),"Yes","No") -> No | K168: =VLOOKUP($C168,'C.1 - Rate Sheets'!H:I,2,FALSE) -> 10 | P168: 48 | Q168: 48 | R168: 480 | S168: 480 | T168: 0 | U168: 0 | V168: 0
B169: 152 | C169: Aerial Lift 60'- 2WD | D169: 3100448 | E169: Vendor No. 6 | G169: 913243334 | H169: 2018-11-04 | I169: 2018-11-10 | J169: =IF(AND(H169>='A - Contractor Summary'!$C$36,I169<='A - Contractor Summary'!$C$42),"Yes","No") -> No | K169: =VLOOKUP($C169,'C.1 - Rate Sheets'!H:I,2,FALSE) -> 18 | P169: 48 | Q169: 48 | R169: 864 | S169: 864 | T169: 0 | U169: 0 | V169: 0
B170: 153 | C170: Manual Crew Truck | D170: 15011373 | E170: Vendor No. 6 | G170: 913243339 | H170: 2018-11-04 | I170: 2018-11-10 | J170: =IF(AND(H170>='A - Contractor Summary'!$C$36,I170<='A - Contractor Summary'!$C$42),"Yes","No") -> No | K170: =VLOOKUP($C170,'C.1 - Rate Sheets'!H:I,2,FALSE) -> 14 | P170: 10 | Q170: 10 | R170: 140 | S170: 140 | T170: 0 | U170: 0 | V170: 0
B171: 154 | C171: Aerial Lift 60'- 4WD | D171: ------- | E171: Vendor No. 6 | G171: 913259300 | H171: 2018-11-04 | I171: 2018-11-10 | J171: =IF(AND(H171>='A - Contractor Summary'!$C$36,I171<='A - Contractor Summary'!$C$42),"Yes","No") -> No | K171: =VLOOKUP($C171,'C.1 - Rate Sheets'!H:I,2,FALSE) -> 23.25 | P171: 16 | Q171: 16 | R171: 372 | S171: 372 | T171: 0 | U171: 0 | V171: 0
B172: 155 | C172: Aerial Lift 60'- 4WD | D172: 3200891 | E172: Vendor No. 6 | G172: 913259306 | H172: 2018-11-04 | I172: 2018-11-10 | J172: =IF(AND(H172>='A - Contractor Summary'!$C$36,I172<='A - Contractor Summary'!$C$42),"Yes","No") -> No | K172: =VLOOKUP($C172,'C.1 - Rate Sheets'!H:I,2,FALSE) -> 23.25 | P172: 16 | Q172: 16 | R172: 372 | S172: 372 | T172: 0 | U172: 0 | V172: 0
B173: 156 | C173: 4X4 Pick Up | D173: 2900382 | E173: Vendor No. 6 | G173: 913280569 | H173: 2018-11-04 | I173: 2018-11-10 | J173: =IF(AND(H173>='A - Contractor Summary'!$C$36,I173<='A - Contractor Summary'!$C$42),"Yes","No") -> No | K173: =VLOOKUP($C173,'C.1 - Rate Sheets'!H:I,2,FALSE) -> 10 | P173: 16 | Q173: 16 | R173: 160 | S173: 160 | T173: 0 | U173: 0 | V173: 0
B174: 157 | C174: Aerial Lift 60'- 2WD | D174: ------- | E174: Vendor No. 6 | G174: 913280571 | H174: 2018-11-04 | I174: 2018-11-10 | J174: =IF(AND(H174>='A - Contractor Summary'!$C$36,I174<='A - Contractor Summary'!$C$42),"Yes","No") -> No | K174: =VLOOKUP($C174,'C.1 - Rate Sheets'!H:I,2,FALSE) -> 18 | P174: 16 | Q174: 16 | R174: 288 | S174: 288 | T174: 0 | U174: 0 | V174: 0
B175: 158 | C175: Aerial Lift 60'- 2WD | D175: 3100421 | E175: Vendor No. 6 | F175: Phillips | G175: 913346329 | H175: 2018-11-04 | I175: 2018-11-10 | J175: =IF(AND(H175>='A - Contractor Summary'!$C$36,I175<='A - Contractor Summary'!$C$42),"Yes","No") -> No | K175: =VLOOKUP($C175,'C.1 - Rate Sheets'!H:I,2,FALSE) -> 18 | P175: 45 | Q175: 45 | R175: 810 | S175: 810 | T175: 0 | U175: 0 | V175: 0
B176: 159 | C176: Aerial Lift < 60' | D176: 3100403 | E176: Vendor No. 6 | F176: Phillips | G176: 913346329 | H176: 2018-11-04 | I176: 2018-11-10 | J176: =IF(AND(H176>='A - Contractor Summary'!$C$36,I176<='A - Contractor Summary'!$C$42),"Yes","No") -> No | K176: =VLOOKUP($C176,'C.1 - Rate Sheets'!H:I,2,FALSE) -> 28 | P176: 45 | Q176: 45 | R176: 1260 | S176: 1260 | T176: 0 | U176: 0 | V176: 0
C177: Aerial Lift 60'- 2WD | D177: 3002417 | E177: Vendor No. 6 | F177: Phillips | G177: 913176206 | H177: 2018-10-14 | I177: 2018-10-20 | J177: =IF(AND(H177>='A - Contractor Summary'!$C$36,I177<='A - Contractor Summary'!$C$42),"Yes","No") -> No | K177: =VLOOKUP($C177,'C.1 - Rate Sheets'!H:I,2,FALSE) -> 18 | M177: 118 | Q177: 118 | R177: =Q177*K177 -> 2124 | S177: =R177-T177 -> 2124 | T177: 0 | U177: 0 | V177: 0
C178: Aerial Lift 60'- 2WD | D178: AL80 | E178: Vendor No. 6 | F178: Mullen | G178: 913194965 | H178: 2018-10-07 | I178: 2018-10-20 | J178: =IF(AND(H178>='A - Contractor Summary'!$C$36,I178<='A - Contractor Summary'!$C$42),"Yes","No") -> No | K178: =VLOOKUP($C178,'C.1 - Rate Sheets'!H:I,2,FALSE) -> 18 | M178: 97 | Q178: 97 | R178: 1746 | S178: 1746 | T178: 0 | U178: 0 | V178: 0
C179: Saws | D179: Saws | E179: Vendor No. 6 | F179: Mullen | G179: 913194965 | H179: 2018-10-07 | I179: 2018-10-20 | J179: =IF(AND(H179>='A - Contractor Summary'!$C$36,I179<='A - Contractor Summary'!$C$42),"Yes","No") -> No | K179: =VLOOKUP($C179,'C.1 - Rate Sheets'!H:I,2,FALSE) -> 0 | M179: 97 | Q179: 97 | R179: 0 | S179: 0 | T179: 0 | U179: 0 | V179: 0
C180: Aerial Lift 60'- 2WD | D180: AL80 | E180: Vendor No. 6 | F180: Lopez | G180: 913194966 | H180: 2018-10-07 | I180: 2018-10-20 | J180: =IF(AND(H180>='A - Contractor Summary'!$C$36,I180<='A - Contractor Summary'!$C$42),"Yes","No") -> No | K180: =VLOOKUP($C180,'C.1 - Rate Sheets'!H:I,2,FALSE) -> 18 | M180: 97 | Q180: 97 | R180: 1746 | S180: 1746 | T180: 0 | U180: 0 | V180: 0
C181: Saws | D181: Saws | E181: Vendor No. 6 | F181: Lopez | G181: 913194966 | H181: 2018-10-07 | I181: 2018-10-20 | J181: =IF(AND(H181>='A - Contractor Summary'!$C$36,I181<='A - Contractor Summary'!$C$42),"Yes","No") -> No | K181: =VLOOKUP($C181,'C.1 - Rate Sheets'!H:I,2,FALSE) -> 0 | M181: 97 | Q181: 97 | R181: 0 | S181: 0 | T181: 0 | U181: 0 | V181: 0
C182: 4X4 Pick Up | D182: 2202232 | E182: Vendor No. 6 | F182: Tuten | G182: 913194968 | H182: 2018-10-14 | I182: 2018-10-20 | J182: =IF(AND(H182>='A - Contractor Summary'!$C$36,I182<='A - Contractor Summary'!$C$42),"Yes","No") -> No | K182: =VLOOKUP($C182,'C.1 - Rate Sheets'!H:I,2,FALSE) -> 10 | M182: 81 | Q182: 81 | R182: 810 | S182: 810 | T182: 0 | U182: 0 | V182: 0
C183: Aerial Lift 60'- 2WD | D183: 3100402 | E183: Vendor No. 6 | F183: Woodward | G183: 913194969 | H183: 2018-10-14 | I183: 2018-10-20 | J183: =IF(AND(H183>='A - Contractor Summary'!$C$36,I183<='A - Contractor Summary'!$C$42),"Yes","No") -> No | K183: =VLOOKUP($C183,'C.1 - Rate Sheets'!H:I,2,FALSE) -> 18 | M183: 112 | Q183: 112 | R183: 2016 | S183: 2016 | T183: 0 | U183: 0 | V183: 0
C184: Saws | D184: Saws | E184: Vendor No. 6 | F184: Woodward | G184: 913194969 | H184: 2018-10-14 | I184: 2018-10-20 | J184: =IF(AND(H184>='A - Contractor Summary'!$C$36,I184<='A - Contractor Summary'!$C$42),"Yes","No") -> No | K184: =VLOOKUP($C184,'C.1 - Rate Sheets'!H:I,2,FALSE) -> 0 | M184: 112 | Q184: 112 | R184: 0 | S184: 0 | T184: 0 | U184: 0 | V184: 0
C185: Aerial Lift 60'- 2WD | D185: 3007424 | E185: Vendor No. 6 | F185: Nutlnee | G185: 913194970 | H185: 2018-10-14 | I185: 2018-10-20 | J185: =IF(AND(H185>='A - Contractor Summary'!$C$36,I185<='A - Contractor Summary'!$C$42),"Yes","No") -> No | K185: =VLOOKUP($C185,'C.1 - Rate Sheets'!H:I,2,FALSE) -> 18 | M185: 97 | Q185: 97 | R185: 1746 | S185: 1746 | T185: 0 | U185: 0 | V185: 0
C186: Saws | D186: Saws | E186: Vendor No. 6 | F186: Nutlnee | G186: 913194970 | H186: 2018-10-14 | I186: 2018-10-20 | J186: =IF(AND(H186>='A - Contractor Summary'!$C$36,I186<='A - Contractor Summary'!$C$42),"Yes","No") -> No | K186: =VLOOKUP($C186,'C.1 - Rate Sheets'!H:I,2,FALSE) -> 0 | M186: 97 | Q186: 97 | R186: 0 | S186: 0 | T186: 0 | U186: 0 | V186: 0
C187: Aerial Lift 60'- 2WD | D187: 3100411 | E187: Vendor No. 6 | F187: Mullen | G187: 913194971 | H187: 2018-10-21 | I187: 2018-10-27 | J187: =IF(AND(H187>='A - Contractor Summary'!$C$36,I187<='A - Contractor Summary'!$C$42),"Yes","No") -> No | K187: =VLOOKUP($C187,'C.1 - Rate Sheets'!H:I,2,FALSE) -> 18 | N187: 112 | Q187: 112 | R187: 2016 | S187: 2016 | T187: 0 | U187: 0 | V187: 0
C188: Saws | D188: Saws | E188: Vendor No. 6 | F188: Mullen | G188: 913194971 | H188: 2018-10-21 | I188: 2018-10-27 | J188: =IF(AND(H188>='A - Contractor Summary'!$C$36,I188<='A - Contractor Summary'!$C$42),"Yes","No") -> No | K188: =VLOOKUP($C188,'C.1 - Rate Sheets'!H:I,2,FALSE) -> 0 | N188: 112 | Q188: 112 | R188: 0 | S188: 0 | T188: 0 | U188: 0 | V188: 0
C189: Aerial Lift 60'- 2WD | D189: 3100439 | E189: Vendor No. 6 | F189: Cantillo | G189: 913194972 | H189: 2018-10-21 | I189: 2018-10-27 | J189: =IF(AND(H189>='A - Contractor Summary'!$C$36,I189<='A - Contractor Summary'!$C$42),"Yes","No") -> No | K189: =VLOOKUP($C189,'C.1 - Rate Sheets'!H:I,2,FALSE) -> 18 | N189: 112 | Q189: 112 | R189: 2016 | S189: 2016 | T189: 0 | U189: 0 | V189: 0
C190: Saws | D190: Saws | E190: Vendor No. 6 | F190: Cantillo | G190: 913194972 | H190: 2018-10-21 | I190: 2018-10-27 | J190: =IF(AND(H190>='A - Contractor Summary'!$C$36,I190<='A - Contractor Summary'!$C$42),"Yes","No") -> No | K190: =VLOOKUP($C190,'C.1 - Rate Sheets'!H:I,2,FALSE) -> 0 | N190: 112 | Q190: 112 | R190: 0 | S190: 0 | T190: 0 | U190: 0 | V190: 0
C191: 4X4 Pick Up | D191: 2202232 | E191: Vendor No. 6 | F191: Tuten | G191: 913194973 | H191: 2018-10-21 | I191: 2018-10-27 | J191: =IF(AND(H191>='A - Contractor Summary'!$C$36,I191<='A - Contractor Summary'!$C$42),"Yes","No") -> No | K191: =VLOOKUP($C191,'C.1 - Rate Sheets'!H:I,2,FALSE) -> 10 | N191: 112 | Q191: 112 | R191: 1120 | S191: 1120 | T191: 0 | U191: 0 | V191: 0 | W191: 1
C192: Aerial Lift 60'- 2WD | D192: 3002424 | E192: Vendor No. 6 | F192: Martinee | G192: 913194975 | H192: 2018-10-21 | I192: 2018-10-27 | J192: =IF(AND(H192>='A - Contractor Summary'!$C$36,I192<='A - Contractor Summary'!$C$42),"Yes","No") -> No | K192: =VLOOKUP($C192,'C.1 - Rate Sheets'!H:I,2,FALSE) -> 18 | N192: 112 | Q192: 112 | R192: 2016 | S192: 2016 | T192: 0 | U192: 0 | V192: 0
C193: Saws | D193: Saws | E193: Vendor No. 6 | F193: Martinee | G193: 913194975 | H193: 2018-10-21 | I193: 2018-10-27 | J193: =IF(AND(H193>='A - Contractor Summary'!$C$36,I193<='A - Contractor Summary'!$C$42),"Yes","No") -> No | K193: =VLOOKUP($C193,'C.1 - Rate Sheets'!H:I,2,FALSE) -> 0 | N193: 112 | Q193: 112 | R193: 0 | S193: 0 | T193: 0 | U193: 0 | V193: 0
C194: 4X4 Pick Up | D194: 1900015 | E194: Vendor No. 6 | F194: Sandoval | G194: 913195018 | H194: 2018-10-14 | I194: 2018-10-20 | J194: =IF(AND(H194>='A - Contractor Summary'!$C$36,I194<='A - Contractor Summary'!$C$42),"Yes","No") -> No | K194: =VLOOKUP($C194,'C.1 - Rate Sheets'!H:I,2,FALSE) -> 10 | M194: 118 | Q194: 118 | R194: 1180 | S194: 1180 | T194: 0 | U194: 0 | V194: 0
C195: Aerial Lift 60'- 2WD | D195: 3001858 | E195: Vendor No. 6 | F195: Keplet | G195: 913195020 | H195: 2018-10-14 | I195: 2018-10-20 | J195: =IF(AND(H195>='A - Contractor Summary'!$C$36,I195<='A - Contractor Summary'!$C$42),"Yes","No") -> No | K195: =VLOOKUP($C195,'C.1 - Rate Sheets'!H:I,2,FALSE) -> 18 | M195: 112 | Q195: 112 | R195: 2016 | S195: 2016 | T195: 0 | U195: 0 | V195: 0
C196: Saws | D196: 1 | E196: Vendor No. 6 | F196: Keplet | G196: 913195020 | H196: 2018-10-14 | I196: 2018-10-20 | J196: =IF(AND(H196>='A - Contractor Summary'!$C$36,I196<='A - Contractor Summary'!$C$42),"Yes","No") -> No | K196: =VLOOKUP($C196,'C.1 - Rate Sheets'!H:I,2,FALSE) -> 0 | M196: 336 | Q196: 336 | R196: 0 | S196: 0 | T196: 0 | U196: 0 | V196: 0
C197: Aerial Lift 60'- 2WD | D197: 3001955 | E197: Vendor No. 6 | F197: Kepler | G197: 913195022 | H197: 2018-10-21 | I197: 2018-10-27 | J197: =IF(AND(H197>='A - Contractor Summary'!$C$36,I197<='A - Contractor Summary'!$C$42),"Yes","No") -> No | K197: =VLOOKUP($C197,'C.1 - Rate Sheets'!H:I,2,FALSE) -> 18 | N197: 16 | Q197: 16 | R197: 288 | S197: 288 | T197: 0 | U197: 0 | V197: 0
C198: 4X4 Pick Up | D198: 1900015 | E198: Vendor No. 6 | F198: Sandoval | G198: 913195027 | H198: 2018-10-21 | I198: 2018-10-27 | J198: =IF(AND(H198>='A - Contractor Summary'!$C$36,I198<='A - Contractor Summary'!$C$42),"Yes","No") -> No | K198: =VLOOKUP($C198,'C.1 - Rate Sheets'!H:I,2,FALSE) -> 10 | N198: 112 | Q198: 112 | R198: 1120 | S198: 1120 | T198: 0 | U198: 0 | V198: 0
C199: Aerial Lift 60'- 2WD | D199: 3002417 | E199: Vendor No. 6 | F199: Phillips | G199: 913221020 | H199: 2018-10-21 | I199: 2018-10-27 | J199: =IF(AND(H199>='A - Contractor Summary'!$C$36,I199<='A - Contractor Summary'!$C$42),"Yes","No") -> No | K199: =VLOOKUP($C199,'C.1 - Rate Sheets'!H:I,2,FALSE) -> 18 | N199: 112 | Q199: 112 | R199: 2016 | S199: 2016 | T199: 0 | U199: 0 | V199: 0
C200: Aerial Lift 60'- 2WD | D200: 3001980 | E200: Vendor No. 6 | F200: Yasmani | G200: 9132223001 | H200: 2018-10-21 | I200: 2018-10-27 | J200: =IF(AND(H200>='A - Contractor Summary'!$C$36,I200<='A - Contractor Summary'!$C$42),"Yes","No") -> No | K200: =VLOOKUP($C200,'C.1 - Rate Sheets'!H:I,2,FALSE) -> 18 | N200: 32 | Q200: 32 | R200: 576 | S200: 576 | T200: 0 | U200: 0 | V200: 0
C201: Saws | D201: 3554 | E201: Vendor No. 6 | F201: Yasmani | G201: 9132223001 | H201: 2018-10-21 | I201: 2018-10-27 | J201: =IF(AND(H201>='A - Contractor Summary'!$C$36,I201<='A - Contractor Summary'!$C$42),"Yes","No") -> No | K201: =VLOOKUP($C201,'C.1 - Rate Sheets'!H:I,2,FALSE) -> 0 | N201: 32 | Q201: 32 | R201: 0 | S201: 0 | T201: 0 | U201: 0 | V201: 0
C202: Saws | D202: 2663 | E202: Vendor No. 6 | F202: Yasmani | G202: 9132223001 | H202: 2018-10-21 | I202: 2018-10-27 | J202: =IF(AND(H202>='A - Contractor Summary'!$C$36,I202<='A - Contractor Summary'!$C$42),"Yes","No") -> No | K202: =VLOOKUP($C202,'C.1 - Rate Sheets'!H:I,2,FALSE) -> 0 | N202: 32 | Q202: 32 | R202: 0 | S202: 0 | T202: 0 | U202: 0 | V202: 0
C203: Saws | D203: 3363 | E203: Vendor No. 6 | F203: Yasmani | G203: 9132223001 | H203: 2018-10-21 | I203: 2018-10-27 | J203: =IF(AND(H203>='A - Contractor Summary'!$C$36,I203<='A - Contractor Summary'!$C$42),"Yes","No") -> No | K203: =VLOOKUP($C203,'C.1 - Rate Sheets'!H:I,2,FALSE) -> 0 | N203: 32 | Q203: 32 | R203: 0 | S203: 0 | T203: 0 | U203: 0 | V203: 0
C204: Blower | D204: 3497 | E204: Vendor No. 6 | F204: Yasmani | G204: 9132223001 | H204: 2018-10-21 | I204: 2018-10-27 | J204: =IF(AND(H204>='A - Contractor Summary'!$C$36,I204<='A - Contractor Summary'!$C$42),"Yes","No") -> No | K204: =VLOOKUP($C204,'C.1 - Rate Sheets'!H:I,2,FALSE) -> 0 | N204: 32 | Q204: 32 | R204: 0 | S204: 0 | T204: 0 | U204: 0 | V204: 0
C205: Aerial Lift 60'- 2WD | D205: 3002227 | E205: Vendor No. 6 | F205: Napoles | G205: 9132223003 | H205: 2018-10-21 | I205: 2018-10-27 | J205: =IF(AND(H205>='A - Contractor Summary'!$C$36,I205<='A - Contractor Summary'!$C$42),"Yes","No") -> No | K205: =VLOOKUP($C205,'C.1 - Rate Sheets'!H:I,2,FALSE) -> 18 | N205: 32 | Q205: 32 | R205: 576 | S205: 576 | T205: 0 | U205: 0 | V205: 0
C206: Saws | D206: 2623 | E206: Vendor No. 6 | F206: Napoles | G206: 9132223003 | H206: 2018-10-21 | I206: 2018-10-27 | J206: =IF(AND(H206>='A - Contractor Summary'!$C$36,I206<='A - Contractor Summary'!$C$42),"Yes","No") -> No | K206: =VLOOKUP($C206,'C.1 - Rate Sheets'!H:I,2,FALSE) -> 0 | N206: 32 | Q206: 32 | R206: 0 | S206: 0 | T206: 0 | U206: 0 | V206: 0
C207: Saws | D207: 2601 | E207: Vendor No. 6 | F207: Napoles | G207: 9132223003 | H207: 2018-10-21 | I207: 2018-10-27 | J207: =IF(AND(H207>='A - Contractor Summary'!$C$36,I207<='A - Contractor Summary'!$C$42),"Yes","No") -> No | K207: =VLOOKUP($C207,'C.1 - Rate Sheets'!H:I,2,FALSE) -> 0 | N207: 32 | Q207: 32 | R207: 0 | S207: 0 | T207: 0 | U207: 0 | V207: 0
C208: Saws | D208: 3618 | E208: Vendor No. 6 | F208: Napoles | G208: 9132223003 | H208: 2018-10-21 | I208: 2018-10-27 | J208: =IF(AND(H208>='A - Contractor Summary'!$C$36,I208<='A - Contractor Summary'!$C$42),"Yes","No") -> No | K208: =VLOOKUP($C208,'C.1 - Rate Sheets'!H:I,2,FALSE) -> 0 | N208: 32 | Q208: 32 | R208: 0 | S208: 0 | T208: 0 | U208: 0 | V208: 0
... 66 more rows

Sheet D - Lodging
B2: Lodging Charges
B4: Test Plan: (A) Obtain support of individual charges. (B) Enter Yes/No if receipt is itemized (C) Enter Yes/No if proof of payment has been provided. (D) Ensure charges fall between the dates the vendor was mobilized and the date they arrived. (E) Ensure charges are prior to the date the vendor arrived home or was released to another utility. (F) Ensure the location of stay was reasonable (G) Determine the amount(s) to be reviewed, allowed and/or disallowed. (H) For charges which required further review, document review (include why it was determined to be allowed/disallowed via a tickmark).
B8: Rx | C8: Recalculated.
B9: a | C9: Check figure should equal $0. Cell will appear yellow if discrepancies are noted.
C11: A | M11: Rx | N11: B | O11: C | P11: D | Q11: E | R11: F | S11: G | V11: H
B12: Support Reviewed | P12: Conclusion
B13: # | C13: Type of Support | D13: Support Identifier | E13: Crew | F13: Company | G13: Check In Date | H13: Person | I13: Hotel Name | J13: Location | K13: # of Nights | L13: Total Invoice | M13: $ / Night | N13: Itemized Receipt | O13: Proof of Payment | P13: Reasonable based on Mobilization date(s) | Q13: Reasonable based on Demobilization date(s) | R13: Location Reasonable | S13: Conclusion | T13: $ Allowable Charge | U13: $ To Be Reviewed | V13: Reviewed - Allowable $ | W13: Reviewed - Unallowable $ | X13: Tickmark
B14: 1 | M14: =L14/K14 ->  | P14: =IF(AND(G14>='A - Contractor Summary'!$C$36,G14<='A - Contractor Summary'!$C$38),"Yes",IF(G14<'A - Contractor Summary'!$C$36,"No",IF(G14>'A - Contractor Summary'!$C$39,"",""))) -> No | Q14: =IF(OR(P14="Yes",P14="No")*AND(G14<'A - Contractor Summary'!$C$39),"",IF(AND(G14>'A - Contractor Summary'!$C$39,G14<'A - Contractor Summary'!$C$42),"Yes",IF(G14>'A - Contractor Summary'!$C$42,"No","Needs Review"))) ->  | S14: =IF(AND(R14="YES",O14="Yes",N14="Yes")*OR(P14="Yes",Q14="Yes"),"Yes",IF(OR(N14="No",O14="No",P14="No",Q14="No",R14="No"),"No","Needs Review")) -> No | T14: =IF(S14="Yes",L14,0) -> 0 | U14: =IF(S14="Needs Review",L14,0) -> 0
B15: 2 | P15: =IF(AND(G15>='A - Contractor Summary'!$C$36,G15<='A - Contractor Summary'!$C$38),"Yes",IF(G15<'A - Contractor Summary'!$C$36,"No",IF(G15>'A - Contractor Summary'!$C$39,"",""))) -> No | Q15: =IF(OR(P15="Yes",P15="No")*AND(G15<'A - Contractor Summary'!$C$39),"",IF(AND(G15>'A - Contractor Summary'!$C$39,G15<'A - Contractor Summary'!$C$42),"Yes",IF(G15>'A - Contractor Summary'!$C$42,"No","Needs Review"))) ->  | S15: No | T15: 0 | U15: 0
B16: 3 | P16: =IF(AND(G16>='A - Contractor Summary'!$C$36,G16<='A - Contractor Summary'!$C$38),"Yes",IF(G16<'A - Contractor Summary'!$C$36,"No",IF(G16>'A - Contractor Summary'!$C$39,"",""))) -> No | Q16: =IF(OR(P16="Yes",P16="No")*AND(G16<'A - Contractor Summary'!$C$39),"",IF(AND(G16>'A - Contractor Summary'!$C$39,G16<'A - Contractor Summary'!$C$42),"Yes",IF(G16>'A - Contractor Summary'!$C$42,"No","Needs Review"))) ->  | S16: No | T16: 0 | U16: 0
B17: 4 | P17: =IF(AND(G17>='A - Contractor Summary'!$C$36,G17<='A - Contractor Summary'!$C$38),"Yes",IF(G17<'A - Contractor Summary'!$C$36,"No",IF(G17>'A - Contractor Summary'!$C$39,"",""))) -> No | Q17: =IF(OR(P17="Yes",P17="No")*AND(G17<'A - Contractor Summary'!$C$39),"",IF(AND(G17>'A - Contractor Summary'!$C$39,G17<'A - Contractor Summary'!$C$42),"Yes",IF(G17>'A - Contractor Summary'!$C$42,"No","Needs Review"))) ->  | S17: No | T17: 0 | U17: 0
B18: 5 | P18: =IF(AND(G18>='A - Contractor Summary'!$C$36,G18<='A - Contractor Summary'!$C$38),"Yes",IF(G18<'A - Contractor Summary'!$C$36,"No",IF(G18>'A - Contractor Summary'!$C$39,"",""))) -> No | Q18: =IF(OR(P18="Yes",P18="No")*AND(G18<'A - Contractor Summary'!$C$39),"",IF(AND(G18>'A - Contractor Summary'!$C$39,G18<'A - Contractor Summary'!$C$42),"Yes",IF(G18>'A - Contractor Summary'!$C$42,"No","Needs Review"))) ->  | S18: No | T18: 0 | U18: 0
B19: 6 | P19: =IF(AND(G19>='A - Contractor Summary'!$C$36,G19<='A - Contractor Summary'!$C$38),"Yes",IF(G19<'A - Contractor Summary'!$C$36,"No",IF(G19>'A - Contractor Summary'!$C$39,"",""))) -> No | Q19: =IF(OR(P19="Yes",P19="No")*AND(G19<'A - Contractor Summary'!$C$39),"",IF(AND(G19>'A - Contractor Summary'!$C$39,G19<'A - Contractor Summary'!$C$42),"Yes",IF(G19>'A - Contractor Summary'!$C$42,"No","Needs Review"))) ->  | S19: No | T19: 0 | U19: 0
B20: 7 | P20: =IF(AND(G20>='A - Contractor Summary'!$C$36,G20<='A - Contractor Summary'!$C$38),"Yes",IF(G20<'A - Contractor Summary'!$C$36,"No",IF(G20>'A - Contractor Summary'!$C$39,"",""))) -> No | Q20: =IF(OR(P20="Yes",P20="No")*AND(G20<'A - Contractor Summary'!$C$39),"",IF(AND(G20>'A - Contractor Summary'!$C$39,G20<'A - Contractor Summary'!$C$42),"Yes",IF(G20>'A - Contractor Summary'!$C$42,"No","Needs Review"))) ->  | S20: No | T20: 0 | U20: 0
B21: 8 | P21: =IF(AND(G21>='A - Contractor Summary'!$C$36,G21<='A - Contractor Summary'!$C$38),"Yes",IF(G21<'A - Contractor Summary'!$C$36,"No",IF(G21>'A - Contractor Summary'!$C$39,"",""))) -> No | Q21: =IF(OR(P21="Yes",P21="No")*AND(G21<'A - Contractor Summary'!$C$39),"",IF(AND(G21>'A - Contractor Summary'!$C$39,G21<'A - Contractor Summary'!$C$42),"Yes",IF(G21>'A - Contractor Summary'!$C$42,"No","Needs Review"))) ->  | S21: No | T21: 0 | U21: 0
B22: 9 | P22: =IF(AND(G22>='A - Contractor Summary'!$C$36,G22<='A - Contractor Summary'!$C$38),"Yes",IF(G22<'A - Contractor Summary'!$C$36,"No",IF(G22>'A - Contractor Summary'!$C$39,"",""))) -> No | Q22: =IF(OR(P22="Yes",P22="No")*AND(G22<'A - Contractor Summary'!$C$39),"",IF(AND(G22>'A - Contractor Summary'!$C$39,G22<'A - Contractor Summary'!$C$42),"Yes",IF(G22>'A - Contractor Summary'!$C$42,"No","Needs Review"))) ->  | S22: No | T22: 0 | U22: 0
B23: 10 | P23: =IF(AND(G23>='A - Contractor Summary'!$C$36,G23<='A - Contractor Summary'!$C$38),"Yes",IF(G23<'A - Contractor Summary'!$C$36,"No",IF(G23>'A - Contractor Summary'!$C$39,"",""))) -> No | Q23: =IF(OR(P23="Yes",P23="No")*AND(G23<'A - Contractor Summary'!$C$39),"",IF(AND(G23>'A - Contractor Summary'!$C$39,G23<'A - Contractor Summary'!$C$42),"Yes",IF(G23>'A - Contractor Summary'!$C$42,"No","Needs Review"))) ->  | S23: No | T23: 0 | U23: 0
B24: 11 | P24: =IF(AND(G24>='A - Contractor Summary'!$C$36,G24<='A - Contractor Summary'!$C$38),"Yes",IF(G24<'A - Contractor Summary'!$C$36,"No",IF(G24>'A - Contractor Summary'!$C$39,"",""))) -> No | Q24: =IF(OR(P24="Yes",P24="No")*AND(G24<'A - Contractor Summary'!$C$39),"",IF(AND(G24>'A - Contractor Summary'!$C$39,G24<'A - Contractor Summary'!$C$42),"Yes",IF(G24>'A - Contractor Summary'!$C$42,"No","Needs Review"))) ->  | S24: No | T24: 0 | U24: 0
B25: 12 | P25: =IF(AND(G25>='A - Contractor Summary'!$C$36,G25<='A - Contractor Summary'!$C$38),"Yes",IF(G25<'A - Contractor Summary'!$C$36,"No",IF(G25>'A - Contractor Summary'!$C$39,"",""))) -> No | Q25: =IF(OR(P25="Yes",P25="No")*AND(G25<'A - Contractor Summary'!$C$39),"",IF(AND(G25>'A - Contractor Summary'!$C$39,G25<'A - Contractor Summary'!$C$42),"Yes",IF(G25>'A - Contractor Summary'!$C$42,"No","Needs Review"))) ->  | S25: No | T25: 0 | U25: 0
B26: 13 | P26: =IF(AND(G26>='A - Contractor Summary'!$C$36,G26<='A - Contractor Summary'!$C$38),"Yes",IF(G26<'A - Contractor Summary'!$C$36,"No",IF(G26>'A - Contractor Summary'!$C$39,"",""))) -> No | Q26: =IF(OR(P26="Yes",P26="No")*AND(G26<'A - Contractor Summary'!$C$39),"",IF(AND(G26>'A - Contractor Summary'!$C$39,G26<'A - Contractor Summary'!$C$42),"Yes",IF(G26>'A - Contractor Summary'!$C$42,"No","Needs Review"))) ->  | S26: No | T26: 0 | U26: 0
B27: 14 | P27: =IF(AND(G27>='A - Contractor Summary'!$C$36,G27<='A - Contractor Summary'!$C$38),"Yes",IF(G27<'A - Contractor Summary'!$C$36,"No",IF(G27>'A - Contractor Summary'!$C$39,"",""))) -> No | Q27: =IF(OR(P27="Yes",P27="No")*AND(G27<'A - Contractor Summary'!$C$39),"",IF(AND(G27>'A - Contractor Summary'!$C$39,G27<'A - Contractor Summary'!$C$42),"Yes",IF(G27>'A - Contractor Summary'!$C$42,"No","Needs Review"))) ->  | S27: No | T27: 0 | U27: 0
B28: 15 | P28: =IF(AND(G28>='A - Contractor Summary'!$C$36,G28<='A - Contractor Summary'!$C$38),"Yes",IF(G28<'A - Contractor Summary'!$C$36,"No",IF(G28>'A - Contractor Summary'!$C$39,"",""))) -> No | Q28: =IF(OR(P28="Yes",P28="No")*AND(G28<'A - Contractor Summary'!$C$39),"",IF(AND(G28>'A - Contractor Summary'!$C$39,G28<'A - Contractor Summary'!$C$42),"Yes",IF(G28>'A - Contractor Summary'!$C$42,"No","Needs Review"))) ->  | S28: No | T28: 0 | U28: 0
B29: 16 | P29: =IF(AND(G29>='A - Contractor Summary'!$C$36,G29<='A - Contractor Summary'!$C$38),"Yes",IF(G29<'A - Contractor Summary'!$C$36,"No",IF(G29>'A - Contractor Summary'!$C$39,"",""))) -> No | Q29: =IF(OR(P29="Yes",P29="No")*AND(G29<'A - Contractor Summary'!$C$39),"",IF(AND(G29>'A - Contractor Summary'!$C$39,G29<'A - Contractor Summary'!$C$42),"Yes",IF(G29>'A - Contractor Summary'!$C$42,"No","Needs Review"))) ->  | S29: No | T29: 0 | U29: 0
B30: 17 | P30: =IF(AND(G30>='A - Contractor Summary'!$C$36,G30<='A - Contractor Summary'!$C$38),"Yes",IF(G30<'A - Contractor Summary'!$C$36,"No",IF(G30>'A - Contractor Summary'!$C$39,"",""))) -> No | Q30: =IF(OR(P30="Yes",P30="No")*AND(G30<'A - Contractor Summary'!$C$39),"",IF(AND(G30>'A - Contractor Summary'!$C$39,G30<'A - Contractor Summary'!$C$42),"Yes",IF(G30>'A - Contractor Summary'!$C$42,"No","Needs Review"))) ->  | S30: No | T30: 0 | U30: 0
B31: 18 | P31: =IF(AND(G31>='A - Contractor Summary'!$C$36,G31<='A - Contractor Summary'!$C$38),"Yes",IF(G31<'A - Contractor Summary'!$C$36,"No",IF(G31>'A - Contractor Summary'!$C$39,"",""))) -> No | Q31: =IF(OR(P31="Yes",P31="No")*AND(G31<'A - Contractor Summary'!$C$39),"",IF(AND(G31>'A - Contractor Summary'!$C$39,G31<'A - Contractor Summary'!$C$42),"Yes",IF(G31>'A - Contractor Summary'!$C$42,"No","Needs Review"))) ->  | S31: No | T31: 0 | U31: 0
B32: 19 | P32: =IF(AND(G32>='A - Contractor Summary'!$C$36,G32<='A - Contractor Summary'!$C$38),"Yes",IF(G32<'A - Contractor Summary'!$C$36,"No",IF(G32>'A - Contractor Summary'!$C$39,"",""))) -> No | Q32: =IF(OR(P32="Yes",P32="No")*AND(G32<'A - Contractor Summary'!$C$39),"",IF(AND(G32>'A - Contractor Summary'!$C$39,G32<'A - Contractor Summary'!$C$42),"Yes",IF(G32>'A - Contractor Summary'!$C$42,"No","Needs Review"))) ->  | S32: No | T32: 0 | U32: 0
B33: 20 | P33: =IF(AND(G33>='A - Contractor Summary'!$C$36,G33<='A - Contractor Summary'!$C$38),"Yes",IF(G33<'A - Contractor Summary'!$C$36,"No",IF(G33>'A - Contractor Summary'!$C$39,"",""))) -> No | Q33: =IF(OR(P33="Yes",P33="No")*AND(G33<'A - Contractor Summary'!$C$39),"",IF(AND(G33>'A - Contractor Summary'!$C$39,G33<'A - Contractor Summary'!$C$42),"Yes",IF(G33>'A - Contractor Summary'!$C$42,"No","Needs Review"))) ->  | S33: No | T33: 0 | U33: 0
B34: 21 | P34: =IF(AND(G34>='A - Contractor Summary'!$C$36,G34<='A - Contractor Summary'!$C$38),"Yes",IF(G34<'A - Contractor Summary'!$C$36,"No",IF(G34>'A - Contractor Summary'!$C$39,"",""))) -> No | Q34: =IF(OR(P34="Yes",P34="No")*AND(G34<'A - Contractor Summary'!$C$39),"",IF(AND(G34>'A - Contractor Summary'!$C$39,G34<'A - Contractor Summary'!$C$42),"Yes",IF(G34>'A - Contractor Summary'!$C$42,"No","Needs Review"))) ->  | S34: No | T34: 0 | U34: 0
B35: 22 | P35: =IF(AND(G35>='A - Contractor Summary'!$C$36,G35<='A - Contractor Summary'!$C$38),"Yes",IF(G35<'A - Contractor Summary'!$C$36,"No",IF(G35>'A - Contractor Summary'!$C$39,"",""))) -> No | Q35: =IF(OR(P35="Yes",P35="No")*AND(G35<'A - Contractor Summary'!$C$39),"",IF(AND(G35>'A - Contractor Summary'!$C$39,G35<'A - Contractor Summary'!$C$42),"Yes",IF(G35>'A - Contractor Summary'!$C$42,"No","Needs Review"))) ->  | S35: No | T35: 0 | U35: 0
B36: 23 | P36: =IF(AND(G36>='A - Contractor Summary'!$C$36,G36<='A - Contractor Summary'!$C$38),"Yes",IF(G36<'A - Contractor Summary'!$C$36,"No",IF(G36>'A - Contractor Summary'!$C$39,"",""))) -> No | Q36: =IF(OR(P36="Yes",P36="No")*AND(G36<'A - Contractor Summary'!$C$39),"",IF(AND(G36>'A - Contractor Summary'!$C$39,G36<'A - Contractor Summary'!$C$42),"Yes",IF(G36>'A - Contractor Summary'!$C$42,"No","Needs Review"))) ->  | S36: No | T36: 0 | U36: 0
B37: 24 | P37: =IF(AND(G37>='A - Contractor Summary'!$C$36,G37<='A - Contractor Summary'!$C$38),"Yes",IF(G37<'A - Contractor Summary'!$C$36,"No",IF(G37>'A - Contractor Summary'!$C$39,"",""))) -> No | Q37: =IF(OR(P37="Yes",P37="No")*AND(G37<'A - Contractor Summary'!$C$39),"",IF(AND(G37>'A - Contractor Summary'!$C$39,G37<'A - Contractor Summary'!$C$42),"Yes",IF(G37>'A - Contractor Summary'!$C$42,"No","Needs Review"))) ->  | S37: No | T37: 0 | U37: 0
B38: 25 | P38: =IF(AND(G38>='A - Contractor Summary'!$C$36,G38<='A - Contractor Summary'!$C$38),"Yes",IF(G38<'A - Contractor Summary'!$C$36,"No",IF(G38>'A - Contractor Summary'!$C$39,"",""))) -> No | Q38: =IF(OR(P38="Yes",P38="No")*AND(G38<'A - Contractor Summary'!$C$39),"",IF(AND(G38>'A - Contractor Summary'!$C$39,G38<'A - Contractor Summary'!$C$42),"Yes",IF(G38>'A - Contractor Summary'!$C$42,"No","Needs Review"))) ->  | S38: No | T38: 0 | U38: 0
B39: 26 | P39: =IF(AND(G39>='A - Contractor Summary'!$C$36,G39<='A - Contractor Summary'!$C$38),"Yes",IF(G39<'A - Contractor Summary'!$C$36,"No",IF(G39>'A - Contractor Summary'!$C$39,"",""))) -> No | Q39: =IF(OR(P39="Yes",P39="No")*AND(G39<'A - Contractor Summary'!$C$39),"",IF(AND(G39>'A - Contractor Summary'!$C$39,G39<'A - Contractor Summary'!$C$42),"Yes",IF(G39>'A - Contractor Summary'!$C$42,"No","Needs Review"))) ->  | S39: No | T39: 0 | U39: 0
B40: 27 | P40: =IF(AND(G40>='A - Contractor Summary'!$C$36,G40<='A - Contractor Summary'!$C$38),"Yes",IF(G40<'A - Contractor Summary'!$C$36,"No",IF(G40>'A - Contractor Summary'!$C$39,"",""))) -> No | Q40: =IF(OR(P40="Yes",P40="No")*AND(G40<'A - Contractor Summary'!$C$39),"",IF(AND(G40>'A - Contractor Summary'!$C$39,G40<'A - Contractor Summary'!$C$42),"Yes",IF(G40>'A - Contractor Summary'!$C$42,"No","Needs Review"))) ->  | S40: No | T40: 0 | U40: 0
B41: 28 | P41: =IF(AND(G41>='A - Contractor Summary'!$C$36,G41<='A - Contractor Summary'!$C$38),"Yes",IF(G41<'A - Contractor Summary'!$C$36,"No",IF(G41>'A - Contractor Summary'!$C$39,"",""))) -> No | Q41: =IF(OR(P41="Yes",P41="No")*AND(G41<'A - Contractor Summary'!$C$39),"",IF(AND(G41>'A - Contractor Summary'!$C$39,G41<'A - Contractor Summary'!$C$42),"Yes",IF(G41>'A - Contractor Summary'!$C$42,"No","Needs Review"))) ->  | S41: No | T41: 0 | U41: 0
B42: 29 | P42: =IF(AND(G42>='A - Contractor Summary'!$C$36,G42<='A - Contractor Summary'!$C$38),"Yes",IF(G42<'A - Contractor Summary'!$C$36,"No",IF(G42>'A - Contractor Summary'!$C$39,"",""))) -> No | Q42: =IF(OR(P42="Yes",P42="No")*AND(G42<'A - Contractor Summary'!$C$39),"",IF(AND(G42>'A - Contractor Summary'!$C$39,G42<'A - Contractor Summary'!$C$42),"Yes",IF(G42>'A - Contractor Summary'!$C$42,"No","Needs Review"))) ->  | S42: No | T42: 0 | U42: 0
B43: 30 | P43: =IF(AND(G43>='A - Contractor Summary'!$C$36,G43<='A - Contractor Summary'!$C$38),"Yes",IF(G43<'A - Contractor Summary'!$C$36,"No",IF(G43>'A - Contractor Summary'!$C$39,"",""))) -> No | Q43: =IF(OR(P43="Yes",P43="No")*AND(G43<'A - Contractor Summary'!$C$39),"",IF(AND(G43>'A - Contractor Summary'!$C$39,G43<'A - Contractor Summary'!$C$42),"Yes",IF(G43>'A - Contractor Summary'!$C$42,"No","Needs Review"))) ->  | S43: No | T43: 0 | U43: 0
B44: 31 | P44: =IF(AND(G44>='A - Contractor Summary'!$C$36,G44<='A - Contractor Summary'!$C$38),"Yes",IF(G44<'A - Contractor Summary'!$C$36,"No",IF(G44>'A - Contractor Summary'!$C$39,"",""))) -> No | Q44: =IF(OR(P44="Yes",P44="No")*AND(G44<'A - Contractor Summary'!$C$39),"",IF(AND(G44>'A - Contractor Summary'!$C$39,G44<'A - Contractor Summary'!$C$42),"Yes",IF(G44>'A - Contractor Summary'!$C$42,"No","Needs Review"))) ->  | S44: No | T44: 0 | U44: 0
B45: 32 | P45: =IF(AND(G45>='A - Contractor Summary'!$C$36,G45<='A - Contractor Summary'!$C$38),"Yes",IF(G45<'A - Contractor Summary'!$C$36,"No",IF(G45>'A - Contractor Summary'!$C$39,"",""))) -> No | Q45: =IF(OR(P45="Yes",P45="No")*AND(G45<'A - Contractor Summary'!$C$39),"",IF(AND(G45>'A - Contractor Summary'!$C$39,G45<'A - Contractor Summary'!$C$42),"Yes",IF(G45>'A - Contractor Summary'!$C$42,"No","Needs Review"))) ->  | S45: No | T45: 0 | U45: 0
B46: 33 | M46: =L46/K46 ->  | P46: =IF(AND(G46>='A - Contractor Summary'!$C$36,G46<='A - Contractor Summary'!$C$38),"Yes",IF(G46<'A - Contractor Summary'!$C$36,"No",IF(G46>'A - Contractor Summary'!$C$39,"",""))) -> No | Q46: =IF(OR(P46="Yes",P46="No")*AND(G46<'A - Contractor Summary'!$C$39),"",IF(AND(G46>'A - Contractor Summary'!$C$39,G46<'A - Contractor Summary'!$C$42),"Yes",IF(G46>'A - Contractor Summary'!$C$42,"No","Needs Review"))) ->  | S46: =IF(AND(R46="YES",O46="Yes",N46="Yes")*OR(P46="Yes",Q46="Yes"),"Yes",IF(OR(N46="No",O46="No",P46="No",Q46="No",R46="No"),"No","Needs Review")) -> No | T46: =IF(S46="Yes",L46,0) -> 0 | U46: =IF(S46="Needs Review",L46,0) -> 0
B47: 34 | P47: =IF(AND(G47>='A - Contractor Summary'!$C$36,G47<='A - Contractor Summary'!$C$38),"Yes",IF(G47<'A - Contractor Summary'!$C$36,"No",IF(G47>'A - Contractor Summary'!$C$39,"",""))) -> No | Q47: =IF(OR(P47="Yes",P47="No")*AND(G47<'A - Contractor Summary'!$C$39),"",IF(AND(G47>'A - Contractor Summary'!$C$39,G47<'A - Contractor Summary'!$C$42),"Yes",IF(G47>'A - Contractor Summary'!$C$42,"No","Needs Review"))) ->  | S47: No | T47: 0 | U47: 0
B48: 35 | P48: =IF(AND(G48>='A - Contractor Summary'!$C$36,G48<='A - Contractor Summary'!$C$38),"Yes",IF(G48<'A - Contractor Summary'!$C$36,"No",IF(G48>'A - Contractor Summary'!$C$39,"",""))) -> No | Q48: =IF(OR(P48="Yes",P48="No")*AND(G48<'A - Contractor Summary'!$C$39),"",IF(AND(G48>'A - Contractor Summary'!$C$39,G48<'A - Contractor Summary'!$C$42),"Yes",IF(G48>'A - Contractor Summary'!$C$42,"No","Needs Review"))) ->  | S48: No | T48: 0 | U48: 0
B49: 36 | P49: =IF(AND(G49>='A - Contractor Summary'!$C$36,G49<='A - Contractor Summary'!$C$38),"Yes",IF(G49<'A - Contractor Summary'!$C$36,"No",IF(G49>'A - Contractor Summary'!$C$39,"",""))) -> No | Q49: =IF(OR(P49="Yes",P49="No")*AND(G49<'A - Contractor Summary'!$C$39),"",IF(AND(G49>'A - Contractor Summary'!$C$39,G49<'A - Contractor Summary'!$C$42),"Yes",IF(G49>'A - Contractor Summary'!$C$42,"No","Needs Review"))) ->  | S49: No | T49: 0 | U49: 0
B50: 37 | P50: =IF(AND(G50>='A - Contractor Summary'!$C$36,G50<='A - Contractor Summary'!$C$38),"Yes",IF(G50<'A - Contractor Summary'!$C$36,"No",IF(G50>'A - Contractor Summary'!$C$39,"",""))) -> No | Q50: =IF(OR(P50="Yes",P50="No")*AND(G50<'A - Contractor Summary'!$C$39),"",IF(AND(G50>'A - Contractor Summary'!$C$39,G50<'A - Contractor Summary'!$C$42),"Yes",IF(G50>'A - Contractor Summary'!$C$42,"No","Needs Review"))) ->  | S50: No | T50: 0 | U50: 0
B51: 38 | P51: =IF(AND(G51>='A - Contractor Summary'!$C$36,G51<='A - Contractor Summary'!$C$38),"Yes",IF(G51<'A - Contractor Summary'!$C$36,"No",IF(G51>'A - Contractor Summary'!$C$39,"",""))) -> No | Q51: =IF(OR(P51="Yes",P51="No")*AND(G51<'A - Contractor Summary'!$C$39),"",IF(AND(G51>'A - Contractor Summary'!$C$39,G51<'A - Contractor Summary'!$C$42),"Yes",IF(G51>'A - Contractor Summary'!$C$42,"No","Needs Review"))) ->  | S51: No | T51: 0 | U51: 0
B52: 39 | P52: =IF(AND(G52>='A - Contractor Summary'!$C$36,G52<='A - Contractor Summary'!$C$38),"Yes",IF(G52<'A - Contractor Summary'!$C$36,"No",IF(G52>'A - Contractor Summary'!$C$39,"",""))) -> No | Q52: =IF(OR(P52="Yes",P52="No")*AND(G52<'A - Contractor Summary'!$C$39),"",IF(AND(G52>'A - Contractor Summary'!$C$39,G52<'A - Contractor Summary'!$C$42),"Yes",IF(G52>'A - Contractor Summary'!$C$42,"No","Needs Review"))) ->  | S52: No | T52: 0 | U52: 0
B53: 40 | P53: =IF(AND(G53>='A - Contractor Summary'!$C$36,G53<='A - Contractor Summary'!$C$38),"Yes",IF(G53<'A - Contractor Summary'!$C$36,"No",IF(G53>'A - Contractor Summary'!$C$39,"",""))) -> No | Q53: =IF(OR(P53="Yes",P53="No")*AND(G53<'A - Contractor Summary'!$C$39),"",IF(AND(G53>'A - Contractor Summary'!$C$39,G53<'A - Contractor Summary'!$C$42),"Yes",IF(G53>'A - Contractor Summary'!$C$42,"No","Needs Review"))) ->  | S53: No | T53: 0 | U53: 0
B54: 41 | P54: =IF(AND(G54>='A - Contractor Summary'!$C$36,G54<='A - Contractor Summary'!$C$38),"Yes",IF(G54<'A - Contractor Summary'!$C$36,"No",IF(G54>'A - Contractor Summary'!$C$39,"",""))) -> No | Q54: =IF(OR(P54="Yes",P54="No")*AND(G54<'A - Contractor Summary'!$C$39),"",IF(AND(G54>'A - Contractor Summary'!$C$39,G54<'A - Contractor Summary'!$C$42),"Yes",IF(G54>'A - Contractor Summary'!$C$42,"No","Needs Review"))) ->  | S54: No | T54: 0 | U54: 0
B55: 42 | P55: =IF(AND(G55>='A - Contractor Summary'!$C$36,G55<='A - Contractor Summary'!$C$38),"Yes",IF(G55<'A - Contractor Summary'!$C$36,"No",IF(G55>'A - Contractor Summary'!$C$39,"",""))) -> No | Q55: =IF(OR(P55="Yes",P55="No")*AND(G55<'A - Contractor Summary'!$C$39),"",IF(AND(G55>'A - Contractor Summary'!$C$39,G55<'A - Contractor Summary'!$C$42),"Yes",IF(G55>'A - Contractor Summary'!$C$42,"No","Needs Review"))) ->  | S55: No | T55: 0 | U55: 0
B56: 43 | P56: =IF(AND(G56>='A - Contractor Summary'!$C$36,G56<='A - Contractor Summary'!$C$38),"Yes",IF(G56<'A - Contractor Summary'!$C$36,"No",IF(G56>'A - Contractor Summary'!$C$39,"",""))) -> No | Q56: =IF(OR(P56="Yes",P56="No")*AND(G56<'A - Contractor Summary'!$C$39),"",IF(AND(G56>'A - Contractor Summary'!$C$39,G56<'A - Contractor Summary'!$C$42),"Yes",IF(G56>'A - Contractor Summary'!$C$42,"No","Needs Review"))) ->  | S56: No | T56: 0 | U56: 0
B57: 44 | P57: =IF(AND(G57>='A - Contractor Summary'!$C$36,G57<='A - Contractor Summary'!$C$38),"Yes",IF(G57<'A - Contractor Summary'!$C$36,"No",IF(G57>'A - Contractor Summary'!$C$39,"",""))) -> No | Q57: =IF(OR(P57="Yes",P57="No")*AND(G57<'A - Contractor Summary'!$C$39),"",IF(AND(G57>'A - Contractor Summary'!$C$39,G57<'A - Contractor Summary'!$C$42),"Yes",IF(G57>'A - Contractor Summary'!$C$42,"No","Needs Review"))) ->  | S57: No | T57: 0 | U57: 0
B58: 45 | P58: =IF(AND(G58>='A - Contractor Summary'!$C$36,G58<='A - Contractor Summary'!$C$38),"Yes",IF(G58<'A - Contractor Summary'!$C$36,"No",IF(G58>'A - Contractor Summary'!$C$39,"",""))) -> No | Q58: =IF(OR(P58="Yes",P58="No")*AND(G58<'A - Contractor Summary'!$C$39),"",IF(AND(G58>'A - Contractor Summary'!$C$39,G58<'A - Contractor Summary'!$C$42),"Yes",IF(G58>'A - Contractor Summary'!$C$42,"No","Needs Review"))) ->  | S58: No | T58: 0 | U58: 0
B59: 46 | P59: =IF(AND(G59>='A - Contractor Summary'!$C$36,G59<='A - Contractor Summary'!$C$38),"Yes",IF(G59<'A - Contractor Summary'!$C$36,"No",IF(G59>'A - Contractor Summary'!$C$39,"",""))) -> No | Q59: =IF(OR(P59="Yes",P59="No")*AND(G59<'A - Contractor Summary'!$C$39),"",IF(AND(G59>'A - Contractor Summary'!$C$39,G59<'A - Contractor Summary'!$C$42),"Yes",IF(G59>'A - Contractor Summary'!$C$42,"No","Needs Review"))) ->  | S59: No | T59: 0 | U59: 0
B60: 47 | P60: =IF(AND(G60>='A - Contractor Summary'!$C$36,G60<='A - Contractor Summary'!$C$38),"Yes",IF(G60<'A - Contractor Summary'!$C$36,"No",IF(G60>'A - Contractor Summary'!$C$39,"",""))) -> No | Q60: =IF(OR(P60="Yes",P60="No")*AND(G60<'A - Contractor Summary'!$C$39),"",IF(AND(G60>'A - Contractor Summary'!$C$39,G60<'A - Contractor Summary'!$C$42),"Yes",IF(G60>'A - Contractor Summary'!$C$42,"No","Needs Review"))) ->  | S60: No | T60: 0 | U60: 0
B61: 48 | P61: =IF(AND(G61>='A - Contractor Summary'!$C$36,G61<='A - Contractor Summary'!$C$38),"Yes",IF(G61<'A - Contractor Summary'!$C$36,"No",IF(G61>'A - Contractor Summary'!$C$39,"",""))) -> No | Q61: =IF(OR(P61="Yes",P61="No")*AND(G61<'A - Contractor Summary'!$C$39),"",IF(AND(G61>'A - Contractor Summary'!$C$39,G61<'A - Contractor Summary'!$C$42),"Yes",IF(G61>'A - Contractor Summary'!$C$42,"No","Needs Review"))) ->  | S61: No | T61: 0 | U61: 0
B62: 49 | P62: =IF(AND(G62>='A - Contractor Summary'!$C$36,G62<='A - Contractor Summary'!$C$38),"Yes",IF(G62<'A - Contractor Summary'!$C$36,"No",IF(G62>'A - Contractor Summary'!$C$39,"",""))) -> No | Q62: =IF(OR(P62="Yes",P62="No")*AND(G62<'A - Contractor Summary'!$C$39),"",IF(AND(G62>'A - Contractor Summary'!$C$39,G62<'A - Contractor Summary'!$C$42),"Yes",IF(G62>'A - Contractor Summary'!$C$42,"No","Needs Review"))) ->  | S62: No | T62: 0 | U62: 0
B63: 50 | P63: =IF(AND(G63>='A - Contractor Summary'!$C$36,G63<='A - Contractor Summary'!$C$38),"Yes",IF(G63<'A - Contractor Summary'!$C$36,"No",IF(G63>'A - Contractor Summary'!$C$39,"",""))) -> No | Q63: =IF(OR(P63="Yes",P63="No")*AND(G63<'A - Contractor Summary'!$C$39),"",IF(AND(G63>'A - Contractor Summary'!$C$39,G63<'A - Contractor Summary'!$C$42),"Yes",IF(G63>'A - Contractor Summary'!$C$42,"No","Needs Review"))) ->  | S63: No | T63: 0 | U63: 0
B64: 51 | P64: =IF(AND(G64>='A - Contractor Summary'!$C$36,G64<='A - Contractor Summary'!$C$38),"Yes",IF(G64<'A - Contractor Summary'!$C$36,"No",IF(G64>'A - Contractor Summary'!$C$39,"",""))) -> No | Q64: =IF(OR(P64="Yes",P64="No")*AND(G64<'A - Contractor Summary'!$C$39),"",IF(AND(G64>'A - Contractor Summary'!$C$39,G64<'A - Contractor Summary'!$C$42),"Yes",IF(G64>'A - Contractor Summary'!$C$42,"No","Needs Review"))) ->  | S64: No | T64: 0 | U64: 0
B65: 52 | P65: =IF(AND(G65>='A - Contractor Summary'!$C$36,G65<='A - Contractor Summary'!$C$38),"Yes",IF(G65<'A - Contractor Summary'!$C$36,"No",IF(G65>'A - Contractor Summary'!$C$39,"",""))) -> No | Q65: =IF(OR(P65="Yes",P65="No")*AND(G65<'A - Contractor Summary'!$C$39),"",IF(AND(G65>'A - Contractor Summary'!$C$39,G65<'A - Contractor Summary'!$C$42),"Yes",IF(G65>'A - Contractor Summary'!$C$42,"No","Needs Review"))) ->  | S65: No | T65: 0 | U65: 0
B66: 53 | P66: =IF(AND(G66>='A - Contractor Summary'!$C$36,G66<='A - Contractor Summary'!$C$38),"Yes",IF(G66<'A - Contractor Summary'!$C$36,"No",IF(G66>'A - Contractor Summary'!$C$39,"",""))) -> No | Q66: =IF(OR(P66="Yes",P66="No")*AND(G66<'A - Contractor Summary'!$C$39),"",IF(AND(G66>'A - Contractor Summary'!$C$39,G66<'A - Contractor Summary'!$C$42),"Yes",IF(G66>'A - Contractor Summary'!$C$42,"No","Needs Review"))) ->  | S66: No | T66: 0 | U66: 0
B67: 54 | P67: =IF(AND(G67>='A - Contractor Summary'!$C$36,G67<='A - Contractor Summary'!$C$38),"Yes",IF(G67<'A - Contractor Summary'!$C$36,"No",IF(G67>'A - Contractor Summary'!$C$39,"",""))) -> No | Q67: =IF(OR(P67="Yes",P67="No")*AND(G67<'A - Contractor Summary'!$C$39),"",IF(AND(G67>'A - Contractor Summary'!$C$39,G67<'A - Contractor Summary'!$C$42),"Yes",IF(G67>'A - Contractor Summary'!$C$42,"No","Needs Review"))) ->  | S67: No | T67: 0 | U67: 0
B68: 55 | P68: =IF(AND(G68>='A - Contractor Summary'!$C$36,G68<='A - Contractor Summary'!$C$38),"Yes",IF(G68<'A - Contractor Summary'!$C$36,"No",IF(G68>'A - Contractor Summary'!$C$39,"",""))) -> No | Q68: =IF(OR(P68="Yes",P68="No")*AND(G68<'A - Contractor Summary'!$C$39),"",IF(AND(G68>'A - Contractor Summary'!$C$39,G68<'A - Contractor Summary'!$C$42),"Yes",IF(G68>'A - Contractor Summary'!$C$42,"No","Needs Review"))) ->  | S68: No | T68: 0 | U68: 0
B69: 56 | P69: =IF(AND(G69>='A - Contractor Summary'!$C$36,G69<='A - Contractor Summary'!$C$38),"Yes",IF(G69<'A - Contractor Summary'!$C$36,"No",IF(G69>'A - Contractor Summary'!$C$39,"",""))) -> No | Q69: =IF(OR(P69="Yes",P69="No")*AND(G69<'A - Contractor Summary'!$C$39),"",IF(AND(G69>'A - Contractor Summary'!$C$39,G69<'A - Contractor Summary'!$C$42),"Yes",IF(G69>'A - Contractor Summary'!$C$42,"No","Needs Review"))) ->  | S69: No | T69: 0 | U69: 0
B70: 57 | P70: =IF(AND(G70>='A - Contractor Summary'!$C$36,G70<='A - Contractor Summary'!$C$38),"Yes",IF(G70<'A - Contractor Summary'!$C$36,"No",IF(G70>'A - Contractor Summary'!$C$39,"",""))) -> No | Q70: =IF(OR(P70="Yes",P70="No")*AND(G70<'A - Contractor Summary'!$C$39),"",IF(AND(G70>'A - Contractor Summary'!$C$39,G70<'A - Contractor Summary'!$C$42),"Yes",IF(G70>'A - Contractor Summary'!$C$42,"No","Needs Review"))) ->  | S70: No | T70: 0 | U70: 0
B71: 58 | P71: =IF(AND(G71>='A - Contractor Summary'!$C$36,G71<='A - Contractor Summary'!$C$38),"Yes",IF(G71<'A - Contractor Summary'!$C$36,"No",IF(G71>'A - Contractor Summary'!$C$39,"",""))) -> No | Q71: =IF(OR(P71="Yes",P71="No")*AND(G71<'A - Contractor Summary'!$C$39),"",IF(AND(G71>'A - Contractor Summary'!$C$39,G71<'A - Contractor Summary'!$C$42),"Yes",IF(G71>'A - Contractor Summary'!$C$42,"No","Needs Review"))) ->  | S71: No | T71: 0 | U71: 0
B72: 59 | P72: =IF(AND(G72>='A - Contractor Summary'!$C$36,G72<='A - Contractor Summary'!$C$38),"Yes",IF(G72<'A - Contractor Summary'!$C$36,"No",IF(G72>'A - Contractor Summary'!$C$39,"",""))) -> No | Q72: =IF(OR(P72="Yes",P72="No")*AND(G72<'A - Contractor Summary'!$C$39),"",IF(AND(G72>'A - Contractor Summary'!$C$39,G72<'A - Contractor Summary'!$C$42),"Yes",IF(G72>'A - Contractor Summary'!$C$42,"No","Needs Review"))) ->  | S72: No | T72: 0 | U72: 0
B73: 60 | P73: =IF(AND(G73>='A - Contractor Summary'!$C$36,G73<='A - Contractor Summary'!$C$38),"Yes",IF(G73<'A - Contractor Summary'!$C$36,"No",IF(G73>'A - Contractor Summary'!$C$39,"",""))) -> No | Q73: =IF(OR(P73="Yes",P73="No")*AND(G73<'A - Contractor Summary'!$C$39),"",IF(AND(G73>'A - Contractor Summary'!$C$39,G73<'A - Contractor Summary'!$C$42),"Yes",IF(G73>'A - Contractor Summary'!$C$42,"No","Needs Review"))) ->  | S73: No | T73: 0 | U73: 0
B74: 61 | P74: =IF(AND(G74>='A - Contractor Summary'!$C$36,G74<='A - Contractor Summary'!$C$38),"Yes",IF(G74<'A - Contractor Summary'!$C$36,"No",IF(G74>'A - Contractor Summary'!$C$39,"",""))) -> No | Q74: =IF(OR(P74="Yes",P74="No")*AND(G74<'A - Contractor Summary'!$C$39),"",IF(AND(G74>'A - Contractor Summary'!$C$39,G74<'A - Contractor Summary'!$C$42),"Yes",IF(G74>'A - Contractor Summary'!$C$42,"No","Needs Review"))) ->  | S74: No | T74: 0 | U74: 0
B75: 62 | P75: =IF(AND(G75>='A - Contractor Summary'!$C$36,G75<='A - Contractor Summary'!$C$38),"Yes",IF(G75<'A - Contractor Summary'!$C$36,"No",IF(G75>'A - Contractor Summary'!$C$39,"",""))) -> No | Q75: =IF(OR(P75="Yes",P75="No")*AND(G75<'A - Contractor Summary'!$C$39),"",IF(AND(G75>'A - Contractor Summary'!$C$39,G75<'A - Contractor Summary'!$C$42),"Yes",IF(G75>'A - Contractor Summary'!$C$42,"No","Needs Review"))) ->  | S75: No | T75: 0 | U75: 0
B76: 63 | P76: =IF(AND(G76>='A - Contractor Summary'!$C$36,G76<='A - Contractor Summary'!$C$38),"Yes",IF(G76<'A - Contractor Summary'!$C$36,"No",IF(G76>'A - Contractor Summary'!$C$39,"",""))) -> No | Q76: =IF(OR(P76="Yes",P76="No")*AND(G76<'A - Contractor Summary'!$C$39),"",IF(AND(G76>'A - Contractor Summary'!$C$39,G76<'A - Contractor Summary'!$C$42),"Yes",IF(G76>'A - Contractor Summary'!$C$42,"No","Needs Review"))) ->  | S76: No | T76: 0 | U76: 0 | X76: 3
B77: 64 | P77: =IF(AND(G77>='A - Contractor Summary'!$C$36,G77<='A - Contractor Summary'!$C$38),"Yes",IF(G77<'A - Contractor Summary'!$C$36,"No",IF(G77>'A - Contractor Summary'!$C$39,"",""))) -> No | Q77: =IF(OR(P77="Yes",P77="No")*AND(G77<'A - Contractor Summary'!$C$39),"",IF(AND(G77>'A - Contractor Summary'!$C$39,G77<'A - Contractor Summary'!$C$42),"Yes",IF(G77>'A - Contractor Summary'!$C$42,"No","Needs Review"))) ->  | S77: No | T77: 0 | U77: 0 | X77: 3
B78: 65 | M78: =L78/K78 ->  | P78: =IF(AND(G78>='A - Contractor Summary'!$C$36,G78<='A - Contractor Summary'!$C$38),"Yes",IF(G78<'A - Contractor Summary'!$C$36,"No",IF(G78>'A - Contractor Summary'!$C$39,"",""))) -> No | Q78: =IF(OR(P78="Yes",P78="No")*AND(G78<'A - Contractor Summary'!$C$39),"",IF(AND(G78>'A - Contractor Summary'!$C$39,G78<'A - Contractor Summary'!$C$42),"Yes",IF(G78>'A - Contractor Summary'!$C$42,"No","Needs Review"))) ->  | S78: =IF(AND(R78="YES",O78="Yes",N78="Yes")*OR(P78="Yes",Q78="Yes"),"Yes",IF(OR(N78="No",O78="No",P78="No",Q78="No",R78="No"),"No","Needs Review")) -> No | T78: =IF(S78="Yes",L78,0) -> 0 | U78: =IF(S78="Needs Review",L78,0) -> 0
B79: 66 | P79: =IF(AND(G79>='A - Contractor Summary'!$C$36,G79<='A - Contractor Summary'!$C$38),"Yes",IF(G79<'A - Contractor Summary'!$C$36,"No",IF(G79>'A - Contractor Summary'!$C$39,"",""))) -> No | Q79: =IF(OR(P79="Yes",P79="No")*AND(G79<'A - Contractor Summary'!$C$39),"",IF(AND(G79>'A - Contractor Summary'!$C$39,G79<'A - Contractor Summary'!$C$42),"Yes",IF(G79>'A - Contractor Summary'!$C$42,"No","Needs Review"))) ->  | S79: No | T79: 0 | U79: 0
B80: 67 | P80: =IF(AND(G80>='A - Contractor Summary'!$C$36,G80<='A - Contractor Summary'!$C$38),"Yes",IF(G80<'A - Contractor Summary'!$C$36,"No",IF(G80>'A - Contractor Summary'!$C$39,"",""))) -> No | Q80: =IF(OR(P80="Yes",P80="No")*AND(G80<'A - Contractor Summary'!$C$39),"",IF(AND(G80>'A - Contractor Summary'!$C$39,G80<'A - Contractor Summary'!$C$42),"Yes",IF(G80>'A - Contractor Summary'!$C$42,"No","Needs Review"))) ->  | S80: No | T80: 0 | U80: 0
B81: 68 | P81: =IF(AND(G81>='A - Contractor Summary'!$C$36,G81<='A - Contractor Summary'!$C$38),"Yes",IF(G81<'A - Contractor Summary'!$C$36,"No",IF(G81>'A - Contractor Summary'!$C$39,"",""))) -> No | Q81: =IF(OR(P81="Yes",P81="No")*AND(G81<'A - Contractor Summary'!$C$39),"",IF(AND(G81>'A - Contractor Summary'!$C$39,G81<'A - Contractor Summary'!$C$42),"Yes",IF(G81>'A - Contractor Summary'!$C$42,"No","Needs Review"))) ->  | S81: No | T81: 0 | U81: 0 | X81: 3
B82: 69 | P82: =IF(AND(G82>='A - Contractor Summary'!$C$36,G82<='A - Contractor Summary'!$C$38),"Yes",IF(G82<'A - Contractor Summary'!$C$36,"No",IF(G82>'A - Contractor Summary'!$C$39,"",""))) -> No | Q82: =IF(OR(P82="Yes",P82="No")*AND(G82<'A - Contractor Summary'!$C$39),"",IF(AND(G82>'A - Contractor Summary'!$C$39,G82<'A - Contractor Summary'!$C$42),"Yes",IF(G82>'A - Contractor Summary'!$C$42,"No","Needs Review"))) ->  | S82: No | T82: 0 | U82: 0 | X82: 3
B83: 70 | P83: =IF(AND(G83>='A - Contractor Summary'!$C$36,G83<='A - Contractor Summary'!$C$38),"Yes",IF(G83<'A - Contractor Summary'!$C$36,"No",IF(G83>'A - Contractor Summary'!$C$39,"",""))) -> No | Q83: =IF(OR(P83="Yes",P83="No")*AND(G83<'A - Contractor Summary'!$C$39),"",IF(AND(G83>'A - Contractor Summary'!$C$39,G83<'A - Contractor Summary'!$C$42),"Yes",IF(G83>'A - Contractor Summary'!$C$42,"No","Needs Review"))) ->  | S83: No | T83: 0 | U83: 0
B84: 71 | P84: =IF(AND(G84>='A - Contractor Summary'!$C$36,G84<='A - Contractor Summary'!$C$38),"Yes",IF(G84<'A - Contractor Summary'!$C$36,"No",IF(G84>'A - Contractor Summary'!$C$39,"",""))) -> No | Q84: =IF(OR(P84="Yes",P84="No")*AND(G84<'A - Contractor Summary'!$C$39),"",IF(AND(G84>'A - Contractor Summary'!$C$39,G84<'A - Contractor Summary'!$C$42),"Yes",IF(G84>'A - Contractor Summary'!$C$42,"No","Needs Review"))) ->  | S84: No | T84: 0 | U84: 0
B85: 72 | P85: =IF(AND(G85>='A - Contractor Summary'!$C$36,G85<='A - Contractor Summary'!$C$38),"Yes",IF(G85<'A - Contractor Summary'!$C$36,"No",IF(G85>'A - Contractor Summary'!$C$39,"",""))) -> No | Q85: =IF(OR(P85="Yes",P85="No")*AND(G85<'A - Contractor Summary'!$C$39),"",IF(AND(G85>'A - Contractor Summary'!$C$39,G85<'A - Contractor Summary'!$C$42),"Yes",IF(G85>'A - Contractor Summary'!$C$42,"No","Needs Review"))) ->  | S85: No | T85: 0 | U85: 0
B86: 73 | P86: =IF(AND(G86>='A - Contractor Summary'!$C$36,G86<='A - Contractor Summary'!$C$38),"Yes",IF(G86<'A - Contractor Summary'!$C$36,"No",IF(G86>'A - Contractor Summary'!$C$39,"",""))) -> No | Q86: =IF(OR(P86="Yes",P86="No")*AND(G86<'A - Contractor Summary'!$C$39),"",IF(AND(G86>'A - Contractor Summary'!$C$39,G86<'A - Contractor Summary'!$C$42),"Yes",IF(G86>'A - Contractor Summary'!$C$42,"No","Needs Review"))) ->  | S86: No | T86: 0 | U86: 0
B87: 74 | P87: =IF(AND(G87>='A - Contractor Summary'!$C$36,G87<='A - Contractor Summary'!$C$38),"Yes",IF(G87<'A - Contractor Summary'!$C$36,"No",IF(G87>'A - Contractor Summary'!$C$39,"",""))) -> No | Q87: =IF(OR(P87="Yes",P87="No")*AND(G87<'A - Contractor Summary'!$C$39),"",IF(AND(G87>'A - Contractor Summary'!$C$39,G87<'A - Contractor Summary'!$C$42),"Yes",IF(G87>'A - Contractor Summary'!$C$42,"No","Needs Review"))) ->  | S87: No | T87: 0 | U87: 0
B88: 75 | P88: =IF(AND(G88>='A - Contractor Summary'!$C$36,G88<='A - Contractor Summary'!$C$38),"Yes",IF(G88<'A - Contractor Summary'!$C$36,"No",IF(G88>'A - Contractor Summary'!$C$39,"",""))) -> No | Q88: =IF(OR(P88="Yes",P88="No")*AND(G88<'A - Contractor Summary'!$C$39),"",IF(AND(G88>'A - Contractor Summary'!$C$39,G88<'A - Contractor Summary'!$C$42),"Yes",IF(G88>'A - Contractor Summary'!$C$42,"No","Needs Review"))) ->  | S88: No | T88: 0 | U88: 71.68 | V88: =+M88 ->  | X88: 4
B89: 76 | P89: =IF(AND(G89>='A - Contractor Summary'!$C$36,G89<='A - Contractor Summary'!$C$38),"Yes",IF(G89<'A - Contractor Summary'!$C$36,"No",IF(G89>'A - Contractor Summary'!$C$39,"",""))) -> No | Q89: =IF(OR(P89="Yes",P89="No")*AND(G89<'A - Contractor Summary'!$C$39),"",IF(AND(G89>'A - Contractor Summary'!$C$39,G89<'A - Contractor Summary'!$C$42),"Yes",IF(G89>'A - Contractor Summary'!$C$42,"No","Needs Review"))) ->  | S89: No | T89: 0 | U89: 71.68 | V89: =+M89 ->  | X89: 4
B90: 77 | P90: =IF(AND(G90>='A - Contractor Summary'!$C$36,G90<='A - Contractor Summary'!$C$38),"Yes",IF(G90<'A - Contractor Summary'!$C$36,"No",IF(G90>'A - Contractor Summary'!$C$39,"",""))) -> No | Q90: =IF(OR(P90="Yes",P90="No")*AND(G90<'A - Contractor Summary'!$C$39),"",IF(AND(G90>'A - Contractor Summary'!$C$39,G90<'A - Contractor Summary'!$C$42),"Yes",IF(G90>'A - Contractor Summary'!$C$42,"No","Needs Review"))) ->  | S90: No | T90: 0 | U90: 0 | X90: 2,3
B91: 78 | P91: =IF(AND(G91>='A - Contractor Summary'!$C$36,G91<='A - Contractor Summary'!$C$38),"Yes",IF(G91<'A - Contractor Summary'!$C$36,"No",IF(G91>'A - Contractor Summary'!$C$39,"",""))) -> No | Q91: =IF(OR(P91="Yes",P91="No")*AND(G91<'A - Contractor Summary'!$C$39),"",IF(AND(G91>'A - Contractor Summary'!$C$39,G91<'A - Contractor Summary'!$C$42),"Yes",IF(G91>'A - Contractor Summary'!$C$42,"No","Needs Review"))) ->  | S91: No | T91: 0 | U91: 0 | X91: 1
B92: 79 | P92: =IF(AND(G92>='A - Contractor Summary'!$C$36,G92<='A - Contractor Summary'!$C$38),"Yes",IF(G92<'A - Contractor Summary'!$C$36,"No",IF(G92>'A - Contractor Summary'!$C$39,"",""))) -> No | Q92: =IF(OR(P92="Yes",P92="No")*AND(G92<'A - Contractor Summary'!$C$39),"",IF(AND(G92>'A - Contractor Summary'!$C$39,G92<'A - Contractor Summary'!$C$42),"Yes",IF(G92>'A - Contractor Summary'!$C$42,"No","Needs Review"))) ->  | S92: No | T92: 0 | U92: 0 | X92: 1
L93: =SUM(L14:L92) -> 0 | T93: =IFERROR(SUM(T14:T92),0) -> 0 | U93: =IFERROR(SUM(U14:U92),0) -> 143.36 | V93: 0 | W93: =IFERROR(SUM(W14:W92),0) -> 0 | X93: =U93-V93-W93 -> 143.36 | Y93: check (a)
B96: Tickmark Explanation:
B97: 1
B98: 2
B99: 3
B100: 4

Sheet E - Fuel
B2: Fuel Charges
B4: Test Plan: (A) Obtain support of individual charges. (B) Enter Yes/No if receipt is itemized (C) Enter Yes/No if proof of payment has been provided. (D) Ensure charges fall between the dates the vendor was mobilized and the date they arrived. (E) Ensure charges are prior to the date the vendor arrived home or was released to another utility. (F) Ensure the location of charge was reasonable (G) Determine the amount(s) to be reviewed, allowed and/or disallowed. (H) For charges which required further review, document review (include why it was determined to be allowed/disallowed via a tickmark).
P5: No Fuel Charges
B9: a | C9: Check figure should equal $0. Cell will appear yellow if discrepancies are noted.
C11: A | K11: B | L11: C | M11: D | N11: E | O11: F | P11: G | S11: H
B12: Support Reviewed | M12: Conclusions
B13: # | C13: Type of Support | D13: Support Identifier | E13: Company | F13: Date | G13: Person | H13: Name | I13: Location | J13: Total Charge | K13: Itemized Receipt | L13: Proof of Payment | M13: Reasonable based on Mobilization date(s) | N13: Reasonable based on Demobilization date(s) | O13: Locations Reasonable | P13: Conclusion | Q13: $ Allowable Charge | R13: $ To Be Reviewed | S13: Reviewed - Allowable Charge | T13: Reviewed - Unallowable Charge | U13: Tickmarks
B14: 1 | M14: =IF(AND(F14>='A - Contractor Summary'!$C$36,F14<='A - Contractor Summary'!$C$38),"Yes",IF(F14<'A - Contractor Summary'!$C$36,"No",IF(F14>'A - Contractor Summary'!$C$39,"",""))) -> No | N14: =IF(OR(M14="Yes",M14="No")*AND(F14<'A - Contractor Summary'!$C$39),"",IF(AND(F14>'A - Contractor Summary'!$C$39,F14<'A - Contractor Summary'!$C$42),"Yes",IF(F14>'A - Contractor Summary'!$C$42,"No","Needs Review"))) ->  | P14: =IF(AND(O14="Yes",K14="Yes",L14="Yes")*OR(N14="Yes",M14="Yes"),"Yes",IF(OR(K14="No",M14="No",N14="No",O14="No",L14="No"),"No","Needs Review")) -> No | Q14: =IF(P14="Yes",J14,0) -> 0 | R14: =IF(P14="Needs Review",J14,0) -> 0
B15: 2 | M15: =IF(AND(F15>='A - Contractor Summary'!$C$36,F15<='A - Contractor Summary'!$C$38),"Yes",IF(F15<'A - Contractor Summary'!$C$36,"No",IF(F15>'A - Contractor Summary'!$C$39,"",""))) -> No | N15: =IF(OR(M15="Yes",M15="No")*AND(F15<'A - Contractor Summary'!$C$39),"",IF(AND(F15>'A - Contractor Summary'!$C$39,F15<'A - Contractor Summary'!$C$42),"Yes",IF(F15>'A - Contractor Summary'!$C$42,"No","Needs Review"))) ->  | P15: =IF(AND(O15="Yes",K15="Yes",L15="Yes")*OR(N15="Yes",M15="Yes"),"Yes",IF(OR(K15="No",M15="No",N15="No",O15="No",L15="No"),"No","Needs Review")) -> No | Q15: 0 | R15: 0
B16: 3 | M16: =IF(AND(F16>='A - Contractor Summary'!$C$36,F16<='A - Contractor Summary'!$C$38),"Yes",IF(F16<'A - Contractor Summary'!$C$36,"No",IF(F16>'A - Contractor Summary'!$C$39,"",""))) -> No | N16: =IF(OR(M16="Yes",M16="No")*AND(F16<'A - Contractor Summary'!$C$39),"",IF(AND(F16>'A - Contractor Summary'!$C$39,F16<'A - Contractor Summary'!$C$42),"Yes",IF(F16>'A - Contractor Summary'!$C$42,"No","Needs Review"))) ->  | P16: No | Q16: 0 | R16: 0
B17: 4 | M17: =IF(AND(F17>='A - Contractor Summary'!$C$36,F17<='A - Contractor Summary'!$C$38),"Yes",IF(F17<'A - Contractor Summary'!$C$36,"No",IF(F17>'A - Contractor Summary'!$C$39,"",""))) -> No | N17: =IF(OR(M17="Yes",M17="No")*AND(F17<'A - Contractor Summary'!$C$39),"",IF(AND(F17>'A - Contractor Summary'!$C$39,F17<'A - Contractor Summary'!$C$42),"Yes",IF(F17>'A - Contractor Summary'!$C$42,"No","Needs Review"))) ->  | P17: No | Q17: 0 | R17: 0
B18: 5 | M18: =IF(AND(F18>='A - Contractor Summary'!$C$36,F18<='A - Contractor Summary'!$C$38),"Yes",IF(F18<'A - Contractor Summary'!$C$36,"No",IF(F18>'A - Contractor Summary'!$C$39,"",""))) -> No | N18: =IF(OR(M18="Yes",M18="No")*AND(F18<'A - Contractor Summary'!$C$39),"",IF(AND(F18>'A - Contractor Summary'!$C$39,F18<'A - Contractor Summary'!$C$42),"Yes",IF(F18>'A - Contractor Summary'!$C$42,"No","Needs Review"))) ->  | P18: No | Q18: 0 | R18: 0
B19: 6 | M19: =IF(AND(F19>='A - Contractor Summary'!$C$36,F19<='A - Contractor Summary'!$C$38),"Yes",IF(F19<'A - Contractor Summary'!$C$36,"No",IF(F19>'A - Contractor Summary'!$C$39,"",""))) -> No | N19: =IF(OR(M19="Yes",M19="No")*AND(F19<'A - Contractor Summary'!$C$39),"",IF(AND(F19>'A - Contractor Summary'!$C$39,F19<'A - Contractor Summary'!$C$42),"Yes",IF(F19>'A - Contractor Summary'!$C$42,"No","Needs Review"))) ->  | P19: No | Q19: 0 | R19: 0
B20: 7 | M20: =IF(AND(F20>='A - Contractor Summary'!$C$36,F20<='A - Contractor Summary'!$C$38),"Yes",IF(F20<'A - Contractor Summary'!$C$36,"No",IF(F20>'A - Contractor Summary'!$C$39,"",""))) -> No | N20: =IF(OR(M20="Yes",M20="No")*AND(F20<'A - Contractor Summary'!$C$39),"",IF(AND(F20>'A - Contractor Summary'!$C$39,F20<'A - Contractor Summary'!$C$42),"Yes",IF(F20>'A - Contractor Summary'!$C$42,"No","Needs Review"))) ->  | P20: No | Q20: 0 | R20: 0
B21: 8 | M21: =IF(AND(F21>='A - Contractor Summary'!$C$36,F21<='A - Contractor Summary'!$C$38),"Yes",IF(F21<'A - Contractor Summary'!$C$36,"No",IF(F21>'A - Contractor Summary'!$C$39,"",""))) -> No | N21: =IF(OR(M21="Yes",M21="No")*AND(F21<'A - Contractor Summary'!$C$39),"",IF(AND(F21>'A - Contractor Summary'!$C$39,F21<'A - Contractor Summary'!$C$42),"Yes",IF(F21>'A - Contractor Summary'!$C$42,"No","Needs Review"))) ->  | P21: No | Q21: 0 | R21: 0
B22: 9 | M22: =IF(AND(F22>='A - Contractor Summary'!$C$36,F22<='A - Contractor Summary'!$C$38),"Yes",IF(F22<'A - Contractor Summary'!$C$36,"No",IF(F22>'A - Contractor Summary'!$C$39,"",""))) -> No | N22: =IF(OR(M22="Yes",M22="No")*AND(F22<'A - Contractor Summary'!$C$39),"",IF(AND(F22>'A - Contractor Summary'!$C$39,F22<'A - Contractor Summary'!$C$42),"Yes",IF(F22>'A - Contractor Summary'!$C$42,"No","Needs Review"))) ->  | P22: No | Q22: 0 | R22: 0
B23: 10 | M23: =IF(AND(F23>='A - Contractor Summary'!$C$36,F23<='A - Contractor Summary'!$C$38),"Yes",IF(F23<'A - Contractor Summary'!$C$36,"No",IF(F23>'A - Contractor Summary'!$C$39,"",""))) -> No | N23: =IF(OR(M23="Yes",M23="No")*AND(F23<'A - Contractor Summary'!$C$39),"",IF(AND(F23>'A - Contractor Summary'!$C$39,F23<'A - Contractor Summary'!$C$42),"Yes",IF(F23>'A - Contractor Summary'!$C$42,"No","Needs Review"))) ->  | P23: No | Q23: 0 | R23: 0
B24: 11 | M24: =IF(AND(F24>='A - Contractor Summary'!$C$36,F24<='A - Contractor Summary'!$C$38),"Yes",IF(F24<'A - Contractor Summary'!$C$36,"No",IF(F24>'A - Contractor Summary'!$C$39,"",""))) -> No | N24: =IF(OR(M24="Yes",M24="No")*AND(F24<'A - Contractor Summary'!$C$39),"",IF(AND(F24>'A - Contractor Summary'!$C$39,F24<'A - Contractor Summary'!$C$42),"Yes",IF(F24>'A - Contractor Summary'!$C$42,"No","Needs Review"))) ->  | P24: No | Q24: 0 | R24: 0
B25: 12 | M25: =IF(AND(F25>='A - Contractor Summary'!$C$36,F25<='A - Contractor Summary'!$C$38),"Yes",IF(F25<'A - Contractor Summary'!$C$36,"No",IF(F25>'A - Contractor Summary'!$C$39,"",""))) -> No | N25: =IF(OR(M25="Yes",M25="No")*AND(F25<'A - Contractor Summary'!$C$39),"",IF(AND(F25>'A - Contractor Summary'!$C$39,F25<'A - Contractor Summary'!$C$42),"Yes",IF(F25>'A - Contractor Summary'!$C$42,"No","Needs Review"))) ->  | P25: No | Q25: 0 | R25: 0
B26: 13 | M26: =IF(AND(F26>='A - Contractor Summary'!$C$36,F26<='A - Contractor Summary'!$C$38),"Yes",IF(F26<'A - Contractor Summary'!$C$36,"No",IF(F26>'A - Contractor Summary'!$C$39,"",""))) -> No | N26: =IF(OR(M26="Yes",M26="No")*AND(F26<'A - Contractor Summary'!$C$39),"",IF(AND(F26>'A - Contractor Summary'!$C$39,F26<'A - Contractor Summary'!$C$42),"Yes",IF(F26>'A - Contractor Summary'!$C$42,"No","Needs Review"))) ->  | P26: No | Q26: 0 | R26: 0
B27: 14 | M27: =IF(AND(F27>='A - Contractor Summary'!$C$36,F27<='A - Contractor Summary'!$C$38),"Yes",IF(F27<'A - Contractor Summary'!$C$36,"No",IF(F27>'A - Contractor Summary'!$C$39,"",""))) -> No | N27: =IF(OR(M27="Yes",M27="No")*AND(F27<'A - Contractor Summary'!$C$39),"",IF(AND(F27>'A - Contractor Summary'!$C$39,F27<'A - Contractor Summary'!$C$42),"Yes",IF(F27>'A - Contractor Summary'!$C$42,"No","Needs Review"))) ->  | P27: No | Q27: 0 | R27: 0
B28: 15 | M28: =IF(AND(F28>='A - Contractor Summary'!$C$36,F28<='A - Contractor Summary'!$C$38),"Yes",IF(F28<'A - Contractor Summary'!$C$36,"No",IF(F28>'A - Contractor Summary'!$C$39,"",""))) -> No | N28: =IF(OR(M28="Yes",M28="No")*AND(F28<'A - Contractor Summary'!$C$39),"",IF(AND(F28>'A - Contractor Summary'!$C$39,F28<'A - Contractor Summary'!$C$42),"Yes",IF(F28>'A - Contractor Summary'!$C$42,"No","Needs Review"))) ->  | P28: No | Q28: 0 | R28: 0
B29: 16 | M29: =IF(AND(F29>='A - Contractor Summary'!$C$36,F29<='A - Contractor Summary'!$C$38),"Yes",IF(F29<'A - Contractor Summary'!$C$36,"No",IF(F29>'A - Contractor Summary'!$C$39,"",""))) -> No | N29: =IF(OR(M29="Yes",M29="No")*AND(F29<'A - Contractor Summary'!$C$39),"",IF(AND(F29>'A - Contractor Summary'!$C$39,F29<'A - Contractor Summary'!$C$42),"Yes",IF(F29>'A - Contractor Summary'!$C$42,"No","Needs Review"))) ->  | P29: No | Q29: 0 | R29: 0
B30: 17 | M30: =IF(AND(F30>='A - Contractor Summary'!$C$36,F30<='A - Contractor Summary'!$C$38),"Yes",IF(F30<'A - Contractor Summary'!$C$36,"No",IF(F30>'A - Contractor Summary'!$C$39,"",""))) -> No | N30: =IF(OR(M30="Yes",M30="No")*AND(F30<'A - Contractor Summary'!$C$39),"",IF(AND(F30>'A - Contractor Summary'!$C$39,F30<'A - Contractor Summary'!$C$42),"Yes",IF(F30>'A - Contractor Summary'!$C$42,"No","Needs Review"))) ->  | P30: No | Q30: 0 | R30: 0
B31: 18 | M31: =IF(AND(F31>='A - Contractor Summary'!$C$36,F31<='A - Contractor Summary'!$C$38),"Yes",IF(F31<'A - Contractor Summary'!$C$36,"No",IF(F31>'A - Contractor Summary'!$C$39,"",""))) -> No | N31: =IF(OR(M31="Yes",M31="No")*AND(F31<'A - Contractor Summary'!$C$39),"",IF(AND(F31>'A - Contractor Summary'!$C$39,F31<'A - Contractor Summary'!$C$42),"Yes",IF(F31>'A - Contractor Summary'!$C$42,"No","Needs Review"))) ->  | P31: No | Q31: =IF(P31="Yes",#REF!,0) -> 0 | R31: =IF(P31="ED Review",#REF!,0) -> 0
B32: 19 | M32: =IF(AND(F32>='A - Contractor Summary'!$C$36,F32<='A - Contractor Summary'!$C$38),"Yes",IF(F32<'A - Contractor Summary'!$C$36,"No",IF(F32>'A - Contractor Summary'!$C$39,"",""))) -> No | N32: =IF(OR(M32="Yes",M32="No")*AND(F32<'A - Contractor Summary'!$C$39),"",IF(AND(F32>'A - Contractor Summary'!$C$39,F32<'A - Contractor Summary'!$C$42),"Yes",IF(F32>'A - Contractor Summary'!$C$42,"No","Needs Review"))) ->  | P32: No | Q32: =IF(P32="Yes",#REF!,0) -> 0 | R32: =IF(P32="ED Review",#REF!,0) -> 0
B33: 20 | M33: =IF(AND(F33>='A - Contractor Summary'!$C$36,F33<='A - Contractor Summary'!$C$38),"Yes",IF(F33<'A - Contractor Summary'!$C$36,"No",IF(F33>'A - Contractor Summary'!$C$39,"",""))) -> No | N33: =IF(OR(M33="Yes",M33="No")*AND(F33<'A - Contractor Summary'!$C$39),"",IF(AND(F33>'A - Contractor Summary'!$C$39,F33<'A - Contractor Summary'!$C$42),"Yes",IF(F33>'A - Contractor Summary'!$C$42,"No","Needs Review"))) ->  | P33: No | Q33: =IF(P33="Yes",#REF!,0) -> 0 | R33: =IF(P33="ED Review",#REF!,0) -> 0
J34: =SUM(J14:J33) -> 0 | Q34: =IFERROR(SUM(Q14:Q33),0) -> 0 | R34: =IFERROR(SUM(R14:R33),0) -> 0 | S34: =SUM(S14:S33) -> 0 | T34: =SUM(T14:T33) -> 0 | U34: =R34-S34-T34 -> 0 | V34: check (a)
B40: Tickmark Explanation:

Sheet F - Meals
B2: Meal Charges
B4: Test Plan: (A) Obtain support of individual charges. (B) Enter Yes/No if receipt is itemized. (C) Enter Yes/No if proof of payment has been provided. (D) Ensure charges fall between the dates the vendor was mobilized and the date they arrived. (E) Ensure charges are prior to the date the vendor arrived home or was released to another utility. (F) Ensure the location of charge was reasonable (G) Determine the amount(s) to be reviewed, allowed and/or disallowed. (H) For charges which required further review, document review and include why it was determined to be allowed/disallowed via a tickmark.
B9: a | C9: Check figure should equal $0. Cell will appear yellow if discrepancies are noted.
C11: A | L11: B | M11: C | N11: D | O11: E | P11: F | Q11: G | T11: H
B12: Support Reviewed | N12: Conclusions
B13: # | C13: Type of Support | D13: Support Identifier | E13: Company | F13: Crew | G13: Date | H13: Person | I13: Restaurant Name | J13: Location | K13: $ Total | L13: Itemized Receipt | M13: Proof of Payment | N13: Reasonable based on Mobilization date(s) | O13: Reasonable based on Demobilization date(s) | P13: Locations Reasonable | Q13: Conclusion | R13: $ Allowable Charge | S13: $ To Be Reviewed | T13: Reviewed - Allowable Charge | U13: Reviewed - Unallowable Charge | V13: Tickmarks
B14: 1 | N14: =IF(AND(G14>='A - Contractor Summary'!$C$36,G14<='A - Contractor Summary'!$C$38),"Yes",IF(G14<'A - Contractor Summary'!$C$36,"No",IF(G14>'A - Contractor Summary'!$C$39,"",""))) -> No | O14: =IF(OR(N14="Yes",N14="No")*AND(G14<'A - Contractor Summary'!$C$39),"",IF(AND(G14>'A - Contractor Summary'!$C$39,G14<'A - Contractor Summary'!$C$42),"Yes",IF(G14>'A - Contractor Summary'!$C$42,"No","Needs Review"))) ->  | P14: Yes | Q14: =IF(AND(P14="Yes",L14="Yes",M14="Yes")*OR(O14="Yes",N14="Yes"),"Yes",IF(OR(L14="No",N14="No",O14="No",P14="No",M14="No"),"No","Needs Review")) -> No | R14: =IF(Q14="Yes",K14,0) -> 0 | S14: =IF(Q14="Needs Review",K14,0) -> 0
B15: 2 | N15: =IF(AND(G15>='A - Contractor Summary'!$C$36,G15<='A - Contractor Summary'!$C$38),"Yes",IF(G15<'A - Contractor Summary'!$C$36,"No",IF(G15>'A - Contractor Summary'!$C$39,"",""))) -> No | O15: =IF(OR(N15="Yes",N15="No")*AND(G15<'A - Contractor Summary'!$C$39),"",IF(AND(G15>'A - Contractor Summary'!$C$39,G15<'A - Contractor Summary'!$C$42),"Yes",IF(G15>'A - Contractor Summary'!$C$42,"No","Needs Review"))) ->  | P15: Yes | Q15: No | R15: 0 | S15: 0
B16: 3 | N16: =IF(AND(G16>='A - Contractor Summary'!$C$36,G16<='A - Contractor Summary'!$C$38),"Yes",IF(G16<'A - Contractor Summary'!$C$36,"No",IF(G16>'A - Contractor Summary'!$C$39,"",""))) -> No | O16: =IF(OR(N16="Yes",N16="No")*AND(G16<'A - Contractor Summary'!$C$39),"",IF(AND(G16>'A - Contractor Summary'!$C$39,G16<'A - Contractor Summary'!$C$42),"Yes",IF(G16>'A - Contractor Summary'!$C$42,"No","Needs Review"))) ->  | P16: Yes | Q16: No | R16: 0 | S16: 0
